Workbook

Sheet User instructions
A1: User instructions
A2: Please read this first
A3: Disclaimer
A4: The research team is not responsible if incorrect decisions are made because of the use of this file. This file is provided without any technical support. It is the responsibility of the user to verify that the formulae used in this file are suitable for their needs.
A5: Instructions to use the file
A6: 1. This file calculates the cost-effectiveness of hyperthermic intraoperative peritoneal chemotherapy (HIPEC) and cytoreductive surgery (CRS) for people with peritoneal metastases described in UK National Institute for Health and Care Research Project HTA 17/135/02.
A7: 2. It is expected that people with expertise in health economics use this file to tailor the input to the local data.
A8: 3. This file allows the calculation of cost-effectiveness for the following comparisons.
A9: a. Colorectal peritoneal metastases: CRS + HIPEC + systemic chemotherapy vs CRS + systemic chemotherapy
A10: b. Colorectal peritoneal metastases: CRS + HIPEC + systemic chemotherapy vs systemic chemotherapy
A11: c. Gastric peritoneal metastases: CRS + HIPEC + systemic chemotherapy vs CRS + systemic chemotherapy
A12: d. Gastric peritoneal metastases: CRS + HIPEC + systemic chemotherapy vs systemic chemotherapy
A13: e. Ovarian cancer (Stage III or above requiring interval cytoreductive surgery): CRS + HIPEC + systemic chemotherapy vs CRS + systemic chemotherapy
A14: 4. We strongly recommend that you save a copy of the original download before you make any alterations, as the file contains formulae which are linked to other sheets. The formulae are not protected to allow you to customise the file to your needs.
A15: 5. To choose the birth sex and the comparison, please see sheet 'UserInput'.
A16: 6. For changing the probabilities, costs, and utilities, please see sheet 'SourceData'. The SourceData are linked to cells in other sheets.
A17: a. The naming convention used for the calculations of costs, cancer type (CRC, Gastric, and Ovarian for colorectal, stomach, and ovarian cancers respectively) followed by the intervention '_HIPEC_' and control 'CRS' for cytoreductive surgery and 'Chem' for systemic chemotherapy alone.
A18: b. Calculation of quality adjusted life years is done in the sheet 'QALYCalculation'.
A19: c. The estimated life span is based on the UK National life tables and is done in the sheet 'NationalLifeTables'.
A20: 7. For changing the discount rate and number of iterations, please see sheet 'Input'.
A21: 8. When you are ready to perform the analysis, click on 'Analyse' in the sheet 'Input'.
A22: 9. The results are available from the sheets 'Results', 'Scatterplot', 'CEAC', 'ThresholdSummary' and 'Tornado'. In the scatterplot, one has to manually adjust the cell range to get the correct scatterplot. For example, for 10,000 simulations, the cell range are PSA!$DD$5:$DD$10004,PSA!$DC$5:$DC$10004. For 15,000 simulations, the cell range are PSA!$DD$5:$DD$15004,PSA!$DC$5:$DC$15004 and so on.
A23: 10. If you want to check the stability, you can do so by clicking on 'Assess stability of model' in the sheet 'Input'. The results are available in the 'Results' sheet.

Sheet CRC_HIPEC_CRS
A1: Colorectal cancer | B1: HIPEC+CRS+systemic chemotherapy vs CRS+systemic chemotherapy
B2: Unit cost | C2: Notes/description | D2: Quantity per patient | E2: Exchange rate to GBP | F2: Total mg/m2 | G2: Surface area (m2) | H2: Body weight (kg) | I2: Total drug (mg per patient) | J2: Total cost (GBP 2022) | K2: Source
A3: HIPEC costs
A4: HIPEC machine
A5: HIPEC machine (Performer HT) | B5: 45000 | C5: Original cost: € 45,000 + VAT. Lifelime of the machine is 10 years. Annuity factor at 5% rate. | D5: 1 | E5: 1.19 | J5: =IF(D5="","",B5*D5*IF(E5="",1,E5)) -> 53550 | K5: Hospital costs; Euro to GBP Exchange rate (ONS 2022)
A6: HIPEC machine service costs per year | B6: 5500 | C6: Original cost: € 5,500. Service cost per year. This is the same regardless of volume | D6: 1 | E6: 1.19 | J6: 6545 | K6: Hospital costs
A7: Life time for machine (years) | B7: 10 | C7: Local estimate | K7: Local estimate
A8: Interest rate | B8: 0.05
A9: Annuity factor | B9: =(1-(1/(1+B8))^B7)/B8 -> 7.721734929 | C9: This is calculated using the formula 1-(1/(1+interest rate))^years/interest rate | K9: Drummond et al 2015 Methods for the Economic Evaluation of Health Care Programmes Edition 4
A10: Cost of HIPEC machine per year | B10: =(J5/B9)+J6 -> 13479.96999 | C10: This is calculated as: Cost of HIPEC machine/Annuity factor +HIPEC machine service costs per year (in pounds) | D10: =IF(OR(UserInput!$B$8="",UserInput!$B$8<=70),1,ROUNDUP(QUOTIENT(UserInput!$B$8,70),0)+1) -> 1 | E10: 1 | J10: 13479.96999
A11: Cost of HIPEC machine per patient | B11: =J10/IF(UserInput!$B$8="",70,UserInput!$B$8) -> 192.5709998 | C11: The machine volume per year can differ according to the number of procedures. On average, 1 machine is required for every 70 patients per year. The costs per patient are calculated as total machine costs per year/number of patients per year | D11: 1 | E11: 1 | J11: 192.5709998
A12: HIPEC disposables
A13: Hang and Go Set per case | B13: 1020 | C13: cost per patient of consumables | D13: 1 | E13: 1 | J13: 1020 | K13: Hospital costs
A14: Cytotoxic disposal per case | B14: 1.85 | C14: cost per patient of disposable material | D14: 1 | E14: 1 | J14: 1.85 | K14: Hospital costs
A15: Baxter cost Oxaliplatin | B15: 47.5 | D15: 1 | E15: 1 | J15: 47.5 | K15: Hospital costs
A16: Baxter cost 5FU | B16: 26 | D16: 1 | E16: 1 | J16: 26 | K16: Hospital costs
A18: Total cost of disposables | B18: =SUM(J13:J17) -> 1095.35 | D18: 1 | E18: 1 | J18: =IF(D18="","",B18*D18*IF(E18="",1,E18)) -> 1095.35
A19: HIPEC pratitioner
A20: HIPEC pratitioner salary (p.a) | B20: 65 | C20: This is a pratictioner that runs and maintains the machine. The salary range here is £40,057-£45,839. Average 5.5hs per case. Assuming 47.5 hours per week, 42 weeks a year, the cost per hour is £65. Time per case is 5.5*£65 | D20: 5.5 | J20: 357.5
A21: Additional operating time
A22: Additional operating time (NHS costs) | B22: =561*113.6/100 -> 637.296 | C22: Costs per hour of operating time | D22: 0.5 | E22: 1 | J22: 318.648 | K22: NHS Providers (https://nhsproviders.org/media/1128/operating-theatres-final.pdf) (adjusted for inflation using 2015 as base index and October 2021 index of 113.6): https://www.ons.gov.uk/economy/inflationandpriceindices/datasets/consumerpriceinflation; extra operating time = duration of HIPEC
A23: Additional operating time (Christie costs)
A24: Consultant anaesthesist | B24: 92 | C24: cost per hour | D24: 1 | E24: 1 | J24: 92 | K24: PSSRU 2022; hospital business case
A25: Anaesthetic pratictioner | B25: 35 | C25: cost per hour | D25: 1 | E25: 1 | J25: 35 | K25: PSSRU 2022; hospital business case
A26: Additional consultant surgeon | B26: 92 | C26: cost per hour | D26: 1 | E26: 1 | J26: 92 | K26: PSSRU 2022; hospital business case
A27: Theatre team | B27: 86 | C27: cost per hour | D27: 1 | E27: 1 | J27: 86 | K27: PSSRU 2022; hospital business case
A28: Surgical assistant | B28: 25 | C28: cost per hour | D28: 1 | E28: 1 | J28: 25 | K28: PSSRU 2022; hospital business case
A29: Additional operating time (Christie costs) | B29: =SUM(J24:J28) -> 330 | C29: Total costs per hour of operating time (sum of costs per hour) | D29: =D22 -> 0.5 | E29: 1 | J29: 165
A30: Additional operating time (based on user input) | B30: =IF(UserInput!$B$7="Christie local estimates",J29,J22) -> 318.648 | C30: Total costs per hour of operating time (sum of costs per hour) | D30: 1 | E30: 1 | J30: 318.648
A31: Additional hospital stay
A32: Additional hospital stay | B32: 292 | C32: Per night extra hospital stay | D32: 5 | E32: 1 | J32: 1460 | K32: Quenet 2021; NHS tariffs November 2022 (https://www.england.nhs.uk/publication/national-tariff-payment-system-documents-annexes-and-supporting-documents/)
A33: HIPEC (drugs) | C33: This is based on non-reusable vials. The vial denominations were chosen to minimise the costs for the base case scenario.
A34: Oxaliplatin | B34: =(3*591.26)+(1*295.63)+(1*178.85) -> 2248.26 | C34: 460 mg/m² in open technique and 360 mg/m² in closed technique (we assume an average of 410mg/m²)=738mg; 3 vials of 200mg (price 1 vial £591.26) + 1 vial 100mg (price 1 vial £295.63) + 1 vial 50mg (price 1 vial £178.85) | D34: 1 | E34: 1 | F34: =(460+360)/2 -> 410 | G34: 1.8 | I34: =F34*G34 -> 738 | J34: 2248.26 | K34: Quenet 2021; BNF 2022; Sacco et al 2010 (Sacco JJ, Botten J, Macbeth F, Bagust A, Clark P. The average body surface area of adult cancer patients in the UK: a multicentre retrospective study. PLoS One. 2010 Jan 28;5(1):e8933. doi: 10.1371/journal.pone.0008933. PMID: 20126669; PMCID: PMC2812484).
A35: 5FU Fluororacil | B35: 6.4 | C35: 400 mg/m² per patient= 720 mg; 2 vials of 500mg (price per 1 vial £6.40) | D35: 2 | E35: 1 | F35: 400 | G35: 1.8 | I35: =F35*G35 -> 720 | J35: 12.8 | K35: Quenet 2021; BNF 2022; Sacco et al 2010
A36: Folinic acid (calcium folinate) | B36: 20 | C36: 20 mg/m² per patient = 36 mg; 1 vial of 50mg (price per 1 vial £20) | D36: 1 | E36: 1 | F36: 20 | G36: 1.8 | I36: =F36*G36 -> 36 | J36: 20 | K36: Quenet 2021; BNF 2022; Sacco et al 2010
A37: Total cost of HIPEC drugs | B37: =SUM(J34:J36) -> 2281.06 | C37: Total costs of HIPEC drugs (sum of HIPEC drug costs) | D37: 1 | J37: 2281.06
A38: Total costs of HIPEC | J38: =SUM(J11,J18,J20,J30,J32,J37) -> 5705.129
A39: CRS costs
A40: Uncomplicated CRS costs | B40: 6199 | C40: FF50C: Complex General Abdominal Procedures with CC Score 0-2 (elective) | D40: 1 | E40: 1 | J40: =IF(D40="","",B40*D40*IF(E40="",1,E40)) -> 6199 | K40: NHS tariffs November 2022 (https://www.england.nhs.uk/publication/national-tariff-payment-system-documents-annexes-and-supporting-documents/)
A41: Complicated CRS costs | B41: =(41*14857+110*8970)/151 -> 10568.45695 | C41: Average of FF50A: Complex General Abdominal Procedures with CC Score 6+ and FF50B:Complex General Abdominal Procedures with CC Score 3-5 (weighted by the number of procedures done based on NHS Reference costs) | D41: 1 | E41: 1 | J41: =IF(D41="","",B41*D41*IF(E41="",1,E41)) -> 10568.45695 | K41: NHS tariffs November 2022 (https://www.england.nhs.uk/publication/national-tariff-payment-system-documents-annexes-and-supporting-documents/) and NHS reference costs (https://www.england.nhs.uk/publication/2020-21-national-cost-collection-data-publication/)
A42: Systemic chemotherapy
A43: Varied systemic chemotherapy was used according to the centre. The same systemic chemotherapy was used in both arms. As we were interested in incremental costs by using the policy of HIPEC, the costs of systemic chemotherapy were not included in either arm.

Sheet CRC_HIPEC_Chem
A1: Colorectal cancer | B1: HIPEC+CRS+systemic chemotherapy vs systemic chemotherapy
B2: Unit cost | C2: Notes/description | D2: Quantity per patient | E2: Exchange rate to GBP | F2: Total mg/m2 | G2: Surface area (m2) | H2: Body weight (kg) | I2: Total drug (mg per patient) | J2: Total cost (GBP 2022) | K2: Source
A3: HIPEC costs
A4: HIPEC machine
A5: HIPEC machine (Performer HT) | B5: 45000 | C5: Original cost: € 45,000 + VAT. Lifelime of the machine is 10 years. Annuity factor at 5% rate. | D5: 1 | E5: 1.19 | J5: =IF(D5="","",B5*D5*IF(E5="",1,E5)) -> 53550 | K5: Hospital costs; Euro to GBP Exchange rate (ONS 2022)
A6: HIPEC machine service costs per year | B6: 5500 | C6: Original cost: € 5,500. Service cost per year. This is the same regardless of volume | D6: 1 | E6: 1.19 | J6: 6545 | K6: Hospital costs
A7: Life time for machine (years) | B7: 10 | C7: Local estimate | K7: Local estimate
A8: Interest rate | B8: 0.05
A9: Annuity factor | B9: =(1-(1/(1+B8))^B7)/B8 -> 7.721734929 | C9: This is calculated using the formula 1-(1/(1+interest rate))^years/interest rate | K9: Drummond et al 2015 Methods for the Economic Evaluation of Health Care Programmes Edition 4
A10: Cost of HIPEC machine per year | B10: =(J5/B9)+J6 -> 13479.96999 | C10: This is calculated as: Cost of HIPEC machine/Annuity factor +HIPEC machine service costs per year (in pounds) | D10: =IF(OR(UserInput!$B$8="",UserInput!$B$8<=70),1,ROUNDUP(QUOTIENT(UserInput!$B$8,70),0)+1) -> 1 | E10: 1 | J10: 13479.96999
A11: Cost of HIPEC machine per patient | B11: =J10/IF(UserInput!$B$8="",70,UserInput!$B$8) -> 192.5709998 | C11: The machine volume per year can differ according to the number of procedures. On average, 1 machine is required for every 70 patients per year. The costs per patient are calculated as total machine costs per year/number of patients per year | D11: 1 | E11: 1 | J11: 192.5709998
A12: HIPEC disposables
A13: Hang and Go Set per case | B13: 1020 | C13: cost per patient of consumables | D13: 1 | E13: 1 | J13: 1020 | K13: Hospital costs
A14: Cytotoxic disposal per case | B14: 1.85 | C14: cost per patient of disposable material | D14: 1 | E14: 1 | J14: 1.85 | K14: Hospital costs
A15: Baxter Mitomycin | B15: 47 | D15: 1 | E15: 1 | J15: 47 | K15: Hospital costs
A16: Other Mitomycin consumables | B16: 74.37 | D16: 1 | E16: 1 | J16: 74.37 | K16: Hospital costs
A18: Total cost of disposables | B18: =SUM(J13:J17) -> 1143.22 | D18: 1 | E18: 1 | J18: =IF(D18="","",B18*D18*IF(E18="",1,E18)) -> 1143.22
A19: HIPEC pratitioner
A20: HIPEC pratitioner salary (p.a) | B20: 65 | C20: This is a pratictioner that runs and maintains the machine. The salary range here is £40,057-£45,839. Average 5.5hs per case. Assuming 47.5 hours per week, 42 weeks a year, the cost per hour is £65. Time per case is 5.5*£65 | D20: 5.5 | J20: 357.5
A21: Additional operating time
A22: Additional operating time (NHS costs) | B22: =561*113.6/100 -> 637.296 | C22: Costs per hour of operating time | D22: 1.5 | E22: 1 | J22: 955.944 | K22: NHS Providers (https://nhsproviders.org/media/1128/operating-theatres-final.pdf) (adjusted for inflation using 2015 as base index and October 2022 index of 126.2): https://www.ons.gov.uk/economy/inflationandpriceindices/datasets/consumerpriceinflation; extra operating time = duration of HIPEC
A23: Additional operating time (Christie costs)
A24: Consultant anaesthesist | B24: 92 | C24: cost per hour | D24: 1 | E24: 1 | J24: 92 | K24: PSSRU 2022; hospital business case
A25: Anaesthetic pratictioner | B25: 35 | C25: cost per hour | D25: 1 | E25: 1 | J25: 35 | K25: PSSRU 2022; hospital business case
A26: Additional consultant surgeon | B26: 92 | C26: cost per hour | D26: 1 | E26: 1 | J26: 92 | K26: PSSRU 2022; hospital business case
A27: Theatre team | B27: 86 | C27: cost per hour | D27: 1 | E27: 1 | J27: 86 | K27: PSSRU 2022; hospital business case
A28: Surgical assistant | B28: 25 | C28: cost per hour | D28: 1 | E28: 1 | J28: 25 | K28: PSSRU 2022; hospital business case
A29: Additional operating time (Christie costs) | B29: =SUM(J24:J28) -> 330 | C29: Total costs per hour of operating time (sum of costs per hour) | D29: =D22 -> 1.5 | E29: 1 | J29: 495
A30: Additional operating time (based on user input) | B30: =IF(UserInput!$B$7="Christie local estimates",J29,J22) -> 955.944 | C30: Total costs per hour of operating time (sum of costs per hour) | D30: 1 | E30: 1 | J30: 955.944
A31: Additional hospital stay
A32: Additional hospital stay | B32: 292 | C32: Per night extra hospital stay | D32: 29 | E32: 1 | J32: 8468 | K32: Verwaal 2003; NHS tariffs November 2022 (https://www.england.nhs.uk/publication/national-tariff-payment-system-documents-annexes-and-supporting-documents/)
A33: HIPEC (drugs) | C33: This is based on non-reusable vials. The vial denominations were chosen to minimise the costs for the base case scenario.
A34: Mitomycin | B34: =39*3+1*20.3 -> 137.3 | C34: 17.5 mg/m² followed by 8.8 mg/m² every 30 minutes (for 90 min). The total dose was limited to 70 mg at maximum. 3 vials 20 mg at price £39 each and one 10mg at £20.30 | D34: 1 | E34: 1 | F34: 43.9 | G34: 1.8 | I34: =F34*G34 -> 79.02 | J34: 137.3 | K34: Verwaal 2003; BNF 2022; Sacco et al 2010 (Sacco JJ, Botten J, Macbeth F, Bagust A, Clark P. The average body surface area of adult cancer patients in the UK: a multicentre retrospective study. PLoS One. 2010 Jan 28;5(1):e8933. doi: 10.1371/journal.pone.0008933. PMID: 20126669; PMCID: PMC2812484).
A37: Total cost of HIPEC drugs | B37: =SUM(J34:J36) -> 137.3 | C37: Total costs of HIPEC drugs (sum of HIPEC drug costs) | D37: 1 | J37: =IF(D37="","",B37*D37*IF(E37="",1,E37)) -> 137.3
A38: Total costs of HIPEC | J38: =SUM(J11,J18,J20,J30,J32,J37) -> 11254.535
A39: CRS costs
A40: Uncomplicated CRS costs | B40: 6199 | C40: FF50C: Complex General Abdominal Procedures with CC Score 0-2 (elective) | D40: 1 | E40: 1 | J40: =IF(D40="","",B40*D40*IF(E40="",1,E40)) -> 6199 | K40: NHS tariffs November 2022 (https://www.england.nhs.uk/publication/national-tariff-payment-system-documents-annexes-and-supporting-documents/)
A41: Complicated CRS costs | B41: =(41*14857+110*8970)/151 -> 10568.45695 | C41: Average of FF50A: Complex General Abdominal Procedures with CC Score 6+ and FF50B:Complex General Abdominal Procedures with CC Score 3-5 (weighted by the number of procedures done based on NHS Reference costs) | D41: 1 | E41: 1 | J41: =IF(D41="","",B41*D41*IF(E41="",1,E41)) -> 10568.45695 | K41: NHS tariffs November 2022 (https://www.england.nhs.uk/publication/national-tariff-payment-system-documents-annexes-and-supporting-documents/) and NHS reference costs (https://www.england.nhs.uk/publication/2020-21-national-cost-collection-data-publication/)
A42: Systemic chemotherapy
A43: 5FU Fluororacil (systemic) | B43: =6.4*2 -> 12.8 | C43: 400 mg/m² per patient= 720 mg; 2 vials of 500mg (price per 1 vial £6.40) | D43: 26 | E43: 1 | F43: 400 | G43: 1.8 | I43: =F43*G43 -> 720 | J43: =IF(D43="","",B43*D43*IF(E43="",1,E43)) -> 332.8 | K43: Verwaal 2003; BNF 2022; Sacco et al 2010 (Sacco JJ, Botten J, Macbeth F, Bagust A, Clark P. The average body surface area of adult cancer patients in the UK: a multicentre retrospective study. PLoS One. 2010 Jan 28;5(1):e8933. doi: 10.1371/journal.pone.0008933. PMID: 20126669; PMCID: PMC2812484).
A44: Folinic acid (Leucovorin) systemic | B44: =1*37.5+1*20 -> 57.5 | C44: 80mg/m² per patient = 144mg; 1 vial 100mg at price £37.50+ 1 vial 50mg at £20 each) | D44: 26 | E44: 1 | F44: 80 | G44: 1.8 | I44: =F44*G44 -> 144 | J44: =IF(D44="","",B44*D44*IF(E44="",1,E44)) -> 1495 | K44: Verwaal 2003; BNF 2022; Sacco et al 2010 (Sacco JJ, Botten J, Macbeth F, Bagust A, Clark P. The average body surface area of adult cancer patients in the UK: a multicentre retrospective study. PLoS One. 2010 Jan 28;5(1):e8933. doi: 10.1371/journal.pone.0008933. PMID: 20126669; PMCID: PMC2812484).
A45: Baxter cost 5FU | B45: 26 | D45: 26 | E45: 1 | J45: =IF(D45="","",B45*D45*IF(E45="",1,E45)) -> 676 | K45: Hospital costs
A46: Total costs of systemic chemotherapy | J46: =SUM(J43:J45) -> 2503.8

Sheet Gastric_HIPEC_CRS
A1: Gastric cancer | B1: HIPEC+CRS+systemic chemotherapy vs CRS+systemic chemotherapy
B2: Unit cost | C2: Notes/description | D2: Quantity per patient | E2: Exchange rate to GBP | F2: Total mg/m2 | G2: Surface area (m2) | H2: Body weight (kg) | I2: Total drug (mg per patient) | J2: Total cost (GBP 2022) | K2: Source
A3: HIPEC costs
A4: HIPEC machine
A5: HIPEC machine (Performer HT) | B5: 45000 | C5: Original cost: € 45,000 + VAT. Lifelime of the machine is 10 years. Annuity factor at 5% rate. | D5: 1 | E5: 1.19 | J5: =IF(D5="","",B5*D5*IF(E5="",1,E5)) -> 53550 | K5: Hospital costs; Euro to GBP Exchange rate (ONS 2022)
A6: HIPEC machine service costs per year | B6: 5500 | C6: Original cost: € 5,500. Service cost per year. This is the same regardless of volume | D6: 1 | E6: 1.19 | J6: 6545 | K6: Hospital costs
A7: Life time for machine (years) | B7: 10 | C7: Local estimate | K7: Local estimate
A8: Interest rate | B8: 0.05
A9: Annuity factor | B9: =(1-(1/(1+B8))^B7)/B8 -> 7.721734929 | C9: This is calculated using the formula 1-(1/(1+interest rate))^years/interest rate | K9: Drummond et al 2015 Methods for the Economic Evaluation of Health Care Programmes Edition 4
A10: Cost of HIPEC machine per year | B10: =(J5/B9)+J6 -> 13479.96999 | C10: This is calculated as: Cost of HIPEC machine/Annuity factor +HIPEC machine service costs per year (in pounds) | D10: =IF(OR(UserInput!$B$8="",UserInput!$B$8<=70),1,ROUNDUP(QUOTIENT(UserInput!$B$8,70),0)+1) -> 1 | E10: 1 | J10: 13479.96999
A11: Cost of HIPEC machine per patient | B11: =J10/IF(UserInput!$B$8="",70,UserInput!$B$8) -> 192.5709998 | C11: The machine volume per year can differ according to the number of procedures. On average, 1 machine is required for every 70 patients per year. The costs per patient are calculated as total machine costs per year/number of patients per year | D11: 1 | E11: 1 | J11: 192.5709998
A12: HIPEC disposables
A13: Hang and Go Set per case | B13: 1020 | C13: cost per patient of consumables | D13: 1 | E13: 1 | J13: 1020 | K13: Hospital costs
A14: Cytotoxic disposal per case | B14: 1.85 | C14: cost per patient of disposable material | D14: 1 | E14: 1 | J14: 1.85 | K14: Hospital costs
A15: Baxter Mitomycin | B15: 47 | D15: 1 | E15: 1 | J15: 47 | K15: Hospital costs
A16: Baxter Cisplatin | B16: 47 | D16: 1 | E16: 1 | J16: 47 | K16: Hospital costs
A17: Other Mitomycin consumables | B17: 74.37 | D17: 1 | E17: 1 | J17: 74.37 | K17: Hospital costs
A18: Total cost of disposables | B18: =SUM(J13:J17) -> 1190.22 | D18: 1 | E18: 1 | J18: 1190.22
A19: HIPEC pratitioner
A20: HIPEC pratitioner salary (p.a) | B20: 65 | C20: This is a pratictioner that runs and maintains the machine. The salary range here is £40,057-£45,839. Average 5.5hs per case. Assuming 47.5 hours per week, 42 weeks a year, the cost per hour is £65. Time per case is 5.5*£65 | D20: 5.5 | J20: 357.5
A21: Additional operating time
A22: Additional operating time (NHS costs) | B22: =561*113.6/100 -> 637.296 | C22: Costs per hour of operating time | D22: 1 | E22: 1 | J22: 637.296 | K22: NHS Providers (https://nhsproviders.org/media/1128/operating-theatres-final.pdf) (adjusted for inflation using 2015 as base index and October 2022 index of 126.2): https://www.ons.gov.uk/economy/inflationandpriceindices/datasets/consumerpriceinflation; extra operating time = duration of HIPEC
A23: Additional operating time (Christie costs)
A24: Consultant anaesthesist | B24: 92 | C24: cost per hour | D24: 1 | E24: 1 | J24: 92 | K24: PSSRU 2022; hospital business case
A25: Anaesthetic pratictioner | B25: 35 | C25: cost per hour | D25: 1 | E25: 1 | J25: 35 | K25: PSSRU 2022; hospital business case
A26: Additional consultant surgeon | B26: 92 | C26: cost per hour | D26: 1 | E26: 1 | J26: 92 | K26: PSSRU 2022; hospital business case
A27: Theatre team | B27: 86 | C27: cost per hour | D27: 1 | E27: 1 | J27: 86 | K27: PSSRU 2022; hospital business case
A28: Surgical assistant | B28: 25 | C28: cost per hour | D28: 1 | E28: 1 | J28: 25 | K28: PSSRU 2022; hospital business case
A29: Additional operating time (Christie costs) | B29: =SUM(J24:J28) -> 330 | C29: Total costs per hour of operating time (sum of costs per hour) | D29: =D22 -> 1 | E29: 1 | J29: 330
A30: Additional operating time (based on user input) | B30: =IF(UserInput!$B$7="Christie local estimates",J29,J22) -> 637.296 | C30: Total costs per hour of operating time (sum of costs per hour) | D30: 1 | E30: 1 | J30: 637.296
A31: Additional hospital stay
A32: Additional hospital stay | B32: 292 | C32: Per night extra hospital stay | D32: =(2+3)/2 -> 2.5 | E32: 1 | J32: 730 | K32: There is no information on length of hospital stay. For colorectal cancer, it was 5 days more; for ovarian cancer, it was 2 days and 3 days more - a value of 2.5 was used for this analysis; NHS tariffs November 2022 (https://www.england.nhs.uk/publication/national-tariff-payment-system-documents-annexes-and-supporting-documents/)
A33: HIPEC (drugs) | C33: This is based on non-reusable vials. The vial denominations were chosen to minimise the costs for the base case scenario.
A34: Mitomycin | B34: =39*2 -> 78 | C34: 15 mg/m² = 75 mg (2 vials 20 mg at price £39 each) | D34: 1 | E34: 1 | F34: 15 | G34: 1.8 | I34: =F34*G34 -> 27 | J34: 78 | K34: Quenet 2021; BNF 2022; Sacco et al 2010 (Sacco JJ, Botten J, Macbeth F, Bagust A, Clark P. The average body surface area of adult cancer patients in the UK: a multicentre retrospective study. PLoS One. 2010 Jan 28;5(1):e8933. doi: 10.1371/journal.pone.0008933. PMID: 20126669; PMCID: PMC2812484).
A35: Cisplatin | B35: =3*24.5 -> 73.5 | C35: 75 mg/m² = 135mg (3 vials 50mg at price £24.50 each ) | D35: 1 | E35: 1 | F35: 75 | G35: 1.8 | I35: =F35*G35 -> 135 | J35: 73.5 | K35: Quenet 2021; BNF 2022; Sacco et al 2010
A37: Total cost of HIPEC drugs | B37: =SUM(J34:J36) -> 151.5 | C37: Total costs of HIPEC drugs (sum of HIPEC drug costs) | D37: 1 | J37: =IF(D37="","",B37*D37*IF(E37="",1,E37)) -> 151.5
A38: Total costs of HIPEC | J38: =SUM(J11,J18,J20,J30,J32,J37) -> 3259.087
A39: CRS costs
A40: Uncomplicated CRS costs | B40: 6199 | C40: FF50C: Complex General Abdominal Procedures with CC Score 0-2 (elective) | D40: 1 | E40: 1 | J40: =IF(D40="","",B40*D40*IF(E40="",1,E40)) -> 6199 | K40: NHS tariffs November 2022 (https://www.england.nhs.uk/publication/national-tariff-payment-system-documents-annexes-and-supporting-documents/)
A41: Complicated CRS costs | B41: =(41*14857+110*8970)/151 -> 10568.45695 | C41: Average of FF50A: Complex General Abdominal Procedures with CC Score 6+ and FF50B:Complex General Abdominal Procedures with CC Score 3-5 (weighted by the number of procedures done based on NHS Reference costs) | D41: 1 | E41: 1 | J41: =IF(D41="","",B41*D41*IF(E41="",1,E41)) -> 10568.45695 | K41: NHS tariffs November 2022 (https://www.england.nhs.uk/publication/national-tariff-payment-system-documents-annexes-and-supporting-documents/) and NHS reference costs (https://www.england.nhs.uk/publication/2020-21-national-cost-collection-data-publication/)
A42: Systemic chemotherapy
A43: HER-2 negative cancers | J43: =IF(D43="","",B43*D43*IF(E43="",1,E43)) -> 
A44: Epirubicin | B44: 210.76 | C44: 50mg/m2; max 100mg/d (1 vial 100mg at £201.76) | D44: 6 | E44: 1 | F44: 50 | G44: 1.8 | I44: =F44*G44 -> 90 | J44: 1264.56 | K44: Rau 2022; BNF 2022; Sacco et al 2010 (Sacco JJ, Botten J, Macbeth F, Bagust A, Clark P. The average body surface area of adult cancer patients in the UK: a multicentre retrospective study. PLoS One. 2010 Jan 28;5(1):e8933. doi: 10.1371/journal.pone.0008933. PMID: 20126669; PMCID: PMC2812484).
A45: Oxaliplatin | B45: =(2*295.63)+(1*146.8) -> 738.06 | C45: 130mg/m2; max 260mg/day (2vials 100mg at£295.63; 1 vial 50mg £146.80) | D45: 6 | E45: 1 | F45: 130 | G45: 1.8 | I45: =F45*G45 -> 234 | J45: 4428.36 | K45: Rau 2022; BNF 2022; Sacco et al 2010 (Sacco JJ, Botten J, Macbeth F, Bagust A, Clark P. The average body surface area of adult cancer patients in the UK: a multicentre retrospective study. PLoS One. 2010 Jan 28;5(1):e8933. doi: 10.1371/journal.pone.0008933. PMID: 20126669; PMCID: PMC2812484).
A46: Baxter Oxaliplatin | B46: 47.5 | D46: 6 | E46: 1 | J46: 285 | K46: Hospital costs
A47: Capecitabine tablets (days 1-14) | B47: =(4*225/120+2*30/60)*14 -> 119 | C47: 625mg/m2 two times a day for 14 days; max 2500mg/day; price for 500 mg £225 120 tablets; price for 150 mg £30 60 tablets; total requirement: 4*500 mg + 2 *150 mg per day * 14 days * 6 cycles, i.e., (4*225/120+2*30/60)*14 per cycle | D47: 6 | E47: 1 | F47: 625 | G47: 1.8 | I47: =F47*G47 -> 1125 | J47: 714 | K47: Hospital costs
A48: Total cost of systemic chemotherapy (HER-2 negative) | B48: =SUM(J44:J47) -> 6691.92 | D48: 1 | E48: 1 | J48: 6691.92
A49: HER-2 positive cancers
A50: Trastuzumab | B50: =1*1026.66+(2*366.66) -> 1759.98 | C50: 8 mg/kg (cycles 1 & 4); (1 vial 420 at £1026.66 + 2 vials 150 at £366.66) | D50: 2 | E50: 1 | F50: 8 | H50: 81 | I50: =F50*H50 -> 648 | J50: 3519.96 | K50: Rau 2022; BNF 2022; Sacco et al 2010 (Sacco JJ, Botten J, Macbeth F, Bagust A, Clark P. The average body surface area of adult cancer patients in the UK: a multicentre retrospective study. PLoS One. 2010 Jan 28;5(1):e8933. doi: 10.1371/journal.pone.0008933. PMID: 20126669; PMCID: PMC2812484).
A51: Trastuzumab | B51: =1*1026.66+(1*366.66) -> 1393.32 | C51: 6 mg/kg cycle 2,3, 4&6; (1 vial 420 at £1026.66 + 1 vial 150 at £366.66) | D51: 4 | E51: 1 | F51: 6 | H51: 81 | I51: =F51*H51 -> 486 | J51: 5573.28 | K51: Rau 2022; BNF 2022; Sacco et al 2010 (Sacco JJ, Botten J, Macbeth F, Bagust A, Clark P. The average body surface area of adult cancer patients in the UK: a multicentre retrospective study. PLoS One. 2010 Jan 28;5(1):e8933. doi: 10.1371/journal.pone.0008933. PMID: 20126669; PMCID: PMC2812484).
A52: Cisplatin | B52: =3*24.5 -> 73.5 | C52: 80mg/m2; max 160mg/d; (3 vials 50mg at price £24.50 each) | D52: 6 | E52: 1 | F52: 80 | G52: 1.8 | I52: =F52*G52 -> 144 | J52: 441 | K52: Rau 2022; BNF 2022; Sacco et al 2010 (Sacco JJ, Botten J, Macbeth F, Bagust A, Clark P. The average body surface area of adult cancer patients in the UK: a multicentre retrospective study. PLoS One. 2010 Jan 28;5(1):e8933. doi: 10.1371/journal.pone.0008933. PMID: 20126669; PMCID: PMC2812484).
A53: Baxter Cisplatin | B53: 47 | D53: 6 | E53: 1 | J53: 282 | K53: Hospital costs
A54: Capecitabine tablets (days 1-14) | B54: =(6*225/120+2*76.04/60)*14 -> 192.9853333 | C54: 1000mg/m2 two times a day for 14 days; max 4000mg/day; price for 500 mg £225 120 tablets; price for 300 mg £76.04 60 tablets; total requirement: 6*500 mg + 2 *300 mg per day * 14 days * 6 cycles, i.e., (6*225/120+2*76.04/60)*14 per cycle | D54: 6 | E54: 1 | F54: 1000 | G54: 1.8 | I54: =F54*G54 -> 1800 | J54: 1157.912 | K54: Hospital costs
A55: Total cost of systemic chemotherapy (HER-2 positive) | B55: =SUM(J51:J54) -> 7454.192 | D55: 1 | E55: 1 | J55: 7454.192
A56: Total costs of systemic chemotherapy | C56: Assumption of 18% HER-2 positive gastric cancers | J56: =J48*0.82+J55*0.18 -> 6829.12896 | K56: Chua, T.C. and Merrett, N.D. (2012), Clinicopathologic factors associated with HER2-positive gastric cancer and its impact on survival outcomes—A systematic review. Int. J. Cancer, 130: 2845-2856. https://doi.org/10.1002/ijc.26292

Sheet Gastric_HIPEC_Chem
A1: Gastric cancer | B1: HIPEC+CRS+systemic chemotherapy vs systemic chemotherapy
B2: Unit cost | C2: Notes/description | D2: Quantity per patient | E2: Exchange rate to GBP | F2: Total mg/m2 | G2: Surface area (m2) | H2: Body weight (kg) | I2: Total drug (mg per patient) | J2: Total cost (GBP 2022) | K2: Source
A3: HIPEC costs
A4: HIPEC machine
A5: HIPEC machine (Performer HT) | B5: 45000 | C5: Original cost: € 45,000 + VAT. Lifelime of the machine is 10 years. Annuity factor at 5% rate. | D5: 1 | E5: 1.19 | J5: =IF(D5="","",B5*D5*IF(E5="",1,E5)) -> 53550 | K5: Hospital costs; Euro to GBP Exchange rate (ONS 2022)
A6: HIPEC machine service costs per year | B6: 5500 | C6: Original cost: € 5,500. Service cost per year. This is the same regardless of volume | D6: 1 | E6: 1.19 | J6: 6545 | K6: Hospital costs
A7: Life time for machine (years) | B7: 10 | C7: Local estimate | K7: Local estimate
A8: Interest rate | B8: 0.05
A9: Annuity factor | B9: =(1-(1/(1+B8))^B7)/B8 -> 7.721734929 | C9: This is calculated using the formula 1-(1/(1+interest rate))^years/interest rate | K9: Drummond et al 2015 Methods for the Economic Evaluation of Health Care Programmes Edition 4
A10: Cost of HIPEC machine per year | B10: =(J5/B9)+J6 -> 13479.96999 | C10: This is calculated as: Cost of HIPEC machine/Annuity factor +HIPEC machine service costs per year (in pounds) | D10: =IF(OR(UserInput!$B$8="",UserInput!$B$8<=70),1,ROUNDUP(QUOTIENT(UserInput!$B$8,70),0)+1) -> 1 | E10: 1 | J10: 13479.96999
A11: Cost of HIPEC machine per patient | B11: =J10/IF(UserInput!$B$8="",70,UserInput!$B$8) -> 192.5709998 | C11: The machine volume per year can differ according to the number of procedures. On average, 1 machine is required for every 70 patients per year. The costs per patient are calculated as total machine costs per year/number of patients per year | D11: 1 | E11: 1 | J11: 192.5709998
A12: HIPEC disposables
A13: Hang and Go Set per case | B13: 1020 | C13: cost per patient of consumables | D13: 1 | E13: 1 | J13: 1020 | K13: Hospital costs
A14: Cytotoxic disposal per case | B14: 1.85 | C14: cost per patient of disposable material | D14: 1 | E14: 1 | J14: 1.85 | K14: Hospital costs
A15: Baxter cost Oxaliplatin | B15: 47.5 | D15: 1 | E15: 1 | J15: 47.5 | K15: Hospital costs
A16: Baxter cost 5FU | B16: 26 | D16: 1 | E16: 1 | J16: 26 | K16: Hospital costs
A18: Total cost of disposables | B18: =SUM(J13:J17) -> 1095.35 | D18: 1 | E18: 1 | J18: =IF(D18="","",B18*D18*IF(E18="",1,E18)) -> 1095.35
A19: HIPEC pratitioner
A20: HIPEC pratitioner salary (p.a) | B20: 65 | C20: This is a pratictioner that runs and maintains the machine. The salary range here is £40,057-£45,839. Average 5.5hs per case. Assuming 47.5 hours per week, 42 weeks a year, the cost per hour is £65. Time per case is 5.5*£65 | D20: 5.5 | J20: 357.5
A21: Additional operating time
A22: Additional operating time (NHS costs) | B22: =561*113.6/100 -> 637.296 | C22: Costs per hour of operating time | D22: 0.5 | E22: 1 | J22: 318.648 | K22: NHS Providers (https://nhsproviders.org/media/1128/operating-theatres-final.pdf) (adjusted for inflation using 2015 as base index and October 2022 index of 126.2): https://www.ons.gov.uk/economy/inflationandpriceindices/datasets/consumerpriceinflation; extra operating time = duration of HIPEC
A23: Additional operating time (Christie costs)
A24: Consultant anaesthesist | B24: 92 | C24: cost per hour | D24: 1 | E24: 1 | J24: 92 | K24: PSSRU 2022; hospital business case
A25: Anaesthetic pratictioner | B25: 35 | C25: cost per hour | D25: 1 | E25: 1 | J25: 35 | K25: PSSRU 2022; hospital business case
A26: Additional consultant surgeon | B26: 92 | C26: cost per hour | D26: 1 | E26: 1 | J26: 92 | K26: PSSRU 2022; hospital business case
A27: Theatre team | B27: 86 | C27: cost per hour | D27: 1 | E27: 1 | J27: 86 | K27: PSSRU 2022; hospital business case
A28: Surgical assistant | B28: 25 | C28: cost per hour | D28: 1 | E28: 1 | J28: 25 | K28: PSSRU 2022; hospital business case
A29: Additional operating time (Christie costs) | B29: =SUM(J24:J28) -> 330 | C29: Total costs per hour of operating time (sum of costs per hour) | D29: =D22 -> 0.5 | E29: 1 | J29: 165
A30: Additional operating time (based on user input) | B30: =IF(UserInput!$B$7="Christie local estimates",J29,J22) -> 318.648 | C30: Total costs per hour of operating time (sum of costs per hour) | D30: 1 | E30: 1 | J30: 318.648
A31: Additional hospital stay
A32: Additional hospital stay | B32: 292 | C32: Per night extra hospital stay | D32: 17 | E32: 1 | J32: 4964 | K32: Rudloff 2014; NHS tariffs November 2022 (https://www.england.nhs.uk/publication/national-tariff-payment-system-documents-annexes-and-supporting-documents/)
A33: HIPEC (drugs) | C33: This is based on non-reusable vials. The vial denominations were chosen to minimise the costs for the base case scenario.
A34: Oxaliplatin | B34: =(4*591.26)+(1*178.85) -> 2543.89 | C34: 460 mg/m² in closed circuit=828mg; 4 vials of 200mg (price 1 vial £591.26) + 1 vial 50mg (price 1 vial £178.85) | D34: 1 | E34: 1 | F34: 460 | G34: 1.8 | I34: =F34*G34 -> 828 | J34: 2543.89 | K34: Rudloff 2014; BNF 2022; Sacco et al 2010 (Sacco JJ, Botten J, Macbeth F, Bagust A, Clark P. The average body surface area of adult cancer patients in the UK: a multicentre retrospective study. PLoS One. 2010 Jan 28;5(1):e8933. doi: 10.1371/journal.pone.0008933. PMID: 20126669; PMCID: PMC2812484).
A35: 5FU Fluororacil | B35: =2*6.4 -> 12.8 | C35: 400 mg/m² per patient= 720 mg; 2 vials of 500mg (price per 1 vial £6.40) | D35: 1 | E35: 1 | F35: 400 | G35: 1.8 | I35: =F35*G35 -> 720 | J35: 12.8 | K35: Rudloff 2014; BNF 2022; Sacco et al 2010 (Sacco JJ, Botten J, Macbeth F, Bagust A, Clark P. The average body surface area of adult cancer patients in the UK: a multicentre retrospective study. PLoS One. 2010 Jan 28;5(1):e8933. doi: 10.1371/journal.pone.0008933. PMID: 20126669; PMCID: PMC2812484).
A36: Folinic acid Leucovorin | B36: 20 | C36: 20 mg/m² per patient = 36 mg; 1 vial of 50mg (price per 1 vial £20) | D36: 1 | E36: 1 | F36: 20 | G36: 1.8 | I36: =F36*G36 -> 36 | J36: 20 | K36: Rudloff 2014; BNF 2022; Sacco et al 2010 (Sacco JJ, Botten J, Macbeth F, Bagust A, Clark P. The average body surface area of adult cancer patients in the UK: a multicentre retrospective study. PLoS One. 2010 Jan 28;5(1):e8933. doi: 10.1371/journal.pone.0008933. PMID: 20126669; PMCID: PMC2812484).
A37: Total cost of HIPEC drugs | B37: =SUM(J34:J36) -> 2576.69 | C37: Total costs of HIPEC drugs (sum of HIPEC drug costs) | D37: 1 | J37: 2576.69
A38: Total costs of HIPEC | J38: =SUM(J11,J18,J20,J30,J32,J37) -> 9504.759
A39: CRS costs
A40: Uncomplicated CRS costs | B40: 6199 | C40: FF50C: Complex General Abdominal Procedures with CC Score 0-2 (elective) | D40: 1 | E40: 1 | J40: =IF(D40="","",B40*D40*IF(E40="",1,E40)) -> 6199 | K40: NHS tariffs November 2022 (https://www.england.nhs.uk/publication/national-tariff-payment-system-documents-annexes-and-supporting-documents/)
A41: Complicated CRS costs | B41: =(41*14857+110*8970)/151 -> 10568.45695 | C41: Average of FF50A: Complex General Abdominal Procedures with CC Score 6+ and FF50B:Complex General Abdominal Procedures with CC Score 3-5 (weighted by the number of procedures done based on NHS Reference costs) | D41: 1 | E41: 1 | J41: =IF(D41="","",B41*D41*IF(E41="",1,E41)) -> 10568.45695 | K41: NHS tariffs November 2022 (https://www.england.nhs.uk/publication/national-tariff-payment-system-documents-annexes-and-supporting-documents/) and NHS reference costs (https://www.england.nhs.uk/publication/2020-21-national-cost-collection-data-publication/)
A42: Systemic chemotherapy
A43: Irinotecan | B43: 110 | C43: 165mg/m2 administer 90 min = 297mg (1 vial 300mg at £110) | D43: 12 | E43: 1 | F43: 165 | G43: 1.8 | I43: =F43*G43 -> 297 | J43: =IF(D43="","",B43*D43*IF(E43="",1,E43)) -> 1320 | K43: Rudloff 2014; BNF 2022; Sacco et al 2010 (Sacco JJ, Botten J, Macbeth F, Bagust A, Clark P. The average body surface area of adult cancer patients in the UK: a multicentre retrospective study. PLoS One. 2010 Jan 28;5(1):e8933. doi: 10.1371/journal.pone.0008933. PMID: 20126669; PMCID: PMC2812484).
A44: Oxaliplatin | B44: 591.26 | C44: over 2 hours 85 mg/m² =153mg; 1 vials of 200mg (price 1 vial £591.26) | D44: 12 | E44: 1 | F44: 85 | G44: 1.8 | I44: =F44*G44 -> 153 | J44: 7095.12 | K44: Rudloff 2014; BNF 2022; Sacco et al 2010 (Sacco JJ, Botten J, Macbeth F, Bagust A, Clark P. The average body surface area of adult cancer patients in the UK: a multicentre retrospective study. PLoS One. 2010 Jan 28;5(1):e8933. doi: 10.1371/journal.pone.0008933. PMID: 20126669; PMCID: PMC2812484).
A45: Baxter Oxaliplatin | B45: 47.5 | D45: 12 | E45: 1 | J45: 570 | K45: Hospital costs
A46: Folinic acid Leucovorin | B46: =(1*39/5)+(1*139.52) -> 147.32 | C46: over hours 200 mg/m² per patient = 360 mg; 1 vial of 350mg (price per 1 vial £139.52) + 1 vial 15mg (£39 for 5 vials) | D46: 12 | E46: 1 | F46: 200 | G46: 1.8 | I46: =F46*G46 -> 360 | J46: 1767.84 | K46: Hospital costs
A47: 5FU Fluororacil | B47: =1*64+1*32 -> 96 | C47: over 48 hours 3200 mg/m² per patient= 5760 mg; 1 vials of 5g (price per 1 vial £64) + 1 vial 2.5g at £32 | D47: 12 | E47: 1 | F47: 3200 | G47: 1.8 | I47: =F47*G47 -> 5760 | J47: 1152 | K47: Rudloff 2014; BNF 2022; Sacco et al 2010 (Sacco JJ, Botten J, Macbeth F, Bagust A, Clark P. The average body surface area of adult cancer patients in the UK: a multicentre retrospective study. PLoS One. 2010 Jan 28;5(1):e8933. doi: 10.1371/journal.pone.0008933. PMID: 20126669; PMCID: PMC2812484).
A48: Baxter cost 5FU | B48: 26 | D48: 12 | E48: 1 | J48: 312 | K48: Rudloff 2014; BNF 2022; Sacco et al 2010 (Sacco JJ, Botten J, Macbeth F, Bagust A, Clark P. The average body surface area of adult cancer patients in the UK: a multicentre retrospective study. PLoS One. 2010 Jan 28;5(1):e8933. doi: 10.1371/journal.pone.0008933. PMID: 20126669; PMCID: PMC2812484).
A49: Total cost of systemic chemotherapy | J49: =SUM(J43:J48) -> 12216.96

Sheet Ovarian_HIPEC_CRS
A1: Ovarian cancer | B1: HIPEC+CRS+systemic chemotherapy vs CRS+systemic chemotherapy
B2: Unit cost | C2: Notes/description | D2: Quantity per patient | E2: Exchange rate to GBP | F2: Total mg/m2 | G2: Surface area (m2) | H2: Body weight (kg) | I2: Total drug (mg per patient) | J2: Total cost (GBP 2022) | K2: Source
A3: HIPEC costs
A4: HIPEC machine
A5: HIPEC machine (Performer HT) | B5: 45000 | C5: Original cost: € 45,000 + VAT. Lifelime of the machine is 10 years. Annuity factor at 5% rate. | D5: 1 | E5: 1.19 | J5: =IF(D5="","",B5*D5*IF(E5="",1,E5)) -> 53550 | K5: Hospital costs; Euro to GBP Exchange rate (ONS 2022)
A6: HIPEC machine service costs per year | B6: 5500 | C6: Original cost: € 5,500. Service cost per year. This is the same regardless of volume | D6: 1 | E6: 1.19 | J6: 6545 | K6: Hospital costs
A7: Life time for machine (years) | B7: 10 | C7: Local estimate | K7: Local estimate
A8: Interest rate | B8: 0.05
A9: Annuity factor | B9: =(1-(1/(1+B8))^B7)/B8 -> 7.721734929 | C9: This is calculated using the formula 1-(1/(1+interest rate))^years/interest rate | K9: Drummond et al 2015 Methods for the Economic Evaluation of Health Care Programmes Edition 4
A10: Cost of HIPEC machine per year | B10: =(J5/B9)+J6 -> 13479.96999 | C10: This is calculated as: Cost of HIPEC machine/Annuity factor +HIPEC machine service costs per year (in pounds) | D10: =IF(OR(UserInput!$B$8="",UserInput!$B$8<=70),1,ROUNDUP(QUOTIENT(UserInput!$B$8,70),0)+1) -> 1 | E10: 1 | J10: 13479.96999
A11: Cost of HIPEC machine per patient | B11: =J10/IF(UserInput!$B$8="",70,UserInput!$B$8) -> 192.5709998 | C11: The machine volume per year can differ according to the number of procedures. On average, 1 machine is required for every 70 patients per year. The costs per patient are calculated as total machine costs per year/number of patients per year | D11: 1 | E11: 1 | J11: 192.5709998
A12: HIPEC disposables
A13: Hang and Go Set per case | B13: 1020 | C13: cost per patient of consumables | D13: 1 | E13: 1 | J13: 1020 | K13: Hospital costs
A14: Cytotoxic disposal per case | B14: 1.85 | C14: cost per patient of disposable material | D14: 1 | E14: 1 | J14: 1.85 | K14: Hospital costs
A15: Baxter cost Cisplatin | B15: 47 | D15: 1 | E15: 1 | J15: 47 | K15: Hospital costs
A18: Total cost of disposables | B18: =SUM(J13:J17) -> 1068.85 | D18: 1 | E18: 1 | J18: =IF(D18="","",B18*D18*IF(E18="",1,E18)) -> 1068.85
A19: HIPEC pratitioner
A20: HIPEC pratitioner salary (p.a) | B20: 65 | C20: This is a pratictioner that runs and maintains the machine. The salary range here is £40,057-£45,839. Average 5.5hs per case. Assuming 47.5 hours per week, 42 weeks a year, the cost per hour is £65. Time per case is 5.5*£65 | D20: 5.5 | J20: 357.5
A21: Additional operating time
A22: Additional operating time (NHS costs) | B22: =561*113.6/100 -> 637.296 | C22: Costs per hour of operating time | D22: 1.5 | E22: 1 | J22: 955.944 | K22: NHS Providers (https://nhsproviders.org/media/1128/operating-theatres-final.pdf) (adjusted for inflation using 2015 as base index and October 2022 index of 126.2): https://www.ons.gov.uk/economy/inflationandpriceindices/datasets/consumerpriceinflation; extra operating time = duration of HIPEC
A23: Additional operating time (Christie costs)
A24: Consultant anaesthesist | B24: 92 | C24: cost per hour | D24: 1 | E24: 1 | J24: 92 | K24: PSSRU 2022; hospital business case
A25: Anaesthetic pratictioner | B25: 35 | C25: cost per hour | D25: 1 | E25: 1 | J25: 35 | K25: PSSRU 2022; hospital business case
A26: Additional consultant surgeon | B26: 92 | C26: cost per hour | D26: 1 | E26: 1 | J26: 92 | K26: PSSRU 2022; hospital business case
A27: Theatre team | B27: 86 | C27: cost per hour | D27: 1 | E27: 1 | J27: 86 | K27: PSSRU 2022; hospital business case
A28: Surgical assistant | B28: 25 | C28: cost per hour | D28: 1 | E28: 1 | J28: 25 | K28: PSSRU 2022; hospital business case
A29: Additional operating time (Christie costs) | B29: =SUM(J24:J28) -> 330 | C29: Total costs per hour of operating time (sum of costs per hour) | D29: =D22 -> 1.5 | E29: 1 | J29: 495
A30: Additional operating time (based on user input) | B30: =IF(UserInput!$B$7="Christie local estimates",J29,J22) -> 955.944 | C30: Total costs per hour of operating time (sum of costs per hour) | D30: 1 | E30: 1 | J30: 955.944
A31: Additional hospital stay
A32: Additional hospital stay | B32: 292 | C32: Per night extra hospital stay | D32: =(2+3)/2 -> 2.5 | E32: 1 | J32: 730 | K32: van Driel 2018 & Lim 2022; NHS tariffs November 2022 (https://www.england.nhs.uk/publication/national-tariff-payment-system-documents-annexes-and-supporting-documents/)
A33: HIPEC (drugs) | C33: This is based on non-reusable vials. The vial denominations were chosen to minimise the costs for the base case scenario.
A34: Cisplatin | B34: =3*24.5 -> 73.5 | C34: 100 mg/m² = 180mg (3 vials 50mg at price £24.50 each ) | D34: 1 | E34: 1 | F34: 100 | G34: 1.8 | I34: =F34*G34 -> 180 | J34: 73.5 | K34: van Driel 2018; BNF 2022; Sacco et al 2010 (Sacco JJ, Botten J, Macbeth F, Bagust A, Clark P. The average body surface area of adult cancer patients in the UK: a multicentre retrospective study. PLoS One. 2010 Jan 28;5(1):e8933. doi: 10.1371/journal.pone.0008933. PMID: 20126669; PMCID: PMC2812484).
A35: Sodium Thiosulphate | B35: 143 | C35: 9mg/m2+12g/m2=21 g/m2 (3 vials of 12.5 mg at £143 each) | D35: 1 | E35: 1 | F35: 21 | G35: 1.8 | I35: =F35*G35 -> 37.8 | J35: 143 | K35: Hospital costs
A37: Total cost of HIPEC drugs | B37: =SUM(J34:J36) -> 216.5 | C37: Total costs of HIPEC drugs (sum of HIPEC drug costs) | D37: 1 | J37: =IF(D37="","",B37*D37*IF(E37="",1,E37)) -> 216.5
A38: Total costs of HIPEC | J38: =SUM(J11,J18,J20,J30,J32,J37) -> 3521.365
A39: CRS costs
A40: Uncomplicated CRS costs | B40: 6199 | C40: FF50C: Complex General Abdominal Procedures with CC Score 0-2 (elective) | D40: 1 | E40: 1 | J40: =IF(D40="","",B40*D40*IF(E40="",1,E40)) -> 6199 | K40: NHS tariffs November 2022 (https://www.england.nhs.uk/publication/national-tariff-payment-system-documents-annexes-and-supporting-documents/)
A41: Complicated CRS costs | B41: =(41*14857+110*8970)/151 -> 10568.45695 | C41: Average of FF50A: Complex General Abdominal Procedures with CC Score 6+ and FF50B:Complex General Abdominal Procedures with CC Score 3-5 (weighted by the number of procedures done based on NHS Reference costs) | D41: 1 | E41: 1 | J41: =IF(D41="","",B41*D41*IF(E41="",1,E41)) -> 10568.45695 | K41: NHS tariffs November 2022 (https://www.england.nhs.uk/publication/national-tariff-payment-system-documents-annexes-and-supporting-documents/) and NHS reference costs (https://www.england.nhs.uk/publication/2020-21-national-cost-collection-data-publication/)
A42: Systemic chemotherapy
A43: Carboplatin | B43: 20.2 | C43: (5-6mg/minute); we assume a total of 5mg/m2 in total; 9mg (1 vial 50mg at £20.20) | D43: 6 | E43: 1 | F43: 5 | G43: 1.8 | I43: =F43*G43 -> 9 | J43: =IF(D43="","",B43*D43*IF(E43="",1,E43)) -> 121.2 | K43: van Driel 2018; BNF 2022; Sacco et al 2010 (Sacco JJ, Botten J, Macbeth F, Bagust A, Clark P. The average body surface area of adult cancer patients in the UK: a multicentre retrospective study. PLoS One. 2010 Jan 28;5(1):e8933. doi: 10.1371/journal.pone.0008933. PMID: 20126669; PMCID: PMC2812484).
A44: Paclitaxel | B44: =35+192.5 -> 227.5 | C44: 175 mg/m2 = 315mg (1 vial 300mg at £192.50 + 1 vial 30mg at £35) | D44: 6 | E44: 1 | F44: 175 | G44: 1.8 | I44: =F44*G44 -> 315 | J44: =IF(D44="","",B44*D44*IF(E44="",1,E44)) -> 1365 | K44: van Driel 2018; BNF 2022; Sacco et al 2010 (Sacco JJ, Botten J, Macbeth F, Bagust A, Clark P. The average body surface area of adult cancer patients in the UK: a multicentre retrospective study. PLoS One. 2010 Jan 28;5(1):e8933. doi: 10.1371/journal.pone.0008933. PMID: 20126669; PMCID: PMC2812484).
A45: Baxter carboplatin | B45: 47 | D45: 6 | E45: 1 | J45: =IF(D45="","",B45*D45*IF(E45="",1,E45)) -> 282 | K45: Hospital costs
A46: Total cost of systemic chemotherapy | D46: 1 | E46: 1 | J46: =SUM(J43:J45) -> 1768.2

Sheet SourceData
A1: Short-term | B1: Days | C1: Source | I1: Chosen category | J1: Variable | K1: Distribution | L1: Colorectal cancer (HIPEC + CRS vs CRS) | Q1: Colorectal cancer (HIPEC + CRS vs chemotherapy) | V1: Gastric cancer (HIPEC + CRS vs CRS) | AA1: Gastric cancer (HIPEC + CRS vs chemotherapy) | AF1: Ovarian cancer (HIPEC + CRS vs CRS)
A2: Colorectal cancer (HIPEC + CRS vs CRS) | B2: 30 | C2: Quenet et al | I2: =IF(UserInput!B4="",1,IF(UserInput!B4="Ovarian cancer",5,IF(UserInput!B4="Colorectal cancer",IF(UserInput!B6="Chemotherapy without CRS",2,1),IF(UserInput!B6="Chemotherapy without CRS",4,3)))) -> 5 | J2: Complications (HIPEC + CRS) | K2: Beta | L2: 34 | M2: =133-L2 -> 99 | N2: 0 | O2: 0.5 | P2: Systematic review (from: Quenet et al) | Q2: 34 | R2: =133-Q2 -> 99 | S2: 0 | T2: 0.5 | U2: No information from Verwaal et al; therefore used details from Quenet et al | V2: 5 | W2: =34-V2 -> 29 | X2: 0 | Y2: 0.5 | Z2: Systematic review (from: Yang et al) | AA2: 5 | AB2: =34-AA2 -> 29 | AC2: 0 | AD2: 0.5 | AE2: No information from Rudloff et al; therefore used details from Yang et al | AF2: 42 | AG2: =157-AF2 -> 115 | AH2: 0 | AI2: 0.5 | AJ2: Systematic review (from: van Driel et al and Antonia et al)
A3: Colorectal cancer (HIPEC + CRS vs systemic chemotherapy) | B3: 30 | C3: Verwaal et al | I3: Offset column | J3: Short-term mortality (HIPEC + CRS) | K3: Beta | L3: 2 | M3: =133-L3 -> 131 | N3: 0 | O3: 0.1 | P3: Quenet et al | Q3: 4 | R3: =54-Q3 -> 50 | S3: 0 | T3: 0.1 | U3: Verwaal et al | V3: 0 | W3: =34-V3 -> 34 | X3: 0 | Y3: 0.1 | Z3: No information | AA3: 0 | AB3: =9-AA3 -> 9 | AC3: 0 | AD3: 0.1 | AE3: Rudloff et al | AF3: 1 | AG3: =157-AF3 -> 156 | AH3: 0 | AI3: 0.1 | AJ3: From: van Driel et al and Antonia et al
A4: Gastric cancer (HIPEC + CRS vs CRS) | B4: Not applicable | C4: Yang et al | I4: =(I2-1)*5 -> 20 | J4: Survival ln (hazard ratio) | K4: Continuous | L4: =G16 -> 0 | M4: =H16 -> 0.2345605108 | N4: -2 | O4: 2 | P4: Systematic review (from: Quenet et al) | Q4: =G17 -> -0.5978370008 | R4: =H17 -> 0.2775920878 | S4: -2 | T4: 2 | U4: Systematic review (from: Verwaal et al) | V4: =G18 -> -0.4462871026 | W4: =H18 -> 0.4782930683 | X4: -2 | Y4: 2 | Z4: Systematic review (from: Yang et al) | AA4: =G19 -> -0.9162907319 | AB4: =H19 -> 0.1403205215 | AC4: -2 | AD4: 2 | AE4: Systematic review (from: Rudloff et al) | AF4: =G20 -> -0.3147107448 | AG4: =H20 -> 0.1248870462 | AH4: -2 | AI4: 2 | AJ4: Systematic review (from: van Driel et al, Antonia et al, Lim et al)
A5: Gastric cancer (HIPEC + CRS vs systemic chemotherapy) | B5: 30 | C5: Rudloff et al | J5: Complications (Control) | K5: Beta | L5: 20 | M5: =132-L5 -> 112 | N5: 0 | O5: 0.5 | P5: Systematic review (from: Quenet et al) | Q5: =ROUND(0.19*51,0) -> 10 | R5: =51-Q5 -> 41 | S5: 0 | T5: 0.5 | U5: Estimated from Verwaal et al | V5: 4 | W5: =34-V5 -> 30 | X5: 0 | Y5: 0.5 | Z5: Systematic review (from: Yang et al) | AA5: 0 | AB5: =8-AA5 -> 8 | AC5: 0 | AD5: 0.5 | AE5: No information | AF5: 40 | AG5: =159-AF5 -> 119 | AH5: 0 | AI5: 0.5 | AJ5: Systematic review (from: van Driel et al and Antonia et al)
A6: Ovarian cancer (HIPEC + CRS vs CRS) | B6: 30 | C6: van Driel et al, Antonia et al | J6: Short-term mortality (Control) | K6: Beta | L6: 2 | M6: =132-L6 -> 130 | N6: 0 | O6: 0.1 | P6: Quenet et al | Q6: 0 | R6: =51-Q6 -> 51 | S6: 0 | T6: 0.1 | U6: Verwaal et al | V6: 0 | W6: =34-V6 -> 34 | X6: 0 | Y6: 0.1 | Z6: No information | AA6: 0 | AB6: =8-AA6 -> 8 | AC6: 0 | AD6: 0.1 | AE6: No information | AF6: 2 | AG6: =159-AF6 -> 157 | AH6: 0 | AI6: 0.1 | AJ6: From: van Driel et al and Antonia et al
A7: Medium term | B7: Years | J7: 5-year mortality (Control) | K7: Beta | L7: 80 | M7: =133-L7 -> 53 | N7: 0 | O7: 1 | P7: Systematic review (from: Quenet et al) | Q7: 80 | R7: =133-Q7 -> 53 | S7: 0 | T7: 1 | U7: Systematic review (from: Verwaal et al) | V7: 33 | W7: =34-V7 -> 1 | X7: 0 | Y7: 1 | Z7: Systematic review (from: Yang et al) | AA7: 8 | AB7: =8-AA7 -> 0 | AC7: 0 | AD7: 1 | AE7: Systematic review (from: Rudloff et al) | AF7: 123 | AG7: =215-AF7 -> 92 | AH7: 0 | AI7: 1 | AJ7: Systematic review (from: van Driel et al and Lim et al). The number of deaths was reported only in these two trials, but the hazard ratios were reported in the three trials
A8: Colorectal cancer (HIPEC + CRS vs CRS) | B8: 5 | C8: Quenet et al | J8: Cost (HIPEC + CRS) Complicated | K8: Uniform | L8: =C23+E23+F23 -> 16273.58595 | N8: =L8*0.7 -> 11391.51017 | O8: =L8*1.3 -> 21155.66174 | P8: See Sheet 'CRC_HIPEC_CRS' | Q8: =C24+E24+F24 -> 24326.79195 | S8: =Q8*0.7 -> 17028.75437 | T8: =Q8*1.3 -> 31624.82954 | U8: See Sheet 'CRC_HIPEC_Chem' | V8: =C25+E25+F25 -> 20656.67291 | X8: =V8*0.7 -> 14459.67104 | Y8: =V8*1.3 -> 26853.67479 | Z8: See Sheet 'Gastric_HIPEC_CRS' | AA8: =C26+E26+F26 -> 32290.17595 | AC8: =AA8*0.7 -> 22603.12317 | AD8: =AA8*1.3 -> 41977.22874 | AE8: See Sheet 'Gastric_HIPEC_Chemo' | AF8: =C27+E27+F27 -> 15858.02195 | AH8: =AF8*0.7 -> 11100.61537 | AI8: =AF8*1.3 -> 20615.42854 | AJ8: See Sheet 'Ovarian_HIPEC_CRS'
A9: Colorectal cancer (HIPEC + CRS vs systemic chemotherapy) | B9: 2 | C9: Verwaal et al | J9: Cost (HIPEC + CRS) Uncomplicated | K9: Uniform | L9: =C23+D23+F23 -> 11904.129 | N9: =L9*0.7 -> 8332.8903 | O9: =L9*1.3 -> 15475.3677 | P9: See Sheet 'CRC_HIPEC_CRS' | Q9: =C24+D24+F24 -> 19957.335 | S9: =Q9*0.7 -> 13970.1345 | T9: =Q9*1.3 -> 25944.5355 | U9: See Sheet 'CRC_HIPEC_Chem' | V9: =C25+D25+F25 -> 16287.21596 | X9: =V9*0.7 -> 11401.05117 | Y9: =V9*1.3 -> 21173.38075 | Z9: See Sheet 'Gastric_HIPEC_CRS' | AA9: =C26+D26+F26 -> 27920.719 | AC9: =AA9*0.7 -> 19544.5033 | AD9: =AA9*1.3 -> 36296.9347 | AE9: See Sheet 'Gastric_HIPEC_Chemo' | AF9: =C27+D27+F27 -> 11488.565 | AH9: =AF9*0.7 -> 8041.9955 | AI9: =AF9*1.3 -> 14935.1345 | AJ9: See Sheet 'Ovarian_HIPEC_CRS'
A10: Gastric cancer (HIPEC + CRS vs CRS) | B10: 3 | C10: Yang et al | J10: Cost (Control) Complicated | K10: Uniform | L10: =E23+F23 -> 10568.45695 | N10: =L10*0.7 -> 7397.919868 | O10: =L10*1.3 -> 13738.99404 | P10: See Sheet 'CRC_HIPEC_CRS' | Q10: =E24+F24 -> 13072.25695 | S10: =Q10*0.7 -> 9150.579868 | T10: =Q10*1.3 -> 16993.93404 | U10: See Sheet 'CRC_HIPEC_Chem' | V10: =E25+F25 -> 17397.58591 | X10: =V10*0.7 -> 12178.31014 | Y10: =V10*1.3 -> 22616.86169 | Z10: See Sheet 'Gastric_HIPEC_CRS' | AA10: =E26+F26 -> 22785.41695 | AC10: =AA10*0.7 -> 15949.79187 | AD10: =AA10*1.3 -> 29621.04204 | AE10: See Sheet 'Gastric_HIPEC_Chemo' | AF10: =E27+F27 -> 12336.65695 | AH10: =AF10*0.7 -> 8635.659868 | AI10: =AF10*1.3 -> 16037.65404 | AJ10: See Sheet 'Ovarian_HIPEC_CRS'
A11: Gastric cancer (HIPEC + CRS vs systemic chemotherapy) | B11: 2 | C11: Rudloff et al | J11: Cost (Control) Uncomplicated | K11: Uniform | L11: =D23+F23 -> 6199 | N11: =L11*0.7 -> 4339.3 | O11: =L11*1.3 -> 8058.7 | P11: See Sheet 'CRC_HIPEC_CRS' | Q11: =D24+F24 -> 8702.8 | S11: =Q11*0.7 -> 6091.96 | T11: =Q11*1.3 -> 11313.64 | U11: See Sheet 'CRC_HIPEC_Chem' | V11: =D25+F25 -> 13028.12896 | X11: =V11*0.7 -> 9119.690272 | Y11: =V11*1.3 -> 16936.56765 | Z11: See Sheet 'Gastric_HIPEC_CRS' | AA11: =D26+F26 -> 18415.96 | AC11: =AA11*0.7 -> 12891.172 | AD11: =AA11*1.3 -> 23940.748 | AE11: See Sheet 'Gastric_HIPEC_Chemo' | AF11: =D27+F27 -> 7967.2 | AH11: =AF11*0.7 -> 5577.04 | AI11: =AF11*1.3 -> 10357.36 | AJ11: See Sheet 'Ovarian_HIPEC_CRS'
A12: Ovarian cancer (HIPEC + CRS vs CRS) | B12: 4 | C12: van Driel et al, Antonia et al, Lim et al | J12: QoL (complicated HIPEC + CRS) (Short-term) | K12: Beta | L12: =L13-0.1 -> 0.43 | M12: =1-L12 -> 0.57 | N12: 0.1 | O12: 0.9 | P12: Hypothetical 0.1 less in complicated | Q12: =Q13-0.1 -> 0.43 | R12: =1-Q12 -> 0.57 | S12: 0.1 | T12: 0.9 | U12: Hypothetical 0.1 less in complicated | V12: =V13-0.1 -> 0.43 | W12: =1-V12 -> 0.57 | X12: 0.1 | Y12: 0.9 | Z12: Hypothetical 0.1 less in complicated | AA12: =AA13-0.1 -> 0.43 | AB12: =1-AA12 -> 0.57 | AC12: 0.1 | AD12: 0.9 | AE12: Hypothetical 0.1 less in complicated | AF12: =AF13-0.1 -> 0.5013 | AG12: =1-AF12 -> 0.4987 | AH12: 0.1 | AI12: 0.9 | AJ12: Hypothetical 0.1 less in complicated
J13: QoL (uncomplicated HIPEC + CRS) (Short-term) | K13: Beta | L13: 0.53 | M13: 0.47 | N13: 0.1 | O13: 0.9 | P13: Leimkühler M, Hentzen JEKR, Hemmer PHJ, Been LB, van Ginkel RJ, Kruijff S, van Leeuwen BL, de Bock GH. Systematic Review of Factors Affecting Quality of Life After Cytoreductive Surgery with Hyperthermic Intraperitoneal Chemotherapy. Ann Surg Oncol. 2020 Oct;27(10):3973-3983. doi: 10.1245/s10434-020-08379-9. Epub 2020 Apr 26. PMID: 32335752; PMCID: PMC7471142; EORTC CLQ-30 mapped to EQ5D using Kim SH, Jo MW, Kim HJ, Ahn JH. Mapping EORTC QLQ-C30 onto EQ-5D for the assessment of cancer patients. Health Qual Life Outcomes. 2012 Dec 17;10:151. doi: 10.1186/1477-7525-10-151. PMID: 23244763; PMCID: PMC3542092. Based on this, the range of EQ5D is 0.4 to 0.63. | Q13: 0.53 | R13: 0.47 | S13: 0.1 | T13: 0.9 | U13: Leimkühler M, Hentzen JEKR, Hemmer PHJ, Been LB, van Ginkel RJ, Kruijff S, van Leeuwen BL, de Bock GH. Systematic Review of Factors Affecting Quality of Life After Cytoreductive Surgery with Hyperthermic Intraperitoneal Chemotherapy. Ann Surg Oncol. 2020 Oct;27(10):3973-3983. doi: 10.1245/s10434-020-08379-9. Epub 2020 Apr 26. PMID: 32335752; PMCID: PMC7471142; EORTC CLQ-30 mapped to EQ5D using Kim SH, Jo MW, Kim HJ, Ahn JH. Mapping EORTC QLQ-C30 onto EQ-5D for the assessment of cancer patients. Health Qual Life Outcomes. 2012 Dec 17;10:151. doi: 10.1186/1477-7525-10-151. PMID: 23244763; PMCID: PMC3542092. Based on this, the range of EQ5D is 0.4 to 0.63. | V13: 0.53 | W13: 0.47 | X13: 0.1 | Y13: 0.9 | Z13: Leimkühler M, Hentzen JEKR, Hemmer PHJ, Been LB, van Ginkel RJ, Kruijff S, van Leeuwen BL, de Bock GH. Systematic Review of Factors Affecting Quality of Life After Cytoreductive Surgery with Hyperthermic Intraperitoneal Chemotherapy. Ann Surg Oncol. 2020 Oct;27(10):3973-3983. doi: 10.1245/s10434-020-08379-9. Epub 2020 Apr 26. PMID: 32335752; PMCID: PMC7471142; EORTC CLQ-30 mapped to EQ5D using Kim SH, Jo MW, Kim HJ, Ahn JH. Mapping EORTC QLQ-C30 onto EQ-5D for the assessment of cancer patients. Health Qual Life Outcomes. 2012 Dec 17;10:151. doi: 10.1186/1477-7525-10-151. PMID: 23244763; PMCID: PMC3542092. Based on this, the range of EQ5D is 0.4 to 0.63. | AA13: 0.53 | AB13: 0.47 | AC13: 0.1 | AD13: 0.9 | AE13: Leimkühler M, Hentzen JEKR, Hemmer PHJ, Been LB, van Ginkel RJ, Kruijff S, van Leeuwen BL, de Bock GH. Systematic Review of Factors Affecting Quality of Life After Cytoreductive Surgery with Hyperthermic Intraperitoneal Chemotherapy. Ann Surg Oncol. 2020 Oct;27(10):3973-3983. doi: 10.1245/s10434-020-08379-9. Epub 2020 Apr 26. PMID: 32335752; PMCID: PMC7471142; EORTC CLQ-30 mapped to EQ5D using Kim SH, Jo MW, Kim HJ, Ahn JH. Mapping EORTC QLQ-C30 onto EQ-5D for the assessment of cancer patients. Health Qual Life Outcomes. 2012 Dec 17;10:151. doi: 10.1186/1477-7525-10-151. PMID: 23244763; PMCID: PMC3542092. Based on this, the range of EQ5D is 0.4 to 0.63. | AF13: 0.6013 | AG13: 0.3987 | AH13: 0.1 | AI13: 0.9 | AJ13: Antonia et al, converted using Kim SH, Jo MW, Kim HJ, Ahn JH. Mapping EORTC QLQ-C30 onto EQ-5D for the assessment of cancer patients. Health Qual Life Outcomes. 2012 Dec 17;10:151. doi: 10.1186/1477-7525-10-151. PMID: 23244763; PMCID: PMC3542092. (3 months)
A14: Calculations | J14: QoL (Complicated CRS) (Short-term) | K14: Beta | L14: =L15-0.1 -> 0.43 | M14: 0.57 | N14: 0.1 | O14: 0.9 | P14: Hypothetically same as HIPEC group | Q14: =Q15-0.1 -> 0.57 | R14: 0.43 | S14: 0.1 | T14: 0.9 | U14: Hypothetical 0.1 less in complicated | V14: =V15-0.1 -> 0.43 | W14: 0.57 | X14: 0.1 | Y14: 0.9 | Z14: Hypothetically same as HIPEC group | AA14: =AA15-0.1 -> 0.54 | AB14: 0.46 | AC14: 0.1 | AD14: 0.9 | AE14: Hypothetical 0.1 less in complicated | AF14: =AF15-0.1 -> 0.504612 | AG14: 0.495388 | AH14: 0.1 | AI14: 0.9 | AJ14: Hypothetical 0.1 less in complicated
A15: Hazard ratio to Ln hazard ratio | B15: Hazard ratio | C15: Point estimate | D15: Lower CI | E15: Upper CI | F15: CI | G15: lnHR | H15: SELnHR | J15: QoL (Uncomplicated CRS) (Short-term) | K15: Beta | L15: 0.53 | M15: 0.47 | N15: 0.1 | O15: 0.9 | P15: Hypothetically same as HIPEC group | Q15: 0.67 | R15: 0.33 | S15: 0.1 | T15: 0.9 | U15: Flyum IR, Mahic S, Grov EK, Joranger P. Health-related quality of life in patients with colorectal cancer in the palliative phase: a systematic review and meta-analysis. BMC Palliat Care. 2021 Sep 16;20(1):144. doi: 10.1186/s12904-021-00837-9. PMID: 34530833; PMCID: PMC8447559 | V15: 0.53 | W15: 0.47 | X15: 0.1 | Y15: 0.9 | Z15: Hypothetically same as HIPEC group | AA15: 0.64 | AB15: 0.36 | AC15: 0.1 | AD15: 0.9 | AE15: Carter GC, King DT, Hess LM, Mitchell SA, Taipale KL, Kiiskinen U, Rajan N, Novick D, Liepa AM. Health state utility values associated with advanced gastric, oesophageal, or gastro-oesophageal junction adenocarcinoma: a systematic review. J Med Econ. 2015;18(11):954-66. doi: 10.3111/13696998.2015.1066380. Epub 2015 Sep 11. PMID: 26212479 (gastric cancer: range 0.55 to 0.73) | AF15: 0.604612 | AG15: 0.395388 | AH15: 0.1 | AI15: 0.9 | AJ15: Antonia et al, converted using Kim SH, Jo MW, Kim HJ, Ahn JH. Mapping EORTC QLQ-C30 onto EQ-5D for the assessment of cancer patients. Health Qual Life Outcomes. 2012 Dec 17;10:151. doi: 10.1186/1477-7525-10-151. PMID: 23244763; PMCID: PMC3542092. (3 months)
A16: Colorectal cancer (HIPEC + CRS vs CRS) | B16: 1.00 [0.63, 1.58] | C16: =VALUE(LEFT($B16,FIND("[",$B16)-2)) -> 1 | D16: =VALUE(MID($B16,FIND("[",$B16)+1,FIND(",",$B16)-FIND("[",$B16)-1)) -> 0.63 | E16: =VALUE(MID($B16,FIND(",",$B16)+1,FIND("]",$B16)-FIND(",",$B16)-1)) -> 1.58 | F16: 0.95 | G16: =IF(C16="","",LN(C16)) -> 0 | H16: =IF(OR(E16="",D16="",F16=""),"", (LN(E16)-LN(D16))/(2*-NORMSINV((1-F16)/2))) -> 0.2345605108 | J16: QoL (Long-term) HIPEC | K16: Beta | L16: 0.785 | M16: 0.215 | N16: 0.1 | O16: 0.9 | P16: Malcolm FL, Adiamah A, Banerjea A, Whitehead D, Gupta A, West J, Humes DJ: Long-term health-related quality of life following colorectal cancer surgery: patient-reported outcomes in a remote follow-up population. Colorectal Dis 2021, 23(1):213-225 | Q16: 0.785 | R16: 0.215 | S16: 0.1 | T16: 0.9 | U16: Malcolm FL, Adiamah A, Banerjea A, Whitehead D, Gupta A, West J, Humes DJ: Long-term health-related quality of life following colorectal cancer surgery: patient-reported outcomes in a remote follow-up population. Colorectal Dis 2021, 23(1):213-225 | V16: 0.85 | W16: 0.15 | X16: 0.1 | Y16: 0.9 | Z16: van der Wielen, N., et al. (2022). "Health related quality of life following open versus minimally invasive total gastrectomy for cancer: Results from a randomized clinical trial." Eur J Surg Oncol 48(3): 553-560 | AA16: 0.85 | AB16: 0.15 | AC16: 0.1 | AD16: 0.9 | AE16: van der Wielen, N., et al. (2022). "Health related quality of life following open versus minimally invasive total gastrectomy for cancer: Results from a randomized clinical trial." Eur J Surg Oncol 48(3): 553-560 | AF16: 0.606 | AG16: 0.394 | AH16: 0.1 | AI16: 0.9 | AJ16: Antonia et al, converted using Kim SH, Jo MW, Kim HJ, Ahn JH. Mapping EORTC QLQ-C30 onto EQ-5D for the assessment of cancer patients. Health Qual Life Outcomes. 2012 Dec 17;10:151. doi: 10.1186/1477-7525-10-151. PMID: 23244763; PMCID: PMC3542092. (12 months)
A17: Colorectal cancer (HIPEC + CRS vs systemic chemotherapy) | B17: 0.55 [0.32, 0.95] | C17: =VALUE(LEFT($B17,FIND("[",$B17)-2)) -> 0.55 | D17: =VALUE(MID($B17,FIND("[",$B17)+1,FIND(",",$B17)-FIND("[",$B17)-1)) -> 0.32 | E17: =VALUE(MID($B17,FIND(",",$B17)+1,FIND("]",$B17)-FIND(",",$B17)-1)) -> 0.95 | F17: 0.95 | G17: =IF(C17="","",LN(C17)) -> -0.5978370008 | H17: =IF(OR(E17="",D17="",F17=""),"", (LN(E17)-LN(D17))/(2*-NORMSINV((1-F17)/2))) -> 0.2775920878 | J17: QoL (Long-term) Control | K17: Beta | L17: 0.785 | M17: 0.215 | N17: 0.1 | O17: 0.9 | P17: Malcolm FL, Adiamah A, Banerjea A, Whitehead D, Gupta A, West J, Humes DJ: Long-term health-related quality of life following colorectal cancer surgery: patient-reported outcomes in a remote follow-up population. Colorectal Dis 2021, 23(1):213-225 | Q17: 0.67 | R17: 0.33 | S17: 0.1 | T17: 0.9 | U17: Flyum IR, Mahic S, Grov EK, Joranger P. Health-related quality of life in patients with colorectal cancer in the palliative phase: a systematic review and meta-analysis. BMC Palliat Care. 2021 Sep 16;20(1):144. doi: 10.1186/s12904-021-00837-9. PMID: 34530833; PMCID: PMC8447559 | V17: 0.85 | W17: 0.15 | X17: 0.1 | Y17: 0.9 | Z17: van der Wielen, N., et al. (2022). "Health related quality of life following open versus minimally invasive total gastrectomy for cancer: Results from a randomized clinical trial." Eur J Surg Oncol 48(3): 553-560 | AA17: 0.64 | AB17: 0.36 | AC17: 0.1 | AD17: 0.9 | AE17: Carter GC, King DT, Hess LM, Mitchell SA, Taipale KL, Kiiskinen U, Rajan N, Novick D, Liepa AM. Health state utility values associated with advanced gastric, oesophageal, or gastro-oesophageal junction adenocarcinoma: a systematic review. J Med Econ. 2015;18(11):954-66. doi: 10.3111/13696998.2015.1066380. Epub 2015 Sep 11. PMID: 26212479 (gastric cancer: range 0.55 to 0.73) | AF17: 0.606 | AG17: 0.394 | AH17: 0.1 | AI17: 0.9 | AJ17: Antonia et al, converted using Kim SH, Jo MW, Kim HJ, Ahn JH. Mapping EORTC QLQ-C30 onto EQ-5D for the assessment of cancer patients. Health Qual Life Outcomes. 2012 Dec 17;10:151. doi: 10.1186/1477-7525-10-151. PMID: 23244763; PMCID: PMC3542092. (12 months)
A18: Gastric cancer (HIPEC + CRS vs CRS) | B18: 0.64 [0.25, 1.63] | C18: 0.64 | D18: 0.25 | E18: 1.63 | F18: 0.95 | G18: =IF(C18="","",LN(C18)) -> -0.4462871026 | H18: =IF(OR(E18="",D18="",F18=""),"", (LN(E18)-LN(D18))/(2*-NORMSINV((1-F18)/2))) -> 0.4782930683
A19: Gastric cancer (HIPEC + CRS vs systemic chemotherapy) | B19: 0.40 [0.30, 0.52] | C19: 0.4 | D19: 0.3 | E19: 0.52 | F19: 0.95 | G19: =IF(C19="","",LN(C19)) -> -0.9162907319 | H19: =IF(OR(E19="",D19="",F19=""),"", (LN(E19)-LN(D19))/(2*-NORMSINV((1-F19)/2))) -> 0.1403205215
A20: Ovarian cancer (HIPEC + CRS vs CRS) | B20: 0.73 [0.57, 0.93] | C20: 0.73 | D20: 0.57 | E20: 0.93 | F20: 0.95 | G20: =IF(C20="","",LN(C20)) -> -0.3147107448 | H20: =IF(OR(E20="",D20="",F20=""),"", (LN(E20)-LN(D20))/(2*-NORMSINV((1-F20)/2))) -> 0.1248870462
A22: Costs | B22: Regimen | C22: HIPEC | D22: CRS costs (uncomplicated) | E22: CRS costs (complicated) | F22: Systemic chemptherapy | G22: Comments
A23: Colorectal cancer (HIPEC + CRS vs CRS) | C23: =CRC_HIPEC_CRS!J38 -> 5705.129 | D23: =CRC_HIPEC_CRS!J40 -> 6199 | E23: =CRC_HIPEC_CRS!J41 -> 10568.45695 | G23: 1. See the individual sheets for breakdown of costs
A24: Colorectal cancer (HIPEC + CRS vs systemic chemotherapy) | C24: =CRC_HIPEC_Chem!J38 -> 11254.535 | D24: =CRC_HIPEC_Chem!J40 -> 6199 | E24: =CRC_HIPEC_Chem!J41 -> 10568.45695 | F24: =CRC_HIPEC_Chem!J46 -> 2503.8 | G24: 2. Variability: 30% of estimated average costs
A25: Gastric cancer (HIPEC + CRS vs CRS) | C25: =Gastric_HIPEC_CRS!J38 -> 3259.087 | D25: =Gastric_HIPEC_CRS!J40 -> 6199 | E25: =Gastric_HIPEC_CRS!J41 -> 10568.45695 | F25: =Gastric_HIPEC_CRS!J56 -> 6829.12896
A26: Gastric cancer (HIPEC + CRS vs systemic chemotherapy) | C26: =Gastric_HIPEC_Chem!J38 -> 9504.759 | D26: =Gastric_HIPEC_Chem!J40 -> 6199 | E26: =Gastric_HIPEC_Chem!J41 -> 10568.45695 | F26: =Gastric_HIPEC_Chem!J49 -> 12216.96
A27: Ovarian cancer (HIPEC + CRS vs CRS) | C27: =Ovarian_HIPEC_CRS!J38 -> 3521.365 | D27: =Ovarian_HIPEC_CRS!J40 -> 6199 | E27: =Ovarian_HIPEC_CRS!J41 -> 10568.45695 | F27: =Ovarian_HIPEC_CRS!J46 -> 1768.2
A29: Median Age
A30: Colorectal cancer (HIPEC + CRS vs CRS) | B30: 60 | C30: Quenet et al
A31: Colorectal cancer (HIPEC + CRS vs systemic chemotherapy) | B31: 54 | C31: Verwaal et al
A32: Gastric cancer (HIPEC + CRS vs CRS) | B32: 50 | C32: Yang et al
A33: Gastric cancer (HIPEC + CRS vs systemic chemotherapy) | B33: 48 | C33: Rudloff et al
A34: Ovarian cancer (HIPEC + CRS vs CRS) | B34: 61 | C34: van Driel et al, Antonia et al, Lim et al (61,62,53 respectively)

Sheet UserInput
A1: Base case
A2: Gender | B2: Female
A3: Assumption | B3: Same rate as medium-term death rate
A4: Type of cancer | B4: Ovarian cancer
A5: Intervention (Fixed) | B5: HIPEC + CRS + Systemic chemotherapy
A6: Control (Applicable only for colorectal and gastric cancers) | B6: CRS+Chemotherapy
A7: Operating time costs | B7: NHS costs
A8: Number of procedures per year | B8: 70

Sheet Input
A1: Uncertainty | B1: 1st Order | C1: Costs (intervention) | D1: B15
A2: Number of variables (automatically completed) | B2: =COUNTA(K:K)-4 -> 16 | C2: QALY (intervention) | D2: B14
A3: Intervention | B3: HIPEC + CRS + Chemotherapy | C3: Costs (control) | D3: B32
A4: Control | B4: CRS + Chemotherapy | C4: QALY (conrol) | D4: B33
A5: Enter the mean and standard deviation in columns c & d for gamma distribution and continuous distribution, limits for uniform distribution in columns e and f, number with event and number without event for beta distribution in columns c & d and lower and upper limit in columns e and f Complete the variable name column only if you use the variable
A6: Parameters | B6: Type of distribution | C6: mean (gamma or continuous or uniform), number with event (dichotomous) | D6: standard deviation (gamma or continuous), number without event (dichotomous) | E6: Lower limit | F6: Upper limit | G6: Step | H6: 1st order | I6: 2nd order value | J6: Live value | K6: variable name | L6: Source / Notes
A7: Basic parameters
A8: Time horizon (in years) | H8: =C8 -> 0 | I8: =C8 -> 0 | J8: =C8 -> 0 | K8: TimeHorizon | L8: Life-time horizon based on National life tables
A9: Discount rate | C9: 0.035 | H9: =C9 -> 0.035 | I9: =C9 -> 0.035 | J9: =C9 -> 0.035 | K9: DiscountRate
A10: Number patients simulated | C10: 10000 | H10: =C10 -> 10000 | I10: =C10 -> 10000 | J10: =C10 -> 10000 | K10: CohortSize
A11: Variables
A12: Complications (HIPEC + CRS) | B12: Beta | C12: =IF(OFFSET(SourceData!L2,0,SourceData!$I$4)="","",OFFSET(SourceData!L2,0,SourceData!$I$4)) -> 42 | D12: =IF(OFFSET(SourceData!M2,0,SourceData!$I$4)="","",OFFSET(SourceData!M2,0,SourceData!$I$4)) -> 115 | E12: =IF(OFFSET(SourceData!N2,0,SourceData!$I$4)="","",OFFSET(SourceData!N2,0,SourceData!$I$4)) -> 0 | F12: =IF(OFFSET(SourceData!O2,0,SourceData!$I$4)="","",OFFSET(SourceData!O2,0,SourceData!$I$4)) -> 0.5 | G12: 0.05 | H12: =IF(B12="Beta", C12/(C12+D12), IF(B12="Uniform",(E12+F12)/2,IF(B12="Gamma",C12,IF(B12="Continuous",C12,"")))) -> 0.2675159236 | I12: =IF(B12="Beta",BETAINV(RAND(),C12,D12,E12,F12),IF(B12="Uniform",E12+RAND()*(F12-E12),IF(B12="Gamma",GAMMAINV(RAND(),C12^2/D12^2,(D12^2)/C12),IF(B12="Continuous",NORMINV(RAND(),C12,D12),"")))) -> 0.1169477727 | J12: =IF(Uncertainty="1st Order",H12,IF(ISERROR(I12),H12,I12)) -> 0.2675159236 | K12: p_Complications_HIPEC | L12: =IF(OFFSET(SourceData!P2,0,SourceData!$I$4)="","",OFFSET(SourceData!P2,0,SourceData!$I$4)) -> Systematic review (from: van Driel et al and Antonia et al)
A13: Short-term mortality (HIPEC + CRS) | B13: Beta | C13: =IF(OFFSET(SourceData!L3,0,SourceData!$I$4)="","",OFFSET(SourceData!L3,0,SourceData!$I$4)) -> 1 | D13: =IF(OFFSET(SourceData!M3,0,SourceData!$I$4)="","",OFFSET(SourceData!M3,0,SourceData!$I$4)) -> 156 | E13: =IF(OFFSET(SourceData!N3,0,SourceData!$I$4)="","",OFFSET(SourceData!N3,0,SourceData!$I$4)) -> 0 | F13: =IF(OFFSET(SourceData!O3,0,SourceData!$I$4)="","",OFFSET(SourceData!O3,0,SourceData!$I$4)) -> 0.1 | G13: 0.05 | H13: 0.006369426752 | I13: 0.0002667795972 | J13: 0.006369426752 | K13: p_Short_term_Mortality_HIPEC | L13: =IF(OFFSET(SourceData!P3,0,SourceData!$I$4)="","",OFFSET(SourceData!P3,0,SourceData!$I$4)) -> From: van Driel et al and Antonia et al
A14: Survival ln (hazard ratio) | B14: Continuous | C14: =IF(OFFSET(SourceData!L4,0,SourceData!$I$4)="","",OFFSET(SourceData!L4,0,SourceData!$I$4)) -> -0.3147107448 | D14: =IF(OFFSET(SourceData!M4,0,SourceData!$I$4)="","",OFFSET(SourceData!M4,0,SourceData!$I$4)) -> 0.1248870462 | E14: =IF(OFFSET(SourceData!N4,0,SourceData!$I$4)="","",OFFSET(SourceData!N4,0,SourceData!$I$4)) -> -2 | F14: =IF(OFFSET(SourceData!O4,0,SourceData!$I$4)="","",OFFSET(SourceData!O4,0,SourceData!$I$4)) -> 2 | G14: 0.05 | H14: -0.3147107448 | I14: -0.438257921 | J14: -0.3147107448 | K14: p_Ln_HazardRatio_HIPEC | L14: =IF(OFFSET(SourceData!P4,0,SourceData!$I$4)="","",OFFSET(SourceData!P4,0,SourceData!$I$4)) -> Systematic review (from: van Driel et al, Antonia et al, Lim et al)
A15: Complications (Control) | B15: Beta | C15: =IF(OFFSET(SourceData!L5,0,SourceData!$I$4)="","",OFFSET(SourceData!L5,0,SourceData!$I$4)) -> 40 | D15: =IF(OFFSET(SourceData!M5,0,SourceData!$I$4)="","",OFFSET(SourceData!M5,0,SourceData!$I$4)) -> 119 | E15: =IF(OFFSET(SourceData!N5,0,SourceData!$I$4)="","",OFFSET(SourceData!N5,0,SourceData!$I$4)) -> 0 | F15: =IF(OFFSET(SourceData!O5,0,SourceData!$I$4)="","",OFFSET(SourceData!O5,0,SourceData!$I$4)) -> 0.5 | G15: 0.05 | H15: =IF(B15="Beta", C15/(C15+D15), IF(B15="Uniform",(E15+F15)/2,IF(B15="Gamma",C15,IF(B15="Continuous",C15,"")))) -> 0.251572327 | I15: =IF(B15="Beta",BETAINV(RAND(),C15,D15,E15,F15),IF(B15="Uniform",E15+RAND()*(F15-E15),IF(B15="Gamma",GAMMAINV(RAND(),C15^2/D15^2,(D15^2)/C15),IF(B15="Continuous",NORMINV(RAND(),C15,D15),"")))) -> 0.1403070332 | J15: 0.251572327 | K15: p_Complications_Control | L15: =IF(OFFSET(SourceData!P5,0,SourceData!$I$4)="","",OFFSET(SourceData!P5,0,SourceData!$I$4)) -> Systematic review (from: van Driel et al and Antonia et al)
A16: Short-term mortality (Control) | B16: Beta | C16: =IF(OFFSET(SourceData!L6,0,SourceData!$I$4)="","",OFFSET(SourceData!L6,0,SourceData!$I$4)) -> 2 | D16: =IF(OFFSET(SourceData!M6,0,SourceData!$I$4)="","",OFFSET(SourceData!M6,0,SourceData!$I$4)) -> 157 | E16: =IF(OFFSET(SourceData!N6,0,SourceData!$I$4)="","",OFFSET(SourceData!N6,0,SourceData!$I$4)) -> 0 | F16: =IF(OFFSET(SourceData!O6,0,SourceData!$I$4)="","",OFFSET(SourceData!O6,0,SourceData!$I$4)) -> 0.1 | G16: 0.05 | H16: 0.01257861635 | I16: 0.001732105995 | J16: 0.01257861635 | K16: p_Short_term_Mortality_Control | L16: =IF(OFFSET(SourceData!P6,0,SourceData!$I$4)="","",OFFSET(SourceData!P6,0,SourceData!$I$4)) -> From: van Driel et al and Antonia et al
A17: 5-year mortality (Control) | B17: Beta | C17: =IF(OFFSET(SourceData!L7,0,SourceData!$I$4)="","",OFFSET(SourceData!L7,0,SourceData!$I$4)) -> 123 | D17: =IF(OFFSET(SourceData!M7,0,SourceData!$I$4)="","",OFFSET(SourceData!M7,0,SourceData!$I$4)) -> 92 | E17: =IF(OFFSET(SourceData!N7,0,SourceData!$I$4)="","",OFFSET(SourceData!N7,0,SourceData!$I$4)) -> 0 | F17: =IF(OFFSET(SourceData!O7,0,SourceData!$I$4)="","",OFFSET(SourceData!O7,0,SourceData!$I$4)) -> 1 | G17: 0.05 | H17: 0.5720930233 | I17: 0.5650473313 | J17: 0.5720930233 | K17: p_MediumMortality_Control | L17: =IF(OFFSET(SourceData!P7,0,SourceData!$I$4)="","",OFFSET(SourceData!P7,0,SourceData!$I$4)) -> Systematic review (from: van Driel et al and Lim et al). The number of deaths was reported only in these two trials, but the hazard ratios were reported in the three trials
A18: Cost (HIPEC + CRS) Complicated | B18: Uniform | C18: =IF(OFFSET(SourceData!L8,0,SourceData!$I$4)="","",OFFSET(SourceData!L8,0,SourceData!$I$4)) -> 15858.02195 | D18: =IF(OFFSET(SourceData!M8,0,SourceData!$I$4)="","",OFFSET(SourceData!M8,0,SourceData!$I$4)) ->  | E18: =IF(OFFSET(SourceData!N8,0,SourceData!$I$4)="","",OFFSET(SourceData!N8,0,SourceData!$I$4)) -> 11100.61537 | F18: =IF(OFFSET(SourceData!O8,0,SourceData!$I$4)="","",OFFSET(SourceData!O8,0,SourceData!$I$4)) -> 20615.42854 | G18: 500 | H18: =IF(B18="Beta", C18/(C18+D18), IF(B18="Uniform",(E18+F18)/2,IF(B18="Gamma",C18,IF(B18="Continuous",C18,"")))) -> 15858.02195 | I18: 12636.34765 | J18: 15858.02195 | K18: Costs_Complicated_HIPEC | L18: =IF(OFFSET(SourceData!P8,0,SourceData!$I$4)="","",OFFSET(SourceData!P8,0,SourceData!$I$4)) -> See Sheet 'Ovarian_HIPEC_CRS'
A19: Cost (HIPEC + CRS) Uncomplicated | B19: Uniform | C19: =IF(OFFSET(SourceData!L9,0,SourceData!$I$4)="","",OFFSET(SourceData!L9,0,SourceData!$I$4)) -> 11488.565 | D19: =IF(OFFSET(SourceData!M9,0,SourceData!$I$4)="","",OFFSET(SourceData!M9,0,SourceData!$I$4)) ->  | E19: =IF(OFFSET(SourceData!N9,0,SourceData!$I$4)="","",OFFSET(SourceData!N9,0,SourceData!$I$4)) -> 8041.9955 | F19: =IF(OFFSET(SourceData!O9,0,SourceData!$I$4)="","",OFFSET(SourceData!O9,0,SourceData!$I$4)) -> 14935.1345 | G19: 500 | H19: =IF(B19="Beta", C19/(C19+D19), IF(B19="Uniform",(E19+F19)/2,IF(B19="Gamma",C19,IF(B19="Continuous",C19,"")))) -> 11488.565 | I19: 10824.56202 | J19: 11488.565 | K19: Costs_Uncomplicated_HIPEC | L19: =IF(OFFSET(SourceData!P9,0,SourceData!$I$4)="","",OFFSET(SourceData!P9,0,SourceData!$I$4)) -> See Sheet 'Ovarian_HIPEC_CRS'
A20: Cost (Control) Complicated | B20: Uniform | C20: =IF(OFFSET(SourceData!L10,0,SourceData!$I$4)="","",OFFSET(SourceData!L10,0,SourceData!$I$4)) -> 12336.65695 | D20: =IF(OFFSET(SourceData!M10,0,SourceData!$I$4)="","",OFFSET(SourceData!M10,0,SourceData!$I$4)) ->  | E20: =IF(OFFSET(SourceData!N10,0,SourceData!$I$4)="","",OFFSET(SourceData!N10,0,SourceData!$I$4)) -> 8635.659868 | F20: =IF(OFFSET(SourceData!O10,0,SourceData!$I$4)="","",OFFSET(SourceData!O10,0,SourceData!$I$4)) -> 16037.65404 | G20: 500 | H20: 12336.65695 | I20: 15547.29876 | J20: 12336.65695 | K20: Costs_Complicated_Control | L20: =IF(OFFSET(SourceData!P10,0,SourceData!$I$4)="","",OFFSET(SourceData!P10,0,SourceData!$I$4)) -> See Sheet 'Ovarian_HIPEC_CRS'
A21: Cost (Control) Uncomplicated | B21: Uniform | C21: =IF(OFFSET(SourceData!L11,0,SourceData!$I$4)="","",OFFSET(SourceData!L11,0,SourceData!$I$4)) -> 7967.2 | D21: =IF(OFFSET(SourceData!M11,0,SourceData!$I$4)="","",OFFSET(SourceData!M11,0,SourceData!$I$4)) ->  | E21: =IF(OFFSET(SourceData!N11,0,SourceData!$I$4)="","",OFFSET(SourceData!N11,0,SourceData!$I$4)) -> 5577.04 | F21: =IF(OFFSET(SourceData!O11,0,SourceData!$I$4)="","",OFFSET(SourceData!O11,0,SourceData!$I$4)) -> 10357.36 | G21: 500 | H21: =IF(B21="Beta", C21/(C21+D21), IF(B21="Uniform",(E21+F21)/2,IF(B21="Gamma",C21,IF(B21="Continuous",C21,"")))) -> 7967.2 | I21: 7229.845636 | J21: 7967.2 | K21: Costs_Uncomplicated_Control | L21: =IF(OFFSET(SourceData!P11,0,SourceData!$I$4)="","",OFFSET(SourceData!P11,0,SourceData!$I$4)) -> See Sheet 'Ovarian_HIPEC_CRS'
A22: QoL (complicated HIPEC + CRS) (Short-term) | B22: Beta | C22: =IF(OFFSET(SourceData!L12,0,SourceData!$I$4)="","",OFFSET(SourceData!L12,0,SourceData!$I$4)) -> 0.5013 | D22: =IF(OFFSET(SourceData!M12,0,SourceData!$I$4)="","",OFFSET(SourceData!M12,0,SourceData!$I$4)) -> 0.4987 | E22: =IF(OFFSET(SourceData!N12,0,SourceData!$I$4)="","",OFFSET(SourceData!N12,0,SourceData!$I$4)) -> 0.1 | F22: =IF(OFFSET(SourceData!O12,0,SourceData!$I$4)="","",OFFSET(SourceData!O12,0,SourceData!$I$4)) -> 0.9 | G22: 0.05 | H22: 0.5013 | I22: 0.2357408419 | J22: 0.5013 | K22: QoL_Complicated_HIPEC | L22: =IF(OFFSET(SourceData!P12,0,SourceData!$I$4)="","",OFFSET(SourceData!P12,0,SourceData!$I$4)) -> Hypothetical 0.1 less in complicated
A23: QoL (uncomplicated HIPEC + CRS) (Short-term) | B23: Beta | C23: =IF(OFFSET(SourceData!L13,0,SourceData!$I$4)="","",OFFSET(SourceData!L13,0,SourceData!$I$4)) -> 0.6013 | D23: =IF(OFFSET(SourceData!M13,0,SourceData!$I$4)="","",OFFSET(SourceData!M13,0,SourceData!$I$4)) -> 0.3987 | E23: =IF(OFFSET(SourceData!N13,0,SourceData!$I$4)="","",OFFSET(SourceData!N13,0,SourceData!$I$4)) -> 0.1 | F23: =IF(OFFSET(SourceData!O13,0,SourceData!$I$4)="","",OFFSET(SourceData!O13,0,SourceData!$I$4)) -> 0.9 | G23: 0.05 | H23: 0.6013 | I23: 0.8803970869 | J23: 0.6013 | K23: QoL_Uncomplicated_HIPEC | L23: =IF(OFFSET(SourceData!P13,0,SourceData!$I$4)="","",OFFSET(SourceData!P13,0,SourceData!$I$4)) -> Antonia et al, converted using Kim SH, Jo MW, Kim HJ, Ahn JH. Mapping EORTC QLQ-C30 onto EQ-5D for the assessment of cancer patients. Health Qual Life Outcomes. 2012 Dec 17;10:151. doi: 10.1186/1477-7525-10-151. PMID: 23244763; PMCID: PMC3542092. (3 months)
A24: QoL (Complicated CRS) (Short-term) | B24: Beta | C24: =IF(OFFSET(SourceData!L14,0,SourceData!$I$4)="","",OFFSET(SourceData!L14,0,SourceData!$I$4)) -> 0.504612 | D24: =IF(OFFSET(SourceData!M14,0,SourceData!$I$4)="","",OFFSET(SourceData!M14,0,SourceData!$I$4)) -> 0.495388 | E24: =IF(OFFSET(SourceData!N14,0,SourceData!$I$4)="","",OFFSET(SourceData!N14,0,SourceData!$I$4)) -> 0.1 | F24: =IF(OFFSET(SourceData!O14,0,SourceData!$I$4)="","",OFFSET(SourceData!O14,0,SourceData!$I$4)) -> 0.9 | G24: 0.05 | H24: 0.504612 | I24: 0.2181198123 | J24: 0.504612 | K24: QoL_Complicated_Control | L24: =IF(OFFSET(SourceData!P14,0,SourceData!$I$4)="","",OFFSET(SourceData!P14,0,SourceData!$I$4)) -> Hypothetical 0.1 less in complicated
A25: QoL (Uncomplicated CRS) (Short-term) | B25: Beta | C25: =IF(OFFSET(SourceData!L15,0,SourceData!$I$4)="","",OFFSET(SourceData!L15,0,SourceData!$I$4)) -> 0.604612 | D25: =IF(OFFSET(SourceData!M15,0,SourceData!$I$4)="","",OFFSET(SourceData!M15,0,SourceData!$I$4)) -> 0.395388 | E25: =IF(OFFSET(SourceData!N15,0,SourceData!$I$4)="","",OFFSET(SourceData!N15,0,SourceData!$I$4)) -> 0.1 | F25: =IF(OFFSET(SourceData!O15,0,SourceData!$I$4)="","",OFFSET(SourceData!O15,0,SourceData!$I$4)) -> 0.9 | G25: 0.05 | H25: 0.604612 | I25: 0.5689843061 | J25: 0.604612 | K25: QoL_Uncomplicated_Control | L25: =IF(OFFSET(SourceData!P15,0,SourceData!$I$4)="","",OFFSET(SourceData!P15,0,SourceData!$I$4)) -> Antonia et al, converted using Kim SH, Jo MW, Kim HJ, Ahn JH. Mapping EORTC QLQ-C30 onto EQ-5D for the assessment of cancer patients. Health Qual Life Outcomes. 2012 Dec 17;10:151. doi: 10.1186/1477-7525-10-151. PMID: 23244763; PMCID: PMC3542092. (3 months)
A26: QoL (Long-term) HIPEC | B26: Beta | C26: =IF(OFFSET(SourceData!L16,0,SourceData!$I$4)="","",OFFSET(SourceData!L16,0,SourceData!$I$4)) -> 0.606 | D26: =IF(OFFSET(SourceData!M16,0,SourceData!$I$4)="","",OFFSET(SourceData!M16,0,SourceData!$I$4)) -> 0.394 | E26: =IF(OFFSET(SourceData!N16,0,SourceData!$I$4)="","",OFFSET(SourceData!N16,0,SourceData!$I$4)) -> 0.1 | F26: =IF(OFFSET(SourceData!O16,0,SourceData!$I$4)="","",OFFSET(SourceData!O16,0,SourceData!$I$4)) -> 0.9 | G26: 0.05 | H26: =IF(B26="Beta", C26/(C26+D26), IF(B26="Uniform",(E26+F26)/2,IF(B26="Gamma",C26,IF(B26="Continuous",C26,"")))) -> 0.606 | I26: 0.8221131064 | J26: 0.606 | K26: QoL_Long_HIPEC | L26: =IF(OFFSET(SourceData!P16,0,SourceData!$I$4)="","",OFFSET(SourceData!P16,0,SourceData!$I$4)) -> Antonia et al, converted using Kim SH, Jo MW, Kim HJ, Ahn JH. Mapping EORTC QLQ-C30 onto EQ-5D for the assessment of cancer patients. Health Qual Life Outcomes. 2012 Dec 17;10:151. doi: 10.1186/1477-7525-10-151. PMID: 23244763; PMCID: PMC3542092. (12 months)
A27: QoL (Long-term) Control | B27: Beta | C27: =IF(OFFSET(SourceData!L17,0,SourceData!$I$4)="","",OFFSET(SourceData!L17,0,SourceData!$I$4)) -> 0.606 | D27: =IF(OFFSET(SourceData!M17,0,SourceData!$I$4)="","",OFFSET(SourceData!M17,0,SourceData!$I$4)) -> 0.394 | E27: =IF(OFFSET(SourceData!N17,0,SourceData!$I$4)="","",OFFSET(SourceData!N17,0,SourceData!$I$4)) -> 0.1 | F27: =IF(OFFSET(SourceData!O17,0,SourceData!$I$4)="","",OFFSET(SourceData!O17,0,SourceData!$I$4)) -> 0.9 | G27: 0.05 | H27: 0.606 | I27: 0.8437677188 | J27: 0.606 | K27: QoL_Long_Control | L27: =IF(OFFSET(SourceData!P17,0,SourceData!$I$4)="","",OFFSET(SourceData!P17,0,SourceData!$I$4)) -> Antonia et al, converted using Kim SH, Jo MW, Kim HJ, Ahn JH. Mapping EORTC QLQ-C30 onto EQ-5D for the assessment of cancer patients. Health Qual Life Outcomes. 2012 Dec 17;10:151. doi: 10.1186/1477-7525-10-151. PMID: 23244763; PMCID: PMC3542092. (12 months)
H41: =IF(B41="Beta", C41/(C41+D41), IF(B41="Uniform",(E41+F41)/2,IF(B41="Gamma",C41,IF(B41="Continuous",C41,"")))) ->  | I41: =IF(B41="Beta",BETAINV(RAND(),C41,D41,E41,F41),IF(B41="Uniform",E41+RAND()*(F41-E41),IF(B41="Gamma",GAMMAINV(RAND(),C41^2/D41^2,(D41^2)/C41),IF(B41="Continuous",NORMINV(RAND(),C41,D41),"")))) ->  | J41: =IF(Uncertainty="1st Order",H41,IF(ISERROR(I41),H41,I41)) -> 
J58: =IF(Uncertainty="1st Order",H58,IF(ISERROR(I58),H58,I58)) -> 
H61: =IF(B61="Beta", C61/(C61+D61), IF(B61="Uniform",(E61+F61)/2,IF(B61="Gamma",C61,IF(B61="Continuous",C61,"")))) -> 
I73: =IF(B73="Beta",BETAINV(RAND(),C73,D73,E73,F73),IF(B73="Uniform",E73+RAND()*(F73-E73),IF(B73="Gamma",GAMMAINV(RAND(),C73^2/D73^2,(D73^2)/C73),IF(B73="Continuous",NORMINV(RAND(),C73,D73),"")))) -> 
J90: =IF(Uncertainty="1st Order",H90,IF(ISERROR(I90),H90,I90)) -> 

Sheet Stability (hidden)
A1: Different conditions | H1: Runs | I1: WTP: 20000 | J1: WTP: 30000 | K1: WTP: 20000 | L1: WTP: 30000 | M1: WTP: 20000 | N1: WTP: 30000 | O1: WTP: 20000 | P1: WTP: 30000 | Q1: WTP: 20000 | R1: WTP: 30000
B2: Male | C2: Male | D2: Male | E2: Male | F2: Female | I2: Incremental NMB (Point estimate) | J2: Incremental NMB (Point estimate) | K2: Incremental NMB (Point estimate) | L2: Incremental NMB (Point estimate) | M2: Incremental NMB (Point estimate) | N2: Incremental NMB (Point estimate) | O2: Incremental NMB (Point estimate) | P2: Incremental NMB (Point estimate) | Q2: Incremental NMB (Point estimate) | R2: Incremental NMB (Point estimate)
B3: Same rate as medium-term death rate | C3: Same rate as medium-term death rate | D3: Same rate as medium-term death rate | E3: Same rate as medium-term death rate | F3: Same rate as medium-term death rate | H3: 1 | I3: -2594662 | J3: -927336 | K3: 104588977 | L3: 162563866 | M3: 8671402 | N3: 14676274 | O3: 63524459 | P3: 100189895 | Q3: 43740841 | R3: 67393389
B4: Colorectal cancer | C4: Colorectal cancer | D4: Gastric cancer | E4: Gastric cancer | F4: Ovarian cancer | H4: 2 | I4: -1895069 | J4: 124870 | K4: 104491274 | L4: 162427829 | M4: 8623877 | N4: 14609159 | O4: 63183580 | P4: 99723480 | Q4: 42853265 | R4: 66059926
B5: HIPEC + CRS + Systemic chemotherapy | C5: HIPEC + CRS + Systemic chemotherapy | D5: HIPEC + CRS + Systemic chemotherapy | E5: HIPEC + CRS + Systemic chemotherapy | F5: HIPEC + CRS + Systemic chemotherapy | H5: 3 | I5: -2108338 | J5: -196556 | K5: 105120604 | L5: 163367701 | M5: 8585394 | N5: 14547987 | O5: 63362399 | P5: 99931742 | Q5: 43485294 | R5: 67000168
B6: CRS+Chemotherapy | C6: Chemotherapy without CRS | D6: CRS+Chemotherapy | E6: Chemotherapy without CRS | F6: CRS+Chemotherapy | H6: 4 | I6: -2018111 | J6: -61452 | K6: 103935895 | L6: 161589837 | M6: 8047463 | N6: 13730906 | O6: 65095759 | P6: 102604243 | Q6: 44157980 | R6: 67992754
B7: NHS costs | C7: NHS costs | D7: NHS costs | E7: NHS costs | F7: NHS costs | H7: 5 | I7: -2488646 | J7: -770443 | K7: 104906203 | L7: 163049772 | M7: 8564863 | N7: 14508234 | O7: 64049489 | P7: 100978904 | Q7: 42985734 | R7: 66263993
B8: 70 | C8: 70 | D8: 70 | E8: 70 | F8: 70 | H8: 6 | I8: -2382053 | J8: -607300 | K8: 105528468 | L8: 164001199 | M8: 8360169 | N8: 14195502 | O8: 64834551 | P8: 102139111 | Q8: 43312132 | R8: 66756338
H9: 7 | I9: -2091864 | J9: -170219 | K9: 105353364 | L9: 163710821 | M9: 8145168 | N9: 13875853 | O9: 64018531 | P9: 100950376 | Q9: 43527315 | R9: 67084265
A10: Name of file | B10: HIPEC_CRC_CRS | C10: HIPEC_CRC_Chemo | D10: HIPEC_Gastric_CRS | E10: HIPEC_Gastric_Chemo | F10: HIPEC_Ovarian_CRS | H10: 8 | I10: -2680719 | J10: -1053337 | K10: 104386829 | L10: 162281972 | M10: 8420881 | N10: 14296141 | O10: 64709498 | P10: 101972296 | Q10: 44114742 | R10: 67925835
A11: Analysis completed | B11: 30 | C11: 30 | D11: 30 | E11: 30 | F11: 30 | H11: 9 | I11: -2526849 | J11: -826995 | K11: 103759734 | L11: 161335699 | M11: 9059035 | N11: 15253432 | O11: 63571534 | P11: 100287597 | Q11: 43735343 | R11: 67383969
H12: 10 | I12: -2521454 | J12: -818759 | K12: 104200504 | L12: 161992860 | M12: 8224014 | N12: 13995376 | O12: 64732437 | P12: 102002777 | Q12: 42874971 | R12: 66099476
H13: 11 | I13: -2297236 | J13: -479426 | K13: 103939681 | L13: 161592242 | M13: 8318442 | N13: 14144896 | O13: 62631228 | P13: 98851828 | Q13: 43121518 | R13: 66466506
H14: 12 | I14: -2606487 | J14: -945439 | K14: 103880460 | L14: 161531826 | M14: 8240400 | N14: 14028550 | O14: 64674830 | P14: 101952625 | Q14: 44258884 | R14: 68165230
H15: 13 | I15: -2523437 | J15: -816963 | K15: 105030294 | L15: 163243184 | M15: 8889078 | N15: 14989816 | O15: 62966779 | P15: 99348203 | Q15: 43474958 | R15: 67000153
H16: 14 | I16: -2191001 | J16: -319036 | K16: 104235518 | L16: 162044587 | M16: 7882761 | N16: 13494994 | O16: 62602533 | P16: 98824216 | Q16: 44326788 | R16: 68269538
H17: 15 | I17: -2732779 | J17: -1136992 | K17: 104159791 | L17: 161952524 | M17: 8499976 | N17: 14407785 | O17: 62131147 | P17: 98136132 | Q17: 46045504 | R17: 70833985
H18: 16 | I18: -2464286 | J18: -734761 | K18: 103541190 | L18: 160998023 | M18: 8723469 | N18: 14757336 | O18: 63207763 | P18: 99713202 | Q18: 43481037 | R18: 67013588
H19: 17 | I19: -2125950 | J19: -220766 | K19: 103773002 | L19: 161375352 | M19: 8407605 | N19: 14272205 | O19: 64621032 | P19: 101889076 | Q19: 45077136 | R19: 69394928
A20: WTP: 20000 | B20: =_xlfn.STDEV.S(I$3:I$32)/ABS(AVERAGE(I$3:I$32)) -> 0.1034778431 | C20: =_xlfn.STDEV.S(K$3:K$32)/ABS(AVERAGE(K$3:K$32)) -> 0.005734865083 | D20: =_xlfn.STDEV.S(M$3:M$32)/ABS(AVERAGE(M$3:M$32)) -> 0.04108969981 | E20: =_xlfn.STDEV.S(O$3:O$32)/ABS(AVERAGE(O$3:O$32)) -> 0.01525265243 | F20: =_xlfn.STDEV.S(Q$3:Q$32)/ABS(AVERAGE(Q$3:Q$32)) -> 0.01845110965 | H20: 18 | I20: -2577813 | J20: -901801 | K20: 105188553 | L20: 163450045 | M20: 8927834 | N20: 15045153 | O20: 64098906 | P20: 101029659 | Q20: 45490483 | R20: 69995286
A21: WTP: 30000 | B21: =_xlfn.STDEV.S(J$3:J$32)/ABS(AVERAGE(J$3:J$32)) -> 0.6909073988 | C21: =_xlfn.STDEV.S(L$3:L$32)/ABS(AVERAGE(L$3:L$32)) -> 0.005510314923 | D21: =_xlfn.STDEV.S(N$3:N$32)/ABS(AVERAGE(N$3:N$32)) -> 0.03641730018 | E21: =_xlfn.STDEV.S(P$3:P$32)/ABS(AVERAGE(P$3:P$32)) -> 0.0145936932 | F21: =_xlfn.STDEV.S(R$3:R$32)/ABS(AVERAGE(R$3:R$32)) -> 0.01789953431 | H21: 19 | I21: -2597124 | J21: -930837 | K21: 104537320 | L21: 162455787 | M21: 9416063 | N21: 15793132 | O21: 63577530 | P21: 100264332 | Q21: 44048036 | R21: 67843602
A22: Iterations | B22: 90000 | C22: 10000 | D22: 90000 | E22: 15000 | F22: 10000 | H22: 20 | I22: -2548047 | J22: -850228 | K22: 104141435 | L22: 161908700 | M22: 7984885 | N22: 13632396 | O22: 65163653 | P22: 102706899 | Q22: 43871691 | R22: 67574715
H23: 21 | I23: -2088322 | J23: -168536 | K23: 104180898 | L23: 161958005 | M23: 8649765 | N23: 14636081 | O23: 65099148 | P23: 102584744 | Q23: 43831206 | R23: 67520144
H24: 22 | I24: -2348809 | J24: -558191 | K24: 103504377 | L24: 160963833 | M24: 8931222 | N24: 15058670 | O24: 62347958 | P24: 98380309 | Q24: 43364398 | R24: 66814537
H25: 23 | I25: -1909802 | J25: 103435 | K25: 103969518 | L25: 161653881 | M25: 8490569 | N25: 14394498 | O25: 63382597 | P25: 99989954 | Q25: 44226679 | R25: 68121822
H26: 24 | I26: -2285181 | J26: -459093 | K26: 104068705 | L26: 161785317 | M26: 8025067 | N26: 13695906 | O26: 64428363 | P26: 101539766 | Q26: 43194954 | R26: 66584529
H27: 25 | I27: -2193440 | J27: -324774 | K27: 104239463 | L27: 162072688 | M27: 8229151 | N27: 14006398 | O27: 62515023 | P27: 98656887 | Q27: 43343282 | R27: 66782061
H28: 26 | I28: -2033215 | J28: -85046 | K28: 105734783 | L28: 164296038 | M28: 8478399 | N28: 14384267 | O28: 63172906 | P28: 99691217 | Q28: 43293320 | R28: 66733465
H29: 27 | I29: -2355576 | J29: -571228 | K29: 103791825 | L29: 161387016 | M29: 8629304 | N29: 14596632 | O29: 61733352 | P29: 97509764 | Q29: 41948256 | R29: 64692012
H30: 28 | I30: -2370116 | J30: -583028 | K30: 104584330 | L30: 162558866 | M30: 8700297 | N30: 14719083 | O30: 64435004 | P30: 101537730 | Q30: 43742206 | R30: 67391670
H31: 29 | I31: -2215435 | J31: -356210 | K31: 105080684 | L31: 163301722 | M31: 8163467 | N31: 13903129 | O31: 64634157 | P31: 101891150 | Q31: 43548768 | R31: 67083175
H32: 30 | I32: -2019498 | J32: -62354 | K32: 104074238 | L32: 161797254 | M32: 8785862 | N32: 14838341 | O32: 64405813 | P32: 101516954 | Q32: 43052803 | R32: 66362902
H33: Coefficient of variation | I33: =B20 -> 0.1034778431 | J33: =B21 -> 0.6909073988 | K33: =C20 -> 0.005734865083 | L33: =C21 -> 0.005510314923 | M33: =D20 -> 0.04108969981 | N33: =D21 -> 0.03641730018 | O33: =E20 -> 0.01525265243 | P33: =E21 -> 0.0145936932 | Q33: =F20 -> 0.01845110965 | R33: =F21 -> 0.01789953431

Sheet QALYCalculation
A1: Basecase | B1: =OFFSET(SourceData!$B$29,SourceData!$I$2,0) -> 61 | C1: Row number | D1: =MATCH(B1,NationalLifeTables!A:A,0) -> 68 | E1: Life-time discounted QALY (Control) | F1: =SUM(D10:D109) -> 4.003902279 | G1: HR | H1: =EXP(p_Ln_HazardRatio_HIPEC_live) -> 0.73 | O1: Formula for calculation of percent alive
A2: Gender | B2: =IF(UserInput!B4="Ovarian cancer","Female",IF(UserInput!B2="","Male",UserInput!B2)) -> Female | E2: Life-time discounted QALY (HIPEC) | F2: =SUM(F10:F109) -> 6.512809599 | O2: 1. If the period is equal to or below the medium term, then the annualised rate observed in the studies is used.
A3: Assumption | B3: =UserInput!B3 -> Same rate as medium-term death rate | O3: 2. If the period is above the medium term, if the assumption is that mortality rate beyond medium term is the same as the original death rate, then the annualised rate observed in the study is used. Otherwise, the proportion survived is used from National Life tables for that age group.
A4: Medium term | B4: =OFFSET(SourceData!$B$7,SourceData!$I$2,0) -> 4
A5: Annualised rate of death until medium term (control group) | B5: =1-p_MediumMortality_Control_live^(1/B4) -> 0.1303056216
B8: Control group | E8: HIPEC | K8: Sample calculations (for explanation) | O8: Formula for calculation of proportion survived in intervention group
A9: Age | B9: Percent alive (undiscounted) CRS | C9: Average proportion alive | D9: Discounted QALY | E9: Average percentage alive | F9: Discounted QALY | K9: QoL | L9: Undiscounted QALY | M9: Discounted QALY | O9: 1. ln HR has to be converted to exp
A10: =B1 -> 61 | B10: 1 | C10: =AVERAGE(B10,B9) -> 1 | D10: =C10*QoL_Long_Control_live*(1-DiscountRate_live)^(ROW()-ROW($D$10)) -> 0.606 | E10: =MAX(0,MIN(100%,E9,(1-(1-C10)*EXP(p_Ln_HazardRatio_HIPEC_live)))) -> 1 | F10: =E10*QoL_Long_HIPEC_live*(1-DiscountRate_live)^(ROW()-ROW($D$10)) -> 0.606 | K10: =QoL_Long_Control_live -> 0.606 | L10: =C10*K10 -> 0.606 | M10: =L10*(1-DiscountRate_live)^(ROW()-ROW($D$10)) -> 0.606 | O10: 2. But this is hazard of death (and not survival - so percent alive should be convered to percent dead)
A11: =IF(A10<100,A10+1,"") -> 62 | B11: =IF(OR(ROW()-ROW($B$10)<=B$4,$B$3="Same rate as medium-term death rate"),B10*(1-B$5),B10*(1-OFFSET(IF(B$2="Male",NationalLifeTables!$C$1,NationalLifeTables!$J$1),$D$1-1+ROW()-ROW($B$10),0))) -> 0.8696943784 | C11: =AVERAGE(B11,B10) -> 0.9348471892 | D11: 0.5466892878 | E11: 0.9524384481 | F11: 0.5569764801 | K11: 0.606 | L11: 0.5665173967 | M11: 0.5466892878 | O11: 3. Percent dead should then be convered to percent alive, noting that it cannot be more than 100% or the previous survival or cannot be less than 0%
A12: =IF(A11<100,A11+1,"") -> 63 | B12: =IF(OR(ROW()-ROW($B$10)<=B$4,$B$3="Same rate as medium-term death rate"),B11*(1-B$5),B11*(1-OFFSET(IF(B$2="Male",NationalLifeTables!$C$1,NationalLifeTables!$J$1),$D$1-1+ROW()-ROW($B$10),0))) -> 0.7563683119 | C12: 0.8130313452 | D12: 0.4588117593 | E12: 0.863512882 | F12: 0.4872996188 | K12: 0.606 | L12: 0.4926969952 | M12: 0.4588117593
A13: 64 | B13: =IF(OR(ROW()-ROW($B$10)<=B$4,$B$3="Same rate as medium-term death rate"),B12*(1-B$5),B12*(1-OFFSET(IF(B$2="Male",NationalLifeTables!$C$1,NationalLifeTables!$J$1),$D$1-1+ROW()-ROW($B$10),0))) -> 0.6578092689 | C13: 0.7070887904 | D13: 0.3850600976 | E13: 0.786174817 | F13: 0.4281280595 | K13: 0.606 | L13: 0.428495807 | M13: 0.3850600976
A14: 65 | B14: =IF(OR(ROW()-ROW($B$10)<=B$4,$B$3="Same rate as medium-term death rate"),B13*(1-B$5),B13*(1-OFFSET(IF(B$2="Male",NationalLifeTables!$C$1,NationalLifeTables!$J$1),$D$1-1+ROW()-ROW($B$10),0))) -> 0.5720930233 | C14: 0.6149511461 | D14: 0.3231636412 | E14: 0.7189143366 | F14: 0.3777974497 | K14: 0.606 | L14: 0.3726603945 | M14: 0.3231636412
A15: 66 | B15: =IF(OR(ROW()-ROW($B$10)<=B$4,$B$3="Same rate as medium-term death rate"),B14*(1-B$5),B14*(1-OFFSET(IF(B$2="Male",NationalLifeTables!$C$1,NationalLifeTables!$J$1),$D$1-1+ROW()-ROW($B$10),0))) -> 0.4975460863 | C15: =AVERAGE(B15,B14) -> 0.5348195548 | D15: =C15*QoL_Long_Control_live*(1-DiscountRate_live)^(ROW()-ROW($D$10)) -> 0.271216726 | E15: =MAX(0,MIN(100%,E14,(1-(1-C15)*EXP(p_Ln_HazardRatio_HIPEC_live)))) -> 0.660418275 | F15: =E15*QoL_Long_HIPEC_live*(1-DiscountRate_live)^(ROW()-ROW($D$10)) -> 0.3349101219 | K15: 0.606 | L15: =C15*K15 -> 0.3241006502 | M15: =L15*(1-DiscountRate_live)^(ROW()-ROW($D$10)) -> 0.271216726
A16: 67 | B16: =IF(OR(ROW()-ROW($B$10)<=B$4,$B$3="Same rate as medium-term death rate"),B15*(1-B$5),B15*(1-OFFSET(IF(B$2="Male",NationalLifeTables!$C$1,NationalLifeTables!$J$1),$D$1-1+ROW()-ROW($B$10),0))) -> 0.4327130343 | C16: 0.4651295603 | D16: 0.2276200137 | E16: 0.609544579 | F16: 0.2982922551 | K16: 0.606 | L16: 0.2818685135 | M16: 0.2276200137
A17: 68 | B17: =IF(OR(ROW()-ROW($B$10)<=B$4,$B$3="Same rate as medium-term death rate"),B16*(1-B$5),B16*(1-OFFSET(IF(B$2="Male",NationalLifeTables!$C$1,NationalLifeTables!$J$1),$D$1-1+ROW()-ROW($B$10),0))) -> 0.3763280934 | C17: 0.4045205638 | D17: 0.1910312518 | E17: 0.5653000116 | F17: 0.2669579213 | K17: 0.606 | L17: 0.2451394617 | M17: 0.1910312518
A18: 69 | B18: =IF(OR(ROW()-ROW($B$10)<=B$4,$B$3="Same rate as medium-term death rate"),B17*(1-B$5),B17*(1-OFFSET(IF(B$2="Male",NationalLifeTables!$C$1,NationalLifeTables!$J$1),$D$1-1+ROW()-ROW($B$10),0))) -> 0.3272904273 | C18: 0.3518092603 | D18: 0.1603239476 | E18: 0.52682076 | F18: 0.2400789104 | K18: 0.606 | L18: 0.2131964118 | M18: 0.1603239476
A19: 70 | B19: =IF(OR(ROW()-ROW($B$10)<=B$4,$B$3="Same rate as medium-term death rate"),B18*(1-B$5),B18*(1-OFFSET(IF(B$2="Male",NationalLifeTables!$C$1,NationalLifeTables!$J$1),$D$1-1+ROW()-ROW($B$10),0))) -> 0.2846426447 | C19: 0.305966536 | D19: 0.1345526867 | E19: 0.4933555713 | F19: 0.216959405 | K19: 0.606 | L19: 0.1854157208 | M19: 0.1345526867
A20: 71 | B20: =IF(OR(ROW()-ROW($B$10)<=B$4,$B$3="Same rate as medium-term death rate"),B19*(1-B$5),B19*(1-OFFSET(IF(B$2="Male",NationalLifeTables!$C$1,NationalLifeTables!$J$1),$D$1-1+ROW()-ROW($B$10),0))) -> 0.247552108 | C20: 0.2660973763 | D20: 0.1129240252 | E20: 0.4642510847 | F20: 0.1970147241 | K20: 0.606 | L20: 0.1612550101 | M20: 0.1129240252
A21: 72 | B21: =IF(OR(ROW()-ROW($B$10)<=B$4,$B$3="Same rate as medium-term death rate"),B20*(1-B$5),B20*(1-OFFSET(IF(B$2="Male",NationalLifeTables!$C$1,NationalLifeTables!$J$1),$D$1-1+ROW()-ROW($B$10),0))) -> 0.2152946767 | C21: 0.2314233923 | D21: 0.09477206123 | E21: 0.4389390764 | F21: 0.1797534839 | K21: 0.606 | L21: 0.1402425757 | M21: 0.09477206123
A22: 73 | B22: =IF(OR(ROW()-ROW($B$10)<=B$4,$B$3="Same rate as medium-term death rate"),B21*(1-B$5),B21*(1-OFFSET(IF(B$2="Male",NationalLifeTables!$C$1,NationalLifeTables!$J$1),$D$1-1+ROW()-ROW($B$10),0))) -> 0.18724057 | C22: 0.2012676233 | D22: 0.07953793338 | E22: 0.416925365 | F22: 0.1647626248 | K22: 0.606 | L22: 0.1219681797 | M22: 0.07953793338
A23: 74 | B23: =IF(OR(ROW()-ROW($B$10)<=B$4,$B$3="Same rate as medium-term death rate"),B22*(1-B$5),B22*(1-OFFSET(IF(B$2="Male",NationalLifeTables!$C$1,NationalLifeTables!$J$1),$D$1-1+ROW()-ROW($B$10),0))) -> 0.1628420712 | C23: 0.1750413206 | D23: 0.06675261426 | E23: 0.397780164 | F23: 0.1516948442 | K23: 0.606 | L23: 0.1060750403 | M23: 0.06675261426
A24: 75 | B24: =IF(OR(ROW()-ROW($B$10)<=B$4,$B$3="Same rate as medium-term death rate"),B23*(1-B$5),B23*(1-OFFSET(IF(B$2="Male",NationalLifeTables!$C$1,NationalLifeTables!$J$1),$D$1-1+ROW()-ROW($B$10),0))) -> 0.1416228339 | C24: 0.1522324525 | D24: 0.0560224703 | E24: 0.3811296903 | F24: 0.1402580488 | K24: 0.606 | L24: 0.09225286622 | M24: 0.0560224703
A25: 76 | B25: =IF(OR(ROW()-ROW($B$10)<=B$4,$B$3="Same rate as medium-term death rate"),B24*(1-B$5),B24*(1-OFFSET(IF(B$2="Male",NationalLifeTables!$C$1,NationalLifeTables!$J$1),$D$1-1+ROW()-ROW($B$10),0))) -> 0.1231685825 | C25: 0.1323957082 | D25: 0.04701714252 | E25: 0.366648867 | F25: 0.130206502 | K25: 0.606 | L25: 0.08023179915 | M25: 0.04701714252
A26: 77 | B26: =IF(OR(ROW()-ROW($B$10)<=B$4,$B$3="Same rate as medium-term death rate"),B25*(1-B$5),B25*(1-OFFSET(IF(B$2="Male",NationalLifeTables!$C$1,NationalLifeTables!$J$1),$D$1-1+ROW()-ROW($B$10),0))) -> 0.1071190238 | C26: 0.1151438031 | D26: 0.03945937548 | E26: 0.3540549763 | F26: 0.1213333924 | K26: 0.606 | L26: 0.06977714469 | M26: 0.03945937548
A27: 78 | B27: =IF(OR(ROW()-ROW($B$10)<=B$4,$B$3="Same rate as medium-term death rate"),B26*(1-B$5),B26*(1-OFFSET(IF(B$2="Male",NationalLifeTables!$C$1,NationalLifeTables!$J$1),$D$1-1+ROW()-ROW($B$10),0))) -> 0.0931608128 | C27: 0.1001399183 | D27: 0.03311648114 | E27: 0.3431021404 | F27: 0.1134645979 | K27: 0.606 | L27: 0.06068479048 | M27: 0.03311648114
A28: 79 | B28: =IF(OR(ROW()-ROW($B$10)<=B$4,$B$3="Same rate as medium-term death rate"),B27*(1-B$5),B27*(1-OFFSET(IF(B$2="Male",NationalLifeTables!$C$1,NationalLifeTables!$J$1),$D$1-1+ROW()-ROW($B$10),0))) -> 0.08102143519 | C28: 0.08709112399 | D28: 0.02779317487 | E28: 0.3335765205 | F28: 0.1064534495 | K28: 0.606 | L28: 0.05277722114 | M28: 0.02779317487
A29: 80 | B29: =IF(OR(ROW()-ROW($B$10)<=B$4,$B$3="Same rate as medium-term death rate"),B28*(1-B$5),B28*(1-OFFSET(IF(B$2="Male",NationalLifeTables!$C$1,NationalLifeTables!$J$1),$D$1-1+ROW()-ROW($B$10),0))) -> 0.07046388671 | C29: 0.07574266095 | D29: 0.02332556306 | E29: 0.3252921425 | F29: 0.1001763377 | K29: 0.606 | L29: 0.04590005254 | M29: 0.02332556306
A30: 81 | B30: =IF(OR(ROW()-ROW($B$10)<=B$4,$B$3="Same rate as medium-term death rate"),B29*(1-B$5),B29*(1-OFFSET(IF(B$2="Male",NationalLifeTables!$C$1,NationalLifeTables!$J$1),$D$1-1+ROW()-ROW($B$10),0))) -> 0.06128204616 | C30: 0.06587296644 | D30: 0.01957609718 | E30: 0.3180872655 | F30: 0.09452902396 | K30: 0.606 | L30: 0.03991901766 | M30: 0.01957609718
A31: 82 | B31: =IF(OR(ROW()-ROW($B$10)<=B$4,$B$3="Same rate as medium-term death rate"),B30*(1-B$5),B30*(1-OFFSET(IF(B$2="Male",NationalLifeTables!$C$1,NationalLifeTables!$J$1),$D$1-1+ROW()-ROW($B$10),0))) -> 0.05329665104 | C31: 0.0572893486 | D31: 0.01642933891 | E31: 0.3118212245 | F31: 0.08942354386 | K31: 0.606 | L31: 0.03471734525 | M31: 0.01642933891
A32: 83 | B32: =IF(OR(ROW()-ROW($B$10)<=B$4,$B$3="Same rate as medium-term death rate"),B31*(1-B$5),B31*(1-OFFSET(IF(B$2="Male",NationalLifeTables!$C$1,NationalLifeTables!$J$1),$D$1-1+ROW()-ROW($B$10),0))) -> 0.0463517978 | C32: 0.04982422442 | D32: 0.01378840607 | E32: 0.3063716838 | F32: 0.08478560846 | K32: 0.606 | L32: 0.03019348 | M32: 0.01378840607
A33: 84 | B33: =IF(OR(ROW()-ROW($B$10)<=B$4,$B$3="Same rate as medium-term death rate"),B32*(1-B$5),B32*(1-OFFSET(IF(B$2="Male",NationalLifeTables!$C$1,NationalLifeTables!$J$1),$D$1-1+ROW()-ROW($B$10),0))) -> 0.04031189798 | C33: 0.04333184789 | D33: 0.01157198977 | E33: 0.301632249 | F33: 0.08055242204 | K33: 0.606 | L33: 0.02625909982 | M33: 0.01157198977
A34: 85 | B34: =IF(OR(ROW()-ROW($B$10)<=B$4,$B$3="Same rate as medium-term death rate"),B33*(1-B$5),B33*(1-OFFSET(IF(B$2="Male",NationalLifeTables!$C$1,NationalLifeTables!$J$1),$D$1-1+ROW()-ROW($B$10),0))) -> 0.03505903106 | C34: 0.03768546452 | D34: 0.009711851145 | E34: 0.2975103891 | F34: 0.07667085041 | K34: 0.606 | L34: 0.0228373915 | M34: 0.009711851145
A35: 86 | B35: =IF(OR(ROW()-ROW($B$10)<=B$4,$B$3="Same rate as medium-term death rate"),B34*(1-B$5),B34*(1-OFFSET(IF(B$2="Male",NationalLifeTables!$C$1,NationalLifeTables!$J$1),$D$1-1+ROW()-ROW($B$10),0))) -> 0.03049064223 | C35: 0.03277483664 | D35: 0.008150720363 | E35: 0.2939256307 | F35: 0.07309588297 | K35: 0.606 | L35: 0.01986155101 | M35: 0.008150720363
A36: 87 | B36: =IF(OR(ROW()-ROW($B$10)<=B$4,$B$3="Same rate as medium-term death rate"),B35*(1-B$5),B35*(1-OFFSET(IF(B$2="Male",NationalLifeTables!$C$1,NationalLifeTables!$J$1),$D$1-1+ROW()-ROW($B$10),0))) -> 0.02651754014 | C36: 0.02850409118 | D36: 0.006840533431 | E36: 0.2908079866 | F36: 0.06978934152 | K36: 0.606 | L36: 0.01727347926 | M36: 0.006840533431
A37: 88 | B37: =IF(OR(ROW()-ROW($B$10)<=B$4,$B$3="Same rate as medium-term death rate"),B36*(1-B$5),B36*(1-OFFSET(IF(B$2="Male",NationalLifeTables!$C$1,NationalLifeTables!$J$1),$D$1-1+ROW()-ROW($B$10),0))) -> 0.02306215559 | C37: 0.02478984786 | D37: 0.005740952399 | E37: 0.2880965889 | F37: 0.06671879604 | K37: 0.606 | L37: 0.01502264781 | M37: 0.005740952399
A38: 89 | B38: =IF(OR(ROW()-ROW($B$10)<=B$4,$B$3="Same rate as medium-term death rate"),B37*(1-B$5),B37*(1-OFFSET(IF(B$2="Male",NationalLifeTables!$C$1,NationalLifeTables!$J$1),$D$1-1+ROW()-ROW($B$10),0))) -> 0.02005702707 | C38: 0.02155959133 | D38: 0.004818123437 | E38: 0.2857385017 | F38: 0.06385665437 | K38: 0.606 | L38: 0.01306511235 | M38: 0.004818123437
A39: 90 | B39: =IF(OR(ROW()-ROW($B$10)<=B$4,$B$3="Same rate as medium-term death rate"),B38*(1-B$5),B38*(1-OFFSET(IF(B$2="Male",NationalLifeTables!$C$1,NationalLifeTables!$J$1),$D$1-1+ROW()-ROW($B$10),0))) -> 0.01744348369 | C39: 0.01875025538 | D39: 0.004043634548 | E39: 0.2836876864 | F39: 0.06117939763 | K39: 0.606 | L39: 0.01136265476 | M39: 0.004043634548
A40: 91 | B40: =IF(OR(ROW()-ROW($B$10)<=B$4,$B$3="Same rate as medium-term death rate"),B39*(1-B$5),B39*(1-OFFSET(IF(B$2="Male",NationalLifeTables!$C$1,NationalLifeTables!$J$1),$D$1-1+ROW()-ROW($B$10),0))) -> 0.01517049971 | C40: 0.0163069917 | D40: 0.003393640817 | E40: 0.2819041039 | F40: 0.05866693815 | K40: 0.606 | L40: 0.00988203697 | M40: 0.003393640817
A41: 92 | B41: =IF(OR(ROW()-ROW($B$10)<=B$4,$B$3="Same rate as medium-term death rate"),B40*(1-B$5),B40*(1-OFFSET(IF(B$2="Male",NationalLifeTables!$C$1,NationalLifeTables!$J$1),$D$1-1+ROW()-ROW($B$10),0))) -> 0.01319369831 | C41: 0.01418209901 | D41: 0.002848130279 | E41: 0.2803529323 | F41: 0.05630208015 | K41: 0.606 | L41: 0.008594352 | M41: 0.002848130279
A42: 93 | B42: =IF(OR(ROW()-ROW($B$10)<=B$4,$B$3="Same rate as medium-term death rate"),B41*(1-B$5),B41*(1-OFFSET(IF(B$2="Male",NationalLifeTables!$C$1,NationalLifeTables!$J$1),$D$1-1+ROW()-ROW($B$10),0))) -> 0.01147448525 | C42: 0.01233409178 | D42: 0.002390307791 | E42: 0.279003887 | F42: 0.05407006665 | K42: 0.606 | L42: 0.007474459621 | M42: 0.002390307791
A43: 94 | B43: =IF(OR(ROW()-ROW($B$10)<=B$4,$B$3="Same rate as medium-term death rate"),B42*(1-B$5),B42*(1-OFFSET(IF(B$2="Male",NationalLifeTables!$C$1,NationalLifeTables!$J$1),$D$1-1+ROW()-ROW($B$10),0))) -> 0.009979295321 | C43: 0.01072689029 | D43: 0.002006077945 | E43: 0.2778306299 | F43: 0.0519581989 | K43: 0.606 | L43: 0.006500495514 | M43: 0.002006077945
A44: 95 | B44: =IF(OR(ROW()-ROW($B$10)<=B$4,$B$3="Same rate as medium-term death rate"),B43*(1-B$5),B43*(1-OFFSET(IF(B$2="Male",NationalLifeTables!$C$1,NationalLifeTables!$J$1),$D$1-1+ROW()-ROW($B$10),0))) -> 0.008678937042 | C44: 0.009329116182 | D44: 0.001683611097 | E44: 0.2768102548 | F44: 0.04995551643 | K44: 0.606 | L44: 0.005653444406 | M44: 0.001683611097
A45: 96 | B45: =IF(OR(ROW()-ROW($B$10)<=B$4,$B$3="Same rate as medium-term death rate"),B44*(1-B$5),B44*(1-OFFSET(IF(B$2="Male",NationalLifeTables!$C$1,NationalLifeTables!$J$1),$D$1-1+ROW()-ROW($B$10),0))) -> 0.007548022756 | C45: 0.008113479899 | D45: 0.001412979158 | E45: 0.2759228403 | F45: 0.0480525283 | K45: 0.606 | L45: 0.004916768819 | M45: 0.001412979158
A46: 97 | B46: =IF(OR(ROW()-ROW($B$10)<=B$4,$B$3="Same rate as medium-term death rate"),B45*(1-B$5),B45*(1-OFFSET(IF(B$2="Male",NationalLifeTables!$C$1,NationalLifeTables!$J$1),$D$1-1+ROW()-ROW($B$10),0))) -> 0.00656447296 | C46: 0.007056247858 | D46: 0.001185849929 | E46: 0.2751510609 | F46: 0.04624098709 | K46: 0.606 | L46: 0.004276086202 | M46: 0.001185849929
A47: 98 | B47: =IF(OR(ROW()-ROW($B$10)<=B$4,$B$3="Same rate as medium-term death rate"),B46*(1-B$5),B46*(1-OFFSET(IF(B$2="Male",NationalLifeTables!$C$1,NationalLifeTables!$J$1),$D$1-1+ROW()-ROW($B$10),0))) -> 0.00570908523 | C47: 0.006136779095 | D47: 0.0009952305715 | E47: 0.2744798487 | F47: 0.04451369888 | K47: 0.606 | L47: 0.003718888132 | M47: 0.0009952305715
A48: 99 | B48: =IF(OR(ROW()-ROW($B$10)<=B$4,$B$3="Same rate as medium-term death rate"),B47*(1-B$5),B47*(1-OFFSET(IF(B$2="Male",NationalLifeTables!$C$1,NationalLifeTables!$J$1),$D$1-1+ROW()-ROW($B$10),0))) -> 0.004965159331 | C48: 0.005337122281 | D48: 0.0008352523081 | E48: 0.2738960993 | F48: 0.04286436343 | K48: 0.606 | L48: 0.003234296102 | M48: 0.0008352523081
A49: 100 | B49: =IF(OR(ROW()-ROW($B$10)<=B$4,$B$3="Same rate as medium-term death rate"),B48*(1-B$5),B48*(1-OFFSET(IF(B$2="Male",NationalLifeTables!$C$1,NationalLifeTables!$J$1),$D$1-1+ROW()-ROW($B$10),0))) -> 0.004318171158 | C49: 0.004641665245 | D49: 0.0007009897386 | E49: 0.2733884156 | F49: 0.04128743973 | K49: 0.606 | L49: 0.002812849138 | M49: 0.0007009897386
B50: =IF(OR(ROW()-ROW($B$10)<=B$4,$B$3="Same rate as medium-term death rate"),B49*(1-B$5),B49*(1-OFFSET(IF(B$2="Male",NationalLifeTables!$C$1,NationalLifeTables!$J$1),$D$1-1+ROW()-ROW($B$10),0))) -> 0.003755489181 | C50: 0.00403683017 | D50: 0.0005883091958 | E50: 0.272946886 | F50: 0.03977803283 | K50: 0.606 | L50: 0.002446319083 | M50: 0.0005883091958
A76: =IF(A75<100,A75+1,"") -> 

Sheet NationalLifeTables
A1: National Life Tables, United Kingdom, period expectation of life, based on data for the years 2018-2020 | O1: National Life Tables
A2: This worksheet contains two tables, presented horizontally with one blank column in between the tables. | O2: Notation
A3: This worksheet uses notation in the column headers, please see the notation worksheet for explanations. | O3: mx
A4: =HYPERLINK("#'Contents'!A1", "Back to contents") -> Back to contents | O4: is the central rate of mortality, defined as the number of deaths at age x last birthday in the three year period to which the National Life Table
A5: National life tables, Males | H5: National life tables, Females | O5: relates divided by the average population at that age over the same period.
A6: age | B6: mx | C6: qx | D6: lx | E6: dx | F6: ex | H6: age | I6: mx | J6: qx | K6: lx | L6: dx | M6: ex | O6: qx
A7: 0 | B7: 0.004233 | C7: 0.004224 | D7: 100000 | E7: 422.4 | F7: 79.04 | H7: 0 | I7: 0.003509 | J7: 0.003503 | K7: 100000 | L7: 350.3 | M7: 82.86 | O7: is the mortality rate between age x and (x +1), that is the probability that a person aged x exact will die before reaching age (x +1).
A8: 1 | B8: 0.000229 | C8: 0.000229 | D8: 99577.6 | E8: 22.8 | F8: 78.37 | H8: 1 | I8: 0.000214 | J8: 0.000214 | K8: 99649.7 | L8: 21.4 | M8: 82.15 | O8: lx
A9: 2 | B9: 0.000127 | C9: 0.000127 | D9: 99554.8 | E9: 12.6 | F9: 77.39 | H9: 2 | I9: 0.000114 | J9: 0.000114 | K9: 99628.4 | L9: 11.4 | M9: 81.17 | O9: is the number of survivors to exact age x of 100,000 live births of the same sex who are assumed to be subject throughout their lives to the
A10: 3 | B10: 0.000102 | C10: 0.000102 | D10: 99542.2 | E10: 10.2 | F10: 76.4 | H10: 3 | I10: 9.5e-05 | J10: 9.5e-05 | K10: 99617 | L10: 9.4 | M10: 80.18 | O10: mortality rates experienced in the three year period to which the National Life Table relates.
A11: 4 | B11: 8.6e-05 | C11: 8.6e-05 | D11: 99532 | E11: 8.5 | F11: 75.41 | H11: 4 | I11: 6.4e-05 | J11: 6.4e-05 | K11: 99607.5 | L11: 6.4 | M11: 79.18 | O11: dx
A12: 5 | B12: 7.4e-05 | C12: 7.4e-05 | D12: 99523.5 | E12: 7.4 | F12: 74.42 | H12: 5 | I12: 7.4e-05 | J12: 7.4e-05 | K12: 99601.2 | L12: 7.4 | M12: 78.19 | O12: is the number dying between exact age x and (x +1) described similarly to lx, that is dx=lx-lx+1.
A13: 6 | B13: 8.5e-05 | C13: 8.5e-05 | D13: 99516.1 | E13: 8.4 | F13: 73.42 | H13: 6 | I13: 7.1e-05 | J13: 7.1e-05 | K13: 99593.8 | L13: 7.1 | M13: 77.19 | O13: ex
A14: 7 | B14: 6.7e-05 | C14: 6.7e-05 | D14: 99507.6 | E14: 6.6 | F14: 72.43 | H14: 7 | I14: 5.5e-05 | J14: 5.5e-05 | K14: 99586.7 | L14: 5.4 | M14: 76.2 | O14: is the average period expectation of life at exact age x, that is the average number of years that those aged x exact will live thereafter
A15: 8 | B15: 6.9e-05 | C15: 6.9e-05 | D15: 99501 | E15: 6.9 | F15: 71.43 | H15: 8 | I15: 5.8e-05 | J15: 5.8e-05 | K15: 99581.3 | L15: 5.8 | M15: 75.2 | O15: based on the mortality rates experienced in the three year period to which the National Life Table relates.
A16: 9 | B16: 6e-05 | C16: 6e-05 | D16: 99494.1 | E16: 6 | F16: 70.44 | H16: 9 | I16: 5.1e-05 | J16: 5.1e-05 | K16: 99575.5 | L16: 5.1 | M16: 74.21
A17: 10 | B17: 7.8e-05 | C17: 7.8e-05 | D17: 99488.2 | E17: 7.8 | F17: 69.44 | H17: 10 | I17: 6.6e-05 | J17: 6.6e-05 | K17: 99570.4 | L17: 6.6 | M17: 73.21
A18: 11 | B18: 7.7e-05 | C18: 7.7e-05 | D18: 99480.4 | E18: 7.7 | F18: 68.45 | H18: 11 | I18: 5.5e-05 | J18: 5.5e-05 | K18: 99563.9 | L18: 5.5 | M18: 72.22
A19: 12 | B19: 0.000102 | C19: 0.000102 | D19: 99472.7 | E19: 10.1 | F19: 67.45 | H19: 12 | I19: 5.7e-05 | J19: 5.7e-05 | K19: 99558.4 | L19: 5.6 | M19: 71.22
A20: 13 | B20: 0.000116 | C20: 0.000116 | D20: 99462.6 | E20: 11.5 | F20: 66.46 | H20: 13 | I20: 8.7e-05 | J20: 8.7e-05 | K20: 99552.8 | L20: 8.6 | M20: 70.22
A21: 14 | B21: 0.000129 | C21: 0.000129 | D21: 99451.1 | E21: 12.9 | F21: 65.47 | H21: 14 | I21: 9.6e-05 | J21: 9.6e-05 | K21: 99544.1 | L21: 9.6 | M21: 69.23
A22: 15 | B22: 0.000172 | C22: 0.000172 | D22: 99438.2 | E22: 17.1 | F22: 64.48 | H22: 15 | I22: 0.000113 | J22: 0.000113 | K22: 99534.6 | L22: 11.2 | M22: 68.24
A23: 16 | B23: 0.000205 | C23: 0.000205 | D23: 99421.1 | E23: 20.4 | F23: 63.49 | H23: 16 | I23: 0.000131 | J23: 0.000131 | K23: 99523.3 | L23: 13.1 | M23: 67.24
A24: 17 | B24: 0.000311 | C24: 0.000311 | D24: 99400.7 | E24: 30.9 | F24: 62.5 | H24: 17 | I24: 0.000158 | J24: 0.000158 | K24: 99510.3 | L24: 15.8 | M24: 66.25
A25: 18 | B25: 0.000402 | C25: 0.000402 | D25: 99369.8 | E25: 39.9 | F25: 61.52 | H25: 18 | I25: 0.000218 | J25: 0.000218 | K25: 99494.5 | L25: 21.7 | M25: 65.26
A26: 19 | B26: 0.000454 | C26: 0.000454 | D26: 99329.9 | E26: 45.1 | F26: 60.54 | H26: 19 | I26: 0.000212 | J26: 0.000212 | K26: 99472.8 | L26: 21.1 | M26: 64.28
A27: 20 | B27: 0.000525 | C27: 0.000525 | D27: 99284.8 | E27: 52.2 | F27: 59.57 | H27: 20 | I27: 0.000187 | J27: 0.000187 | K27: 99451.7 | L27: 18.6 | M27: 63.29
A28: 21 | B28: 0.000507 | C28: 0.000507 | D28: 99232.6 | E28: 50.3 | F28: 58.6 | H28: 21 | I28: 0.000211 | J28: 0.000211 | K28: 99433.1 | L28: 21 | M28: 62.3
A29: 22 | B29: 0.000498 | C29: 0.000497 | D29: 99182.3 | E29: 49.3 | F29: 57.63 | H29: 22 | I29: 0.000245 | J29: 0.000245 | K29: 99412.1 | L29: 24.4 | M29: 61.32
A30: 23 | B30: 0.000524 | C30: 0.000524 | D30: 99133 | E30: 52 | F30: 56.66 | H30: 23 | I30: 0.000215 | J30: 0.000215 | K30: 99387.7 | L30: 21.3 | M30: 60.33
A31: 24 | B31: 0.000556 | C31: 0.000556 | D31: 99081.1 | E31: 55.1 | F31: 55.69 | H31: 24 | I31: 0.000223 | J31: 0.000223 | K31: 99366.4 | L31: 22.1 | M31: 59.34
A32: 25 | B32: 0.000601 | C32: 0.000601 | D32: 99026 | E32: 59.5 | F32: 54.72 | H32: 25 | I32: 0.00026 | J32: 0.00026 | K32: 99344.3 | L32: 25.8 | M32: 58.36
A33: 26 | B33: 0.000607 | C33: 0.000607 | D33: 98966.5 | E33: 60.1 | F33: 53.75 | H33: 26 | I33: 0.000257 | J33: 0.000257 | K33: 99318.5 | L33: 25.5 | M33: 57.37
A34: 27 | B34: 0.00063 | C34: 0.000629 | D34: 98906.4 | E34: 62.2 | F34: 52.78 | H34: 27 | I34: 0.00031 | J34: 0.00031 | K34: 99292.9 | L34: 30.7 | M34: 56.39
A35: 28 | B35: 0.000681 | C35: 0.000681 | D35: 98844.1 | E35: 67.3 | F35: 51.82 | H35: 28 | I35: 0.000314 | J35: 0.000314 | K35: 99262.2 | L35: 31.1 | M35: 55.4
A36: 29 | B36: 0.000728 | C36: 0.000728 | D36: 98776.8 | E36: 71.9 | F36: 50.85 | H36: 29 | I36: 0.000338 | J36: 0.000338 | K36: 99231.1 | L36: 33.5 | M36: 54.42
A37: 30 | B37: 0.000771 | C37: 0.000771 | D37: 98704.9 | E37: 76.1 | F37: 49.89 | H37: 30 | I37: 0.000387 | J37: 0.000387 | K37: 99197.6 | L37: 38.3 | M37: 53.44
A38: 31 | B38: 0.000835 | C38: 0.000835 | D38: 98628.9 | E38: 82.3 | F38: 48.93 | H38: 31 | I38: 0.000394 | J38: 0.000394 | K38: 99159.2 | L38: 39.1 | M38: 52.46
A39: 32 | B39: 0.000859 | C39: 0.000858 | D39: 98546.6 | E39: 84.6 | F39: 47.97 | H39: 32 | I39: 0.000468 | J39: 0.000468 | K39: 99120.1 | L39: 46.4 | M39: 51.48
A40: 33 | B40: 0.000958 | C40: 0.000957 | D40: 98462 | E40: 94.3 | F40: 47.01 | H40: 33 | I40: 0.000493 | J40: 0.000493 | K40: 99073.8 | L40: 48.9 | M40: 50.5
A41: 34 | B41: 0.00099 | C41: 0.000989 | D41: 98367.7 | E41: 97.3 | F41: 46.05 | H41: 34 | I41: 0.000585 | J41: 0.000585 | K41: 99024.9 | L41: 57.9 | M41: 49.53
A42: 35 | B42: 0.0011 | C42: 0.0011 | D42: 98270.4 | E42: 108.1 | F42: 45.1 | H42: 35 | I42: 0.000592 | J42: 0.000592 | K42: 98967 | L42: 58.5 | M42: 48.56
A43: 36 | B43: 0.001155 | C43: 0.001155 | D43: 98162.3 | E43: 113.3 | F43: 44.15 | H43: 36 | I43: 0.000678 | J43: 0.000678 | K43: 98908.4 | L43: 67 | M43: 47.59
A44: 37 | B44: 0.001352 | C44: 0.001351 | D44: 98049 | E44: 132.4 | F44: 43.2 | H44: 37 | I44: 0.000761 | J44: 0.000761 | K44: 98841.4 | L44: 75.2 | M44: 46.62
A45: 38 | B45: 0.001317 | C45: 0.001317 | D45: 97916.5 | E45: 128.9 | F45: 42.26 | H45: 38 | I45: 0.000793 | J45: 0.000792 | K45: 98766.2 | L45: 78.3 | M45: 45.65
A46: 39 | B46: 0.001458 | C46: 0.001457 | D46: 97787.6 | E46: 142.5 | F46: 41.31 | H46: 39 | I46: 0.000868 | J46: 0.000868 | K46: 98687.9 | L46: 85.6 | M46: 44.69
A47: 40 | B47: 0.001607 | C47: 0.001606 | D47: 97645.1 | E47: 156.8 | F47: 40.37 | H47: 40 | I47: 0.000924 | J47: 0.000924 | K47: 98602.3 | L47: 91.1 | M47: 43.73
A48: 41 | B48: 0.001701 | C48: 0.0017 | D48: 97488.3 | E48: 165.7 | F48: 39.43 | H48: 41 | I48: 0.001004 | J48: 0.001004 | K48: 98511.2 | L48: 98.9 | M48: 42.77
A49: 42 | B49: 0.00185 | C49: 0.001848 | D49: 97322.6 | E49: 179.9 | F49: 38.5 | H49: 42 | I49: 0.001103 | J49: 0.001102 | K49: 98412.4 | L49: 108.5 | M49: 41.81
A50: 43 | B50: 0.002017 | C50: 0.002015 | D50: 97142.8 | E50: 195.8 | F50: 37.57 | H50: 43 | I50: 0.00124 | J50: 0.001239 | K50: 98303.9 | L50: 121.8 | M50: 40.86
A51: 44 | B51: 0.002212 | C51: 0.00221 | D51: 96947 | E51: 214.2 | F51: 36.65 | H51: 44 | I51: 0.001345 | J51: 0.001345 | K51: 98182.1 | L51: 132 | M51: 39.91
A52: 45 | B52: 0.00247 | C52: 0.002467 | D52: 96732.7 | E52: 238.6 | F52: 35.73 | H52: 45 | I52: 0.001485 | J52: 0.001484 | K52: 98050.1 | L52: 145.5 | M52: 38.96
A53: 46 | B53: 0.00265 | C53: 0.002646 | D53: 96494.2 | E53: 255.3 | F53: 34.81 | H53: 46 | I53: 0.001627 | J53: 0.001625 | K53: 97904.6 | L53: 159.1 | M53: 38.02
A54: 47 | B54: 0.002746 | C54: 0.002743 | D54: 96238.8 | E54: 263.9 | F54: 33.9 | H54: 47 | I54: 0.001745 | J54: 0.001744 | K54: 97745.5 | L54: 170.4 | M54: 37.08
A55: 48 | B55: 0.002964 | C55: 0.00296 | D55: 95974.9 | E55: 284.1 | F55: 33 | H55: 48 | I55: 0.001968 | J55: 0.001966 | K55: 97575 | L55: 191.8 | M55: 36.14
A56: 49 | B56: 0.003303 | C56: 0.003297 | D56: 95690.8 | E56: 315.5 | F56: 32.09 | H56: 49 | I56: 0.002053 | J56: 0.002051 | K56: 97383.2 | L56: 199.7 | M56: 35.21
A57: 50 | B57: 0.003584 | C57: 0.003577 | D57: 95375.3 | E57: 341.2 | F57: 31.2 | H57: 50 | I57: 0.002236 | J57: 0.002234 | K57: 97183.5 | L57: 217.1 | M57: 34.28
A58: 51 | B58: 0.003828 | C58: 0.003821 | D58: 95034.1 | E58: 363.1 | F58: 30.31 | H58: 51 | I58: 0.002455 | J58: 0.002452 | K58: 96966.4 | L58: 237.7 | M58: 33.36
A59: 52 | B59: 0.004084 | C59: 0.004075 | D59: 94671 | E59: 385.8 | F59: 29.42 | H59: 52 | I59: 0.002585 | J59: 0.002581 | K59: 96728.6 | L59: 249.7 | M59: 32.44
A60: 53 | B60: 0.004411 | C60: 0.004402 | D60: 94285.1 | E60: 415 | F60: 28.54 | H60: 53 | I60: 0.002768 | J60: 0.002764 | K60: 96478.9 | L60: 266.7 | M60: 31.52
A61: 54 | B61: 0.004731 | C61: 0.00472 | D61: 93870.1 | E61: 443.1 | F61: 27.66 | H61: 54 | I61: 0.002969 | J61: 0.002964 | K61: 96212.2 | L61: 285.2 | M61: 30.61
A62: 55 | B62: 0.005059 | C62: 0.005046 | D62: 93427 | E62: 471.5 | F62: 26.79 | H62: 55 | I62: 0.003289 | J62: 0.003283 | K62: 95927 | L62: 315 | M62: 29.7
A63: 56 | B63: 0.005609 | C63: 0.005593 | D63: 92955.6 | E63: 519.9 | F63: 25.93 | H63: 56 | I63: 0.003643 | J63: 0.003637 | K63: 95612.1 | L63: 347.7 | M63: 28.79
A64: 57 | B64: 0.006078 | C64: 0.00606 | D64: 92435.6 | E64: 560.2 | F64: 25.07 | H64: 57 | I64: 0.003935 | J64: 0.003928 | K64: 95264.4 | L64: 374.2 | M64: 27.9
A65: 58 | B65: 0.006718 | C65: 0.006695 | D65: 91875.5 | E65: 615.1 | F65: 24.22 | H65: 58 | I65: 0.004377 | J65: 0.004367 | K65: 94890.2 | L65: 414.4 | M65: 27
A66: 59 | B66: 0.007265 | C66: 0.007239 | D66: 91260.4 | E66: 660.6 | F66: 23.38 | H66: 59 | I66: 0.004718 | J66: 0.004707 | K66: 94475.8 | L66: 444.7 | M66: 26.12
A67: 60 | B67: 0.007944 | C67: 0.007912 | D67: 90599.8 | E67: 716.9 | F67: 22.55 | G67: =D68/Table1[[#This Row],[lx]] -> 0.992087179 | H67: 60 | I67: 0.005261 | J67: 0.005247 | K67: 94031.1 | L67: 493.4 | M67: 25.24
A68: 61 | B68: 0.008673 | C68: 0.008636 | D68: 89882.9 | E68: 776.2 | F68: 21.72 | G68: =1-G67 -> 0.007912821 | H68: 61 | I68: 0.005652 | J68: 0.005636 | K68: 93537.7 | L68: 527.1 | M68: 24.37
A69: 62 | B69: 0.009648 | C69: 0.009601 | D69: 89106.7 | E69: 855.5 | F69: 20.91 | G69: =D67*(1-C67) -> 89882.97438 | H69: 62 | I69: 0.006472 | J69: 0.006451 | K69: 93010.6 | L69: 600 | M69: 23.51
A70: 63 | B70: 0.010608 | C70: 0.010552 | D70: 88251.1 | E70: 931.2 | F70: 20.1 | H70: 63 | I70: 0.006841 | J70: 0.006818 | K70: 92410.6 | L70: 630 | M70: 22.66
A71: 64 | B71: 0.011234 | C71: 0.011171 | D71: 87319.9 | E71: 975.5 | F71: 19.31 | H71: 64 | I71: 0.007406 | J71: 0.007379 | K71: 91780.5 | L71: 677.2 | M71: 21.81
A72: 65 | B72: 0.012538 | C72: 0.01246 | D72: 86344.4 | E72: 1075.8 | F72: 18.53 | H72: 65 | I72: 0.008146 | J72: 0.008113 | K72: 91103.3 | L72: 739.1 | M72: 20.97
A73: 66 | B73: 0.01395 | C73: 0.013853 | D73: 85268.6 | E73: 1181.3 | F73: 17.75 | H73: 66 | I73: 0.008808 | J73: 0.00877 | K73: 90364.2 | L73: 792.5 | M73: 20.13
A74: 67 | B74: 0.014892 | C74: 0.014782 | D74: 84087.3 | E74: 1243 | F74: 17 | H74: 67 | I74: 0.0096 | J74: 0.009554 | K74: 89571.7 | L74: 855.8 | M74: 19.31
A75: 68 | B75: 0.016483 | C75: 0.016348 | D75: 82844.3 | E75: 1354.4 | F75: 16.24 | H75: 68 | I75: 0.010658 | J75: 0.010602 | K75: 88716 | L75: 940.6 | M75: 18.49
A76: 69 | B76: 0.018111 | C76: 0.017949 | D76: 81490 | E76: 1462.6 | F76: 15.5 | H76: 69 | I76: 0.011524 | J76: 0.011458 | K76: 87775.4 | L76: 1005.7 | M76: 17.68
A77: 70 | B77: 0.019424 | C77: 0.019238 | D77: 80027.3 | E77: 1539.5 | F77: 14.78 | H77: 70 | I77: 0.012979 | J77: 0.012895 | K77: 86769.7 | L77: 1118.9 | M77: 16.88
A78: 71 | B78: 0.021013 | C78: 0.020795 | D78: 78487.8 | E78: 1632.1 | F78: 14.06 | H78: 71 | I78: 0.013731 | J78: 0.013637 | K78: 85650.7 | L78: 1168 | M78: 16.1
A79: 72 | B79: 0.023044 | C79: 0.022782 | D79: 76855.7 | E79: 1750.9 | F79: 13.35 | H79: 72 | I79: 0.01562 | J79: 0.015499 | K79: 84482.7 | L79: 1309.4 | M79: 15.31
A80: 73 | B80: 0.026136 | C80: 0.025799 | D80: 75104.8 | E80: 1937.6 | F80: 12.65 | H80: 73 | I80: 0.01744 | J80: 0.017289 | K80: 83173.3 | L80: 1438 | M80: 14.54
A81: 74 | B81: 0.029196 | C81: 0.028776 | D81: 73167.2 | E81: 2105.4 | F81: 11.97 | H81: 74 | I81: 0.019884 | J81: 0.019688 | K81: 81735.3 | L81: 1609.2 | M81: 13.79
A82: 75 | B82: 0.03283 | C82: 0.0323 | D82: 71061.7 | E82: 2295.3 | F82: 11.31 | H82: 75 | I82: 0.022006 | J82: 0.021766 | K82: 80126 | L82: 1744.1 | M82: 13.06
A83: 76 | B83: 0.03638 | C83: 0.03573 | D83: 68766.5 | E83: 2457 | F83: 10.67 | H83: 76 | I83: 0.024698 | J83: 0.024397 | K83: 78382 | L83: 1912.3 | M83: 12.34
A84: 77 | B84: 0.040958 | C84: 0.040136 | D84: 66309.4 | E84: 2661.4 | F84: 10.04 | H84: 77 | I84: 0.028313 | J84: 0.027918 | K84: 76469.7 | L84: 2134.9 | M84: 11.63
A85: 78 | B85: 0.046233 | C85: 0.045188 | D85: 63648 | E85: 2876.1 | F85: 9.44 | H85: 78 | I85: 0.031921 | J85: 0.03142 | K85: 74334.8 | L85: 2335.6 | M85: 10.95
A86: 79 | B86: 0.051555 | C86: 0.050259 | D86: 60771.9 | E86: 3054.3 | F86: 8.87 | H86: 79 | I86: 0.036362 | J86: 0.035713 | K86: 71999.3 | L86: 2571.3 | M86: 10.29
A87: 80 | B87: 0.057764 | C87: 0.056143 | D87: 57717.6 | E87: 3240.4 | F87: 8.31 | H87: 80 | I87: 0.040412 | J87: 0.039611 | K87: 69428 | L87: 2750.1 | M87: 9.66
A88: 81 | B88: 0.064015 | C88: 0.06203 | D88: 54477.1 | E88: 3379.2 | F88: 7.77 | H88: 81 | I88: 0.046168 | J88: 0.045127 | K88: 66677.9 | L88: 3009 | M88: 9.03
A89: 82 | B89: 0.071677 | C89: 0.069197 | D89: 51097.9 | E89: 3535.8 | F89: 7.26 | H89: 82 | I89: 0.051489 | J89: 0.050197 | K89: 63668.9 | L89: 3196 | M89: 8.44
A90: 83 | B90: 0.080609 | C90: 0.077486 | D90: 47562.1 | E90: 3685.4 | F90: 6.76 | H90: 83 | I90: 0.058836 | J90: 0.057155 | K90: 60472.9 | L90: 3456.3 | M90: 7.86
A91: 84 | B91: 0.09128 | C91: 0.087296 | D91: 43876.7 | E91: 3830.2 | F91: 6.28 | H91: 84 | I91: 0.067335 | J91: 0.065142 | K91: 57016.6 | L91: 3714.2 | M91: 7.3
A92: 85 | B92: 0.10247 | C92: 0.097476 | D92: 40046.5 | E92: 3903.6 | F92: 5.84 | H92: 85 | I92: 0.076572 | J92: 0.073748 | K92: 53302.5 | L92: 3931 | M92: 6.78
A93: 86 | B93: 0.11665 | C93: 0.110221 | D93: 36142.9 | E93: 3983.7 | F93: 5.41 | H93: 86 | I93: 0.088249 | J93: 0.08452 | K93: 49371.5 | L93: 4172.9 | M93: 6.28
A94: 87 | B94: 0.130842 | C94: 0.122808 | D94: 32159.2 | E94: 3949.4 | F94: 5.02 | H94: 87 | I94: 0.10075 | J94: 0.095918 | K94: 45198.6 | L94: 4335.4 | M94: 5.81
A95: 88 | B95: 0.147828 | C95: 0.137654 | D95: 28209.8 | E95: 3883.2 | F95: 4.65 | H95: 88 | I95: 0.113939 | J95: 0.107798 | K95: 40863.2 | L95: 4405 | M95: 5.37
A96: 89 | B96: 0.16745 | C96: 0.154513 | D96: 24326.6 | E96: 3758.8 | F96: 4.32 | H96: 89 | I96: 0.129482 | J96: 0.121609 | K96: 36458.3 | L96: 4433.6 | M96: 4.96
A97: 90 | B97: 0.178043 | C97: 0.163489 | D97: 20567.8 | E97: 3362.6 | F97: 4.02 | H97: 90 | I97: 0.146459 | J97: 0.136466 | K97: 32024.6 | L97: 4370.3 | M97: 4.58
A98: 91 | B98: 0.201824 | C98: 0.183325 | D98: 17205.2 | E98: 3154.1 | F98: 3.7 | H98: 91 | I98: 0.166188 | J98: 0.153438 | K98: 27654.4 | L98: 4243.2 | M98: 4.22
A99: 92 | B99: 0.223296 | C99: 0.200869 | D99: 14051.1 | E99: 2822.4 | F99: 3.42 | H99: 92 | I99: 0.187019 | J99: 0.171026 | K99: 23411.1 | L99: 4003.9 | M99: 3.9
A100: 93 | B100: 0.250961 | C100: 0.222981 | D100: 11228.7 | E100: 2503.8 | F100: 3.16 | H100: 93 | I100: 0.209417 | J100: 0.189568 | K100: 19407.2 | L100: 3679 | M100: 3.6
A101: 94 | B101: 0.27869 | C101: 0.244606 | D101: 8724.9 | E101: 2134.2 | F101: 2.92 | H101: 94 | I101: 0.23198 | J101: 0.20787 | K101: 15728.2 | L101: 3269.4 | M101: 3.32
A102: 95 | B102: 0.310738 | C102: 0.268951 | D102: 6590.7 | E102: 1772.6 | F102: 2.7 | H102: 95 | I102: 0.260177 | J102: 0.230227 | K102: 12458.8 | L102: 2868.4 | M102: 3.06
A103: 96 | B103: 0.339857 | C103: 0.290494 | D103: 4818.1 | E103: 1399.6 | F103: 2.51 | H103: 96 | I103: 0.289863 | J103: 0.253171 | K103: 9590.5 | L103: 2428 | M103: 2.83
A104: 97 | B104: 0.372549 | C104: 0.31405 | D104: 3418.5 | E104: 1073.6 | F104: 2.34 | H104: 97 | I104: 0.322798 | J104: 0.277939 | K104: 7162.4 | L104: 1990.7 | M104: 2.62
A105: 98 | B105: 0.403135 | C105: 0.335507 | D105: 2344.9 | E105: 786.7 | F105: 2.18 | H105: 98 | I105: 0.352456 | J105: 0.299649 | K105: 5171.7 | L105: 1549.7 | M105: 2.43
A106: 99 | B106: 0.453901 | C106: 0.369942 | D106: 1558.2 | E106: 576.4 | F106: 2.02 | H106: 99 | I106: 0.380825 | J106: 0.31991 | K106: 3622 | L106: 1158.7 | M106: 2.26
A107: 100 | B107: 0.485254 | C107: 0.390506 | D107: 981.7 | E107: 383.4 | F107: 1.91 | H107: 100 | I107: 0.425334 | J107: 0.350742 | K107: 2463.3 | L107: 864 | M107: 2.09
A108: 100 | B108: 0.475839 | C108: 0.384386 | D108: 1119.3 | E108: 430.2 | F108: 2.02 | H108: 0.41453 | I108: 0.343363 | J108: 2703.3 | K108: 928.2 | L108: 2.15

Sheet DecisionTree
H1: Comments
E2: Short-term mortality | H2: 1. Short-term mortality occurs only in those with complications (the overall mortality is available, but all the mortaliy was assigned to those with complications)
E3: =IF(p_Complications_HIPEC_live=0,0, p_Short_term_Mortality_HIPEC_live/p_Complications_HIPEC_live) -> 0.02380952381 | H3: 2. QALY calculations are available in the sheet QALYCalculation
E4: 0
E5: =Costs_Complicated_HIPEC_live -> 15858.02195
D6: Complications
D7: =p_Complications_HIPEC_live -> 0.2675159236
D8: =(E3*E4)+(E10*E9) -> 6.398523061 | E8: =Costs_Complicated_HIPEC_live -> 15858.02195
D9: =(E3*E5)+(E8*E10) -> 15858.02195 | E9: =QoL_Complicated_HIPEC_live*1/12+QALYCalculation!$F$2 -> 6.554584599
E10: =1-E3 -> 0.9761904762
E11: No short-term mortality
B13: HIPEC+ CRS + Chemotherapy
B14: =(D7*D8)+(D19*D20) -> 6.518939686
B15: =(D7*D9)+(D18*D20) -> 12657.46431
D18: =Costs_Uncomplicated_HIPEC_live -> 11488.565
D19: =QoL_Uncomplicated_HIPEC_live*1/12+QALYCalculation!$F$2 -> 6.562917932
D20: =1-D7 -> 0.7324840764
D21: No complications (no short-term mortality)
A22: Patients with peritoneal metastases from colorectal, gastric, or ovarian cancer
E23: Short-term mortality
E24: =IF(p_Complications_Control_live=0,0,p_Short_term_Mortality_Control_live/p_Complications_Control_live) -> 0.05
E25: 0
E26: =Costs_Complicated_Control_live -> 12336.65695
D27: Complications
D28: =p_Complications_Control_live -> 0.251572327
D29: =(E24*E25)+(E31*E30) -> 3.843655615 | E29: =Costs_Complicated_Control_live -> 12336.65695
D30: =(E24*E26)+(E29*E31) -> 12336.65695 | E30: =QoL_Complicated_Control_live*1/12+QALYCalculation!$F$1 -> 4.045953279
E31: =1-E24 -> 0.95
B32: =(D28*D30)+(D38*D40) -> 9066.434454 | E32: No short-term mortality
B33: =(D28*D29)+(D39*D40) -> 4.001297682
B34: Control
D38: =Costs_Uncomplicated_Control_live -> 7967.2
D39: =QoL_Uncomplicated_Control_live*1/12+QALYCalculation!$F$1 -> 4.054286612
D40: =1-D28 -> 0.748427673
D41: No complications (no death within 60 days)

Sheet Results
A1: Mean results | B1: ICER
B2: Point estimate results (Deterministic results) | G2: Probabilistic results
C3: £ | D3: QALYs | H3: £ | I3: QALYs
B4: =Input!B3 -> HIPEC + CRS + Chemotherapy | C4: =DecisionTree!B15 -> 12657.46431 | D4: =DecisionTree!B14 -> 6.518939686 | G4: =Input!B3 -> HIPEC + CRS + Chemotherapy | H4: =TEXT(PSA!CX4/1000,"£0,000") & CHAR(10) & "(95% CI " & TEXT(PSA!CX1/1000,"£0,000") & " to " & TEXT(PSA!CX3/1000,"£0,000") & ")" -> £12,068 (95% CI £9,070 to £15,100) | I4: =TEXT(PSA!CY4/1000,"0.0000") & CHAR(10) & "(95% CI " & TEXT(PSA!CY1/1000,"0.0000") & " to " & TEXT(PSA!CY3/1000,"0.0000") & ")" -> 6.2438 (95% CI 1.1617 to 11.1288)
B5: =Input!B4 -> CRS + Chemotherapy | C5: =DecisionTree!B32 -> 9066.434454 | D5: =DecisionTree!B33 -> 4.001297682 | G5: =Input!B4 -> CRS + Chemotherapy | H5: =TEXT(PSA!CZ4/1000,"£0,000") & CHAR(10) & "(95% CI " & TEXT(PSA!CZ1/1000,"£0,000") & " to " & TEXT(PSA!CZ3/1000,"£0,000") & ")" -> £8,503 (95% CI £6,404 to £10,610) | I5: =TEXT(PSA!DA4/1000,"0.0000") & CHAR(10) & "(95% CI " & TEXT(PSA!DA1/1000,"0.0000") & " to " & TEXT(PSA!DA3/1000,"0.0000") & ")" -> 3.9168 (95% CI 0.7533 to 6.4947)
B6: Increment | C6: =C4-C5 -> 3591.029859 | D6: =D4-D5 -> 2.517642004 | G6: Increment | H6: =TEXT(PSA!DC4,"£0") & CHAR(10) & "(95% CI " & TEXT(PSA!DC1,"£0") & " to " & TEXT(PSA!DC3,"£0") & ")" -> £3565 (95% CI -£461 to £7592) | I6: =TEXT(PSA!DD4,"0.0000") & CHAR(10) & "(95% CI " & TEXT(PSA!DD1,"0.0000") & " to " & TEXT(PSA!DD3,"0.0000") & ")" -> 2.3270 (95% CI -4.3712 to 8.9286)
B8: ICER: | C8: =C6/D6 -> 1426.346499 | G8: ICER: | H8: =TEXT(PSA!DE4,"£0,000") & CHAR(10) & "(95% CI " & TEXT(PSA!DE1,"£0,000") & " to " & TEXT(PSA!DE3,"£0,000") & ")" -> £27,674 (95% CI -£11,132 to £12,164)
B10: NMB
B11: Point estimate results (Deterministic results) | G11: Probabilistic results
B12: Treatment | C12: Costs | D12: QALYs | E12: Net monetary benefit* | G12: Treatment | H12: Costs | I12: QALYs | J12: Net monetary benefit*
E13: 20000 | F13: 30000 | J13: 20000 | K13: 30000
B14: =B4 -> HIPEC + CRS + Chemotherapy | C14: 12657.46431 | D14: 6.518939686 | E14: =($D$4*E13-$C$4) -> 117721.3294 | F14: =($D$4*F13-$C$4) -> 182910.7263 | G14: =G4 -> HIPEC + CRS + Chemotherapy | H14: £12,068 (95% CI £9,070 to £15,100) | I14: 6.2438 (95% CI 1.1617 to 11.1288) | J14: =TEXT(PSA!EB4/1000,"£0,000") & CHAR(10) & "(95% CI " & TEXT(PSA!EB1/1000,"£0,000") & " to " & TEXT(PSA!EB3/1000,"£0,000") & ")" -> £112,809 (95% CI £10,901 to £210,646) | K14: =TEXT(PSA!EK4/1000,"£0,000") & CHAR(10) & "(95% CI " & TEXT(PSA!EK1/1000,"£0,000") & " to " & TEXT(PSA!EK3/1000,"£0,000") & ")" -> £175,247 (95% CI £22,739 to £322,112)
B15: CRS + Chemotherapy | C15: 9066.434454 | D15: 4.001297682 | E15: =($D$5*E13-$C$5) -> 70959.51919 | F15: =($D$5*F13-$C$5) -> 110972.496 | G15: CRS + Chemotherapy | H15: £8,503 (95% CI £6,404 to £10,610) | I15: 3.9168 (95% CI 0.7533 to 6.4947) | J15: =TEXT(PSA!EC4/1000,"£0,000") & CHAR(10) & "(95% CI " & TEXT(PSA!EC1/1000,"£0,000") & " to " & TEXT(PSA!EC3/1000,"£0,000") & ")" -> £69,834 (95% CI £6,426 to £121,347) | K15: =TEXT(PSA!EL4/1000,"£0,000") & CHAR(10) & "(95% CI " & TEXT(PSA!EL1/1000,"£0,000") & " to " & TEXT(PSA!EL3/1000,"£0,000") & ")" -> £109,002 (95% CI £13,994 to £186,246)
B16: Incremental | C16: =C6 -> 3591.029859 | D16: =D14-D15 -> 2.517642004 | E16: =($D$4*E13-$C$4)-($D$5*E13-$C$5) -> 46761.81023 | F16: =($D$4*F13-$C$4)-($D$5*F13-$C$5) -> 71938.23027 | G16: Incremental | H16: =H6 -> £3565 (95% CI -£461 to £7592) | I16: =I6 -> 2.3270 (95% CI -4.3712 to 8.9286) | J16: =TEXT(PSA!ED4/1000,"£0,000") & CHAR(10) & "(95% CI " & TEXT(PSA!ED1/1000,"£0,000") & " to " & TEXT(PSA!ED3/1000,"£0,000") & ")" -> £42,975 (95% CI -£91,066 to £174,648) | K16: =TEXT(PSA!EM4/1000,"£0,000") & CHAR(10) & "(95% CI " & TEXT(PSA!EM1/1000,"£0,000") & " to " & TEXT(PSA!EM3/1000,"£0,000") & ")" -> £66,245 (95% CI -£135,100 to £263,789)
B17: * Calculated at willingness to pay thresholds of £20,000 and £30,000 per QALY gained. QALY = quality adjusted life year | G17: * Calculated at willingness to pay thresholds of £20,000 and £30,000 per QALY gained. QALY = quality adjusted life year
B18: EVPI | C18: Willingness-to-pay threshold | G18: Summary of results | H18: Willingness-to-pay threshold | I18: Probability of being cost-effective | J18: Incremental Net Monetary Benefits (Deterministic analysis) | K18: Incremental Net Monetary Benefits (Probabilistic sensitivity analysis)
C19: 20000 | D19: 30000 | H19: 20000 | I19: =PSA!DK25 -> 0.7087 | J19: =E16 -> 46761.81023 | K19: =J16 -> £42,975 (95% CI -£91,066 to £174,648)
C20: =PSA!EA9 -> 13446853.81 | D20: =PSA!EJ9 -> 19650150.17 | H20: 30000 | I20: =PSA!DK35 -> 0.7129 | J20: =F16 -> 71938.23027 | K20: =K16 -> £66,245 (95% CI -£135,100 to £263,789)
B22: EVPPI
B23: =PSA!ES2 -> Parameters | C23: =PSA!ET2 -> Willingness-to-pay threshold: £20,000 | D23: =PSA!EU2 -> Willingness-to-pay threshold: £30,000
B24: =PSA!ES3 -> Probabilities | C24: =PSA!ET3 -> 12293167.83 | D24: =PSA!EU3 -> 17944442.97
B25: =PSA!ES4 -> Costs | C25: =PSA!ET4 -> 13135071.55 | D25: =PSA!EU4 -> 19197427.76
B26: =PSA!ES5 -> Quality of life | C26: =PSA!ET5 -> 65363.5011 | D26: =PSA!EU5 -> 81127.6724
B28: Stability Tests | C28: Willingness to pay threshold
C29: 20000 | D29: 30000
C30: =PSA!FX3 -> 0.0156090794 | D30: =PSA!FX4 -> 0.01515130186

Sheet PSA
CX1: =IF(CX2="","",PERCENTILE(CX5:OFFSET(CX5,Input!$C$10-1,0),0.025)) -> 9069714.25 | CY1: =IF(CY2="","",PERCENTILE(CY5:OFFSET(CY5,Input!$C$10-1,0),0.025)) -> 1161.722844 | CZ1: =IF(CZ2="","",PERCENTILE(CZ5:OFFSET(CZ5,Input!$C$10-1,0),0.025)) -> 6403908.125 | DA1: =IF(DA2="","",PERCENTILE(DA5:OFFSET(DA5,Input!$C$10-1,0),0.025)) -> 753.3396537 | DC1: =IF(DC2="","",PERCENTILE(DC5:OFFSET(DC5,Input!$C$10-1,0),0.025)) -> -460.9026554 | DD1: =IF(DD2="","",PERCENTILE(DD5:OFFSET(DD5,Input!$C$10-1,0),0.025)) -> -4.371157838 | DE1: =IF(DE2="","",PERCENTILE(DE5:OFFSET(DE5,Input!$C$10-1,0),0.025)) -> -11132.09391 | DM1: =IF(DM2="","",PERCENTILE(DM5:OFFSET(DM5,Input!$C$10-1,0),0.025)) -> 57532737.96 | DN1: =IF(DN2="","",PERCENTILE(DN5:OFFSET(DN5,Input!$C$10-1,0),0.025)) -> 36604246.44 | DO1: =IF(DO2="","",PERCENTILE(DO5:OFFSET(DO5,Input!$C$10-1,0),0.025)) -> -265934284.7 | DQ1: CEAC curve | EA1: NMB, EVPPI | EB1: =IF(EB2="","",PERCENTILE(EB5:OFFSET(EB5,Input!$C$10-1,0),0.025)) -> 10901467.78 | EC1: =IF(EC2="","",PERCENTILE(EC5:OFFSET(EC5,Input!$C$10-1,0),0.025)) -> 6426356.812 | ED1: =IF(ED2="","",PERCENTILE(ED5:OFFSET(ED5,Input!$C$10-1,0),0.025)) -> -91065770.49 | EJ1: NMB, EVPPI | EK1: =IF(EK2="","",PERCENTILE(EK5:OFFSET(EK5,Input!$C$10-1,0),0.025)) -> 22738780.93 | EL1: =IF(EL2="","",PERCENTILE(EL5:OFFSET(EL5,Input!$C$10-1,0),0.025)) -> 13993616.25 | EM1: =IF(EM2="","",PERCENTILE(EM5:OFFSET(EM5,Input!$C$10-1,0),0.025)) -> -135099698.8 | EX1: =IF(EX2="","",PERCENTILE(EX5:OFFSET(EX5,Input!$C$10-1,0),0.025)) -> 9035243.76 | EY1: =IF(EY2="","",PERCENTILE(EY5:OFFSET(EY5,Input!$C$10-1,0),0.025)) -> 4650.034215 | EZ1: =IF(EZ2="","",PERCENTILE(EZ5:OFFSET(EZ5,Input!$C$10-1,0),0.025)) -> 6420005.006 | FA1: =IF(FA2="","",PERCENTILE(FA5:OFFSET(FA5,Input!$C$10-1,0),0.025)) -> 3530.048601 | FB1: NMB, EVPPI | FC1: =IF(FC2="","",PERCENTILE(FC5:OFFSET(FC5,Input!$C$10-1,0),0.025)) -> 80680282.4 | FD1: =IF(FD2="","",PERCENTILE(FD5:OFFSET(FD5,Input!$C$10-1,0),0.025)) -> 61687385.73 | FE1: =IF(FE2="","",PERCENTILE(FE5:OFFSET(FE5,Input!$C$10-1,0),0.025)) -> 8729509.558 | FK1: NMB, EVPPI | FL1: =IF(FL2="","",PERCENTILE(FL5:OFFSET(FL5,Input!$C$10-1,0),0.025)) -> 127224533.9 | FM1: =IF(FM2="","",PERCENTILE(FM5:OFFSET(FM5,Input!$C$10-1,0),0.025)) -> 97117052.55 | FN1: =IF(FN2="","",PERCENTILE(FN5:OFFSET(FN5,Input!$C$10-1,0),0.025)) -> 15310609.84 | FU1: WTP: 20000 | FV1: WTP: 30000
A2: Iteration | B2: =IF(OFFSET(Input!$A$12,COLUMN(PSA!B1)-2,0)="","",OFFSET(Input!$A$12,COLUMN(PSA!B1)-2,0)) -> Complications (HIPEC + CRS) | C2: =IF(OFFSET(Input!$A$12,COLUMN(PSA!C1)-2,0)="","",OFFSET(Input!$A$12,COLUMN(PSA!C1)-2,0)) -> Short-term mortality (HIPEC + CRS) | D2: =IF(OFFSET(Input!$A$12,COLUMN(PSA!D1)-2,0)="","",OFFSET(Input!$A$12,COLUMN(PSA!D1)-2,0)) -> Survival ln (hazard ratio) | E2: =IF(OFFSET(Input!$A$12,COLUMN(PSA!E1)-2,0)="","",OFFSET(Input!$A$12,COLUMN(PSA!E1)-2,0)) -> Complications (Control) | F2: =IF(OFFSET(Input!$A$12,COLUMN(PSA!F1)-2,0)="","",OFFSET(Input!$A$12,COLUMN(PSA!F1)-2,0)) -> Short-term mortality (Control) | G2: =IF(OFFSET(Input!$A$12,COLUMN(PSA!G1)-2,0)="","",OFFSET(Input!$A$12,COLUMN(PSA!G1)-2,0)) -> 5-year mortality (Control) | H2: =IF(OFFSET(Input!$A$12,COLUMN(PSA!H1)-2,0)="","",OFFSET(Input!$A$12,COLUMN(PSA!H1)-2,0)) -> Cost (HIPEC + CRS) Complicated | I2: =IF(OFFSET(Input!$A$12,COLUMN(PSA!I1)-2,0)="","",OFFSET(Input!$A$12,COLUMN(PSA!I1)-2,0)) -> Cost (HIPEC + CRS) Uncomplicated | J2: =IF(OFFSET(Input!$A$12,COLUMN(PSA!J1)-2,0)="","",OFFSET(Input!$A$12,COLUMN(PSA!J1)-2,0)) -> Cost (Control) Complicated | K2: =IF(OFFSET(Input!$A$12,COLUMN(PSA!K1)-2,0)="","",OFFSET(Input!$A$12,COLUMN(PSA!K1)-2,0)) -> Cost (Control) Uncomplicated | L2: =IF(OFFSET(Input!$A$12,COLUMN(PSA!L1)-2,0)="","",OFFSET(Input!$A$12,COLUMN(PSA!L1)-2,0)) -> QoL (complicated HIPEC + CRS) (Short-term) | M2: =IF(OFFSET(Input!$A$12,COLUMN(PSA!M1)-2,0)="","",OFFSET(Input!$A$12,COLUMN(PSA!M1)-2,0)) -> QoL (uncomplicated HIPEC + CRS) (Short-term) | N2: =IF(OFFSET(Input!$A$12,COLUMN(PSA!N1)-2,0)="","",OFFSET(Input!$A$12,COLUMN(PSA!N1)-2,0)) -> QoL (Complicated CRS) (Short-term) | O2: =IF(OFFSET(Input!$A$12,COLUMN(PSA!O1)-2,0)="","",OFFSET(Input!$A$12,COLUMN(PSA!O1)-2,0)) -> QoL (Uncomplicated CRS) (Short-term) | P2: =IF(OFFSET(Input!$A$12,COLUMN(PSA!P1)-2,0)="","",OFFSET(Input!$A$12,COLUMN(PSA!P1)-2,0)) -> QoL (Long-term) HIPEC | Q2: =IF(OFFSET(Input!$A$12,COLUMN(PSA!Q1)-2,0)="","",OFFSET(Input!$A$12,COLUMN(PSA!Q1)-2,0)) -> QoL (Long-term) Control | R2: =IF(OFFSET(Input!$A$12,COLUMN(PSA!R1)-2,0)="","",OFFSET(Input!$A$12,COLUMN(PSA!R1)-2,0)) ->  | S2: =IF(OFFSET(Input!$A$12,COLUMN(PSA!S1)-2,0)="","",OFFSET(Input!$A$12,COLUMN(PSA!S1)-2,0)) ->  | T2: =IF(OFFSET(Input!$A$12,COLUMN(PSA!T1)-2,0)="","",OFFSET(Input!$A$12,COLUMN(PSA!T1)-2,0)) ->  | U2: =IF(OFFSET(Input!$A$12,COLUMN(PSA!U1)-2,0)="","",OFFSET(Input!$A$12,COLUMN(PSA!U1)-2,0)) ->  | V2: =IF(OFFSET(Input!$A$12,COLUMN(PSA!V1)-2,0)="","",OFFSET(Input!$A$12,COLUMN(PSA!V1)-2,0)) ->  | W2: =IF(OFFSET(Input!$A$12,COLUMN(PSA!W1)-2,0)="","",OFFSET(Input!$A$12,COLUMN(PSA!W1)-2,0)) ->  | X2: =IF(OFFSET(Input!$A$12,COLUMN(PSA!X1)-2,0)="","",OFFSET(Input!$A$12,COLUMN(PSA!X1)-2,0)) ->  | Y2: =IF(OFFSET(Input!$A$12,COLUMN(PSA!Y1)-2,0)="","",OFFSET(Input!$A$12,COLUMN(PSA!Y1)-2,0)) ->  | Z2: =IF(OFFSET(Input!$A$12,COLUMN(PSA!Z1)-2,0)="","",OFFSET(Input!$A$12,COLUMN(PSA!Z1)-2,0)) ->  | AA2: =IF(OFFSET(Input!$A$12,COLUMN(PSA!AA1)-2,0)="","",OFFSET(Input!$A$12,COLUMN(PSA!AA1)-2,0)) ->  | AB2: =IF(OFFSET(Input!$A$12,COLUMN(PSA!AB1)-2,0)="","",OFFSET(Input!$A$12,COLUMN(PSA!AB1)-2,0)) ->  | AC2: =IF(OFFSET(Input!$A$12,COLUMN(PSA!AC1)-2,0)="","",OFFSET(Input!$A$12,COLUMN(PSA!AC1)-2,0)) ->  | AD2: =IF(OFFSET(Input!$A$12,COLUMN(PSA!AD1)-2,0)="","",OFFSET(Input!$A$12,COLUMN(PSA!AD1)-2,0)) ->  | AE2: =IF(OFFSET(Input!$A$12,COLUMN(PSA!AE1)-2,0)="","",OFFSET(Input!$A$12,COLUMN(PSA!AE1)-2,0)) ->  | AF2: =IF(OFFSET(Input!$A$12,COLUMN(PSA!AF1)-2,0)="","",OFFSET(Input!$A$12,COLUMN(PSA!AF1)-2,0)) ->  | AG2: =IF(OFFSET(Input!$A$12,COLUMN(PSA!AG1)-2,0)="","",OFFSET(Input!$A$12,COLUMN(PSA!AG1)-2,0)) ->  | AH2: =IF(OFFSET(Input!$A$12,COLUMN(PSA!AH1)-2,0)="","",OFFSET(Input!$A$12,COLUMN(PSA!AH1)-2,0)) ->  | AI2: =IF(OFFSET(Input!$A$12,COLUMN(PSA!AI1)-2,0)="","",OFFSET(Input!$A$12,COLUMN(PSA!AI1)-2,0)) ->  | AJ2: =IF(OFFSET(Input!$A$12,COLUMN(PSA!AJ1)-2,0)="","",OFFSET(Input!$A$12,COLUMN(PSA!AJ1)-2,0)) ->  | AK2: =IF(OFFSET(Input!$A$12,COLUMN(PSA!AK1)-2,0)="","",OFFSET(Input!$A$12,COLUMN(PSA!AK1)-2,0)) ->  | AL2: =IF(OFFSET(Input!$A$12,COLUMN(PSA!AL1)-2,0)="","",OFFSET(Input!$A$12,COLUMN(PSA!AL1)-2,0)) ->  | AM2: =IF(OFFSET(Input!$A$12,COLUMN(PSA!AM1)-2,0)="","",OFFSET(Input!$A$12,COLUMN(PSA!AM1)-2,0)) ->  | AN2: =IF(OFFSET(Input!$A$12,COLUMN(PSA!AN1)-2,0)="","",OFFSET(Input!$A$12,COLUMN(PSA!AN1)-2,0)) ->  | AO2: =IF(OFFSET(Input!$A$12,COLUMN(PSA!AO1)-2,0)="","",OFFSET(Input!$A$12,COLUMN(PSA!AO1)-2,0)) ->  | AP2: =IF(OFFSET(Input!$A$12,COLUMN(PSA!AP1)-2,0)="","",OFFSET(Input!$A$12,COLUMN(PSA!AP1)-2,0)) ->  | AQ2: =IF(OFFSET(Input!$A$12,COLUMN(PSA!AQ1)-2,0)="","",OFFSET(Input!$A$12,COLUMN(PSA!AQ1)-2,0)) ->  | AR2: =IF(OFFSET(Input!$A$12,COLUMN(PSA!AR1)-2,0)="","",OFFSET(Input!$A$12,COLUMN(PSA!AR1)-2,0)) ->  | AS2: =IF(OFFSET(Input!$A$12,COLUMN(PSA!AS1)-2,0)="","",OFFSET(Input!$A$12,COLUMN(PSA!AS1)-2,0)) ->  | AT2: =IF(OFFSET(Input!$A$12,COLUMN(PSA!AT1)-2,0)="","",OFFSET(Input!$A$12,COLUMN(PSA!AT1)-2,0)) ->  | AU2: =IF(OFFSET(Input!$A$12,COLUMN(PSA!AU1)-2,0)="","",OFFSET(Input!$A$12,COLUMN(PSA!AU1)-2,0)) ->  | AV2: =IF(OFFSET(Input!$A$12,COLUMN(PSA!AV1)-2,0)="","",OFFSET(Input!$A$12,COLUMN(PSA!AV1)-2,0)) ->  | AW2: =IF(OFFSET(Input!$A$12,COLUMN(PSA!AW1)-2,0)="","",OFFSET(Input!$A$12,COLUMN(PSA!AW1)-2,0)) ->  | AX2: =IF(OFFSET(Input!$A$12,COLUMN(PSA!AX1)-2,0)="","",OFFSET(Input!$A$12,COLUMN(PSA!AX1)-2,0)) ->  | AY2: =IF(OFFSET(Input!$A$12,COLUMN(PSA!AY1)-2,0)="","",OFFSET(Input!$A$12,COLUMN(PSA!AY1)-2,0)) ->  | AZ2: =IF(OFFSET(Input!$A$12,COLUMN(PSA!AZ1)-2,0)="","",OFFSET(Input!$A$12,COLUMN(PSA!AZ1)-2,0)) ->  | BA2: =IF(OFFSET(Input!$A$12,COLUMN(PSA!BA1)-2,0)="","",OFFSET(Input!$A$12,COLUMN(PSA!BA1)-2,0)) ->  | BB2: =IF(OFFSET(Input!$A$12,COLUMN(PSA!BB1)-2,0)="","",OFFSET(Input!$A$12,COLUMN(PSA!BB1)-2,0)) ->  | BC2: =IF(OFFSET(Input!$A$12,COLUMN(PSA!BC1)-2,0)="","",OFFSET(Input!$A$12,COLUMN(PSA!BC1)-2,0)) ->  | BD2: =IF(OFFSET(Input!$A$12,COLUMN(PSA!BD1)-2,0)="","",OFFSET(Input!$A$12,COLUMN(PSA!BD1)-2,0)) ->  | BE2: =IF(OFFSET(Input!$A$12,COLUMN(PSA!BE1)-2,0)="","",OFFSET(Input!$A$12,COLUMN(PSA!BE1)-2,0)) ->  | BF2: =IF(OFFSET(Input!$A$12,COLUMN(PSA!BF1)-2,0)="","",OFFSET(Input!$A$12,COLUMN(PSA!BF1)-2,0)) ->  | BG2: =IF(OFFSET(Input!$A$12,COLUMN(PSA!BG1)-2,0)="","",OFFSET(Input!$A$12,COLUMN(PSA!BG1)-2,0)) ->  | BH2: =IF(OFFSET(Input!$A$12,COLUMN(PSA!BH1)-2,0)="","",OFFSET(Input!$A$12,COLUMN(PSA!BH1)-2,0)) ->  | BI2: =IF(OFFSET(Input!$A$12,COLUMN(PSA!BI1)-2,0)="","",OFFSET(Input!$A$12,COLUMN(PSA!BI1)-2,0)) ->  | BJ2: =IF(OFFSET(Input!$A$12,COLUMN(PSA!BJ1)-2,0)="","",OFFSET(Input!$A$12,COLUMN(PSA!BJ1)-2,0)) ->  | BK2: =IF(OFFSET(Input!$A$12,COLUMN(PSA!BK1)-2,0)="","",OFFSET(Input!$A$12,COLUMN(PSA!BK1)-2,0)) ->  | BL2: =IF(OFFSET(Input!$A$12,COLUMN(PSA!BL1)-2,0)="","",OFFSET(Input!$A$12,COLUMN(PSA!BL1)-2,0)) ->  | BM2: =IF(OFFSET(Input!$A$12,COLUMN(PSA!BM1)-2,0)="","",OFFSET(Input!$A$12,COLUMN(PSA!BM1)-2,0)) ->  | BN2: =IF(OFFSET(Input!$A$12,COLUMN(PSA!BN1)-2,0)="","",OFFSET(Input!$A$12,COLUMN(PSA!BN1)-2,0)) ->  | BO2: =IF(OFFSET(Input!$A$12,COLUMN(PSA!BO1)-2,0)="","",OFFSET(Input!$A$12,COLUMN(PSA!BO1)-2,0)) ->  | BP2: =IF(OFFSET(Input!$A$12,COLUMN(PSA!BP1)-2,0)="","",OFFSET(Input!$A$12,COLUMN(PSA!BP1)-2,0)) ->  | BQ2: =IF(OFFSET(Input!$A$12,COLUMN(PSA!BQ1)-2,0)="","",OFFSET(Input!$A$12,COLUMN(PSA!BQ1)-2,0)) ->  | BR2: =IF(OFFSET(Input!$A$12,COLUMN(PSA!BR1)-2,0)="","",OFFSET(Input!$A$12,COLUMN(PSA!BR1)-2,0)) ->  | BS2: =IF(OFFSET(Input!$A$12,COLUMN(PSA!BS1)-2,0)="","",OFFSET(Input!$A$12,COLUMN(PSA!BS1)-2,0)) ->  | BT2: =IF(OFFSET(Input!$A$12,COLUMN(PSA!BT1)-2,0)="","",OFFSET(Input!$A$12,COLUMN(PSA!BT1)-2,0)) ->  | BU2: =IF(OFFSET(Input!$A$12,COLUMN(PSA!BU1)-2,0)="","",OFFSET(Input!$A$12,COLUMN(PSA!BU1)-2,0)) ->  | BV2: =IF(OFFSET(Input!$A$12,COLUMN(PSA!BV1)-2,0)="","",OFFSET(Input!$A$12,COLUMN(PSA!BV1)-2,0)) ->  | BW2: =IF(OFFSET(Input!$A$12,COLUMN(PSA!BW1)-2,0)="","",OFFSET(Input!$A$12,COLUMN(PSA!BW1)-2,0)) ->  | BX2: =IF(OFFSET(Input!$A$12,COLUMN(PSA!BX1)-2,0)="","",OFFSET(Input!$A$12,COLUMN(PSA!BX1)-2,0)) ->  | BY2: =IF(OFFSET(Input!$A$12,COLUMN(PSA!BY1)-2,0)="","",OFFSET(Input!$A$12,COLUMN(PSA!BY1)-2,0)) ->  | BZ2: =IF(OFFSET(Input!$A$12,COLUMN(PSA!BZ1)-2,0)="","",OFFSET(Input!$A$12,COLUMN(PSA!BZ1)-2,0)) ->  | CA2: =IF(OFFSET(Input!$A$12,COLUMN(PSA!CA1)-2,0)="","",OFFSET(Input!$A$12,COLUMN(PSA!CA1)-2,0)) ->  | CB2: =IF(OFFSET(Input!$A$12,COLUMN(PSA!CB1)-2,0)="","",OFFSET(Input!$A$12,COLUMN(PSA!CB1)-2,0)) ->  | CC2: =IF(OFFSET(Input!$A$12,COLUMN(PSA!CC1)-2,0)="","",OFFSET(Input!$A$12,COLUMN(PSA!CC1)-2,0)) ->  | CD2: =IF(OFFSET(Input!$A$12,COLUMN(PSA!CD1)-2,0)="","",OFFSET(Input!$A$12,COLUMN(PSA!CD1)-2,0)) ->  | CE2: =IF(OFFSET(Input!$A$12,COLUMN(PSA!CE1)-2,0)="","",OFFSET(Input!$A$12,COLUMN(PSA!CE1)-2,0)) ->  | CF2: =IF(OFFSET(Input!$A$12,COLUMN(PSA!CF1)-2,0)="","",OFFSET(Input!$A$12,COLUMN(PSA!CF1)-2,0)) ->  | CG2: =IF(OFFSET(Input!$A$12,COLUMN(PSA!CG1)-2,0)="","",OFFSET(Input!$A$12,COLUMN(PSA!CG1)-2,0)) ->  | CH2: =IF(OFFSET(Input!$A$12,COLUMN(PSA!CH1)-2,0)="","",OFFSET(Input!$A$12,COLUMN(PSA!CH1)-2,0)) ->  | CI2: =IF(OFFSET(Input!$A$12,COLUMN(PSA!CI1)-2,0)="","",OFFSET(Input!$A$12,COLUMN(PSA!CI1)-2,0)) ->  | CJ2: =IF(OFFSET(Input!$A$12,COLUMN(PSA!CJ1)-2,0)="","",OFFSET(Input!$A$12,COLUMN(PSA!CJ1)-2,0)) ->  | CK2: =IF(OFFSET(Input!$A$12,COLUMN(PSA!CK1)-2,0)="","",OFFSET(Input!$A$12,COLUMN(PSA!CK1)-2,0)) ->  | CL2: =IF(OFFSET(Input!$A$12,COLUMN(PSA!CL1)-2,0)="","",OFFSET(Input!$A$12,COLUMN(PSA!CL1)-2,0)) ->  | CM2: =IF(OFFSET(Input!$A$12,COLUMN(PSA!CM1)-2,0)="","",OFFSET(Input!$A$12,COLUMN(PSA!CM1)-2,0)) ->  | CN2: =IF(OFFSET(Input!$A$12,COLUMN(PSA!CN1)-2,0)="","",OFFSET(Input!$A$12,COLUMN(PSA!CN1)-2,0)) ->  | CO2: =IF(OFFSET(Input!$A$12,COLUMN(PSA!CO1)-2,0)="","",OFFSET(Input!$A$12,COLUMN(PSA!CO1)-2,0)) ->  | CP2: =IF(OFFSET(Input!$A$12,COLUMN(PSA!CP1)-2,0)="","",OFFSET(Input!$A$12,COLUMN(PSA!CP1)-2,0)) ->  | CQ2: =IF(OFFSET(Input!$A$12,COLUMN(PSA!CQ1)-2,0)="","",OFFSET(Input!$A$12,COLUMN(PSA!CQ1)-2,0)) ->  | CR2: =IF(OFFSET(Input!$A$12,COLUMN(PSA!CR1)-2,0)="","",OFFSET(Input!$A$12,COLUMN(PSA!CR1)-2,0)) ->  | CS2: =IF(OFFSET(Input!$A$12,COLUMN(PSA!CS1)-2,0)="","",OFFSET(Input!$A$12,COLUMN(PSA!CS1)-2,0)) ->  | CT2: =IF(OFFSET(Input!$A$12,COLUMN(PSA!CT1)-2,0)="","",OFFSET(Input!$A$12,COLUMN(PSA!CT1)-2,0)) ->  | CU2: =IF(OFFSET(Input!$A$12,COLUMN(PSA!CU1)-2,0)="","",OFFSET(Input!$A$12,COLUMN(PSA!CU1)-2,0)) ->  | CV2: =IF(OFFSET(Input!$A$12,COLUMN(PSA!CV1)-2,0)="","",OFFSET(Input!$A$12,COLUMN(PSA!CV1)-2,0)) ->  | CW2: =IF(OFFSET(Input!$A$12,COLUMN(PSA!CW1)-2,0)="","",OFFSET(Input!$A$12,COLUMN(PSA!CW1)-2,0)) ->  | CX2: ="Costs (" & Intervention & ")" -> Costs (HIPEC + CRS + Chemotherapy) | CY2: ="QALY (" & Intervention & ")" -> QALY (HIPEC + CRS + Chemotherapy) | CZ2: ="Costs (" & Control & ")" -> Costs (CRS + Chemotherapy) | DA2: ="QALY (" & Control & ")" -> QALY (CRS + Chemotherapy) | DC2: Incremental costs | DD2: Incremental QALY | DE2: ICER | DF2: Decision | DG2: Threshold: | DH2: 60000 | DM2: =Intervention -> HIPEC + CRS + Chemotherapy | DN2: =Control -> CRS + Chemotherapy | DO2: ="Increment (" & Intervention & " - " & Control & ")" -> Increment (HIPEC + CRS + Chemotherapy - CRS + Chemotherapy) | EA2: Threshold | EB2: =Intervention -> HIPEC + CRS + Chemotherapy | EC2: =Control -> CRS + Chemotherapy | ED2: ="Increment (" & Intervention & " - " & Control & ")" -> Increment (HIPEC + CRS + Chemotherapy - CRS + Chemotherapy) | EE2: Decision | EF2: Maximum Net benefit | EG2: Opportunity loss (EVPI per 1000 patients) | EJ2: Threshold | EK2: =Intervention -> HIPEC + CRS + Chemotherapy | EL2: =Control -> CRS + Chemotherapy | EM2: ="Increment (" & Intervention & " - " & Control & ")" -> Increment (HIPEC + CRS + Chemotherapy - CRS + Chemotherapy) | EN2: Decision | EO2: Maximum Net benefit | EP2: Opportunity loss (EVPI per 1000 patients) | ER2: EVPPI | ES2: Parameters | ET2: Willingness-to-pay threshold: £20,000 | EU2: Willingness-to-pay threshold: £30,000 | EW2: EVPPI calculations | EX2: ="Costs (" & Intervention & ")" -> Costs (HIPEC + CRS + Chemotherapy) | EY2: ="QALY (" & Intervention & ")" -> QALY (HIPEC + CRS + Chemotherapy) | EZ2: ="Costs (" & Control & ")" -> Costs (CRS + Chemotherapy) | FA2: ="QALY (" & Control & ")" -> QALY (CRS + Chemotherapy) | FB2: Threshold | FC2: =Intervention -> HIPEC + CRS + Chemotherapy | FD2: =Control -> CRS + Chemotherapy | FE2: ="Increment (" & Intervention & " - " & Control & ")" -> Increment (HIPEC + CRS + Chemotherapy - CRS + Chemotherapy) | FF2: Decision | FG2: Maximum Net benefit | FH2: Opportunity loss (EVPI per 1000 patients) | FK2: Threshold | FL2: =Intervention -> HIPEC + CRS + Chemotherapy | FM2: =Control -> CRS + Chemotherapy | FN2: ="Increment (" & Intervention & " - " & Control & ")" -> Increment (HIPEC + CRS + Chemotherapy - CRS + Chemotherapy) | FO2: Decision | FP2: Maximum Net benefit | FQ2: Opportunity loss (EVPI per 1000 patients) | FS2: Stability tests | FT2: Runs | FU2: Incremental NMB (Point estimate) | FV2: Incremental NMB (Point estimate) | FW2: Coefficient of variation
B3: =IF(OFFSET(Input!$K$12,COLUMN(PSA!B1)-2,0)="","",OFFSET(Input!$K$12,COLUMN(PSA!B1)-2,0)) -> p_Complications_HIPEC | C3: =IF(OFFSET(Input!$K$12,COLUMN(PSA!C1)-2,0)="","",OFFSET(Input!$K$12,COLUMN(PSA!C1)-2,0)) -> p_Short_term_Mortality_HIPEC | D3: =IF(OFFSET(Input!$K$12,COLUMN(PSA!D1)-2,0)="","",OFFSET(Input!$K$12,COLUMN(PSA!D1)-2,0)) -> p_Ln_HazardRatio_HIPEC | E3: =IF(OFFSET(Input!$K$12,COLUMN(PSA!E1)-2,0)="","",OFFSET(Input!$K$12,COLUMN(PSA!E1)-2,0)) -> p_Complications_Control | F3: =IF(OFFSET(Input!$K$12,COLUMN(PSA!F1)-2,0)="","",OFFSET(Input!$K$12,COLUMN(PSA!F1)-2,0)) -> p_Short_term_Mortality_Control | G3: =IF(OFFSET(Input!$K$12,COLUMN(PSA!G1)-2,0)="","",OFFSET(Input!$K$12,COLUMN(PSA!G1)-2,0)) -> p_MediumMortality_Control | H3: =IF(OFFSET(Input!$K$12,COLUMN(PSA!H1)-2,0)="","",OFFSET(Input!$K$12,COLUMN(PSA!H1)-2,0)) -> Costs_Complicated_HIPEC | I3: =IF(OFFSET(Input!$K$12,COLUMN(PSA!I1)-2,0)="","",OFFSET(Input!$K$12,COLUMN(PSA!I1)-2,0)) -> Costs_Uncomplicated_HIPEC | J3: =IF(OFFSET(Input!$K$12,COLUMN(PSA!J1)-2,0)="","",OFFSET(Input!$K$12,COLUMN(PSA!J1)-2,0)) -> Costs_Complicated_Control | K3: =IF(OFFSET(Input!$K$12,COLUMN(PSA!K1)-2,0)="","",OFFSET(Input!$K$12,COLUMN(PSA!K1)-2,0)) -> Costs_Uncomplicated_Control | L3: =IF(OFFSET(Input!$K$12,COLUMN(PSA!L1)-2,0)="","",OFFSET(Input!$K$12,COLUMN(PSA!L1)-2,0)) -> QoL_Complicated_HIPEC | M3: =IF(OFFSET(Input!$K$12,COLUMN(PSA!M1)-2,0)="","",OFFSET(Input!$K$12,COLUMN(PSA!M1)-2,0)) -> QoL_Uncomplicated_HIPEC | N3: =IF(OFFSET(Input!$K$12,COLUMN(PSA!N1)-2,0)="","",OFFSET(Input!$K$12,COLUMN(PSA!N1)-2,0)) -> QoL_Complicated_Control | O3: =IF(OFFSET(Input!$K$12,COLUMN(PSA!O1)-2,0)="","",OFFSET(Input!$K$12,COLUMN(PSA!O1)-2,0)) -> QoL_Uncomplicated_Control | P3: =IF(OFFSET(Input!$K$12,COLUMN(PSA!P1)-2,0)="","",OFFSET(Input!$K$12,COLUMN(PSA!P1)-2,0)) -> QoL_Long_HIPEC | Q3: =IF(OFFSET(Input!$K$12,COLUMN(PSA!Q1)-2,0)="","",OFFSET(Input!$K$12,COLUMN(PSA!Q1)-2,0)) -> QoL_Long_Control | R3: =IF(OFFSET(Input!$K$12,COLUMN(PSA!R1)-2,0)="","",OFFSET(Input!$K$12,COLUMN(PSA!R1)-2,0)) ->  | S3: =IF(OFFSET(Input!$K$12,COLUMN(PSA!S1)-2,0)="","",OFFSET(Input!$K$12,COLUMN(PSA!S1)-2,0)) ->  | T3: =IF(OFFSET(Input!$K$12,COLUMN(PSA!T1)-2,0)="","",OFFSET(Input!$K$12,COLUMN(PSA!T1)-2,0)) ->  | U3: =IF(OFFSET(Input!$K$12,COLUMN(PSA!U1)-2,0)="","",OFFSET(Input!$K$12,COLUMN(PSA!U1)-2,0)) ->  | V3: =IF(OFFSET(Input!$K$12,COLUMN(PSA!V1)-2,0)="","",OFFSET(Input!$K$12,COLUMN(PSA!V1)-2,0)) ->  | W3: =IF(OFFSET(Input!$K$12,COLUMN(PSA!W1)-2,0)="","",OFFSET(Input!$K$12,COLUMN(PSA!W1)-2,0)) ->  | X3: =IF(OFFSET(Input!$K$12,COLUMN(PSA!X1)-2,0)="","",OFFSET(Input!$K$12,COLUMN(PSA!X1)-2,0)) ->  | Y3: =IF(OFFSET(Input!$K$12,COLUMN(PSA!Y1)-2,0)="","",OFFSET(Input!$K$12,COLUMN(PSA!Y1)-2,0)) ->  | Z3: =IF(OFFSET(Input!$K$12,COLUMN(PSA!Z1)-2,0)="","",OFFSET(Input!$K$12,COLUMN(PSA!Z1)-2,0)) ->  | AA3: =IF(OFFSET(Input!$K$12,COLUMN(PSA!AA1)-2,0)="","",OFFSET(Input!$K$12,COLUMN(PSA!AA1)-2,0)) ->  | AB3: =IF(OFFSET(Input!$K$12,COLUMN(PSA!AB1)-2,0)="","",OFFSET(Input!$K$12,COLUMN(PSA!AB1)-2,0)) ->  | AC3: =IF(OFFSET(Input!$K$12,COLUMN(PSA!AC1)-2,0)="","",OFFSET(Input!$K$12,COLUMN(PSA!AC1)-2,0)) ->  | AD3: =IF(OFFSET(Input!$K$12,COLUMN(PSA!AD1)-2,0)="","",OFFSET(Input!$K$12,COLUMN(PSA!AD1)-2,0)) ->  | AE3: =IF(OFFSET(Input!$K$12,COLUMN(PSA!AE1)-2,0)="","",OFFSET(Input!$K$12,COLUMN(PSA!AE1)-2,0)) ->  | AF3: =IF(OFFSET(Input!$K$12,COLUMN(PSA!AF1)-2,0)="","",OFFSET(Input!$K$12,COLUMN(PSA!AF1)-2,0)) ->  | AG3: =IF(OFFSET(Input!$K$12,COLUMN(PSA!AG1)-2,0)="","",OFFSET(Input!$K$12,COLUMN(PSA!AG1)-2,0)) ->  | AH3: =IF(OFFSET(Input!$K$12,COLUMN(PSA!AH1)-2,0)="","",OFFSET(Input!$K$12,COLUMN(PSA!AH1)-2,0)) ->  | AI3: =IF(OFFSET(Input!$K$12,COLUMN(PSA!AI1)-2,0)="","",OFFSET(Input!$K$12,COLUMN(PSA!AI1)-2,0)) ->  | AJ3: =IF(OFFSET(Input!$K$12,COLUMN(PSA!AJ1)-2,0)="","",OFFSET(Input!$K$12,COLUMN(PSA!AJ1)-2,0)) ->  | AK3: =IF(OFFSET(Input!$K$12,COLUMN(PSA!AK1)-2,0)="","",OFFSET(Input!$K$12,COLUMN(PSA!AK1)-2,0)) ->  | AL3: =IF(OFFSET(Input!$K$12,COLUMN(PSA!AL1)-2,0)="","",OFFSET(Input!$K$12,COLUMN(PSA!AL1)-2,0)) ->  | AM3: =IF(OFFSET(Input!$K$12,COLUMN(PSA!AM1)-2,0)="","",OFFSET(Input!$K$12,COLUMN(PSA!AM1)-2,0)) ->  | AN3: =IF(OFFSET(Input!$K$12,COLUMN(PSA!AN1)-2,0)="","",OFFSET(Input!$K$12,COLUMN(PSA!AN1)-2,0)) ->  | AO3: =IF(OFFSET(Input!$K$12,COLUMN(PSA!AO1)-2,0)="","",OFFSET(Input!$K$12,COLUMN(PSA!AO1)-2,0)) ->  | AP3: =IF(OFFSET(Input!$K$12,COLUMN(PSA!AP1)-2,0)="","",OFFSET(Input!$K$12,COLUMN(PSA!AP1)-2,0)) ->  | AQ3: =IF(OFFSET(Input!$K$12,COLUMN(PSA!AQ1)-2,0)="","",OFFSET(Input!$K$12,COLUMN(PSA!AQ1)-2,0)) ->  | AR3: =IF(OFFSET(Input!$K$12,COLUMN(PSA!AR1)-2,0)="","",OFFSET(Input!$K$12,COLUMN(PSA!AR1)-2,0)) ->  | AS3: =IF(OFFSET(Input!$K$12,COLUMN(PSA!AS1)-2,0)="","",OFFSET(Input!$K$12,COLUMN(PSA!AS1)-2,0)) ->  | AT3: =IF(OFFSET(Input!$K$12,COLUMN(PSA!AT1)-2,0)="","",OFFSET(Input!$K$12,COLUMN(PSA!AT1)-2,0)) ->  | AU3: =IF(OFFSET(Input!$K$12,COLUMN(PSA!AU1)-2,0)="","",OFFSET(Input!$K$12,COLUMN(PSA!AU1)-2,0)) ->  | AV3: =IF(OFFSET(Input!$K$12,COLUMN(PSA!AV1)-2,0)="","",OFFSET(Input!$K$12,COLUMN(PSA!AV1)-2,0)) ->  | AW3: =IF(OFFSET(Input!$K$12,COLUMN(PSA!AW1)-2,0)="","",OFFSET(Input!$K$12,COLUMN(PSA!AW1)-2,0)) ->  | AX3: =IF(OFFSET(Input!$K$12,COLUMN(PSA!AX1)-2,0)="","",OFFSET(Input!$K$12,COLUMN(PSA!AX1)-2,0)) ->  | AY3: =IF(OFFSET(Input!$K$12,COLUMN(PSA!AY1)-2,0)="","",OFFSET(Input!$K$12,COLUMN(PSA!AY1)-2,0)) ->  | AZ3: =IF(OFFSET(Input!$K$12,COLUMN(PSA!AZ1)-2,0)="","",OFFSET(Input!$K$12,COLUMN(PSA!AZ1)-2,0)) ->  | BA3: =IF(OFFSET(Input!$K$12,COLUMN(PSA!BA1)-2,0)="","",OFFSET(Input!$K$12,COLUMN(PSA!BA1)-2,0)) ->  | BB3: =IF(OFFSET(Input!$K$12,COLUMN(PSA!BB1)-2,0)="","",OFFSET(Input!$K$12,COLUMN(PSA!BB1)-2,0)) ->  | BC3: =IF(OFFSET(Input!$K$12,COLUMN(PSA!BC1)-2,0)="","",OFFSET(Input!$K$12,COLUMN(PSA!BC1)-2,0)) ->  | BD3: =IF(OFFSET(Input!$K$12,COLUMN(PSA!BD1)-2,0)="","",OFFSET(Input!$K$12,COLUMN(PSA!BD1)-2,0)) ->  | BE3: =IF(OFFSET(Input!$K$12,COLUMN(PSA!BE1)-2,0)="","",OFFSET(Input!$K$12,COLUMN(PSA!BE1)-2,0)) ->  | BF3: =IF(OFFSET(Input!$K$12,COLUMN(PSA!BF1)-2,0)="","",OFFSET(Input!$K$12,COLUMN(PSA!BF1)-2,0)) ->  | BG3: =IF(OFFSET(Input!$K$12,COLUMN(PSA!BG1)-2,0)="","",OFFSET(Input!$K$12,COLUMN(PSA!BG1)-2,0)) ->  | BH3: =IF(OFFSET(Input!$K$12,COLUMN(PSA!BH1)-2,0)="","",OFFSET(Input!$K$12,COLUMN(PSA!BH1)-2,0)) ->  | BI3: =IF(OFFSET(Input!$K$12,COLUMN(PSA!BI1)-2,0)="","",OFFSET(Input!$K$12,COLUMN(PSA!BI1)-2,0)) ->  | BJ3: =IF(OFFSET(Input!$K$12,COLUMN(PSA!BJ1)-2,0)="","",OFFSET(Input!$K$12,COLUMN(PSA!BJ1)-2,0)) ->  | BK3: =IF(OFFSET(Input!$K$12,COLUMN(PSA!BK1)-2,0)="","",OFFSET(Input!$K$12,COLUMN(PSA!BK1)-2,0)) ->  | BL3: =IF(OFFSET(Input!$K$12,COLUMN(PSA!BL1)-2,0)="","",OFFSET(Input!$K$12,COLUMN(PSA!BL1)-2,0)) ->  | BM3: =IF(OFFSET(Input!$K$12,COLUMN(PSA!BM1)-2,0)="","",OFFSET(Input!$K$12,COLUMN(PSA!BM1)-2,0)) ->  | BN3: =IF(OFFSET(Input!$K$12,COLUMN(PSA!BN1)-2,0)="","",OFFSET(Input!$K$12,COLUMN(PSA!BN1)-2,0)) ->  | BO3: =IF(OFFSET(Input!$K$12,COLUMN(PSA!BO1)-2,0)="","",OFFSET(Input!$K$12,COLUMN(PSA!BO1)-2,0)) ->  | BP3: =IF(OFFSET(Input!$K$12,COLUMN(PSA!BP1)-2,0)="","",OFFSET(Input!$K$12,COLUMN(PSA!BP1)-2,0)) ->  | BQ3: =IF(OFFSET(Input!$K$12,COLUMN(PSA!BQ1)-2,0)="","",OFFSET(Input!$K$12,COLUMN(PSA!BQ1)-2,0)) ->  | BR3: =IF(OFFSET(Input!$K$12,COLUMN(PSA!BR1)-2,0)="","",OFFSET(Input!$K$12,COLUMN(PSA!BR1)-2,0)) ->  | BS3: =IF(OFFSET(Input!$K$12,COLUMN(PSA!BS1)-2,0)="","",OFFSET(Input!$K$12,COLUMN(PSA!BS1)-2,0)) ->  | BT3: =IF(OFFSET(Input!$K$12,COLUMN(PSA!BT1)-2,0)="","",OFFSET(Input!$K$12,COLUMN(PSA!BT1)-2,0)) ->  | BU3: =IF(OFFSET(Input!$K$12,COLUMN(PSA!BU1)-2,0)="","",OFFSET(Input!$K$12,COLUMN(PSA!BU1)-2,0)) ->  | BV3: =IF(OFFSET(Input!$K$12,COLUMN(PSA!BV1)-2,0)="","",OFFSET(Input!$K$12,COLUMN(PSA!BV1)-2,0)) ->  | BW3: =IF(OFFSET(Input!$K$12,COLUMN(PSA!BW1)-2,0)="","",OFFSET(Input!$K$12,COLUMN(PSA!BW1)-2,0)) ->  | BX3: =IF(OFFSET(Input!$K$12,COLUMN(PSA!BX1)-2,0)="","",OFFSET(Input!$K$12,COLUMN(PSA!BX1)-2,0)) ->  | BY3: =IF(OFFSET(Input!$K$12,COLUMN(PSA!BY1)-2,0)="","",OFFSET(Input!$K$12,COLUMN(PSA!BY1)-2,0)) ->  | BZ3: =IF(OFFSET(Input!$K$12,COLUMN(PSA!BZ1)-2,0)="","",OFFSET(Input!$K$12,COLUMN(PSA!BZ1)-2,0)) ->  | CA3: =IF(OFFSET(Input!$K$12,COLUMN(PSA!CA1)-2,0)="","",OFFSET(Input!$K$12,COLUMN(PSA!CA1)-2,0)) ->  | CB3: =IF(OFFSET(Input!$K$12,COLUMN(PSA!CB1)-2,0)="","",OFFSET(Input!$K$12,COLUMN(PSA!CB1)-2,0)) ->  | CC3: =IF(OFFSET(Input!$K$12,COLUMN(PSA!CC1)-2,0)="","",OFFSET(Input!$K$12,COLUMN(PSA!CC1)-2,0)) ->  | CD3: =IF(OFFSET(Input!$K$12,COLUMN(PSA!CD1)-2,0)="","",OFFSET(Input!$K$12,COLUMN(PSA!CD1)-2,0)) ->  | CE3: =IF(OFFSET(Input!$K$12,COLUMN(PSA!CE1)-2,0)="","",OFFSET(Input!$K$12,COLUMN(PSA!CE1)-2,0)) ->  | CF3: =IF(OFFSET(Input!$K$12,COLUMN(PSA!CF1)-2,0)="","",OFFSET(Input!$K$12,COLUMN(PSA!CF1)-2,0)) ->  | CG3: =IF(OFFSET(Input!$K$12,COLUMN(PSA!CG1)-2,0)="","",OFFSET(Input!$K$12,COLUMN(PSA!CG1)-2,0)) ->  | CH3: =IF(OFFSET(Input!$K$12,COLUMN(PSA!CH1)-2,0)="","",OFFSET(Input!$K$12,COLUMN(PSA!CH1)-2,0)) ->  | CI3: =IF(OFFSET(Input!$K$12,COLUMN(PSA!CI1)-2,0)="","",OFFSET(Input!$K$12,COLUMN(PSA!CI1)-2,0)) ->  | CJ3: =IF(OFFSET(Input!$K$12,COLUMN(PSA!CJ1)-2,0)="","",OFFSET(Input!$K$12,COLUMN(PSA!CJ1)-2,0)) ->  | CK3: =IF(OFFSET(Input!$K$12,COLUMN(PSA!CK1)-2,0)="","",OFFSET(Input!$K$12,COLUMN(PSA!CK1)-2,0)) ->  | CL3: =IF(OFFSET(Input!$K$12,COLUMN(PSA!CL1)-2,0)="","",OFFSET(Input!$K$12,COLUMN(PSA!CL1)-2,0)) ->  | CM3: =IF(OFFSET(Input!$K$12,COLUMN(PSA!CM1)-2,0)="","",OFFSET(Input!$K$12,COLUMN(PSA!CM1)-2,0)) ->  | CN3: =IF(OFFSET(Input!$K$12,COLUMN(PSA!CN1)-2,0)="","",OFFSET(Input!$K$12,COLUMN(PSA!CN1)-2,0)) ->  | CO3: =IF(OFFSET(Input!$K$12,COLUMN(PSA!CO1)-2,0)="","",OFFSET(Input!$K$12,COLUMN(PSA!CO1)-2,0)) ->  | CP3: =IF(OFFSET(Input!$K$12,COLUMN(PSA!CP1)-2,0)="","",OFFSET(Input!$K$12,COLUMN(PSA!CP1)-2,0)) ->  | CQ3: =IF(OFFSET(Input!$K$12,COLUMN(PSA!CQ1)-2,0)="","",OFFSET(Input!$K$12,COLUMN(PSA!CQ1)-2,0)) ->  | CR3: =IF(OFFSET(Input!$K$12,COLUMN(PSA!CR1)-2,0)="","",OFFSET(Input!$K$12,COLUMN(PSA!CR1)-2,0)) ->  | CS3: =IF(OFFSET(Input!$K$12,COLUMN(PSA!CS1)-2,0)="","",OFFSET(Input!$K$12,COLUMN(PSA!CS1)-2,0)) ->  | CT3: =IF(OFFSET(Input!$K$12,COLUMN(PSA!CT1)-2,0)="","",OFFSET(Input!$K$12,COLUMN(PSA!CT1)-2,0)) ->  | CU3: =IF(OFFSET(Input!$K$12,COLUMN(PSA!CU1)-2,0)="","",OFFSET(Input!$K$12,COLUMN(PSA!CU1)-2,0)) ->  | CV3: =IF(OFFSET(Input!$K$12,COLUMN(PSA!CV1)-2,0)="","",OFFSET(Input!$K$12,COLUMN(PSA!CV1)-2,0)) ->  | CX3: =IF(CX2="","",PERCENTILE(CX5:OFFSET(CX5,Input!$C$10-1,0),0.975)) -> 15099939.95 | CY3: =IF(CY2="","",PERCENTILE(CY5:OFFSET(CY5,Input!$C$10-1,0),0.975)) -> 11128.82059 | CZ3: =IF(CZ2="","",PERCENTILE(CZ5:OFFSET(CZ5,Input!$C$10-1,0),0.975)) -> 10609555.75 | DA3: =IF(DA2="","",PERCENTILE(DA5:OFFSET(DA5,Input!$C$10-1,0),0.975)) -> 6494.708425 | DC3: =IF(DC2="","",PERCENTILE(DC5:OFFSET(DC5,Input!$C$10-1,0),0.975)) -> 7592.399153 | DD3: =IF(DD2="","",PERCENTILE(DD5:OFFSET(DD5,Input!$C$10-1,0),0.975)) -> 8.928649924 | DE3: =IF(DE2="","",PERCENTILE(DE5:OFFSET(DE5,Input!$C$10-1,0),0.975)) -> 12164.03729 | DM3: =IF(DM2="","",PERCENTILE(DM5:OFFSET(DM5,Input!$C$10-1,0),0.975)) -> 656002057.7 | DN3: =IF(DN2="","",PERCENTILE(DN5:OFFSET(DN5,Input!$C$10-1,0),0.975)) -> 380913337.9 | DO3: =IF(DO2="","",PERCENTILE(DO5:OFFSET(DO5,Input!$C$10-1,0),0.975)) -> 531405608.2 | EA3: 20000 | EB3: =IF(EB2="","",PERCENTILE(EB5:OFFSET(EB5,Input!$C$10-1,0),0.975)) -> 210646219.9 | EC3: =IF(EC2="","",PERCENTILE(EC5:OFFSET(EC5,Input!$C$10-1,0),0.975)) -> 121347072.3 | ED3: =IF(ED2="","",PERCENTILE(ED5:OFFSET(ED5,Input!$C$10-1,0),0.975)) -> 174648424.4 | EJ3: 30000 | EK3: =IF(EK2="","",PERCENTILE(EK5:OFFSET(EK5,Input!$C$10-1,0),0.975)) -> 322112012.5 | EL3: =IF(EL2="","",PERCENTILE(EL5:OFFSET(EL5,Input!$C$10-1,0),0.975)) -> 186245832.8 | EM3: =IF(EM2="","",PERCENTILE(EM5:OFFSET(EM5,Input!$C$10-1,0),0.975)) -> 263788695.2 | ES3: Probabilities | ET3: 12293167.83 | EU3: 17944442.97 | EX3: =IF(EX2="","",PERCENTILE(EX5:OFFSET(EX5,Input!$C$10-1,0),0.975)) -> 15098223.44 | EY3: =IF(EY2="","",PERCENTILE(EY5:OFFSET(EY5,Input!$C$10-1,0),0.975)) -> 8096.874242 | EZ3: =IF(EZ2="","",PERCENTILE(EZ5:OFFSET(EZ5,Input!$C$10-1,0),0.975)) -> 10627374.53 | FA3: =IF(FA2="","",PERCENTILE(FA5:OFFSET(FA5,Input!$C$10-1,0),0.975)) -> 4666.519326 | FB3: 20000 | FC3: =IF(FC2="","",PERCENTILE(FC5:OFFSET(FC5,Input!$C$10-1,0),0.975)) -> 150170803 | FD3: =IF(FD2="","",PERCENTILE(FD5:OFFSET(FD5,Input!$C$10-1,0),0.975)) -> 84993340.7 | FE3: =IF(FE2="","",PERCENTILE(FE5:OFFSET(FE5,Input!$C$10-1,0),0.975)) -> 77168048.57 | FK3: 30000 | FL3: =IF(FL2="","",PERCENTILE(FL5:OFFSET(FL5,Input!$C$10-1,0),0.975)) -> 231189970.4 | FM3: =IF(FM2="","",PERCENTILE(FM5:OFFSET(FM5,Input!$C$10-1,0),0.975)) -> 131602979.3 | FN3: =IF(FN2="","",PERCENTILE(FN5:OFFSET(FN5,Input!$C$10-1,0),0.975)) -> 117692688.2 | FT3: =ROW()-2 -> 1 | FU3: 42761462.44 | FV3: 65921594.57 | FW3: WTP: 20000 | FX3: =_xlfn.STDEV.S(FU$3:FU$32)/AVERAGE(FU$3:FU$32) -> 0.0156090794
A4: means | B4: =IF(B2="","",AVERAGE(B5:OFFSET(B5,Input!$C$10-1,0))) -> 0.133749986 | C4: =IF(C2="","",AVERAGE(C5:OFFSET(C5,Input!$C$10-1,0))) -> 0.0006442664855 | D4: =IF(D2="","",AVERAGE(D5:OFFSET(D5,Input!$C$10-1,0))) -> -0.3145267648 | E4: =IF(E2="","",AVERAGE(E5:OFFSET(E5,Input!$C$10-1,0))) -> 0.1259869435 | F4: =IF(F2="","",AVERAGE(F5:OFFSET(F5,Input!$C$10-1,0))) -> 0.001259126792 | G4: =IF(G2="","",AVERAGE(G5:OFFSET(G5,Input!$C$10-1,0))) -> 0.571943166 | H4: =IF(H2="","",AVERAGE(H5:OFFSET(H5,Input!$C$10-1,0))) -> 15895.50324 | I4: =IF(I2="","",AVERAGE(I5:OFFSET(I5,Input!$C$10-1,0))) -> 11477.26894 | J4: =IF(J2="","",AVERAGE(J5:OFFSET(J5,Input!$C$10-1,0))) -> 12343.28758 | K4: =IF(K2="","",AVERAGE(K5:OFFSET(K5,Input!$C$10-1,0))) -> 7950.094534 | L4: =IF(L2="","",AVERAGE(L5:OFFSET(L5,Input!$C$10-1,0))) -> 0.5001716212 | M4: =IF(M2="","",AVERAGE(M5:OFFSET(M5,Input!$C$10-1,0))) -> 0.5812379896 | N4: =IF(N2="","",AVERAGE(N5:OFFSET(N5,Input!$C$10-1,0))) -> 0.5061022477 | O4: =IF(O2="","",AVERAGE(O5:OFFSET(O5,Input!$C$10-1,0))) -> 0.5901981463 | P4: =IF(P2="","",AVERAGE(P5:OFFSET(P5,Input!$C$10-1,0))) -> 0.58124631 | Q4: =IF(Q2="","",AVERAGE(Q5:OFFSET(Q5,Input!$C$10-1,0))) -> 0.5843857076 | R4: =IF(R2="","",AVERAGE(R5:OFFSET(R5,Input!$C$10-1,0))) ->  | S4: =IF(S2="","",AVERAGE(S5:OFFSET(S5,Input!$C$10-1,0))) ->  | T4: =IF(T2="","",AVERAGE(T5:OFFSET(T5,Input!$C$10-1,0))) ->  | U4: =IF(U2="","",AVERAGE(U5:OFFSET(U5,Input!$C$10-1,0))) ->  | V4: =IF(V2="","",AVERAGE(V5:OFFSET(V5,Input!$C$10-1,0))) ->  | W4: =IF(W2="","",AVERAGE(W5:OFFSET(W5,Input!$C$10-1,0))) ->  | X4: =IF(X2="","",AVERAGE(X5:OFFSET(X5,Input!$C$10-1,0))) ->  | Y4: =IF(Y2="","",AVERAGE(Y5:OFFSET(Y5,Input!$C$10-1,0))) ->  | Z4: =IF(Z2="","",AVERAGE(Z5:OFFSET(Z5,Input!$C$10-1,0))) ->  | AA4: =IF(AA2="","",AVERAGE(AA5:OFFSET(AA5,Input!$C$10-1,0))) ->  | AB4: =IF(AB2="","",AVERAGE(AB5:OFFSET(AB5,Input!$C$10-1,0))) ->  | AC4: =IF(AC2="","",AVERAGE(AC5:OFFSET(AC5,Input!$C$10-1,0))) ->  | AD4: =IF(AD2="","",AVERAGE(AD5:OFFSET(AD5,Input!$C$10-1,0))) ->  | AE4: =IF(AE2="","",AVERAGE(AE5:OFFSET(AE5,Input!$C$10-1,0))) ->  | AF4: =IF(AF2="","",AVERAGE(AF5:OFFSET(AF5,Input!$C$10-1,0))) ->  | AG4: =IF(AG2="","",AVERAGE(AG5:OFFSET(AG5,Input!$C$10-1,0))) ->  | AH4: =IF(AH2="","",AVERAGE(AH5:OFFSET(AH5,Input!$C$10-1,0))) ->  | AI4: =IF(AI2="","",AVERAGE(AI5:OFFSET(AI5,Input!$C$10-1,0))) ->  | AJ4: =IF(AJ2="","",AVERAGE(AJ5:OFFSET(AJ5,Input!$C$10-1,0))) ->  | AK4: =IF(AK2="","",AVERAGE(AK5:OFFSET(AK5,Input!$C$10-1,0))) ->  | AL4: =IF(AL2="","",AVERAGE(AL5:OFFSET(AL5,Input!$C$10-1,0))) ->  | AM4: =IF(AM2="","",AVERAGE(AM5:OFFSET(AM5,Input!$C$10-1,0))) ->  | AN4: =IF(AN2="","",AVERAGE(AN5:OFFSET(AN5,Input!$C$10-1,0))) ->  | AO4: =IF(AO2="","",AVERAGE(AO5:OFFSET(AO5,Input!$C$10-1,0))) ->  | AP4: =IF(AP2="","",AVERAGE(AP5:OFFSET(AP5,Input!$C$10-1,0))) ->  | AQ4: =IF(AQ2="","",AVERAGE(AQ5:OFFSET(AQ5,Input!$C$10-1,0))) ->  | AR4: =IF(AR2="","",AVERAGE(AR5:OFFSET(AR5,Input!$C$10-1,0))) ->  | AS4: =IF(AS2="","",AVERAGE(AS5:OFFSET(AS5,Input!$C$10-1,0))) ->  | AT4: =IF(AT2="","",AVERAGE(AT5:OFFSET(AT5,Input!$C$10-1,0))) ->  | AU4: =IF(AU2="","",AVERAGE(AU5:OFFSET(AU5,Input!$C$10-1,0))) ->  | AV4: =IF(AV2="","",AVERAGE(AV5:OFFSET(AV5,Input!$C$10-1,0))) ->  | AW4: =IF(AW2="","",AVERAGE(AW5:OFFSET(AW5,Input!$C$10-1,0))) ->  | AX4: =IF(AX2="","",AVERAGE(AX5:OFFSET(AX5,Input!$C$10-1,0))) ->  | AY4: =IF(AY2="","",AVERAGE(AY5:OFFSET(AY5,Input!$C$10-1,0))) ->  | AZ4: =IF(AZ2="","",AVERAGE(AZ5:OFFSET(AZ5,Input!$C$10-1,0))) ->  | BA4: =IF(BA2="","",AVERAGE(BA5:OFFSET(BA5,Input!$C$10-1,0))) ->  | BB4: =IF(BB2="","",AVERAGE(BB5:OFFSET(BB5,Input!$C$10-1,0))) ->  | BC4: =IF(BC2="","",AVERAGE(BC5:OFFSET(BC5,Input!$C$10-1,0))) ->  | BD4: =IF(BD2="","",AVERAGE(BD5:OFFSET(BD5,Input!$C$10-1,0))) ->  | BE4: =IF(BE2="","",AVERAGE(BE5:OFFSET(BE5,Input!$C$10-1,0))) ->  | BF4: =IF(BF2="","",AVERAGE(BF5:OFFSET(BF5,Input!$C$10-1,0))) ->  | BG4: =IF(BG2="","",AVERAGE(BG5:OFFSET(BG5,Input!$C$10-1,0))) ->  | BH4: =IF(BH2="","",AVERAGE(BH5:OFFSET(BH5,Input!$C$10-1,0))) ->  | BI4: =IF(BI2="","",AVERAGE(BI5:OFFSET(BI5,Input!$C$10-1,0))) ->  | BJ4: =IF(BJ2="","",AVERAGE(BJ5:OFFSET(BJ5,Input!$C$10-1,0))) ->  | BK4: =IF(BK2="","",AVERAGE(BK5:OFFSET(BK5,Input!$C$10-1,0))) ->  | BL4: =IF(BL2="","",AVERAGE(BL5:OFFSET(BL5,Input!$C$10-1,0))) ->  | BM4: =IF(BM2="","",AVERAGE(BM5:OFFSET(BM5,Input!$C$10-1,0))) ->  | BN4: =IF(BN2="","",AVERAGE(BN5:OFFSET(BN5,Input!$C$10-1,0))) ->  | BO4: =IF(BO2="","",AVERAGE(BO5:OFFSET(BO5,Input!$C$10-1,0))) ->  | BP4: =IF(BP2="","",AVERAGE(BP5:OFFSET(BP5,Input!$C$10-1,0))) ->  | BQ4: =IF(BQ2="","",AVERAGE(BQ5:OFFSET(BQ5,Input!$C$10-1,0))) ->  | BR4: =IF(BR2="","",AVERAGE(BR5:OFFSET(BR5,Input!$C$10-1,0))) ->  | BS4: =IF(BS2="","",AVERAGE(BS5:OFFSET(BS5,Input!$C$10-1,0))) ->  | BT4: =IF(BT2="","",AVERAGE(BT5:OFFSET(BT5,Input!$C$10-1,0))) ->  | BU4: =IF(BU2="","",AVERAGE(BU5:OFFSET(BU5,Input!$C$10-1,0))) ->  | BV4: =IF(BV2="","",AVERAGE(BV5:OFFSET(BV5,Input!$C$10-1,0))) ->  | BW4: =IF(BW2="","",AVERAGE(BW5:OFFSET(BW5,Input!$C$10-1,0))) ->  | BX4: =IF(BX2="","",AVERAGE(BX5:OFFSET(BX5,Input!$C$10-1,0))) ->  | BY4: =IF(BY2="","",AVERAGE(BY5:OFFSET(BY5,Input!$C$10-1,0))) ->  | BZ4: =IF(BZ2="","",AVERAGE(BZ5:OFFSET(BZ5,Input!$C$10-1,0))) ->  | CA4: =IF(CA2="","",AVERAGE(CA5:OFFSET(CA5,Input!$C$10-1,0))) ->  | CB4: =IF(CB2="","",AVERAGE(CB5:OFFSET(CB5,Input!$C$10-1,0))) ->  | CC4: =IF(CC2="","",AVERAGE(CC5:OFFSET(CC5,Input!$C$10-1,0))) ->  | CD4: =IF(CD2="","",AVERAGE(CD5:OFFSET(CD5,Input!$C$10-1,0))) ->  | CE4: =IF(CE2="","",AVERAGE(CE5:OFFSET(CE5,Input!$C$10-1,0))) ->  | CF4: =IF(CF2="","",AVERAGE(CF5:OFFSET(CF5,Input!$C$10-1,0))) ->  | CG4: =IF(CG2="","",AVERAGE(CG5:OFFSET(CG5,Input!$C$10-1,0))) ->  | CH4: =IF(CH2="","",AVERAGE(CH5:OFFSET(CH5,Input!$C$10-1,0))) ->  | CI4: =IF(CI2="","",AVERAGE(CI5:OFFSET(CI5,Input!$C$10-1,0))) ->  | CJ4: =IF(CJ2="","",AVERAGE(CJ5:OFFSET(CJ5,Input!$C$10-1,0))) ->  | CK4: =IF(CK2="","",AVERAGE(CK5:OFFSET(CK5,Input!$C$10-1,0))) ->  | CL4: =IF(CL2="","",AVERAGE(CL5:OFFSET(CL5,Input!$C$10-1,0))) ->  | CM4: =IF(CM2="","",AVERAGE(CM5:OFFSET(CM5,Input!$C$10-1,0))) ->  | CN4: =IF(CN2="","",AVERAGE(CN5:OFFSET(CN5,Input!$C$10-1,0))) ->  | CO4: =IF(CO2="","",AVERAGE(CO5:OFFSET(CO5,Input!$C$10-1,0))) ->  | CP4: =IF(CP2="","",AVERAGE(CP5:OFFSET(CP5,Input!$C$10-1,0))) ->  | CQ4: =IF(CQ2="","",AVERAGE(CQ5:OFFSET(CQ5,Input!$C$10-1,0))) ->  | CR4: =IF(CR2="","",AVERAGE(CR5:OFFSET(CR5,Input!$C$10-1,0))) ->  | CS4: =IF(CS2="","",AVERAGE(CS5:OFFSET(CS5,Input!$C$10-1,0))) ->  | CT4: =IF(CT2="","",AVERAGE(CT5:OFFSET(CT5,Input!$C$10-1,0))) ->  | CU4: =IF(CU2="","",AVERAGE(CU5:OFFSET(CU5,Input!$C$10-1,0))) ->  | CV4: =IF(CV2="","",AVERAGE(CV5:OFFSET(CV5,Input!$C$10-1,0))) ->  | CX4: =IF(CX2="","",AVERAGE(CX5:OFFSET(CX5,Input!$C$10-1,0))) -> 12067606.83 | CY4: =IF(CY2="","",AVERAGE(CY5:OFFSET(CY5,Input!$C$10-1,0))) -> 6243.814984 | CZ4: =IF(CZ2="","",AVERAGE(CZ5:OFFSET(CZ5,Input!$C$10-1,0))) -> 8502905.008 | DA4: =IF(DA2="","",AVERAGE(DA5:OFFSET(DA5,Input!$C$10-1,0))) -> 3916.823269 | DC4: =IF(DC2="","",AVERAGE(DC5:OFFSET(DC5,Input!$C$10-1,0))) -> 3564.701817 | DD4: =IF(DD2="","",AVERAGE(DD5:OFFSET(DD5,Input!$C$10-1,0))) -> 2.326991715 | DE4: =IF(DE2="","",AVERAGE(DE5:OFFSET(DE5,Input!$C$10-1,0))) -> 27674.17916 | DG4: results: | DI4: Threshold (£000s) | DJ4: Threshold | DK4: ="P(" & Intervention & " preferred)" -> P(HIPEC + CRS + Chemotherapy preferred) | DL4: ="P(" & Control & " preferred)" -> P(CRS + Chemotherapy preferred) | DM4: =IF(DM2="","",AVERAGE(DM5:OFFSET(DM5,Input!$C$10-1,0))) -> 362561292.2 | DN4: =IF(DN2="","",AVERAGE(DN5:OFFSET(DN5,Input!$C$10-1,0))) -> 226506491.1 | DO4: =IF(DO2="","",AVERAGE(DO5:OFFSET(DO5,Input!$C$10-1,0))) -> 136054801.1 | DQ4: Willingness-to-pay threshold | DR4: ="Probability that " & Intervention & " is cost-effective" -> Probability that HIPEC + CRS + Chemotherapy is cost-effective | EA4: Cost-effective | EB4: =IF(EB2="","",AVERAGE(EB5:OFFSET(EB5,Input!$C$10-1,0))) -> 112808692.9 | EC4: =IF(EC2="","",AVERAGE(EC5:OFFSET(EC5,Input!$C$10-1,0))) -> 69833560.37 | ED4: =IF(ED2="","",AVERAGE(ED5:OFFSET(ED5,Input!$C$10-1,0))) -> 42975132.49 | EF4: =IF(EF2="","",AVERAGE(EF5:OFFSET(EF5,Input!$C$10-1,0))) -> 126255546.7 | EG4: =IF(EG2="","",AVERAGE(EG5:OFFSET(EG5,Input!$C$10-1,0))) -> 13446853.81 | EJ4: Cost-effective | EK4: =IF(EK2="","",AVERAGE(EK5:OFFSET(EK5,Input!$C$10-1,0))) -> 175246842.7 | EL4: =IF(EL2="","",AVERAGE(EL5:OFFSET(EL5,Input!$C$10-1,0))) -> 109001793.1 | EM4: =IF(EM2="","",AVERAGE(EM5:OFFSET(EM5,Input!$C$10-1,0))) -> 66245049.64 | EO4: =IF(EO2="","",AVERAGE(EO5:OFFSET(EO5,Input!$C$10-1,0))) -> 194896992.9 | EP4: =IF(EP2="","",AVERAGE(EP5:OFFSET(EP5,Input!$C$10-1,0))) -> 19650150.17 | ES4: Costs | ET4: 13135071.55 | EU4: 19197427.76 | EX4: =IF(EX2="","",AVERAGE(EX5:OFFSET(EX5,Input!$C$10-1,0))) -> 12097313.39 | EY4: =IF(EY2="","",AVERAGE(EY5:OFFSET(EY5,Input!$C$10-1,0))) -> 6524.315917 | EZ4: =IF(EZ2="","",AVERAGE(EZ5:OFFSET(EZ5,Input!$C$10-1,0))) -> 8516712.485 | FA4: =IF(FA2="","",AVERAGE(FA5:OFFSET(FA5,Input!$C$10-1,0))) -> 4058.731068 | FB4: Cost-effective | FC4: =IF(FC2="","",AVERAGE(FC5:OFFSET(FC5,Input!$C$10-1,0))) -> 118389004.9 | FD4: =IF(FD2="","",AVERAGE(FD5:OFFSET(FD5,Input!$C$10-1,0))) -> 72657908.87 | FE4: =IF(FE2="","",AVERAGE(FE5:OFFSET(FE5,Input!$C$10-1,0))) -> 45731096.08 | FG4: =IF(FG2="","",AVERAGE(FG5:OFFSET(FG5,Input!$C$10-1,0))) -> 118453116 | FH4: =IF(FH2="","",AVERAGE(FH5:OFFSET(FH5,Input!$C$10-1,0))) -> 64111.00943 | FK4: Cost-effective | FL4: =IF(FL2="","",AVERAGE(FL5:OFFSET(FL5,Input!$C$10-1,0))) -> 183632164.1 | FM4: =IF(FM2="","",AVERAGE(FM5:OFFSET(FM5,Input!$C$10-1,0))) -> 113245219.5 | FN4: =IF(FN2="","",AVERAGE(FN5:OFFSET(FN5,Input!$C$10-1,0))) -> 70386944.57 | FP4: =IF(FP2="","",AVERAGE(FP5:OFFSET(FP5,Input!$C$10-1,0))) -> 183711584.1 | FQ4: =IF(FQ2="","",AVERAGE(FQ5:OFFSET(FQ5,Input!$C$10-1,0))) -> 79419.97156 | FT4: =ROW()-2 -> 2 | FU4: 43760697.32 | FV4: 67414181.6 | FW4: WTP: 30000 | FX4: =_xlfn.STDEV.S(FV$3:FV$32)/AVERAGE(FV$3:FV$32) -> 0.01515130186
A5: 1 | B5: 0.1329011475 | C5: 0.0001570360864 | D5: -0.2192156224 | E5: 0.133078886 | F5: 0.001948104859 | G5: 0.5766840055 | H5: 19762.74207 | I5: 12988.74687 | J5: 11408.08071 | K5: 7809.149078 | L5: 0.7732655876 | M5: 0.5966717128 | N5: 0.1242730296 | O5: 0.1792684847 | P5: 0.1641474932 | Q5: 0.8806013468 | CX5: 13889018.61 | CY5: 1639.87199 | CZ5: 8288090.89 | DA5: 5877.460774 | DC5: =IF($CX5="","",(CX5-CZ5)/1000) -> 5600.927715 | DD5: =IF($CX5="","",(CY5-DA5)/1000) -> -4.237588784 | DE5: =IF($CX5="","",DC5/DD5) -> -1321.72516 | DF5: =IF($CX5="","",IF(Threshold*DD5-DC5>0,Intervention,Control)) -> CRS + Chemotherapy | DG5: =Intervention -> HIPEC + CRS + Chemotherapy | DH5: =COUNTIF(DF5:OFFSET(DF5,Input!$C$10-1,0),DG5) -> 7185 | DI5: =DJ5/1000 -> 0 | DJ5: 0 | DK5: 0.0476 | DL5: =1-DK5 -> 0.9524 | DM5: =Threshold*CY5-CX5 -> 84503300.8 | DN5: =Threshold*DA5-CZ5 -> 344359555.6 | DO5: =DM5-DN5 -> -259856254.8 | EA5: =IF(COUNTIF(EE:EE,Intervention)>COUNTIF(EE:EE,Control),Intervention,Control) -> HIPEC + CRS + Chemotherapy | EB5: =20000*CY5-CX5 -> 18908421.2 | EC5: =20000*DA5-CZ5 -> 109261124.6 | ED5: =EB5-EC5 -> -90352703.4 | EE5: =IF(OR(EB5="",EC5=""),"",IF(EB5>EC5,Intervention,Control)) -> CRS + Chemotherapy | EF5: =IF(OR(EB5="",EC5=""),"",MAX(EB5,EC5)) -> 109261124.6 | EG5: =IF(OR(EB5="",EC5=""),"",IF(EE5=EA$5,0,IF(EA$5=Intervention,EC5-EB5,EB5-EC5))) -> 90352703.4 | EJ5: =IF(COUNTIF(EN:EN,Intervention)>COUNTIF(EN:EN,Control),Intervention,Control) -> HIPEC + CRS + Chemotherapy | EK5: =30000*CY5-CX5 -> 35307141.1 | EL5: =30000*DA5-CZ5 -> 168035732.3 | EM5: =EK5-EL5 -> -132728591.2 | EN5: =IF(OR(EK5="",EL5=""),"",IF(EK5>EL5,Intervention,Control)) -> CRS + Chemotherapy | EO5: =IF(OR(EK5="",EL5=""),"",MAX(EK5,EL5)) -> 168035732.3 | EP5: =IF(OR(EK5="",EL5=""),"",IF(EN5=EJ$5,0,IF(EJ$5=Intervention,EL5-EK5,EK5-EL5))) -> 132728591.2 | ES5: Quality of life | ET5: 65363.5011 | EU5: 81127.6724 | EX5: 10618776.95 | EY5: 7929.864544 | EZ5: 7547580.756 | FA5: 4221.870593 | FB5: =IF(COUNTIF(FF:FF,Intervention)>COUNTIF(FF:FF,Control),Intervention,Control) -> HIPEC + CRS + Chemotherapy | FC5: =20000*EY5-EX5 -> 147978513.9 | FD5: =20000*FA5-EZ5 -> 76889831.11 | FE5: =FC5-FD5 -> 71088682.83 | FF5: =IF(OR(FC5="",FD5=""),"",IF(FC5>FD5,Intervention,Control)) -> HIPEC + CRS + Chemotherapy | FG5: =IF(OR(FC5="",FD5=""),"",MAX(FC5,FD5)) -> 147978513.9 | FH5: =IF(OR(FC5="",FD5=""),"",IF(FF5=FB$5,0,IF(FB$5=Intervention,FD5-FC5,FC5-FD5))) -> 0 | FK5: =IF(COUNTIF(FO:FO,Intervention)>COUNTIF(FO:FO,Control),Intervention,Control) -> HIPEC + CRS + Chemotherapy | FL5: =30000*EY5-EX5 -> 227277159.4 | FM5: =30000*FA5-EZ5 -> 119108537 | FN5: =FL5-FM5 -> 108168622.3 | FO5: =IF(OR(FL5="",FM5=""),"",IF(FL5>FM5,Intervention,Control)) -> HIPEC + CRS + Chemotherapy | FP5: =IF(OR(FL5="",FM5=""),"",MAX(FL5,FM5)) -> 227277159.4 | FQ5: =IF(OR(FL5="",FM5=""),"",IF(FO5=FK$5,0,IF(FK$5=Intervention,FM5-FL5,FL5-FM5))) -> 0 | FT5: 3 | FU5: 45109554.63 | FV5: 69443013.62
A6: 2 | B6: 0.1555632447 | C6: 0.0005708012353 | D6: -0.3618265304 | E6: 0.1325173702 | F6: 0.001120564061 | G6: 0.5529090479 | H6: 11889.61412 | I6: 8259.010847 | J6: 13652.01328 | K6: 10095.98006 | L6: 0.422133552 | M6: 0.1238102811 | N6: 0.899201718 | O6: 0.7103496774 | P6: 0.6254401535 | Q6: 0.1847101088 | CX6: 8823799.272 | CY6: 6941.853312 | CZ6: 10567216.24 | DA6: 1232.658733 | DC6: =IF($CX6="","",(CX6-CZ6)/1000) -> -1743.416963 | DD6: =IF($CX6="","",(CY6-DA6)/1000) -> 5.709194579 | DE6: =IF($CX6="","",DC6/DD6) -> -305.3700376 | DF6: =IF($CX6="","",IF(Threshold*DD6-DC6>0,Intervention,Control)) -> HIPEC + CRS + Chemotherapy | DG6: =Control -> CRS + Chemotherapy | DH6: =COUNTIF(DF5:OFFSET(DF5,Input!$C$10-1,0),DG6) -> 2815 | DI6: 1 | DJ6: 1000 | DK6: 0.3928 | DL6: 0.6072 | DM6: =Threshold*CY6-CX6 -> 407687399.4 | DN6: =Threshold*DA6-CZ6 -> 63392307.74 | DO6: =DM6-DN6 -> 344295091.7 | EA6: Population | EB6: =20000*CY6-CX6 -> 130013267 | EC6: =20000*DA6-CZ6 -> 14085958.42 | ED6: =EB6-EC6 -> 115927308.5 | EE6: =IF(OR(EB6="",EC6=""),"",IF(EB6>EC6,Intervention,Control)) -> HIPEC + CRS + Chemotherapy | EF6: =IF(OR(EB6="",EC6=""),"",MAX(EB6,EC6)) -> 130013267 | EG6: =IF(OR(EB6="",EC6=""),"",IF(EE6=EA$5,0,IF(EA$5=Intervention,EC6-EB6,EB6-EC6))) -> 0 | EJ6: Population | EK6: =30000*CY6-CX6 -> 199431800.1 | EL6: =30000*DA6-CZ6 -> 26412545.75 | EM6: =EK6-EL6 -> 173019254.3 | EN6: =IF(OR(EK6="",EL6=""),"",IF(EK6>EL6,Intervention,Control)) -> HIPEC + CRS + Chemotherapy | EO6: =IF(OR(EK6="",EL6=""),"",MAX(EK6,EL6)) -> 199431800.1 | EP6: =IF(OR(EK6="",EL6=""),"",IF(EN6=EJ$5,0,IF(EJ$5=Intervention,EL6-EK6,EK6-EL6))) -> 0 | EX6: 13545144.59 | EY6: 8122.543418 | EZ6: 6910535.365 | FA6: 4130.220946 | FB6: Population | FC6: =20000*EY6-EX6 -> 148905723.8 | FD6: =20000*FA6-EZ6 -> 75693883.55 | FE6: =FC6-FD6 -> 73211840.22 | FF6: =IF(OR(FC6="",FD6=""),"",IF(FC6>FD6,Intervention,Control)) -> HIPEC + CRS + Chemotherapy | FG6: =IF(OR(FC6="",FD6=""),"",MAX(FC6,FD6)) -> 148905723.8 | FH6: =IF(OR(FC6="",FD6=""),"",IF(FF6=FB$5,0,IF(FB$5=Intervention,FD6-FC6,FC6-FD6))) -> 0 | FK6: Population | FL6: =30000*EY6-EX6 -> 230131158 | FM6: =30000*FA6-EZ6 -> 116996093 | FN6: =FL6-FM6 -> 113135064.9 | FO6: =IF(OR(FL6="",FM6=""),"",IF(FL6>FM6,Intervention,Control)) -> HIPEC + CRS + Chemotherapy | FP6: =IF(OR(FL6="",FM6=""),"",MAX(FL6,FM6)) -> 230131158 | FQ6: =IF(OR(FL6="",FM6=""),"",IF(FO6=FK$5,0,IF(FK$5=Intervention,FM6-FL6,FL6-FM6))) -> 0 | FT6: 4 | FU6: 43325981.63 | FV6: 66771028.03
A7: 3 | B7: 0.1424963595 | C7: 0.0003232495438 | D7: -0.1466283172 | E7: 0.1136790693 | F7: 0.002049393821 | G7: 0.5854397063 | H7: 14705.67708 | I7: 8657.979552 | J7: 15875.6375 | K7: 6406.786511 | L7: 0.5895755497 | M7: 0.3084511966 | N7: 0.8383169875 | O7: 0.1989833623 | P7: 0.2098264351 | Q7: 0.6298787456 | CX7: 9519754.433 | CY7: 1887.777888 | CZ7: 7483196.679 | DA7: 4294.270391 | DC7: 2036.557754 | DD7: -2.406492504 | DE7: -846.2763758 | DF7: CRS + Chemotherapy | DG7: Checksum: | DH7: =DH5+DH6 -> 10000 | DI7: 2 | DJ7: 2000 | DK7: 0.5656 | DL7: 0.4344 | DM7: 103746918.8 | DN7: 250173026.8 | DO7: -146426108 | EA7: 1000 | EB7: 28235803.33 | EC7: 78402211.15 | ED7: -50166407.82 | EE7: CRS + Chemotherapy | EF7: 78402211.15 | EG7: 50166407.82 | EJ7: 1000 | EK7: 47113582.21 | EL7: 121344915.1 | EM7: -74231332.86 | EN7: CRS + Chemotherapy | EO7: 121344915.1 | EP7: 74231332.86 | EX7: 9377759.203 | EY7: 6940.846846 | EZ7: 9580949.212 | FA7: 3947.646984 | FB7: 1000 | FC7: 129439177.7 | FD7: 69371990.46 | FE7: 60067187.25 | FF7: HIPEC + CRS + Chemotherapy | FG7: 129439177.7 | FH7: 0 | FK7: 1000 | FL7: 198847646.2 | FM7: 108848460.3 | FN7: 89999185.87 | FO7: HIPEC + CRS + Chemotherapy | FP7: 198847646.2 | FQ7: 0 | FT7: 5 | FU7: 44322570.29 | FV7: 68257589.4
A8: 4 | B8: 0.1331062846 | C8: 0.0004659255269 | D8: -0.3368992927 | E8: 0.1087737698 | F8: 0.0007195292867 | G8: 0.5561763487 | H8: 20592.27443 | I8: 10713.7168 | J8: 10384.4357 | K8: 9384.466644 | L8: 0.1430067581 | M8: 0.6166576213 | N8: 0.674897339 | O8: 0.1309171569 | P8: 0.5889583041 | Q8: 0.2030264318 | CX8: 12028614.9 | CY8: 6427.081506 | CZ8: 9493237.048 | DA8: 1312.635375 | DC8: 2535.377856 | DD8: 5.114446131 | DE8: 495.7287243 | DF8: HIPEC + CRS + Chemotherapy | DG8: ="Probability of " & Intervention & " being cost-effective" -> Probability of HIPEC + CRS + Chemotherapy being cost-effective | DH8: =DH5/DH7 -> 0.7185 | DI8: 3 | DJ8: 3000 | DK8: 0.62 | DL8: 0.38 | DM8: 373596275.4 | DN8: 69264885.46 | DO8: 304331390 | EA8: Population EVPI | EB8: 116513015.2 | EC8: 16759470.46 | ED8: 99753544.75 | EE8: HIPEC + CRS + Chemotherapy | EF8: 116513015.2 | EG8: 0 | EJ8: Population EVPI | EK8: 180783830.3 | EL8: 29885824.21 | EM8: 150898006.1 | EN8: HIPEC + CRS + Chemotherapy | EO8: 180783830.3 | EP8: 0 | EX8: 14190323.58 | EY8: 6283.122582 | EZ8: 7252500.716 | FA8: 4086.705015 | FB8: Population EVPI | FC8: 111472128.1 | FD8: 74481599.58 | FE8: 36990528.49 | FF8: HIPEC + CRS + Chemotherapy | FG8: 111472128.1 | FH8: 0 | FK8: Population EVPI | FL8: 174303353.9 | FM8: 115348649.7 | FN8: 58954704.16 | FO8: HIPEC + CRS + Chemotherapy | FP8: 174303353.9 | FQ8: 0 | FT8: 6 | FU8: 43208896.21 | FV8: 66617619.63
A9: 5 | B9: 0.1035755945 | C9: 0.0007654125067 | D9: -0.2856074304 | E9: 0.1135133217 | F9: 0.001980677829 | G9: 0.5857855777 | H9: 13407.7051 | I9: 8858.493124 | J9: 13388.4812 | K9: 7986.553593 | L9: 0.2034073682 | M9: 0.109499295 | N9: 0.8732383156 | O9: 0.6237370798 | P9: 0.8946445739 | Q9: 0.3198369215 | CX9: 9329680.459 | CY9: 9452.148274 | CZ9: 8599744.339 | DA9: 2225.041148 | DC9: 729.9361198 | DD9: 7.227107126 | DE9: 100.9997648 | DF9: HIPEC + CRS + Chemotherapy | DI9: 4 | DJ9: 4000 | DK9: 0.6476 | DL9: 0.3524 | DM9: 557799216 | DN9: 124902724.5 | DO9: 432896491.4 | EA9: =EG4*EA7/1000 -> 13446853.81 | EB9: 179713285 | EC9: 35901078.62 | ED9: 143812206.4 | EE9: HIPEC + CRS + Chemotherapy | EF9: 179713285 | EG9: 0 | EJ9: =EP4*EJ7/1000 -> 19650150.17 | EK9: 274234767.8 | EL9: 58151490.1 | EM9: 216083277.7 | EN9: HIPEC + CRS + Chemotherapy | EO9: 274234767.8 | EP9: 0 | EX9: 14299460.73 | EY9: 6955.534959 | EZ9: 6164852.398 | FA9: 4206.344933 | FB9: =FH4*FB7/1000 -> 64111.00943 | FC9: 124811238.4 | FD9: 77962046.27 | FE9: 46849192.18 | FF9: HIPEC + CRS + Chemotherapy | FG9: 124811238.4 | FH9: 0 | FK9: =FQ4*FK7/1000 -> 79419.97156 | FL9: 194366588 | FM9: 120025495.6 | FN9: 74341092.43 | FO9: HIPEC + CRS + Chemotherapy | FP9: 194366588 | FQ9: 0 | FT9: 7 | FU9: 42342037.32 | FV9: 65301226.07
A10: 6 | B10: 0.1029318754 | C10: 0.0002403374201 | D10: -0.3844112851 | E10: 0.1493691124 | F10: 0.001424294534 | G10: 0.6152885582 | H10: 19813.22874 | I10: 11102.17622 | J10: 12067.05403 | K10: 6493.063696 | L10: 0.5858606364 | M10: 0.1092163346 | N10: 0.789068611 | O10: 0.8989637394 | P10: 0.7274868277 | Q10: 0.20400121 | CX10: 11998821.19 | CY10: 8695.563118 | CZ10: 7325645.685 | DA10: 1550.076592 | DC10: 4673.175507 | DD10: 7.145486526 | DE10: 654.0038232 | DF10: HIPEC + CRS + Chemotherapy | DG10: CEAC chart: minimum | DH10: 0 | DI10: 5 | DJ10: 5000 | DK10: 0.6642 | DL10: 0.3358 | DM10: 509734965.9 | DN10: 85678949.84 | DO10: 424056016.1 | EB10: 161912441.2 | EC10: 23675886.16 | ED10: 138236555 | EE10: HIPEC + CRS + Chemotherapy | EF10: 161912441.2 | EG10: 0 | EK10: 248868072.4 | EL10: 39176652.08 | EM10: 209691420.3 | EN10: HIPEC + CRS + Chemotherapy | EO10: 248868072.4 | EP10: 0 | EX10: 14363327.34 | EY10: 7004.432946 | EZ10: 9778421.347 | FA10: 3878.593429 | FC10: 125725331.6 | FD10: 67793447.22 | FE10: 57931884.35 | FF10: HIPEC + CRS + Chemotherapy | FG10: 125725331.6 | FH10: 0 | FL10: 195769661 | FM10: 106579381.5 | FN10: 89190279.52 | FO10: HIPEC + CRS + Chemotherapy | FP10: 195769661 | FQ10: 0 | FT10: 8 | FU10: 43000789.38 | FV10: 66277710.6
A11: 7 | B11: 0.1822866572 | C11: 1.043893089e-05 | D11: -0.4125103312 | E11: 0.1354875279 | F11: 0.000739268991 | G11: 0.5033752322 | H11: 19587.89212 | I11: 14029.89251 | J11: 14887.1413 | K11: 8780.611511 | L11: 0.6428397506 | M11: 0.2892422512 | N11: 0.3013060457 | O11: 0.6010326368 | P11: 0.8995475268 | Q11: 0.5552120168 | CX11: 15043041.68 | CY11: 10123.59797 | CZ11: 9607970.137 | DA11: 3235.724139 | DC11: 5435.071545 | DD11: 6.887873828 | DE11: 789.0782672 | DF11: HIPEC + CRS + Chemotherapy | DG11: CEAC chart: maximum | DH11: 60000 | DI11: 6 | DJ11: 6000 | DK11: 0.6743 | DL11: 0.3257 | DM11: 592372836.4 | DN11: 184535478.2 | DO11: 407837358.2 | EB11: 187428917.7 | EC11: 55106512.65 | ED11: 132322405 | EE11: HIPEC + CRS + Chemotherapy | EF11: 187428917.7 | EG11: 0 | EK11: 288664897.3 | EL11: 87463754.04 | EM11: 201201143.3 | EN11: HIPEC + CRS + Chemotherapy | EO11: 288664897.3 | EP11: 0 | EX11: 11276780.09 | EY11: 6473.137602 | EZ11: 10346746.53 | FA11: 3762.975747 | FC11: 118185972 | FD11: 64912768.41 | FE11: 53273203.54 | FF11: HIPEC + CRS + Chemotherapy | FG11: 118185972 | FH11: 0 | FL11: 182917348 | FM11: 102542525.9 | FN11: 80374822.09 | FO11: HIPEC + CRS + Chemotherapy | FP11: 182917348 | FQ11: 0 | FT11: 9 | FU11: 42544820.99 | FV11: 65606562.01
A12: 8 | B12: 0.1199921515 | C12: 0.0003824514966 | D12: -0.3464553612 | E12: 0.1481018845 | F12: 0.001184238889 | G12: 0.5512354346 | H12: 18727.89708 | I12: 14739.55881 | J12: 14685.74404 | K12: 7925.416217 | L12: 0.8714451071 | M12: 0.8998504866 | N12: 0.8424658099 | O12: 0.2867606146 | P12: 0.1242963055 | Q12: 0.6451419662 | CX12: 15218128.1 | CY12: 1428.892188 | CZ12: 8926633.508 | DA12: 4107.970982 | DC12: 6291.494594 | DD12: -2.679078794 | DE12: -2348.379827 | DF12: CRS + Chemotherapy | DI12: 7 | DJ12: 7000 | DK12: 0.6798 | DL12: 0.3202 | DM12: 70515403.16 | DN12: 237551625.4 | DO12: -167036222.2 | EB12: 13359715.65 | EC12: 73232786.13 | ED12: -59873070.48 | EE12: CRS + Chemotherapy | EF12: 73232786.13 | EG12: 59873070.48 | EK12: 27648637.53 | EL12: 114312496 | EM12: -86663858.42 | EN12: CRS + Chemotherapy | EO12: 114312496 | EP12: 86663858.42 | EX12: 10423008.24 | EY12: 6486.984235 | EZ12: 7195491.52 | FA12: 4246.89814 | FC12: 119316676.5 | FD12: 77742471.29 | FE12: 41574205.17 | FF12: HIPEC + CRS + Chemotherapy | FG12: 119316676.5 | FH12: 0 | FL12: 184186518.8 | FM12: 120211452.7 | FN12: 63975066.12 | FO12: HIPEC + CRS + Chemotherapy | FP12: 184186518.8 | FQ12: 0 | FT12: 10 | FU12: 43220313.92 | FV12: 66599591.71
A13: 9 | B13: 0.1230850092 | C13: 4.93868524e-05 | D13: -0.3216138707 | E13: 0.1524985699 | F13: 0.001028716273 | G13: 0.5612862276 | H13: 16341.1568 | I13: 12073.08393 | J13: 8766.172471 | K13: 10007.91368 | L13: 0.2175200551 | M13: 0.8371531467 | N13: 0.3830686291 | O13: 0.8903906105 | P13: 0.4361437465 | Q13: 0.6681885196 | CX13: 12598419.72 | CY13: 4737.572588 | CZ13: 9818549.923 | DA13: 4379.766804 | DC13: 2779.869797 | DD13: 0.3578057842 | DE13: 7769.214249 | DF13: HIPEC + CRS + Chemotherapy | DI13: 8 | DJ13: 8000 | DK13: 0.686 | DL13: 0.314 | DM13: 271655935.6 | DN13: 252967458.3 | DO13: 18688477.25 | EB13: 82153032.04 | EC13: 77776786.16 | ED13: 4376245.887 | EE13: HIPEC + CRS + Chemotherapy | EF13: 82153032.04 | EG13: 0 | EK13: 129528757.9 | EL13: 121574454.2 | EM13: 7954303.729 | EN13: HIPEC + CRS + Chemotherapy | EO13: 129528757.9 | EP13: 0 | EX13: 10889499.85 | EY13: 6089.151904 | EZ13: 8572606.89 | FA13: 3772.739688 | FC13: 110893538.2 | FD13: 66882186.87 | FE13: 44011351.35 | FF13: HIPEC + CRS + Chemotherapy | FG13: 110893538.2 | FH13: 0 | FL13: 171785057.3 | FM13: 104609583.8 | FN13: 67175473.51 | FO13: HIPEC + CRS + Chemotherapy | FP13: 171785057.3 | FQ13: 0 | FT13: 11 | FU13: 43591913.84 | FV13: 67178981.68
A14: 10 | B14: 0.1334541984 | C14: 0.0005426992526 | D14: -0.1489280891 | E14: 0.126480358 | F14: 0.002179753733 | G14: 0.5732308909 | H14: 14292.19896 | I14: 10126.62298 | J14: 15521.86493 | K14: 5628.625133 | L14: 0.4490440668 | M14: 0.8133133772 | N14: 0.3471998858 | O14: 0.895097598 | P14: 0.8997191517 | Q14: 0.7286423029 | CX14: 10682536.58 | CY14: 7925.1502 | CZ14: 6879925.644 | DA14: 4883.945461 | DC14: 3802.610935 | DD14: 3.041204739 | DE14: 1250.363347 | DF14: HIPEC + CRS + Chemotherapy | DI14: 9 | DJ14: 9000 | DK14: 0.6904 | DL14: 0.3096 | DM14: 464826475.4 | DN14: 286156802 | DO14: 178669673.4 | EB14: 147820467.4 | EC14: 90798983.57 | ED14: 57021483.84 | EE14: HIPEC + CRS + Chemotherapy | EF14: 147820467.4 | EG14: 0 | EK14: 227071969.4 | EL14: 139638438.2 | EM14: 87433531.23 | EN14: HIPEC + CRS + Chemotherapy | EO14: 227071969.4 | EP14: 0 | EX14: 10806312.36 | EY14: 6737.305485 | EZ14: 10277013.19 | FA14: 3945.636588 | FC14: 123939797.3 | FD14: 68635718.58 | FE14: 55304078.76 | FF14: HIPEC + CRS + Chemotherapy | FG14: 123939797.3 | FH14: 0 | FL14: 191312852.2 | FM14: 108092084.5 | FN14: 83220767.72 | FO14: HIPEC + CRS + Chemotherapy | FP14: 191312852.2 | FQ14: 0 | FT14: 12 | FU14: 42906500.86 | FV14: 66151076.29
A15: 11 | B15: 0.1460082605 | C15: 0.00166230529 | D15: -0.3672064756 | E15: 0.1012279653 | F15: 0.0007836723582 | G15: 0.5379401051 | H15: 14294.07703 | I15: 12510.92479 | J15: 13325.81897 | K15: 8132.450115 | L15: 0.7300670005 | M15: 0.2021072912 | N15: 0.791357742 | O15: 0.1694346093 | P15: 0.1048055331 | Q15: 0.3830794062 | CX15: 12771279.74 | CY15: 1175.031594 | CZ15: 8658164.277 | DA15: 2376.589005 | DC15: 4113.115468 | DD15: -1.201557411 | DE15: -3423.15351 | DF15: CRS + Chemotherapy | DI15: 10 | DJ15: 10000 | DK15: 0.6941 | DL15: 0.3059 | DM15: 57730615.91 | DN15: 133937176 | DO15: -76206560.11 | EB15: 10729352.14 | EC15: 38873615.82 | ED15: -28144263.68 | EE15: CRS + Chemotherapy | EF15: 38873615.82 | EG15: 28144263.68 | EK15: 22479668.08 | EL15: 62639505.87 | EM15: -40159837.79 | EN15: CRS + Chemotherapy | EO15: 62639505.87 | EP15: 40159837.79 | EX15: 11304713.49 | EY15: 7515.951444 | EZ15: 8655097.535 | FA15: 4178.048952 | FC15: 139014315.4 | FD15: 74905881.51 | FE15: 64108433.88 | FF15: HIPEC + CRS + Chemotherapy | FG15: 139014315.4 | FH15: 0 | FL15: 214173829.8 | FM15: 116686371 | FN15: 97487458.8 | FO15: HIPEC + CRS + Chemotherapy | FP15: 214173829.8 | FQ15: 0 | FT15: 13 | FU15: 44199302.18 | FV15: 68065816.44
A16: 12 | B16: 0.1359902482 | C16: 0.0002043738554 | D16: -0.5725114811 | E16: 0.09934266066 | F16: 0.001154957979 | G16: 0.6059874787 | H16: 12827.25161 | I16: 13914.54205 | J16: 13471.07098 | K16: 6918.449522 | L16: 0.4740449624 | M16: 0.2954101166 | N16: 0.1192872269 | O16: 0.5708622343 | P16: 0.5262069032 | Q16: 0.878128838 | CX16: 13766681.15 | CY16: 7166.097096 | CZ16: 7569404.372 | DA16: 6273.72925 | DC16: 6197.276779 | DD16: 0.8923678463 | DE16: 6944.755803 | DF16: HIPEC + CRS + Chemotherapy | DI16: 11 | DJ16: 11000 | DK16: 0.6968 | DL16: 0.3032 | DM16: 416199144.6 | DN16: 368854350.6 | DO16: 47344794 | EB16: 129555260.8 | EC16: 117905180.6 | ED16: 11650080.15 | EE16: HIPEC + CRS + Chemotherapy | EF16: 129555260.8 | EG16: 0 | EK16: 201216231.7 | EL16: 180642473.1 | EM16: 20573758.61 | EN16: HIPEC + CRS + Chemotherapy | EO16: 201216231.7 | EP16: 0 | EX16: 11356216.07 | EY16: 7433.934477 | EZ16: 8365889.048 | FA16: 4383.602997 | FC16: 137322473.5 | FD16: 79306170.9 | FE16: 58016302.57 | FF16: HIPEC + CRS + Chemotherapy | FG16: 137322473.5 | FH16: 0 | FL16: 211661818.2 | FM16: 123142200.9 | FN16: 88519617.37 | FO16: HIPEC + CRS + Chemotherapy | FP16: 211661818.2 | FQ16: 0 | FT16: 14 | FU16: 43751871.55 | FV16: 67402398.17
A17: 13 | B17: 0.1512952354 | C17: 0.001381259871 | D17: -0.3063553283 | E17: 0.120521784 | F17: 0.000373341047 | G17: 0.5366625104 | H17: 14750.34664 | I17: 11052.47985 | J17: 9787.822192 | K17: 8056.304636 | L17: 0.6603357082 | M17: 0.2205567308 | N17: 0.3684257335 | O17: 0.8735878512 | P17: 0.5960924192 | Q17: 0.6712520817 | CX17: 11611949.48 | CY17: 6161.798897 | CZ17: 8264990.221 | DA17: 4189.278887 | DC17: 3346.959255 | DD17: 1.972520009 | DE17: 1696.793563 | DF17: HIPEC + CRS + Chemotherapy | DI17: 12 | DJ17: 12000 | DK17: 0.6992 | DL17: 0.3008 | DM17: 358095984.3 | DN17: 243091743 | DO17: 115004241.3 | EB17: 111624028.5 | EC17: 75520587.53 | ED17: 36103440.93 | EE17: HIPEC + CRS + Chemotherapy | EF17: 111624028.5 | EG17: 0 | EK17: 173242017.4 | EL17: 117413376.4 | EM17: 55828641.02 | EN17: HIPEC + CRS + Chemotherapy | EO17: 173242017.4 | EP17: 0 | EX17: 15179795.56 | EY17: 6231.575998 | EZ17: 9846136.961 | FA17: 4213.256523 | FC17: 109451724.4 | FD17: 74418993.49 | FE17: 35032730.92 | FF17: HIPEC + CRS + Chemotherapy | FG17: 109451724.4 | FH17: 0 | FL17: 171767484.4 | FM17: 116551558.7 | FN17: 55215925.68 | FO17: HIPEC + CRS + Chemotherapy | FP17: 171767484.4 | FQ17: 0 | FT17: 15 | FU17: 44049497.61 | FV17: 67848497.22
A18: 14 | B18: 0.1367385441 | C18: 0.0002613644772 | D18: -0.3787284877 | E18: 0.1227567484 | F18: 0.001419589094 | G18: 0.5113980119 | H18: 14128.05923 | I18: 14091.20653 | J18: 9905.813757 | K18: 5725.338846 | L18: 0.3749541462 | M18: 0.1473666437 | N18: 0.897146426 | O18: 0.8872195738 | P18: 0.8956992867 | Q18: 0.3550028063 | CX18: 14096245.71 | CY18: 9789.670105 | CZ18: 6238520.352 | DA18: 2144.10349 | DC18: 7857.725361 | DD18: 7.645566615 | DE18: 1027.749251 | DF18: HIPEC + CRS + Chemotherapy | DI18: 13 | DJ18: 13000 | DK18: 0.7015 | DL18: 0.2985 | DM18: 573283960.6 | DN18: 122407689 | DO18: 450876271.6 | EB18: 181697156.4 | EC18: 36643549.44 | ED18: 145053606.9 | EE18: HIPEC + CRS + Chemotherapy | EF18: 181697156.4 | EG18: 0 | EK18: 279593857.4 | EL18: 58084584.34 | EM18: 221509273.1 | EN18: HIPEC + CRS + Chemotherapy | EO18: 279593857.4 | EP18: 0 | EX18: 10429032.84 | EY18: 6062.124293 | EZ18: 9187389.79 | FA18: 4275.431002 | FC18: 110813453 | FD18: 76321230.25 | FE18: 34492222.77 | FF18: HIPEC + CRS + Chemotherapy | FG18: 110813453 | FH18: 0 | FL18: 171434695.9 | FM18: 119075540.3 | FN18: 52359155.67 | FO18: HIPEC + CRS + Chemotherapy | FP18: 171434695.9 | FQ18: 0 | FT18: 16 | FU18: 44148891.97 | FV18: 68014490.93
A19: 15 | B19: 0.117461366 | C19: 9.214978865e-05 | D19: -0.3744815765 | E19: 0.08660233455 | F19: 0.001261887315 | G19: 0.5957969745 | H19: 19010.03575 | I19: 10384.93297 | J19: 13844.19805 | K19: 5971.99778 | L19: 0.1015769233 | M19: 0.7334927536 | N19: 0.885423891 | O19: 0.1012870251 | P19: 0.1921530355 | Q19: 0.5855770604 | CX19: 11398049.32 | CY19: 2289.672954 | CZ19: 6653748.701 | DA19: 4077.43299 | DC19: 4744.300623 | DD19: -1.787760036 | DE19: -2653.768138 | DF19: CRS + Chemotherapy | DI19: 14 | DJ19: 14000 | DK19: 0.7029 | DL19: 0.2971 | DM19: 125982327.9 | DN19: 237992230.7 | DO19: -112009902.8 | EB19: 34395409.76 | EC19: 74894911.11 | ED19: -40499501.35 | EE19: CRS + Chemotherapy | EF19: 74894911.11 | EG19: 40499501.35 | EK19: 57292139.3 | EL19: 115669241 | EM19: -58377101.71 | EN19: CRS + Chemotherapy | EO19: 115669241 | EP19: 58377101.71 | ES19: =IF(Input!K28="","",Input!K28) ->  | EX19: 9430975.298 | EY19: 6014.867433 | EZ19: 9096298.557 | FA19: 3888.309806 | FC19: 110866373.4 | FD19: 68669897.57 | FE19: 42196475.8 | FF19: HIPEC + CRS + Chemotherapy | FG19: 110866373.4 | FH19: 0 | FL19: 171015047.7 | FM19: 107552995.6 | FN19: 63462052.07 | FO19: HIPEC + CRS + Chemotherapy | FP19: 171015047.7 | FQ19: 0 | FT19: 17 | FU19: 43675597.99 | FV19: 67286401.16
A20: 16 | B20: 0.1134064829 | C20: 0.0006288112371 | D20: -0.4154187965 | E20: 0.1125301752 | F20: 0.001221591804 | G20: 0.6302828362 | H20: 16964.3712 | I20: 10943.70723 | J20: 11685.16466 | K20: 6756.143657 | L20: 0.8068019413 | M20: 0.8115503572 | N20: 0.8391666695 | O20: 0.455785974 | P20: 0.8567050307 | Q20: 0.4371199263 | CX20: 11626489.56 | CY20: 10688.13112 | CZ20: 7310807.254 | DA20: 3313.144229 | DC20: 4315.682305 | DD20: 7.374986894 | DE20: 585.1783016 | DF20: HIPEC + CRS + Chemotherapy | DI20: 15 | DJ20: 15000 | DK20: 0.7048 | DL20: 0.2952 | DM20: 629661377.8 | DN20: 191477846.5 | DO20: 438183531.3 | EB20: 202136132.9 | EC20: 58952077.32 | ED20: 143184055.6 | EE20: HIPEC + CRS + Chemotherapy | EF20: 202136132.9 | EG20: 0 | EK20: 309017444.1 | EL20: 92083519.6 | EM20: 216933924.5 | EN20: HIPEC + CRS + Chemotherapy | EO20: 309017444.1 | EP20: 0 | ES20: =IF(Input!K29="","",Input!K29) ->  | EX20: 11351059.11 | EY20: 7409.084675 | EZ20: 8493249.873 | FA20: 3764.473363 | FC20: 136830634.4 | FD20: 66796217.38 | FE20: 70034417.02 | FF20: HIPEC + CRS + Chemotherapy | FG20: 136830634.4 | FH20: 0 | FL20: 210921481.2 | FM20: 104440951 | FN20: 106480530.1 | FO20: HIPEC + CRS + Chemotherapy | FP20: 210921481.2 | FQ20: 0 | FT20: 18 | FU20: 43782663.03 | FV20: 67448155.24
A21: 17 | B21: 0.1040939696 | C21: 0.0001497259603 | D21: -0.3156792989 | E21: 0.1029277595 | F21: 0.0001885209518 | G21: 0.5935400201 | H21: 18193.3699 | I21: 9124.037323 | J21: 9944.31265 | K21: 7135.984005 | L21: 0.7240731211 | M21: 0.5134962175 | N21: 0.161201271 | O21: 0.3789187901 | P21: 0.6781412705 | Q21: 0.6802618333 | CX21: 10068100.15 | CY21: 7490.931917 | CZ21: 7425038.98 | DA21: 4732.398442 | DC21: 2643.061172 | DD21: 2.758533475 | DE21: 958.1399667 | DF21: HIPEC + CRS + Chemotherapy | DI21: 16 | DJ21: 16000 | DK21: 0.7056 | DL21: 0.2944 | DM21: 439387814.8 | DN21: 276518867.5 | DO21: 162868947.3 | EB21: 139750538.2 | EC21: 87222929.85 | ED21: 52527608.33 | EE21: HIPEC + CRS + Chemotherapy | EF21: 139750538.2 | EG21: 0 | EK21: 214659857.3 | EL21: 134546914.3 | EM21: 80112943.08 | EN21: HIPEC + CRS + Chemotherapy | EO21: 214659857.3 | EP21: 0 | ES21: =IF(Input!K30="","",Input!K30) ->  | EX21: 9811351.318 | EY21: 6411.574158 | EZ21: 6692206.566 | FA21: 3913.646706 | FC21: 118420131.8 | FD21: 71580727.56 | FE21: 46839404.28 | FF21: HIPEC + CRS + Chemotherapy | FG21: 118420131.8 | FH21: 0 | FL21: 182535873.4 | FM21: 110717194.6 | FN21: 71818678.8 | FO21: HIPEC + CRS + Chemotherapy | FP21: 182535873.4 | FQ21: 0 | FT21: 19 | FU21: 43449089.33 | FV21: 66950099.6
A22: 18 | B22: 0.1292415324 | C22: 3.959272914e-05 | D22: -0.3644233384 | E22: 0.1170633585 | F22: 0.0005556392532 | G22: 0.5115975425 | H22: 12281.21923 | I22: 14685.95814 | J22: 14441.73452 | K22: 6057.26054 | L22: 0.4484017358 | M22: 0.318370471 | N22: 0.1728183167 | O22: 0.7532541079 | P22: 0.8746680649 | Q22: 0.59560746 | CX22: 14375166 | CY22: 9437.804872 | CZ22: 7038775.224 | DA22: 3534.720016 | DC22: 7336.390773 | DD22: 5.903084856 | DE22: 1242.806253 | DF22: HIPEC + CRS + Chemotherapy | DI22: 17 | DJ22: 17000 | DK22: 0.7062 | DL22: 0.2938 | DM22: 551893126.3 | DN22: 205044425.7 | DO22: 346848700.6 | EB22: 174380931.4 | EC22: 63655625.1 | ED22: 110725306.3 | EE22: HIPEC + CRS + Chemotherapy | EF22: 174380931.4 | EG22: 0 | EK22: 268758980.2 | EL22: 99002825.26 | EM22: 169756154.9 | EN22: HIPEC + CRS + Chemotherapy | EO22: 268758980.2 | EP22: 0 | ES22: =IF(Input!K31="","",Input!K31) ->  | EX22: 11958656.19 | EY22: 6737.791326 | EZ22: 8564678.332 | FA22: 3461.632206 | FC22: 122797170.3 | FD22: 60667965.79 | FE22: 62129204.54 | FF22: HIPEC + CRS + Chemotherapy | FG22: 122797170.3 | FH22: 0 | FL22: 190175083.6 | FM22: 95284287.86 | FN22: 94890795.73 | FO22: HIPEC + CRS + Chemotherapy | FP22: 190175083.6 | FQ22: 0 | FT22: 20 | FU22: 44961519.18 | FV22: 69206084.26
A23: 19 | B23: 0.1253054665 | C23: 0.001190430554 | D23: -0.3249998235 | E23: 0.1331005595 | F23: 0.0007858150781 | G23: 0.5921675414 | H23: 11478.46797 | I23: 12432.22612 | J23: 11981.61132 | K23: 10272.24422 | L23: 0.1821355746 | M23: 0.8690375506 | N23: 0.1450678196 | O23: 0.3759047507 | P23: 0.8753205561 | Q23: 0.8980795898 | CX23: 12312715.01 | CY23: 9742.731978 | CZ23: 10499761.94 | DA23: 6215.305966 | DC23: 1812.953073 | DD23: 3.527426012 | DE23: 513.9592062 | DF23: HIPEC + CRS + Chemotherapy | DI23: 18 | DJ23: 18000 | DK23: 0.7074 | DL23: 0.2926 | DM23: 572251203.7 | DN23: 362418596 | DO23: 209832607.6 | EB23: 182541924.5 | EC23: 113806357.4 | ED23: 68735567.16 | EE23: HIPEC + CRS + Chemotherapy | EF23: 182541924.5 | EG23: 0 | EK23: 279969244.3 | EL23: 175959417.1 | EM23: 104009827.3 | EN23: HIPEC + CRS + Chemotherapy | EO23: 279969244.3 | EP23: 0 | ES23: =IF(Input!K32="","",Input!K32) ->  | EX23: 13755658.6 | EY23: 5794.913645 | EZ23: 9270823.715 | FA23: 3625.99687 | FC23: 102142614.3 | FD23: 63249113.69 | FE23: 38893500.62 | FF23: HIPEC + CRS + Chemotherapy | FG23: 102142614.3 | FH23: 0 | FL23: 160091750.8 | FM23: 99509082.39 | FN23: 60582668.38 | FO23: HIPEC + CRS + Chemotherapy | FP23: 160091750.8 | FQ23: 0 | FT23: 21 | FU23: 43736281.26 | FV23: 67372901.42
A24: 20 | B24: 0.128589904 | C24: 0.000531730301 | D24: -0.2633676564 | E24: 0.1277680273 | F24: 0.0007738329415 | G24: 0.5920052088 | H24: 16246.09218 | I24: 11750.77861 | J24: 9990.801275 | K24: 5872.457848 | L24: 0.3987171983 | M24: 0.3673956954 | N24: 0.4943730859 | O24: 0.8993492595 | P24: 0.5815233359 | Q24: 0.5755843822 | CX24: 12328830.55 | CY24: 6061.706687 | CZ24: 6398650.463 | DA24: 4034.267609 | DC24: 5930.180086 | DD24: 2.027439078 | DE24: 2924.960928 | DF24: HIPEC + CRS + Chemotherapy | DI24: 19 | DJ24: 19000 | DK24: 0.7081 | DL24: 0.2919 | DM24: 351373570.6 | DN24: 235657406.1 | DO24: 115716164.6 | EB24: 108905303.2 | EC24: 74286701.72 | ED24: 34618601.47 | EE24: HIPEC + CRS + Chemotherapy | EF24: 108905303.2 | EG24: 0 | EK24: 169522370 | EL24: 114629377.8 | EM24: 54892992.24 | EN24: HIPEC + CRS + Chemotherapy | EO24: 169522370 | EP24: 0 | ES24: =IF(Input!K33="","",Input!K33) ->  | EX24: 13671417.44 | EY24: 6150.36096 | EZ24: 7047385.477 | FA24: 3923.560603 | FC24: 109335801.7 | FD24: 71423826.59 | FE24: 37911975.16 | FF24: HIPEC + CRS + Chemotherapy | FG24: 109335801.7 | FH24: 0 | FL24: 170839411.3 | FM24: 110659432.6 | FN24: 60179978.72 | FO24: HIPEC + CRS + Chemotherapy | FP24: 170839411.3 | FQ24: 0 | FT24: 22 | FU24: 44021485.6 | FV24: 67817599.34
A25: 21 | B25: 0.1417070797 | C25: 4.25355261e-05 | D25: -0.5841361481 | E25: 0.1233765914 | F25: 0.001782841562 | G25: 0.5473408416 | H25: 13010.91106 | I25: 13484.31086 | J25: 11225.57143 | K25: 9708.981566 | L25: 0.2423550887 | M25: 0.552433536 | N25: 0.1101011279 | O25: 0.3537422737 | P25: 0.7364657454 | Q25: 0.1997356102 | CX25: 13417226.76 | CY25: 9768.474165 | CZ25: 9896093.254 | DA25: 1278.509608 | DC25: 3521.133505 | DD25: 8.489964558 | DE25: 414.7406602 | DF25: HIPEC + CRS + Chemotherapy | DI25: 20 | DJ25: 20000 | DK25: 0.7087 | DL25: 0.2913 | DM25: 572691223.2 | DN25: 66814483.21 | DO25: 505876739.9 | EB25: 181952256.5 | EC25: 15674098.9 | ED25: 166278157.6 | EE25: HIPEC + CRS + Chemotherapy | EF25: 181952256.5 | EG25: 0 | EK25: 279636998.2 | EL25: 28459194.98 | EM25: 251177803.2 | EN25: HIPEC + CRS + Chemotherapy | EO25: 279636998.2 | EP25: 0 | ES25: =IF(Input!K34="","",Input!K34) ->  | EX25: 14544176.16 | EY25: 5211.450416 | EZ25: 8377635.629 | FA25: 3714.795426 | FC25: 89684832.17 | FD25: 65918272.9 | FE25: 23766559.27 | FF25: HIPEC + CRS + Chemotherapy | FG25: 89684832.17 | FH25: 0 | FL25: 141799336.3 | FM25: 103066227.2 | FN25: 38733109.17 | FO25: HIPEC + CRS + Chemotherapy | FP25: 141799336.3 | FQ25: 0 | FT25: 23 | FU25: 43369130.75 | FV25: 66816298.39
A26: 22 | B26: 0.1435389847 | C26: 0.001406767821 | D26: -0.3281113154 | E26: 0.1221752183 | F26: 0.0009546269132 | G26: 0.4782991146 | H26: 20067.42912 | I26: 14885.32349 | J26: 9853.82953 | K26: 8432.25725 | L26: 0.2407259089 | M26: 0.8350395254 | N26: 0.1688171544 | O26: 0.8994264812 | P26: 0.1556827718 | Q26: 0.1465752797 | CX26: 15629157.67 | CY26: 1629.571749 | CZ26: 8605938.154 | DA26: 869.1375756 | DC26: 7023.219513 | DD26: 0.7604341732 | DE26: 9235.802073 | DF26: HIPEC + CRS + Chemotherapy | DI26: 21 | DJ26: 21000 | DK26: 0.7095 | DL26: 0.2905 | DM26: 82145147.26 | DN26: 43542316.38 | DO26: 38602830.88 | EB26: 16962277.31 | EC26: 8776813.358 | ED26: 8185463.951 | EE26: HIPEC + CRS + Chemotherapy | EF26: 16962277.31 | EG26: 0 | EK26: 33257994.8 | EL26: 17468189.11 | EM26: 15789805.68 | EN26: HIPEC + CRS + Chemotherapy | EO26: 33257994.8 | EP26: 0 | ES26: =IF(Input!K35="","",Input!K35) ->  | EX26: 8510574.805 | EY26: 7647.985824 | EZ26: 8005498.776 | FA26: 3936.083773 | FC26: 144449141.7 | FD26: 70716176.69 | FE26: 73732965 | FF26: HIPEC + CRS + Chemotherapy | FG26: 144449141.7 | FH26: 0 | FL26: 220928999.9 | FM26: 110077014.4 | FN26: 110851985.5 | FO26: HIPEC + CRS + Chemotherapy | FP26: 220928999.9 | FQ26: 0 | FT26: 24 | FU26: 44603965.16 | FV26: 68692229.65
A27: 23 | B27: 0.1371856485 | C27: 0.0005280831563 | D27: -0.5245619162 | E27: 0.1232889967 | F27: 0.001785834174 | G27: 0.5216645316 | H27: 19415.88276 | I27: 12005.16092 | J27: 10487.46951 | K27: 7508.701016 | L27: 0.1087891343 | M27: 0.3458699539 | N27: 0.8780399986 | O27: 0.7810673875 | P27: 0.2361111003 | Q27: 0.8450667273 | CX27: 13021805.6 | CY27: 2971.969579 | CZ27: 7875950.395 | DA27: 5093.611735 | DC27: 5145.855203 | DD27: -2.121642157 | DE27: -2425.411461 | DF27: CRS + Chemotherapy | DI27: 22 | DJ27: 22000 | DK27: 0.7098 | DL27: 0.2902 | DM27: 165296369.1 | DN27: 297740753.7 | DO27: -132444384.6 | EB27: 46417585.98 | EC27: 93996284.31 | ED27: -47578698.33 | EE27: CRS + Chemotherapy | EF27: 93996284.31 | EG27: 47578698.33 | EK27: 76137281.76 | EL27: 144932401.7 | EM27: -68795119.9 | EN27: CRS + Chemotherapy | EO27: 144932401.7 | EP27: 68795119.9 | ES27: =IF(Input!K36="","",Input!K36) ->  | EX27: 15006700.17 | EY27: 6146.375715 | EZ27: 7483465.443 | FA27: 3448.588614 | FC27: 107920814.1 | FD27: 61488306.84 | FE27: 46432507.29 | FF27: HIPEC + CRS + Chemotherapy | FG27: 107920814.1 | FH27: 0 | FL27: 169384571.3 | FM27: 95974192.99 | FN27: 73410378.3 | FO27: HIPEC + CRS + Chemotherapy | FP27: 169384571.3 | FQ27: 0 | FT27: 25 | FU27: 43564256.34 | FV27: 67117269.26
A28: 24 | B28: 0.1280032963 | C28: 0.0007258634495 | D28: -0.2211320813 | E28: 0.1251696388 | F28: 0.0006002909345 | G28: 0.5412203775 | H28: 11902.09347 | I28: 14286.5345 | J28: 9423.792771 | K28: 9395.465599 | L28: 0.612502352 | M28: 0.4941628571 | N28: 0.8905005448 | O28: 0.825926976 | P28: 0.7810432152 | Q28: 0.8377494748 | CX28: 13981318.19 | CY28: 7318.285526 | CZ28: 9399011.301 | DA28: 5259.910152 | DC28: 4582.306884 | DD28: 2.058375374 | DE28: 2226.1765 | DF28: HIPEC + CRS + Chemotherapy | DI28: 23 | DJ28: 23000 | DK28: 0.7105 | DL28: 0.2895 | DM28: 425115813.3 | DN28: 306195597.8 | DO28: 118920215.5 | EB28: 132384392.3 | EC28: 95799191.74 | ED28: 36585200.59 | EE28: HIPEC + CRS + Chemotherapy | EF28: 132384392.3 | EG28: 0 | EK28: 205567247.6 | EL28: 148398293.3 | EM28: 57168954.32 | EN28: HIPEC + CRS + Chemotherapy | EO28: 205567247.6 | EP28: 0 | ES28: =IF(Input!K37="","",Input!K37) ->  | EX28: 8877150.163 | EY28: 7441.505486 | EZ28: 8963630.602 | FA28: 3867.719412 | FC28: 139952959.6 | FD28: 68390757.64 | FE28: 71562201.92 | FF28: HIPEC + CRS + Chemotherapy | FG28: 139952959.6 | FH28: 0 | FL28: 214368014.4 | FM28: 107067951.8 | FN28: 107300062.7 | FO28: HIPEC + CRS + Chemotherapy | FP28: 214368014.4 | FQ28: 0 | FT28: 26 | FU28: 42738482.92 | FV28: 65886622.43
A29: 25 | B29: 0.1178428855 | C29: 0.001119725824 | D29: -0.2676008046 | E29: 0.1187026693 | F29: 0.001428359835 | G29: 0.5691183565 | H29: 20129.88612 | I29: 14885.27634 | J29: 8841.356625 | K29: 10279.69801 | L29: 0.2221355568 | M29: 0.7065709151 | N29: 0.4917022676 | O29: 0.8879571141 | P29: 0.8996858441 | Q29: 0.8731579555 | CX29: 15503316.29 | CY29: 9198.959899 | CZ29: 10108963.05 | DA29: 5795.079831 | DC29: 5394.353241 | DD29: 3.403880068 | DE29: 1584.765953 | DF29: HIPEC + CRS + Chemotherapy | DI29: 24 | DJ29: 24000 | DK29: 0.7111 | DL29: 0.2889 | DM29: 536434277.7 | DN29: 337595826.8 | DO29: 198838450.9 | EB29: 168475881.7 | EC29: 105792633.6 | ED29: 62683248.13 | EE29: HIPEC + CRS + Chemotherapy | EF29: 168475881.7 | EG29: 0 | EK29: 260465480.7 | EL29: 163743431.9 | EM29: 96722048.81 | EN29: HIPEC + CRS + Chemotherapy | EO29: 260465480.7 | EP29: 0 | ES29: =IF(Input!K38="","",Input!K38) ->  | EX29: 9758744.708 | EY29: 5525.151445 | EZ29: 8663517.801 | FA29: 3921.996493 | FC29: 100744284.2 | FD29: 69776412.05 | FE29: 30967872.14 | FF29: HIPEC + CRS + Chemotherapy | FG29: 100744284.2 | FH29: 0 | FL29: 155995798.6 | FM29: 108996377 | FN29: 46999421.67 | FO29: HIPEC + CRS + Chemotherapy | FP29: 155995798.6 | FQ29: 0 | FT29: 27 | FU29: 42897020.94 | FV29: 66127759.23
A30: 26 | B30: 0.1223260245 | C30: 5.384883181e-05 | D30: -0.4335783769 | E30: 0.130001009 | F30: 0.0003331105394 | G30: 0.5977829786 | H30: 12858.34168 | I30: 10693.86865 | J30: 11803.11522 | K30: 8908.588033 | L30: 0.4012968177 | M30: 0.8948901245 | N30: 0.3361356978 | O30: 0.2902840403 | P30: 0.8997372052 | Q30: 0.8872268131 | CX30: 10958640.03 | CY30: 11083.49245 | CZ30: 9284879.488 | DA30: 6213.426806 | DC30: 1673.760545 | DD30: 4.870065642 | DE30: 343.6833645 | DF30: HIPEC + CRS + Chemotherapy | DI30: 25 | DJ30: 25000 | DK30: 0.7115 | DL30: 0.2885 | DM30: 654050906.9 | DN30: 363520728.9 | DO30: 290530178 | EB30: 210711208.9 | EC30: 114983656.6 | ED30: 95727552.29 | EE30: HIPEC + CRS + Chemotherapy | EF30: 210711208.9 | EG30: 0 | EK30: 321546133.4 | EL30: 177117924.7 | EM30: 144428208.7 | EN30: HIPEC + CRS + Chemotherapy | EO30: 321546133.4 | EP30: 0 | ES30: =IF(Input!K39="","",Input!K39) ->  | EX30: 9264921.175 | EY30: 8125.816933 | EZ30: 7630810.253 | FA30: 4788.494314 | FC30: 153251417.5 | FD30: 88139076.02 | FE30: 65112341.46 | FF30: HIPEC + CRS + Chemotherapy | FG30: 153251417.5 | FH30: 0 | FL30: 234509586.8 | FM30: 136024019.2 | FN30: 98485567.65 | FO30: HIPEC + CRS + Chemotherapy | FP30: 234509586.8 | FQ30: 0 | FT30: 28 | FU30: 44084088.53 | FV30: 67912301.78
A31: 27 | B31: 0.1238129314 | C31: 0.001546971434 | D31: -0.3622139651 | E31: 0.1069683049 | F31: 0.0005901902865 | G31: 0.5591321859 | H31: 14766.49552 | I31: 10112.75954 | J31: 14220.01337 | K31: 6299.094476 | L31: 0.1006721859 | M31: 0.8995649355 | N31: 0.2652250126 | O31: 0.250093633 | P31: 0.756447364 | Q31: 0.8740320314 | CX31: 10688952.24 | CY31: 8483.588527 | CZ31: 7146381.743 | DA31: 5638.760817 | DC31: 3542.570492 | DD31: 2.844827709 | DE31: 1245.267149 | DF31: HIPEC + CRS + Chemotherapy | DI31: 26 | DJ31: 26000 | DK31: 0.7115 | DL31: 0.2885 | DM31: 498326359.4 | DN31: 331179267.3 | DO31: 167147092.1 | EB31: 158982818.3 | EC31: 105628834.6 | ED31: 53353983.69 | EE31: HIPEC + CRS + Chemotherapy | EF31: 158982818.3 | EG31: 0 | EK31: 243818703.6 | EL31: 162016442.8 | EM31: 81802260.79 | EN31: HIPEC + CRS + Chemotherapy | EO31: 243818703.6 | EP31: 0 | ES31: =IF(Input!K40="","",Input!K40) ->  | EX31: 13473271.13 | EY31: 6088.687987 | EZ31: 8182909.64 | FA31: 4201.598564 | FC31: 108300488.6 | FD31: 75849061.64 | FE31: 32451426.96 | FF31: HIPEC + CRS + Chemotherapy | FG31: 108300488.6 | FH31: 0 | FL31: 169187368.5 | FM31: 117865047.3 | FN31: 51322321.19 | FO31: HIPEC + CRS + Chemotherapy | FP31: 169187368.5 | FQ31: 0 | FT31: 29 | FU31: 43332632.16 | FV31: 66793990.58
A32: 28 | B32: 0.1386281883 | C32: 0.000173166708 | D32: -0.09237921479 | E32: 0.09685772666 | F32: 0.001795839512 | G32: 0.5844543085 | H32: 19872.82933 | I32: 9838.771332 | J32: 8997.004536 | K32: 8820.126308 | L32: 0.3622991632 | M32: 0.5272536469 | N32: 0.6052801235 | O32: 0.2056617689 | P32: 0.8633555142 | Q32: 0.8920348706 | CX32: 11229774.61 | CY32: 7050.636717 | CZ32: 8837258.331 | DA32: 6058.849281 | DC32: 2392.516282 | DD32: 0.9917874367 | DE32: 2412.327676 | DF32: HIPEC + CRS + Chemotherapy | DI32: 27 | DJ32: 27000 | DK32: 0.7118 | DL32: 0.2882 | DM32: 411808428.4 | DN32: 354693698.5 | DO32: 57114729.92 | EB32: 129782959.7 | EC32: 112339727.3 | ED32: 17443232.45 | EE32: HIPEC + CRS + Chemotherapy | EF32: 129782959.7 | EG32: 0 | EK32: 200289326.9 | EL32: 172928220.1 | EM32: 27361106.82 | EN32: HIPEC + CRS + Chemotherapy | EO32: 200289326.9 | EP32: 0 | ES32: =IF(Input!K41="","",Input!K41) ->  | EX32: 9964038.471 | EY32: 6417.43077 | EZ32: 9758726.498 | FA32: 4331.105291 | FC32: 118384576.9 | FD32: 76863379.31 | FE32: 41521197.62 | FF32: HIPEC + CRS + Chemotherapy | FG32: 118384576.9 | FH32: 0 | FL32: 182558884.6 | FM32: 120174432.2 | FN32: 62384452.42 | FO32: HIPEC + CRS + Chemotherapy | FP32: 182558884.6 | FQ32: 0 | FT32: =ROW()-2 -> 30 | FU32: 42975132.49 | FV32: 66245049.64
A33: 29 | B33: 0.1044694497 | C33: 0.0003754622827 | D33: -0.2154250373 | E33: 0.1344451359 | F33: 0.001830276316 | G33: 0.5854414823 | H33: 18598.90153 | I33: 10395.11181 | J33: 14262.24147 | K33: 9656.447169 | L33: 0.4871415128 | M33: 0.2149593813 | N33: 0.5647684986 | O33: 0.5535063001 | P33: 0.1404653695 | Q33: 0.7868190934 | CX33: 11252157.21 | CY33: 1386.61903 | CZ33: 10275673.81 | DA33: 5383.486233 | DC33: 976.4833989 | DD33: -3.996867203 | DE33: -244.3121948 | DF33: CRS + Chemotherapy | DI33: 28 | DJ33: 28000 | DK33: 0.7125 | DL33: 0.2875 | DM33: 71944984.59 | DN33: 312733500.2 | DO33: -240788515.6 | EB33: 16480223.39 | EC33: 97394050.86 | ED33: -80913827.47 | EE33: CRS + Chemotherapy | EF33: 97394050.86 | EG33: 80913827.47 | EK33: 30346413.69 | EL33: 151228913.2 | EM33: -120882499.5 | EN33: CRS + Chemotherapy | EO33: 151228913.2 | EP33: 120882499.5 | ES33: =IF(Input!K42="","",Input!K42) ->  | EX33: 14514243.32 | EY33: 5959.544462 | EZ33: 10179783.09 | FA33: 3615.198786 | FC33: 104676645.9 | FD33: 62124192.64 | FE33: 42552453.29 | FF33: HIPEC + CRS + Chemotherapy | FG33: 104676645.9 | FH33: 0 | FL33: 164272090.5 | FM33: 98276180.5 | FN33: 65995910.05 | FO33: HIPEC + CRS + Chemotherapy | FP33: 164272090.5 | FQ33: 0
A34: 30 | B34: 0.1273934088 | C34: 0.0003022950042 | D34: -0.3867389895 | E34: 0.09369294487 | F34: 0.002120574356 | G34: 0.5992171218 | H34: 11751.237 | I34: 9417.95267 | J34: 14637.68203 | K34: 7057.956761 | L34: 0.1799839619 | M34: 0.1113976861 | N34: 0.7199211411 | O34: 0.2027297399 | P34: 0.8704235061 | Q34: 0.8659499417 | CX34: 9715197.714 | CY34: 10270.53739 | CZ34: 7768123.543 | DA34: 6069.013115 | DC34: 1947.074171 | DD34: 4.201524271 | DE34: 463.4209028 | DF34: HIPEC + CRS + Chemotherapy | DI34: 29 | DJ34: 29000 | DK34: 0.7127 | DL34: 0.2873 | DM34: 606517045.5 | DN34: 356372663.3 | DO34: 250144382.1 | EB34: 195695550 | EC34: 113612138.8 | ED34: 82083411.26 | EE34: HIPEC + CRS + Chemotherapy | EF34: 195695550 | EG34: 0 | EK34: 298400923.9 | EL34: 174302269.9 | EM34: 124098654 | EN34: HIPEC + CRS + Chemotherapy | EO34: 298400923.9 | EP34: 0 | ES34: =IF(Input!K43="","",Input!K43) ->  | EX34: 12627220.52 | EY34: 7189.554112 | EZ34: 7209985.24 | FA34: 3866.372678 | FC34: 131163861.7 | FD34: 70117468.32 | FE34: 61046393.41 | FF34: HIPEC + CRS + Chemotherapy | FG34: 131163861.7 | FH34: 0 | FL34: 203059402.9 | FM34: 108781195.1 | FN34: 94278207.75 | FO34: HIPEC + CRS + Chemotherapy | FP34: 203059402.9 | FQ34: 0
A35: 31 | B35: 0.1323060166 | C35: 7.75928067e-05 | D35: -0.02305460201 | E35: 0.1482875676 | F35: 0.001662617692 | G35: 0.5750014909 | H35: 14706.67663 | I35: 11980.81476 | J35: 14833.7153 | K35: 7272.924839 | L35: 0.2470406692 | M35: 0.7559650634 | N35: 0.605219444 | O35: 0.881756179 | P35: 0.8563447047 | Q35: 0.8604131343 | CX35: 12341462.68 | CY35: 6047.989848 | CZ35: 8394096.065 | DA35: 5780.107585 | DC35: 3947.366617 | DD35: 0.2678822623 | DE35: 14735.45349 | DF35: HIPEC + CRS + Chemotherapy | DI35: 30 | DJ35: 30000 | DK35: 0.7129 | DL35: 0.2871 | DM35: 350537928.2 | DN35: 338412359.1 | DO35: 12125569.12 | EB35: 108618334.3 | EC35: 107208055.6 | ED35: 1410278.63 | EE35: HIPEC + CRS + Chemotherapy | EF35: 108618334.3 | EG35: 0 | EK35: 169098232.7 | EL35: 165009131.5 | EM35: 4089101.253 | EN35: HIPEC + CRS + Chemotherapy | EO35: 169098232.7 | EP35: 0 | ES35: =IF(Input!K44="","",Input!K44) ->  | EX35: 14623985.07 | EY35: 7176.405077 | EZ35: 9680457.411 | FA35: 3532.604738 | FC35: 128904116.5 | FD35: 60971637.34 | FE35: 67932479.13 | FF35: HIPEC + CRS + Chemotherapy | FG35: 128904116.5 | FH35: 0 | FL35: 200668167.2 | FM35: 96297684.72 | FN35: 104370482.5 | FO35: HIPEC + CRS + Chemotherapy | FP35: 200668167.2 | FQ35: 0
A36: 32 | B36: 0.1170862251 | C36: 0.000329050879 | D36: -0.2269066389 | E36: 0.119796981 | F36: 0.000609620051 | G36: 0.5752012847 | H36: 19483.47301 | I36: 10569.38023 | J36: 14114.35985 | K36: 10054.51229 | L36: 0.8970921245 | M36: 0.2904326548 | N36: 0.1170116772 | O36: 0.5453829257 | P36: 0.4824494857 | Q36: 0.8670027411 | CX36: 11613097.7 | CY36: 4734.54792 | CZ36: 10540869.77 | DA36: 5803.515401 | DC36: 1072.227933 | DD36: -1.06896748 | DE36: -1003.050095 | DF36: CRS + Chemotherapy | DI36: 31 | DJ36: 31000 | DK36: 0.7131 | DL36: 0.2869 | DM36: 272459777.5 | DN36: 337670054.3 | DO36: -65210276.76 | EB36: 83077860.7 | EC36: 105529438.2 | ED36: -22451577.54 | EE36: CRS + Chemotherapy | EF36: 105529438.2 | EG36: 22451577.54 | EK36: 130423339.9 | EL36: 163564592.2 | EM36: -33141252.35 | EN36: CRS + Chemotherapy | EO36: 163564592.2 | EP36: 33141252.35 | ES36: =IF(Input!K45="","",Input!K45) ->  | EX36: 10129426.59 | EY36: 5963.571913 | EZ36: 8241573.194 | FA36: 3420.216715 | FC36: 109142011.7 | FD36: 60162761.1 | FE36: 48979250.57 | FF36: HIPEC + CRS + Chemotherapy | FG36: 109142011.7 | FH36: 0 | FL36: 168777730.8 | FM36: 94364928.25 | FN36: 74412802.56 | FO36: HIPEC + CRS + Chemotherapy | FP36: 168777730.8 | FQ36: 0
A37: 33 | B37: 0.1311468555 | C37: 0.001529800857 | D37: -0.1426361404 | E37: 0.1175463946 | F37: 0.0007041992095 | G37: 0.5304742812 | H37: 15208.22624 | I37: 12753.40936 | J37: 13477.96789 | K37: 6036.907943 | L37: 0.8856764381 | M37: 0.1936658359 | N37: 0.576566415 | O37: 0.487376618 | P37: 0.8992411522 | Q37: 0.1006302295 | CX37: 13075350.88 | CY37: 7364.921035 | CZ37: 6911577.712 | DA37: 651.4681487 | DC37: 6163.773166 | DD37: 6.713452887 | DE37: 918.1226516 | DF37: HIPEC + CRS + Chemotherapy | DI37: 32 | DJ37: 32000 | DK37: 0.7132 | DL37: 0.2868 | DM37: 428819911.3 | DN37: 32176511.21 | DO37: 396643400 | EB37: 134223069.8 | EC37: 6117785.263 | ED37: 128105284.6 | EE37: HIPEC + CRS + Chemotherapy | EF37: 134223069.8 | EG37: 0 | EK37: 207872280.2 | EL37: 12632466.75 | EM37: 195239813.4 | EN37: HIPEC + CRS + Chemotherapy | EO37: 207872280.2 | EP37: 0 | ES37: =IF(Input!K46="","",Input!K46) ->  | EX37: 11897486.31 | EY37: 7405.199442 | EZ37: 9102898.465 | FA37: 4408.205588 | FC37: 136206502.5 | FD37: 79061213.3 | FE37: 57145289.24 | FF37: HIPEC + CRS + Chemotherapy | FG37: 136206502.5 | FH37: 0 | FL37: 210258497 | FM37: 123143269.2 | FN37: 87115227.78 | FO37: HIPEC + CRS + Chemotherapy | FP37: 210258497 | FQ37: 0
A38: 34 | B38: 0.1596938153 | C38: 0.0003020916367 | D38: -0.4644562856 | E38: 0.1305315352 | F38: 0.0001602456532 | G38: 0.5502829058 | H38: 14917.84442 | I38: 12437.14553 | J38: 9449.077404 | K38: 8102.618981 | L38: 0.6723045747 | M38: 0.7728116948 | N38: 0.4380108787 | O38: 0.3404397656 | P38: 0.2010385252 | Q38: 0.2414394526 | CX38: 12833297.8 | CY38: 2498.989519 | CZ38: 8278374.266 | DA38: 1553.907265 | DC38: 4554.923536 | DD38: 0.9450822549 | DE38: 4819.605397 | DF38: HIPEC + CRS + Chemotherapy | DI38: 33 | DJ38: 33000 | DK38: 0.7136 | DL38: 0.2864 | DM38: 137106073.4 | DN38: 84956061.61 | DO38: 52150011.76 | EB38: 37146492.59 | EC38: 22799771.02 | ED38: 14346721.56 | EE38: HIPEC + CRS + Chemotherapy | EF38: 37146492.59 | EG38: 0 | EK38: 62136387.78 | EL38: 38338843.67 | EM38: 23797544.11 | EN38: HIPEC + CRS + Chemotherapy | EO38: 62136387.78 | EP38: 0 | ES38: =IF(Input!K47="","",Input!K47) ->  | EX38: 12505930.56 | EY38: 7232.888024 | EZ38: 9672498.633 | FA38: 4131.694994 | FC38: 132151829.9 | FD38: 72961401.25 | FE38: 59190428.66 | FF38: HIPEC + CRS + Chemotherapy | FG38: 132151829.9 | FH38: 0 | FL38: 204480710.1 | FM38: 114278351.2 | FN38: 90202358.96 | FO38: HIPEC + CRS + Chemotherapy | FP38: 204480710.1 | FQ38: 0
A39: 35 | B39: 0.1319201518 | C39: 0.0002771284601 | D39: -0.2788149214 | E39: 0.1272787554 | F39: 0.0007454644227 | G39: 0.5982088416 | H39: 17758.14116 | I39: 9333.197172 | J39: 11649.74577 | K39: 10082.06909 | L39: 0.7993444015 | M39: 0.7285238477 | N39: 0.5432350138 | O39: 0.6613054735 | P39: 0.1415090845 | Q39: 0.8818801358 | CX39: 10444617.06 | CY39: 1564.359772 | CZ39: 10281601.03 | DA39: 6208.384816 | DC39: 163.0160347 | DD39: -4.644025044 | DE39: -35.10231601 | DF39: CRS + Chemotherapy | DI39: 34 | DJ39: 34000 | DK39: 0.7136 | DL39: 0.2864 | DM39: 83416969.27 | DN39: 362221488 | DO39: -278804518.7 | EB39: 20842578.38 | EC39: 113886095.3 | ED39: -93043516.92 | EE39: CRS + Chemotherapy | EF39: 113886095.3 | EG39: 93043516.92 | EK39: 36486176.11 | EL39: 175969943.5 | EM39: -139483767.4 | EN39: CRS + Chemotherapy | EO39: 175969943.5 | EP39: 139483767.4 | ES39: =IF(Input!K48="","",Input!K48) ->  | EX39: 13938306.16 | EY39: 4419.901264 | EZ39: 8542272.147 | FA39: 3868.8271 | FC39: 74459719.12 | FD39: 68834269.85 | FE39: 5625449.273 | FF39: HIPEC + CRS + Chemotherapy | FG39: 74459719.12 | FH39: 0 | FL39: 118658731.8 | FM39: 107522540.8 | FN39: 11136190.92 | FO39: HIPEC + CRS + Chemotherapy | FP39: 118658731.8 | FQ39: 0
A40: 36 | B40: 0.119788522 | C40: 0.000177019258 | D40: -0.2764857273 | E40: 0.1653804584 | F40: 0.0007640342283 | G40: 0.6037526889 | H40: 11227.51005 | I40: 14929.4164 | J40: 14780.56838 | K40: 9440.875775 | L40: 0.2802027112 | M40: 0.5280486257 | N40: 0.1581920079 | O40: 0.8638088958 | P40: 0.2398743536 | Q40: 0.7196043539 | CX40: 14485970.51 | CY40: 2598.343752 | CZ40: 10323956.59 | DA40: 5144.77091 | DC40: 4162.013927 | DD40: -2.546427158 | DE40: -1634.452379 | DF40: CRS + Chemotherapy | DI40: 35 | DJ40: 35000 | DK40: 0.7139 | DL40: 0.2861 | DM40: 141414654.6 | DN40: 298362298 | DO40: -156947643.4 | EB40: 37480904.52 | EC40: 92571461.61 | ED40: -55090557.09 | EE40: CRS + Chemotherapy | EF40: 92571461.61 | EG40: 55090557.09 | EK40: 63464342.04 | EL40: 144019170.7 | EM40: -80554828.68 | EN40: CRS + Chemotherapy | EO40: 144019170.7 | EP40: 80554828.68 | ES40: =IF(Input!K49="","",Input!K49) ->  | EX40: 13548805.63 | EY40: 5828.858255 | EZ40: 10125221.83 | FA40: 4587.813413 | FC40: 103028359.5 | FD40: 81631046.43 | FE40: 21397313.04 | FF40: HIPEC + CRS + Chemotherapy | FG40: 103028359.5 | FH40: 0 | FL40: 161316942 | FM40: 127509180.6 | FN40: 33807761.46 | FO40: HIPEC + CRS + Chemotherapy | FP40: 161316942 | FQ40: 0
A41: 37 | B41: 0.1668409157 | C41: 0.002603908033 | D41: -0.2970497273 | E41: 0.1232857797 | F41: 0.003421690889 | G41: 0.5710515683 | H41: 16495.80463 | I41: 12230.0757 | J41: 10307.13138 | K41: 10105.09808 | L41: 0.4526447161 | M41: 0.8945052411 | N41: 0.1874243443 | O41: 0.1217335278 | P41: 0.6067201967 | Q41: 0.6986196059 | CX41: 12941773.82 | CY41: 6444.705825 | CZ41: 10130005.91 | DA41: 4600.799337 | DC41: 2811.767909 | DD41: 1.843906488 | DE41: 1524.897237 | DF41: HIPEC + CRS + Chemotherapy | DI41: 36 | DJ41: 36000 | DK41: 0.7141 | DL41: 0.2859 | DM41: 373740575.7 | DN41: 265917954.3 | DO41: 107822621.3 | EB41: 115952342.7 | EC41: 81885980.83 | ED41: 34066361.84 | EE41: HIPEC + CRS + Chemotherapy | EF41: 115952342.7 | EG41: 0 | EK41: 180399400.9 | EL41: 127893974.2 | EM41: 52505426.72 | EN41: HIPEC + CRS + Chemotherapy | EO41: 180399400.9 | EP41: 0 | ES41: =IF(Input!K50="","",Input!K50) ->  | EX41: 10168725.33 | EY41: 6737.479152 | EZ41: 8414172.534 | FA41: 4190.803706 | FC41: 124580857.7 | FD41: 75401901.59 | FE41: 49178956.12 | FF41: HIPEC + CRS + Chemotherapy | FG41: 124580857.7 | FH41: 0 | FL41: 191955649.2 | FM41: 117309938.7 | FN41: 74645710.57 | FO41: HIPEC + CRS + Chemotherapy | FP41: 191955649.2 | FQ41: 0
A42: 38 | B42: 0.1245377116 | C42: 0.0003149045818 | D42: -0.236932304 | E42: 0.1114889989 | F42: 0.0001340837621 | G42: 0.5216885353 | H42: 14727.49119 | I42: 8928.789683 | J42: 13973.34434 | K42: 7066.668922 | L42: 0.3029805626 | M42: 0.418315554 | N42: 0.4920208455 | O42: 0.8768513844 | P42: 0.8940948599 | Q42: 0.5056370514 | CX42: 9650946.699 | CY42: 8374.291064 | CZ42: 7836687.249 | DA42: 3082.859553 | DC42: 1814.25945 | DD42: 5.291431512 | DE42: 342.8674161 | DF42: HIPEC + CRS + Chemotherapy | DI42: 37 | DJ42: 37000 | DK42: 0.7143 | DL42: 0.2857 | DM42: 492806517.1 | DN42: 177134885.9 | DO42: 315671631.2 | EB42: 157834874.6 | EC42: 53820503.8 | ED42: 104014370.8 | EE42: HIPEC + CRS + Chemotherapy | EF42: 157834874.6 | EG42: 0 | EK42: 241577785.2 | EL42: 84649099.33 | EM42: 156928685.9 | EN42: HIPEC + CRS + Chemotherapy | EO42: 241577785.2 | EP42: 0 | ES42: =IF(Input!K51="","",Input!K51) ->  | EX42: 9916713.276 | EY42: 6666.319056 | EZ42: 6901673.54 | FA42: 4248.764855 | FC42: 123409667.9 | FD42: 78073623.56 | FE42: 45336044.3 | FF42: HIPEC + CRS + Chemotherapy | FG42: 123409667.9 | FH42: 0 | FL42: 190072858.4 | FM42: 120561272.1 | FN42: 69511586.31 | FO42: HIPEC + CRS + Chemotherapy | FP42: 190072858.4 | FQ42: 0
A43: 39 | B43: 0.1422974958 | C43: 1.713050809e-05 | D43: -0.2027226159 | E43: 0.09933896517 | F43: 0.002418308215 | G43: 0.5783268916 | H43: 19013.74619 | I43: 13888.64603 | J43: 9405.137628 | K43: 8851.648521 | L43: 0.8855670631 | M43: 0.6245946926 | N43: 0.6062495713 | O43: 0.7637250863 | P43: 0.8995152454 | Q43: 0.2263595708 | CX43: 14617934.95 | CY43: 8593.134401 | CZ43: 8906631.556 | DA43: 1573.862075 | DC43: 5711.303392 | DD43: 7.019272326 | DE43: 813.6603236 | DF43: HIPEC + CRS + Chemotherapy | DI43: 38 | DJ43: 38000 | DK43: 0.7147 | DL43: 0.2853 | DM43: 500970129.1 | DN43: 85525092.93 | DO43: 415445036.2 | EB43: 157244753.1 | EC43: 22570609.94 | ED43: 134674143.1 | EE43: HIPEC + CRS + Chemotherapy | EF43: 157244753.1 | EG43: 0 | EK43: 243176097.1 | EL43: 38309230.69 | EM43: 204866866.4 | EN43: HIPEC + CRS + Chemotherapy | EO43: 243176097.1 | EP43: 0 | ES43: =IF(Input!K52="","",Input!K52) ->  | EX43: 11873054.1 | EY43: 5662.193335 | EZ43: 9293451.534 | FA43: 4023.73688 | FC43: 101370812.6 | FD43: 71181286.06 | FE43: 30189526.53 | FF43: HIPEC + CRS + Chemotherapy | FG43: 101370812.6 | FH43: 0 | FL43: 157992745.9 | FM43: 111418654.9 | FN43: 46574091.08 | FO43: HIPEC + CRS + Chemotherapy | FP43: 157992745.9 | FQ43: 0
A44: 40 | B44: 0.1557710996 | C44: 0.0002092825441 | D44: 0.05085252159 | E44: 0.1220062978 | F44: 0.001050010589 | G44: 0.5234114054 | H44: 20589.40695 | I44: 10718.51068 | J44: 13633.91424 | K44: 8556.550808 | L44: 0.8991751932 | M44: 0.7841999483 | N44: 0.2302424274 | O44: 0.8911107734 | P44: 0.8927588015 | Q44: 0.8996094906 | CX44: 12256111.05 | CY44: 4897.634407 | CZ44: 9176021.123 | DA44: 5442.340858 | DC44: 3080.089922 | DD44: -0.5447064509 | DE44: -5654.586827 | DF44: CRS + Chemotherapy | DI44: 39 | DJ44: 39000 | DK44: 0.7148 | DL44: 0.2852 | DM44: 281601953.4 | DN44: 317364430.3 | DO44: -35762476.97 | EB44: 85696577.1 | EC44: 99670796.03 | ED44: -13974218.94 | EE44: CRS + Chemotherapy | EF44: 99670796.03 | EG44: 13974218.94 | EK44: 134672921.2 | EL44: 154094204.6 | EM44: -19421283.45 | EN44: CRS + Chemotherapy | EO44: 154094204.6 | EP44: 19421283.45 | ES44: =IF(Input!K53="","",Input!K53) ->  | EX44: 11895022.1 | EY44: 5771.477739 | EZ44: 7121444.203 | FA44: 3977.359939 | FC44: 103534532.7 | FD44: 72425754.58 | FE44: 31108778.09 | FF44: HIPEC + CRS + Chemotherapy | FG44: 103534532.7 | FH44: 0 | FL44: 161249310.1 | FM44: 112199354 | FN44: 49049956.08 | FO44: HIPEC + CRS + Chemotherapy | FP44: 161249310.1 | FQ44: 0
A45: 41 | B45: 0.1161801075 | C45: 0.0002395614515 | D45: -0.4348324131 | E45: 0.1473317932 | F45: 0.0006149477012 | G45: 0.5759753793 | H45: 11936.43213 | I45: 10384.43574 | J45: 14155.17678 | K45: 5758.906231 | L45: 0.6314369896 | M45: 0.5023021156 | N45: 0.1934554708 | O45: 0.8316818773 | P45: 0.8769586331 | Q45: 0.8990294008 | CX45: 10564746.85 | CY45: 10607.21272 | CZ45: 6995943.827 | DA45: 6046.371938 | DC45: 3568.803019 | DD45: 4.560840785 | DE45: 782.4879638 | DF45: HIPEC + CRS + Chemotherapy | DI45: 40 | DJ45: 40000 | DK45: 0.7148 | DL45: 0.2852 | DM45: 625868016.5 | DN45: 355786372.4 | DO45: 270081644.1 | EB45: 201579507.6 | EC45: 113931494.9 | ED45: 87648012.67 | EE45: HIPEC + CRS + Chemotherapy | EF45: 201579507.6 | EG45: 0 | EK45: 307651634.8 | EL45: 174395214.3 | EM45: 133256420.5 | EN45: HIPEC + CRS + Chemotherapy | EO45: 307651634.8 | EP45: 0 | ES45: =IF(Input!K54="","",Input!K54) ->  | EX45: 13710915.92 | EY45: 6959.432691 | EZ45: 8534988.753 | FA45: 3923.975602 | FC45: 125477737.9 | FD45: 69944523.28 | FE45: 55533214.63 | FF45: HIPEC + CRS + Chemotherapy | FG45: 125477737.9 | FH45: 0 | FL45: 195072064.8 | FM45: 109184279.3 | FN45: 85887785.52 | FO45: HIPEC + CRS + Chemotherapy | FP45: 195072064.8 | FQ45: 0
A46: 42 | B46: 0.1259692095 | C46: 3.347096861e-05 | D46: -0.2490633368 | E46: 0.1237059045 | F46: 0.001497667812 | G46: 0.5800050365 | H46: 18123.1206 | I46: 12723.12106 | J46: 11186.42514 | K46: 8325.776011 | L46: 0.2975632376 | M46: 0.1895260181 | N46: 0.2860090499 | O46: 0.823092945 | P46: 0.8662772723 | Q46: 0.2988730495 | CX46: 13403354.74 | CY46: 8743.668695 | CZ46: 8679655.199 | DA46: 2067.844299 | DC46: 4723.699538 | DD46: 6.675824397 | DE46: 707.5829527 | DF46: HIPEC + CRS + Chemotherapy | DI46: 41 | DJ46: 41000 | DK46: 0.7153 | DL46: 0.2847 | DM46: 511216767 | DN46: 115391002.7 | DO46: 395825764.3 | EB46: 161470019.2 | EC46: 32677230.77 | ED46: 128792788.4 | EE46: HIPEC + CRS + Chemotherapy | EF46: 161470019.2 | EG46: 0 | EK46: 248906706.1 | EL46: 53355673.76 | EM46: 195551032.4 | EN46: HIPEC + CRS + Chemotherapy | EO46: 248906706.1 | EP46: 0 | ES46: =IF(Input!K55="","",Input!K55) ->  | EX46: 13605772.2 | EY46: 6232.559384 | EZ46: 8886703.331 | FA46: 3985.073449 | FC46: 111045415.5 | FD46: 70814765.66 | FE46: 40230649.81 | FF46: HIPEC + CRS + Chemotherapy | FG46: 111045415.5 | FH46: 0 | FL46: 173371009.3 | FM46: 110665500.1 | FN46: 62705509.15 | FO46: HIPEC + CRS + Chemotherapy | FP46: 173371009.3 | FQ46: 0
A47: 43 | B47: 0.1382683732 | C47: 0.0002289336687 | D47: -0.1513915343 | E47: 0.1364005248 | F47: 0.0005659188574 | G47: 0.5500663722 | H47: 17686.43724 | I47: 14660.43094 | J47: 15145.79903 | K47: 10293.87502 | L47: 0.8923929981 | M47: 0.7509036396 | N47: 0.8850557664 | O47: 0.122982722 | P47: 0.2914680271 | Q47: 0.8609590522 | CX47: 15078831.91 | CY47: 2543.424273 | CZ47: 10955680 | DA47: 5450.465967 | DC47: 4123.151911 | DD47: -2.907041694 | DE47: -1418.332568 | DF47: CRS + Chemotherapy | DI47: 42 | DJ47: 42000 | DK47: 0.7155 | DL47: 0.2845 | DM47: 137526624.5 | DN47: 316072278 | DO47: -178545653.5 | EB47: 35789653.54 | EC47: 98053639.33 | ED47: -62263985.79 | EE47: CRS + Chemotherapy | EF47: 98053639.33 | EG47: 62263985.79 | EK47: 61223896.27 | EL47: 152558299 | EM47: -91334402.73 | EN47: CRS + Chemotherapy | EO47: 152558299 | EP47: 91334402.73 | ES47: =IF(Input!K56="","",Input!K56) ->  | EX47: 10394313.37 | EY47: 6045.681352 | EZ47: 6499820.477 | FA47: 3844.396889 | FC47: 110519313.7 | FD47: 70388117.3 | FE47: 40131196.36 | FF47: HIPEC + CRS + Chemotherapy | FG47: 110519313.7 | FH47: 0 | FL47: 170976127.2 | FM47: 108832086.2 | FN47: 62144040.99 | FO47: HIPEC + CRS + Chemotherapy | FP47: 170976127.2 | FQ47: 0
A48: 44 | B48: 0.1054464895 | C48: 0.0001498981885 | D48: -0.2920273845 | E48: 0.1433506879 | F48: 0.001089299152 | G48: 0.6028481503 | H48: 20538.86582 | I48: 8445.102287 | J48: 15344.77498 | K48: 9673.418615 | L48: 0.8202057464 | M48: 0.8986402109 | N48: 0.8449896035 | O48: 0.8352239919 | P48: 0.8990601575 | Q48: 0.351239131 | CX48: 9720347.197 | CY48: 9804.595485 | CZ48: 10486411.45 | DA48: 2544.756564 | DC48: -766.0642535 | DD48: 7.259838921 | DE48: -105.5208334 | DF48: HIPEC + CRS + Chemotherapy | DI48: 43 | DJ48: 43000 | DK48: 0.7155 | DL48: 0.2845 | DM48: 578555381.9 | DN48: 142198982.4 | DO48: 436356399.5 | EB48: 186371562.5 | EC48: 40408719.83 | ED48: 145962842.7 | EE48: HIPEC + CRS + Chemotherapy | EF48: 186371562.5 | EG48: 0 | EK48: 284417517.4 | EL48: 65856285.48 | EM48: 218561231.9 | EN48: HIPEC + CRS + Chemotherapy | EO48: 284417517.4 | EP48: 0 | ES48: =IF(Input!K57="","",Input!K57) ->  | EX48: 11664048.26 | EY48: 6577.754866 | EZ48: 10331012.59 | FA48: 3591.557981 | FC48: 119891049.1 | FD48: 61500147.03 | FE48: 58390902.03 | FF48: HIPEC + CRS + Chemotherapy | FG48: 119891049.1 | FH48: 0 | FL48: 185668597.7 | FM48: 97415726.85 | FN48: 88252870.88 | FO48: HIPEC + CRS + Chemotherapy | FP48: 185668597.7 | FQ48: 0
A49: 45 | B49: 0.1158405877 | C49: 0.0008407011056 | D49: -0.1242565544 | E49: 0.1362467998 | F49: 0.001584973178 | G49: 0.5175616366 | H49: 12210.338 | I49: 13156.71624 | J49: 9413.03822 | K49: 9199.337259 | L49: 0.795320614 | M49: 0.3893708153 | N49: 0.8212358725 | O49: 0.4971883599 | P49: 0.8621192756 | Q49: 0.668788905 | CX49: 13047087.23 | CY49: 6741.851043 | CZ49: 9228453.331 | DA49: 3992.312976 | DC49: 3818.633896 | DD49: 2.749538067 | DE49: 1388.827433 | DF49: HIPEC + CRS + Chemotherapy | DI49: 44 | DJ49: 44000 | DK49: 0.7156 | DL49: 0.2844 | DM49: 391463975.4 | DN49: 230310325.3 | DO49: 161153650.1 | EB49: 121789933.6 | EC49: 70617806.2 | ED49: 51172127.44 | EE49: HIPEC + CRS + Chemotherapy | EF49: 121789933.6 | EG49: 0 | EK49: 189208444.1 | EL49: 110540936 | EM49: 78667508.12 | EN49: HIPEC + CRS + Chemotherapy | EO49: 189208444.1 | EP49: 0 | ES49: =IF(Input!K58="","",Input!K58) ->  | EX49: 9161081.88 | EY49: 7153.577827 | EZ49: 10091204.24 | FA49: 4061.005005 | FC49: 133910474.7 | FD49: 71128895.87 | FE49: 62781578.79 | FF49: HIPEC + CRS + Chemotherapy | FG49: 133910474.7 | FH49: 0 | FL49: 205446252.9 | FM49: 111738945.9 | FN49: 93707307 | FO49: HIPEC + CRS + Chemotherapy | FP49: 205446252.9 | FQ49: 0
A50: 46 | B50: 0.129742661 | C50: 0.0008692995522 | D50: -0.4853179867 | E50: 0.1216086737 | F50: 0.002772954021 | G50: 0.5820045404 | H50: 18649.73407 | I50: 11152.49295 | J50: 14261.63204 | K50: 7819.938189 | L50: 0.8920344756 | M50: 0.8786576395 | N50: 0.1731221283 | O50: 0.1091704041 | P50: 0.7224879124 | Q50: 0.7560773291 | CX50: 12125204.96 | CY50: 9160.574278 | CZ50: 8603304.034 | DA50: 5096.425269 | DC50: 3521.90093 | DD50: 4.064149008 | DE50: 866.5777075 | DF50: HIPEC + CRS + Chemotherapy | DI50: 45 | DJ50: 45000 | DK50: 0.7158 | DL50: 0.2842 | DM50: 537509251.7 | DN50: 297182212.1 | DO50: 240327039.6 | EB50: 171086280.6 | EC50: 93325201.35 | ED50: 77761079.23 | EE50: HIPEC + CRS + Chemotherapy | EF50: 171086280.6 | EG50: 0 | EK50: 262692023.4 | EL50: 144289454 | EM50: 118402569.3 | EN50: HIPEC + CRS + Chemotherapy | EO50: 262692023.4 | EP50: 0 | ES50: =IF(Input!K59="","",Input!K59) ->  | EX50: 10318432.69 | EY50: 6027.422403 | EZ50: 8793510.093 | FA50: 4928.716522 | FC50: 110230015.4 | FD50: 89780820.35 | FE50: 20449195.03 | FF50: HIPEC + CRS + Chemotherapy | FG50: 110230015.4 | FH50: 0 | FL50: 170504239.4 | FM50: 139067985.6 | FN50: 31436253.84 | FO50: HIPEC + CRS + Chemotherapy | FP50: 170504239.4 | FQ50: 0
A51: 47 | B51: 0.1233470408 | C51: 0.0006619805787 | D51: -0.5830143861 | E51: 0.1194305122 | F51: 0.001017307459 | G51: 0.5941326564 | H51: 12151.53749 | I51: 11967.19487 | J51: 13206.50166 | K51: 5689.367306 | L51: 0.87557659 | M51: 0.8071301377 | N51: 0.6765324602 | O51: 0.3555035924 | P51: 0.8986013193 | Q51: 0.8997100246 | CX51: 11989932.99 | CY51: 12242.88597 | CZ51: 6587142.512 | DA51: 6255.26288 | DC51: 5402.790476 | DD51: 5.987623094 | DE51: 902.3264142 | DF51: HIPEC + CRS + Chemotherapy | DI51: 46 | DJ51: 46000 | DK51: 0.7159 | DL51: 0.2841 | DM51: 722583225.5 | DN51: 368728630.3 | DO51: 353854595.1 | EB51: 232867786.5 | EC51: 118518115.1 | ED51: 114349671.4 | EE51: HIPEC + CRS + Chemotherapy | EF51: 232867786.5 | EG51: 0 | EK51: 355296646.2 | EL51: 181070743.9 | EM51: 174225902.3 | EN51: HIPEC + CRS + Chemotherapy | EO51: 355296646.2 | EP51: 0 | ES51: =IF(Input!K60="","",Input!K60) ->  | EX51: 13817543.88 | EY51: 6613.175957 | EZ51: 10177410.3 | FA51: 4072.312406 | FC51: 118445975.3 | FD51: 71268837.83 | FE51: 47177137.44 | FF51: HIPEC + CRS + Chemotherapy | FG51: 118445975.3 | FH51: 0 | FL51: 184577734.8 | FM51: 111991961.9 | FN51: 72585772.95 | FO51: HIPEC + CRS + Chemotherapy | FP51: 184577734.8 | FQ51: 0
A52: 48 | B52: 0.1390333747 | C52: 0.0005578631337 | D52: -0.351363057 | E52: 0.1192578123 | F52: 0.001156470379 | G52: 0.6157235768 | H52: 17818.54055 | I52: 9096.126944 | J52: 13769.50897 | K52: 7255.8151 | L52: 0.1043005194 | M52: 0.7523164506 | N52: 0.6777853909 | O52: 0.1640905336 | P52: 0.8453063246 | Q52: 0.1542197512 | CX52: 10308833.54 | CY52: 9860.674129 | CZ52: 8032623.981 | DA52: 1136.372681 | DC52: 2276.209563 | DD52: 8.724301449 | DE52: 260.9045063 | DF52: HIPEC + CRS + Chemotherapy | DI52: 47 | DJ52: 47000 | DK52: 0.716 | DL52: 0.284 | DM52: 581331614.2 | DN52: 60149736.85 | DO52: 521181877.4 | EB52: 186904649 | EC52: 14694829.63 | ED52: 172209819.4 | EE52: HIPEC + CRS + Chemotherapy | EF52: 186904649 | EG52: 0 | EK52: 285511390.3 | EL52: 26058556.44 | EM52: 259452833.9 | EN52: HIPEC + CRS + Chemotherapy | EO52: 285511390.3 | EP52: 0 | ES52: =IF(Input!K61="","",Input!K61) ->  | EX52: 10242939.42 | EY52: 8044.520774 | EZ52: 9923419.364 | FA52: 4187.776477 | FC52: 150647476.1 | FD52: 73832110.17 | FE52: 76815365.9 | FF52: HIPEC + CRS + Chemotherapy | FG52: 150647476.1 | FH52: 0 | FL52: 231092683.8 | FM52: 115709874.9 | FN52: 115382808.9 | FO52: HIPEC + CRS + Chemotherapy | FP52: 231092683.8 | FQ52: 0
A53: 49 | B53: 0.1329958519 | C53: 0.001152445791 | D53: -0.2620550015 | E53: 0.1213598771 | F53: 0.001929445434 | G53: 0.5899988714 | H53: 11303.90838 | I53: 10059.32362 | J53: 13967.27814 | K53: 8147.467684 | L53: 0.8996155668 | M53: 0.3863997193 | N53: 0.8438471979 | O53: 0.3238418298 | P53: 0.8796485401 | Q53: 0.7307521995 | CX53: 10224848.23 | CY53: 9121.366148 | CZ53: 8853759.165 | DA53: 5036.975568 | DC53: 1371.089061 | DD53: 4.08439058 | DE53: 335.689997 | DF53: HIPEC + CRS + Chemotherapy | DI53: 48 | DJ53: 48000 | DK53: 0.7162 | DM53: 537057120.6 | DN53: 293364774.9 | DO53: 243692345.7 | EB53: 172202474.7 | EC53: 91885752.2 | ED53: 80316722.53 | EE53: HIPEC + CRS + Chemotherapy | EF53: 172202474.7 | EG53: 0 | EK53: 263416136.2 | EL53: 142255507.9 | EM53: 121160628.3 | EN53: HIPEC + CRS + Chemotherapy | EO53: 263416136.2 | EP53: 0 | ES53: =IF(Input!K62="","",Input!K62) ->  | EX53: 12687362.69 | EY53: 5722.717999 | EZ53: 8726824.746 | FA53: 3930.411039 | FC53: 101766997.3 | FD53: 69881396.03 | FE53: 31885601.26 | FF53: HIPEC + CRS + Chemotherapy | FG53: 101766997.3 | FH53: 0 | FL53: 158994177.3 | FM53: 109185506.4 | FN53: 49808670.87 | FO53: HIPEC + CRS + Chemotherapy | FP53: 158994177.3 | FQ53: 0
A54: 50 | B54: 0.1505016128 | C54: 0.000514343175 | D54: -0.2648664636 | E54: 0.1477850578 | F54: 0.00085206977 | G54: 0.5314798676 | H54: 12840.77539 | I54: 12737.04616 | J54: 12016.75615 | K54: 8758.337044 | L54: 0.8984014485 | M54: 0.8566895668 | N54: 0.8517142511 | O54: 0.1201562308 | P54: 0.89964854 | Q54: 0.2390082688 | CX54: 12752657.58 | CY54: 8856.497082 | CZ54: 9239882.7 | DA54: 1470.534174 | DC54: 3512.774875 | DD54: 7.385962908 | DE54: 475.601478 | DF54: HIPEC + CRS + Chemotherapy | DI54: 49 | DJ54: 49000 | DK54: 0.7162 | DM54: 518637167.3 | DN54: 78992167.72 | DO54: 439644999.6 | EB54: 164377284.1 | EC54: 20170800.77 | ED54: 144206483.3 | EE54: HIPEC + CRS + Chemotherapy | EF54: 164377284.1 | EG54: 0 | EK54: 252942254.9 | EL54: 34876142.51 | EM54: 218066112.4 | EN54: HIPEC + CRS + Chemotherapy | EO54: 252942254.9 | EP54: 0 | ES54: =IF(Input!K63="","",Input!K63) ->  | EX54: 12221421.7 | EY54: 6536.721442 | EZ54: 6536483.571 | FA54: 3733.912713 | FC54: 118513007.1 | FD54: 68141770.7 | FE54: 50371236.45 | FF54: HIPEC + CRS + Chemotherapy | FG54: 118513007.1 | FH54: 0 | FL54: 183880221.6 | FM54: 105480897.8 | FN54: 78399323.73 | FO54: HIPEC + CRS + Chemotherapy | FP54: 183880221.6 | FQ54: 0
A55: 51 | B55: 0.1216884513 | C55: 0.0006134984785 | D55: -0.00633590858 | E55: 0.1533386433 | F55: 0.001082128945 | G55: 0.6211069196 | H55: 18845.94355 | I55: 14841.09231 | J55: 12607.09282 | K55: 8224.648231 | L55: 0.7734327743 | M55: 0.3641428913 | N55: 0.3483150606 | O55: 0.6548065404 | P55: 0.2377876835 | Q55: 0.5626094609 | CX55: 15328436.46 | CY55: 1801.194518 | CZ55: 8896646.338 | DA55: 4176.972287 | DC55: 6431.790118 | DD55: -2.375777769 | DE55: -2707.235584 | DF55: CRS + Chemotherapy | DI55: 50 | DJ55: 50000 | DK55: 0.7162 | DM55: 92743234.62 | DN55: 241721690.9 | DO55: -148978456.3 | EB55: 20695453.9 | EC55: 74642799.41 | ED55: -53947345.5 | EE55: CRS + Chemotherapy | EF55: 74642799.41 | EG55: 53947345.5 | EK55: 38707399.08 | EL55: 116412522.3 | EM55: -77705123.2 | EN55: CRS + Chemotherapy | EO55: 116412522.3 | EP55: 77705123.2 | ES55: =IF(Input!K64="","",Input!K64) ->  | EX55: 10279131.54 | EY55: 6351.909443 | EZ55: 8352200.134 | FA55: 4089.766132 | FC55: 116759057.3 | FD55: 73443122.5 | FE55: 43315934.81 | FF55: HIPEC + CRS + Chemotherapy | FG55: 116759057.3 | FH55: 0 | FL55: 180278151.7 | FM55: 114340783.8 | FN55: 65937367.92 | FO55: HIPEC + CRS + Chemotherapy | FP55: 180278151.7 | FQ55: 0
A56: 52 | B56: 0.1237390265 | C56: 0.001271910921 | D56: -0.2028245263 | E56: 0.1563401937 | F56: 0.0004487416132 | G56: 0.5447404415 | H56: 19218.28137 | I56: 11642.87566 | J56: 11979.71655 | K56: 9353.801469 | L56: 0.2768805456 | M56: 0.3997500781 | N56: 0.1419592308 | O56: 0.8863397626 | P56: 0.5205953033 | Q56: 0.8939920885 | CX56: 12580248.99 | CY56: 4776.722336 | CZ56: 9764337.54 | DA56: 5643.745176 | DC56: 2815.911447 | DD56: -0.8670228401 | DE56: -3247.793848 | DF56: CRS + Chemotherapy | DI56: 51 | DJ56: 51000 | DK56: 0.7162 | DM56: 274023091.2 | DN56: 328860373 | DO56: -54837281.85 | EB56: 82954197.73 | EC56: 103110566 | ED56: -20156368.25 | EE56: CRS + Chemotherapy | EF56: 103110566 | EG56: 20156368.25 | EK56: 130721421.1 | EL56: 159548017.7 | EM56: -28826596.65 | EN56: CRS + Chemotherapy | EO56: 159548017.7 | EP56: 28826596.65 | ES56: =IF(Input!K65="","",Input!K65) ->  | EX56: 14239878.77 | EY56: 5378.562395 | EZ56: 10771311.8 | FA56: 3711.768462 | FC56: 93331369.13 | FD56: 63464057.43 | FE56: 29867311.7 | FF56: HIPEC + CRS + Chemotherapy | FG56: 93331369.13 | FH56: 0 | FL56: 147116993.1 | FM56: 100581742 | FN56: 46535251.03 | FO56: HIPEC + CRS + Chemotherapy | FP56: 147116993.1 | FQ56: 0
A57: 53 | B57: 0.1305489219 | C57: 0.0002869424987 | D57: -0.2563484854 | E57: 0.108318125 | F57: 0.0002162449735 | G57: 0.5884613968 | H57: 18588.61552 | I57: 13418.9559 | J57: 12312.14813 | K57: 7421.738764 | L57: 0.8385938576 | M57: 0.6674419673 | N57: 0.2674335781 | O57: 0.7662343843 | P57: 0.4243856796 | Q57: 0.5873482358 | CX57: 14093849.39 | CY57: 4408.065933 | CZ57: 7951458.737 | DA57: 4075.753228 | DC57: 6142.390651 | DD57: 0.332312705 | DE57: 18483.76712 | DF57: HIPEC + CRS + Chemotherapy | DI57: 52 | DJ57: 52000 | DK57: 0.7162 | DM57: 250390106.6 | DN57: 236593734.9 | DO57: 13796371.65 | EB57: 74067469.27 | EC57: 73563605.82 | ED57: 503863.4489 | EE57: HIPEC + CRS + Chemotherapy | EF57: 74067469.27 | EG57: 0 | EK57: 118148128.6 | EL57: 114321138.1 | EM57: 3826990.499 | EN57: HIPEC + CRS + Chemotherapy | EO57: 118148128.6 | EP57: 0 | ES57: =IF(Input!K66="","",Input!K66) ->  | EX57: 14710567.99 | EY57: 5752.505463 | EZ57: 6716502.595 | FA57: 3796.000026 | FC57: 100339541.3 | FD57: 69203497.93 | FE57: 31136043.34 | FF57: HIPEC + CRS + Chemotherapy | FG57: 100339541.3 | FH57: 0 | FL57: 157864595.9 | FM57: 107163498.2 | FN57: 50701097.71 | FO57: HIPEC + CRS + Chemotherapy | FP57: 157864595.9 | FQ57: 0
A58: 54 | B58: 0.1274484125 | C58: 0.0002606226693 | D58: -0.3050252199 | E58: 0.1223861949 | F58: 0.0002058565714 | G58: 0.5774396847 | H58: 17576.5545 | I58: 13523.90029 | J58: 10169.95293 | K58: 6489.640678 | L58: 0.8977857388 | M58: 0.8754597352 | N58: 0.8695397701 | O58: 0.21160034 | P58: 0.8994284875 | Q58: 0.1020931526 | CX58: 14040404.63 | CY58: 9688.515273 | CZ58: 6940060.092 | DA58: 706.3487143 | DC58: 7100.34454 | DD58: 8.982166559 | DE58: 790.4935289 | DF58: HIPEC + CRS + Chemotherapy | DI58: 53 | DJ58: 53000 | DK58: 0.7163 | DM58: 567270511.8 | DN58: 35440862.77 | DO58: 531829649 | EB58: 179729900.8 | EC58: 7186914.195 | ED58: 172542986.6 | EE58: HIPEC + CRS + Chemotherapy | EF58: 179729900.8 | EG58: 0 | EK58: 276615053.6 | EL58: 14250401.34 | EM58: 262364652.2 | EN58: HIPEC + CRS + Chemotherapy | EO58: 276615053.6 | EP58: 0 | ES58: =IF(Input!K67="","",Input!K67) ->  | EX58: 14231859.37 | EY58: 5950.620266 | EZ58: 8623237.878 | FA58: 3925.127414 | FC58: 104780546 | FD58: 69879310.41 | FE58: 34901235.55 | FF58: HIPEC + CRS + Chemotherapy | FG58: 104780546 | FH58: 0 | FL58: 164286748.6 | FM58: 109130584.5 | FN58: 55156164.06 | FO58: HIPEC + CRS + Chemotherapy | FP58: 164286748.6 | FQ58: 0
A59: 55 | B59: 0.1397324658 | C59: 0.0001144243499 | D59: -0.4208230193 | E59: 0.138942177 | F59: 0.0005880239988 | G59: 0.600961637 | H59: 19272.73825 | I59: 9308.331185 | J59: 13515.28861 | K59: 6661.777311 | L59: 0.3861724423 | M59: 0.7745843447 | N59: 0.6556671077 | O59: 0.2930538967 | P59: 0.1302413596 | Q59: 0.370382654 | CX59: 10700682.35 | CY59: 1642.141863 | CZ59: 7614019.09 | DA59: 2629.271518 | DC59: 3086.663264 | DD59: -0.9871296552 | DE59: -3126.907644 | DF59: CRS + Chemotherapy | DI59: 54 | DJ59: 54000 | DK59: 0.7164 | DM59: 87827829.42 | DN59: 150142272 | DO59: -62314442.57 | EB59: 22142154.9 | EC59: 44971411.27 | ED59: -22829256.37 | EE59: CRS + Chemotherapy | EF59: 44971411.27 | EG59: 22829256.37 | EK59: 38563573.53 | EL59: 71264126.45 | EM59: -32700552.92 | EN59: CRS + Chemotherapy | EO59: 71264126.45 | EP59: 32700552.92 | ES59: =IF(Input!K68="","",Input!K68) ->  | EX59: 12109853.55 | EY59: 4793.607356 | EZ59: 7572517.402 | FA59: 3701.740724 | FC59: 83762293.57 | FD59: 66462297.09 | FE59: 17299996.48 | FF59: HIPEC + CRS + Chemotherapy | FG59: 83762293.57 | FH59: 0 | FL59: 131698367.1 | FM59: 103479704.3 | FN59: 28218662.79 | FO59: HIPEC + CRS + Chemotherapy | FP59: 131698367.1 | FQ59: 0
A60: 56 | B60: 0.1127403736 | C60: 0.0002472715423 | D60: -0.2295180848 | E60: 0.148444691 | F60: 0.002506797385 | G60: 0.4585304125 | H60: 16276.95791 | I60: 9639.86781 | J60: 12928.46835 | K60: 6034.609518 | L60: 0.1045046381 | M60: 0.8350931479 | N60: 0.1131913344 | O60: 0.7289067535 | P60: 0.6670383756 | Q60: 0.8611620854 | CX60: 10388135.83 | CY60: 5857.694754 | CZ60: 7057966.262 | DA60: 4580.963534 | DC60: 3330.169565 | DD60: 1.27673122 | DE60: 2608.356022 | DF60: HIPEC + CRS + Chemotherapy | DI60: 55 | DJ60: 55000 | DK60: 0.7167 | DM60: 341073549.4 | DN60: 267799845.8 | DO60: 73273703.62 | EB60: 106765759.2 | EC60: 84561304.42 | ED60: 22204454.83 | EE60: HIPEC + CRS + Chemotherapy | EF60: 106765759.2 | EG60: 0 | EK60: 165342706.8 | EL60: 130370939.8 | EM60: 34971767.03 | EN60: HIPEC + CRS + Chemotherapy | EO60: 165342706.8 | EP60: 0 | ES60: =IF(Input!K69="","",Input!K69) ->  | EX60: 12833542.16 | EY60: 6446.499208 | EZ60: 10309294.09 | FA60: 4300.382079 | FC60: 116096442 | FD60: 75698347.49 | FE60: 40398094.52 | FF60: HIPEC + CRS + Chemotherapy | FG60: 116096442 | FH60: 0 | FL60: 180561434.1 | FM60: 118702168.3 | FN60: 61859265.81 | FO60: HIPEC + CRS + Chemotherapy | FP60: 180561434.1 | FQ60: 0
A61: 57 | B61: 0.1394151687 | C61: 0.003179181649 | D61: -0.1835187704 | E61: 0.1362408801 | F61: 0.001132384901 | G61: 0.5593388254 | H61: 18884.29242 | I61: 12852.72363 | J61: 13027.62604 | K61: 6791.24588 | L61: 0.894739861 | M61: 0.3794529799 | N61: 0.8991901211 | O61: 0.2037955072 | P61: 0.1055618029 | Q61: 0.7296598826 | CX61: 13693615.81 | CY61: 987.9769173 | CZ61: 7640895.802 | DA61: 4714.105202 | DC61: 6052.720007 | DD61: -3.726128285 | DE61: -1624.399254 | DF61: CRS + Chemotherapy | DI61: 56 | DJ61: 56000 | DK61: 0.7168 | DM61: 45584999.23 | DN61: 275205416.3 | DO61: -229620417.1 | EB61: 6065922.538 | EC61: 86641208.24 | ED61: -80575285.7 | EE61: CRS + Chemotherapy | EF61: 86641208.24 | EG61: 80575285.7 | EK61: 15945691.71 | EL61: 133782260.3 | EM61: -117836568.5 | EN61: CRS + Chemotherapy | EO61: 133782260.3 | EP61: 117836568.5 | ES61: =IF(Input!K70="","",Input!K70) ->  | EX61: 9989133.379 | EY61: 7559.170177 | EZ61: 8638817.677 | FA61: 4429.652249 | FC61: 141194270.2 | FD61: 79954227.31 | FE61: 61240042.85 | FF61: HIPEC + CRS + Chemotherapy | FG61: 141194270.2 | FH61: 0 | FL61: 216785971.9 | FM61: 124250749.8 | FN61: 92535222.13 | FO61: HIPEC + CRS + Chemotherapy | FP61: 216785971.9 | FQ61: 0
A62: 58 | B62: 0.1414453294 | C62: 0.0009497272861 | D62: -0.5287389239 | E62: 0.09353808639 | F62: 0.001923774739 | G62: 0.5750535351 | H62: 17247.54535 | I62: 9763.959395 | J62: 12784.25437 | K62: 7858.777467 | L62: 0.1234161259 | M62: 0.8988613166 | N62: 0.1914556246 | O62: 0.4412629563 | P62: 0.1348392312 | Q62: 0.1075521894 | CX62: 10822477.67 | CY62: 1807.32862 | CZ62: 8319497.151 | DA62: 748.4551153 | DC62: 2502.980524 | DD62: 1.058873505 | DE62: 2363.814481 | DF62: HIPEC + CRS + Chemotherapy | DI62: 57 | DJ62: 57000 | DK62: 0.7168 | DM62: 97617239.52 | DN62: 36587809.77 | DO62: 61029429.75 | EB62: 25324094.72 | EC62: 6649605.155 | ED62: 18674489.57 | EE62: HIPEC + CRS + Chemotherapy | EF62: 25324094.72 | EG62: 0 | EK62: 43397380.92 | EL62: 14134156.31 | EM62: 29263224.61 | EN62: HIPEC + CRS + Chemotherapy | EO62: 43397380.92 | EP62: 0 | ES62: =IF(Input!K71="","",Input!K71) ->  | EX62: 14769173.98 | EY62: 5655.655263 | EZ62: 9944740.487 | FA62: 3792.552957 | FC62: 98343931.28 | FD62: 65906318.66 | FE62: 32437612.62 | FF62: HIPEC + CRS + Chemotherapy | FG62: 98343931.28 | FH62: 0 | FL62: 154900483.9 | FM62: 103831848.2 | FN62: 51068635.68 | FO62: HIPEC + CRS + Chemotherapy | FP62: 154900483.9 | FQ62: 0
A63: 59 | B63: 0.1428301159 | C63: 0.0002111653981 | D63: -0.08715294336 | E63: 0.1436986169 | F63: 0.0007797578717 | G63: 0.5723594948 | H63: 11927.69946 | I63: 14103.82089 | J63: 14164.62793 | K63: 7979.890454 | L63: 0.8992683691 | M63: 0.7725029812 | N63: 0.6745811684 | O63: 0.1816291045 | P63: 0.5039550461 | Q63: 0.6011365729 | CX63: 13793005.21 | CY63: 4041.376918 | CZ63: 8868628.675 | DA63: 3991.883898 | DC63: 4924.376536 | DD63: 0.04949301977 | DE63: 99496.38472 | DF63: CRS + Chemotherapy | DI63: 58 | DJ63: 58000 | DK63: 0.7168 | DM63: 228689609.9 | DN63: 230644405.2 | DO63: -1954795.35 | EB63: 67034533.15 | EC63: 70969049.29 | ED63: -3934516.141 | EE63: CRS + Chemotherapy | EF63: 70969049.29 | EG63: 3934516.141 | EK63: 107448302.3 | EL63: 110887888.3 | EM63: -3439585.943 | EN63: CRS + Chemotherapy | EO63: 110887888.3 | EP63: 3439585.943 | ES63: =IF(Input!K72="","",Input!K72) ->  | EX63: 11686827.46 | EY63: 6555.248502 | EZ63: 8766376.861 | FA63: 4523.16325 | FC63: 119418142.6 | FD63: 81696888.15 | FE63: 37721254.43 | FF63: HIPEC + CRS + Chemotherapy | FG63: 119418142.6 | FH63: 0 | FL63: 184970627.6 | FM63: 126928520.7 | FN63: 58042106.95 | FO63: HIPEC + CRS + Chemotherapy | FP63: 184970627.6 | FQ63: 0
A64: 60 | B64: 0.1628389811 | C64: 0.005086529994 | D64: -0.3594279469 | E64: 0.1273175165 | F64: 0.001502290785 | G64: 0.5865232581 | H64: 19536.42451 | I64: 8352.676813 | J64: 12651.86585 | K64: 9221.949904 | L64: 0.7868751892 | M64: 0.4479951347 | N64: 0.8997434806 | O64: 0.6703479939 | P64: 0.4950174988 | Q64: 0.874032453 | CX64: 10173826.89 | CY64: 5645.958826 | CZ64: 9658638.284 | DA64: 6002.716383 | DC64: 515.1886092 | DD64: -0.3567575572 | DE64: -1444.086043 | DF64: CRS + Chemotherapy | DI64: 59 | DJ64: 59000 | DK64: 0.7168 | DM64: 328583702.6 | DN64: 350504344.7 | DO64: -21920642.04 | EB64: 102745349.6 | EC64: 110395689.4 | ED64: -7650339.753 | EE64: CRS + Chemotherapy | EF64: 110395689.4 | EG64: 7650339.753 | EK64: 159204937.9 | EL64: 170422853.2 | EM64: -11217915.32 | EN64: CRS + Chemotherapy | EO64: 170422853.2 | EP64: 11217915.32 | ES64: =IF(Input!K73="","",Input!K73) ->  | EX64: 11713858.08 | EY64: 6067.142471 | EZ64: 8175532.159 | FA64: 3892.554148 | FC64: 109628991.3 | FD64: 69675550.8 | FE64: 39953440.54 | FF64: HIPEC + CRS + Chemotherapy | FG64: 109628991.3 | FH64: 0 | FL64: 170300416 | FM64: 108601092.3 | FN64: 61699323.77 | FO64: HIPEC + CRS + Chemotherapy | FP64: 170300416 | FQ64: 0
A65: 61 | B65: 0.1315444131 | C65: 0.0009520190942 | D65: -0.3548719209 | E65: 0.1387495526 | F65: 0.001356951356 | G65: 0.5806487718 | H65: 18545.29922 | I65: 9318.596336 | J65: 11940.09524 | K65: 10100.09322 | L65: 0.4878952192 | M65: 0.8999560012 | N65: 0.8869633516 | O65: 0.4709610089 | P65: 0.8129501524 | Q65: 0.8991127199 | CX65: 10532317.55 | CY65: 9225.327922 | CZ65: 10355392.68 | DA65: 6084.223032 | DC65: 176.9248736 | DD65: 3.141104891 | DE65: 56.3256815 | DF65: HIPEC + CRS + Chemotherapy | DI65: 60 | DJ65: 60000 | DK65: 0.7171 | DM65: 542987357.8 | DN65: 354697989.2 | DO65: 188289368.6 | EB65: 173974240.9 | EC65: 111329068 | ED65: 62645172.94 | EE65: HIPEC + CRS + Chemotherapy | EF65: 173974240.9 | EG65: 0 | EK65: 266227520.1 | EL65: 172171298.3 | EM65: 94056221.85 | EN65: HIPEC + CRS + Chemotherapy | EO65: 266227520.1 | EP65: 0 | ES65: =IF(Input!K74="","",Input!K74) ->  | EX65: 12934202.55 | EY65: 6793.468562 | EZ65: 10051369.24 | FA65: 3923.450868 | FC65: 122935168.7 | FD65: 68417648.12 | FE65: 54517520.57 | FF65: HIPEC + CRS + Chemotherapy | FG65: 122935168.7 | FH65: 0 | FL65: 190869854.3 | FM65: 107652156.8 | FN65: 83217697.51 | FO65: HIPEC + CRS + Chemotherapy | FP65: 190869854.3 | FQ65: 0
A66: 62 | B66: 0.1548463099 | C66: 0.0005081513439 | D66: -0.1505633993 | E66: 0.1511570035 | F66: 0.0003736684564 | G66: 0.5425212808 | H66: 12187.62828 | I66: 8864.858194 | J66: 15192.70164 | K66: 5634.174303 | L66: 0.1291653506 | M66: 0.8490007133 | N66: 0.2880948835 | O66: 0.1243283841 | P66: 0.7175188683 | Q66: 0.7517486291 | CX66: 9379376.881 | CY66: 6095.477391 | CZ66: 7079012.652 | DA66: 4683.425982 | DC66: 2300.364228 | DD66: 1.412051409 | DE66: 1629.093823 | DF66: HIPEC + CRS + Chemotherapy | DM66: 356349266.6 | DN66: 273926546.2 | DO66: 82422720.33 | EB66: 112530170.9 | EC66: 86589506.98 | ED66: 25940663.96 | EE66: HIPEC + CRS + Chemotherapy | EF66: 112530170.9 | EG66: 0 | EK66: 173484944.8 | EL66: 133423766.8 | EM66: 40061178.05 | EN66: HIPEC + CRS + Chemotherapy | EO66: 173484944.8 | EP66: 0 | ES66: =IF(Input!K75="","",Input!K75) ->  | EX66: 11734529.39 | EY66: 5790.911603 | EZ66: 8887192.801 | FA66: 4230.359855 | FC66: 104083702.7 | FD66: 75720004.29 | FE66: 28363698.38 | FF66: HIPEC + CRS + Chemotherapy | FG66: 104083702.7 | FH66: 0 | FL66: 161992818.7 | FM66: 118023602.8 | FN66: 43969215.86 | FO66: HIPEC + CRS + Chemotherapy | FP66: 161992818.7 | FQ66: 0
A67: 63 | B67: 0.1410603836 | C67: 0.001328389611 | D67: -0.2019433803 | E67: 0.1271113107 | F67: 0.001065454621 | G67: 0.5349645423 | H67: 14664.9812 | I67: 8241.866825 | J67: 11863.39766 | K67: 8053.421283 | L67: 0.4789289446 | M67: 0.5597906895 | N67: 0.3912575288 | O67: 0.1583667443 | P67: 0.6006903378 | Q67: 0.300650325 | CX67: 9147913.803 | CY67: 5453.131055 | CZ67: 8537712.374 | DA67: 1854.057557 | DC67: 610.2014293 | DD67: 3.599073498 | DE67: 169.5440312 | DF67: HIPEC + CRS + Chemotherapy | DM67: 318039949.5 | DN67: 102705741.1 | DO67: 215334208.4 | EB67: 99914707.29 | EC67: 28543438.77 | ED67: 71371268.52 | EE67: HIPEC + CRS + Chemotherapy | EF67: 99914707.29 | EG67: 0 | EK67: 154446017.8 | EL67: 47084014.34 | EM67: 107362003.5 | EN67: HIPEC + CRS + Chemotherapy | EO67: 154446017.8 | EP67: 0 | ES67: =IF(Input!K76="","",Input!K76) ->  | EX67: 10364729.71 | EY67: 6592.876219 | EZ67: 10399067.92 | FA67: 4131.012812 | FC67: 121492794.7 | FD67: 72221188.32 | FE67: 49271606.36 | FF67: HIPEC + CRS + Chemotherapy | FG67: 121492794.7 | FH67: 0 | FL67: 187421556.9 | FM67: 113531316.4 | FN67: 73890240.43 | FO67: HIPEC + CRS + Chemotherapy | FP67: 187421556.9 | FQ67: 0
A68: 64 | B68: 0.1181110863 | C68: 8.406741504e-05 | D68: -0.3710982491 | E68: 0.1119282789 | F68: 0.0003114100149 | G68: 0.6185261721 | H68: 19620.1811 | I68: 13153.77613 | J68: 15109.04237 | K68: 8184.869756 | L68: 0.5355403183 | M68: 0.7251320153 | N68: 0.5400837131 | O68: 0.6002779449 | P68: 0.2259192401 | Q68: 0.3112671779 | CX68: 13917530.25 | CY68: 2733.071871 | CZ68: 8959880.479 | DA68: 2321.147268 | DC68: 4957.649769 | DD68: 0.4119246034 | DE68: 12035.33299 | DF68: HIPEC + CRS + Chemotherapy | DM68: 150066782 | DN68: 130308955.6 | DO68: 19757826.44 | EB68: 40743907.18 | EC68: 37463064.88 | ED68: 3280842.299 | EE68: HIPEC + CRS + Chemotherapy | EF68: 40743907.18 | EG68: 0 | EK68: 68074625.89 | EL68: 60674537.56 | EM68: 7400088.334 | EN68: HIPEC + CRS + Chemotherapy | EO68: 68074625.89 | EP68: 0 | ES68: =IF(Input!K77="","",Input!K77) ->  | EX68: 15594563.1 | EY68: 5706.056475 | EZ68: 9747754.798 | FA68: 4301.969455 | FC68: 98526566.39 | FD68: 76291634.3 | FE68: 22234932.09 | FF68: HIPEC + CRS + Chemotherapy | FG68: 98526566.39 | FH68: 0 | FL68: 155587131.1 | FM68: 119311328.8 | FN68: 36275802.29 | FO68: HIPEC + CRS + Chemotherapy | FP68: 155587131.1 | FQ68: 0
A69: 65 | B69: 0.1545553644 | C69: 0.0003771033975 | D69: -0.4019016659 | E69: 0.1203610975 | F69: 0.0003863250375 | G69: 0.5411856421 | H69: 15217.73573 | I69: 11025.27084 | J69: 9780.948771 | K69: 8526.462107 | L69: 0.5383699316 | M69: 0.105536868 | N69: 0.3121426368 | O69: 0.5996235828 | P69: 0.4362568788 | Q69: 0.8680507251 | CX69: 11673238.78 | CY69: 4989.649555 | CZ69: 8677453.498 | DA69: 5426.038625 | DC69: 2995.785279 | DD69: -0.4363890697 | DE69: -6864.941142 | DF69: CRS + Chemotherapy | DM69: 287705734.5 | DN69: 316884864 | DO69: -29179129.46 | EB69: 88119752.32 | EC69: 99843319 | ED69: -11723566.67 | EE69: CRS + Chemotherapy | EF69: 99843319 | EG69: 11723566.67 | EK69: 138016247.9 | EL69: 154103705.2 | EM69: -16087457.37 | EN69: CRS + Chemotherapy | EO69: 154103705.2 | EP69: 16087457.37 | ES69: =IF(Input!K78="","",Input!K78) ->  | EX69: 12266265.8 | EY69: 6687.328766 | EZ69: 9870597.588 | FA69: 3729.607092 | FC69: 121480309.5 | FD69: 64721544.25 | FE69: 56758765.28 | FF69: HIPEC + CRS + Chemotherapy | FG69: 121480309.5 | FH69: 0 | FL69: 188353597.2 | FM69: 102017615.2 | FN69: 86335982.02 | FO69: HIPEC + CRS + Chemotherapy | FP69: 188353597.2 | FQ69: 0
A70: 66 | B70: 0.1602871476 | C70: 0.0009007107333 | D70: -0.3717319392 | E70: 0.1448911097 | F70: 0.001846484448 | G70: 0.5925414837 | H70: 18358.7068 | I70: 12645.59998 | J70: 11962.82239 | K70: 6539.003676 | L70: 0.7764684052 | M70: 0.5280785989 | N70: 0.6119442993 | O70: 0.313212659 | P70: 0.8961176576 | Q70: 0.7634089038 | CX70: 13561337.58 | CY70: 10405.38918 | CZ70: 7324866.788 | DA70: 5287.092071 | DC70: =IF($CX70="","",(CX70-CZ70)/1000) -> 6236.47079 | DD70: =IF($CX70="","",(CY70-DA70)/1000) -> 5.11829711 | DE70: =IF($CX70="","",DC70/DD70) -> 1218.465958 | DF70: =IF($CX70="","",IF(Threshold*DD70-DC70>0,Intervention,Control)) -> HIPEC + CRS + Chemotherapy | DM70: =Threshold*CY70-CX70 -> 610762013.3 | DN70: =Threshold*DA70-CZ70 -> 309900657.5 | DO70: =DM70-DN70 -> 300861355.8 | EB70: =20000*CY70-CX70 -> 194546446 | EC70: =20000*DA70-CZ70 -> 98416974.64 | ED70: =EB70-EC70 -> 96129471.41 | EE70: =IF(OR(EB70="",EC70=""),"",IF(EB70>EC70,Intervention,Control)) -> HIPEC + CRS + Chemotherapy | EF70: =IF(OR(EB70="",EC70=""),"",MAX(EB70,EC70)) -> 194546446 | EG70: =IF(OR(EB70="",EC70=""),"",IF(EE70=EA$5,0,IF(EA$5=Intervention,EC70-EB70,EB70-EC70))) -> 0 | EK70: =30000*CY70-CX70 -> 298600337.9 | EL70: =30000*DA70-CZ70 -> 151287895.4 | EM70: =EK70-EL70 -> 147312442.5 | EN70: =IF(OR(EK70="",EL70=""),"",IF(EK70>EL70,Intervention,Control)) -> HIPEC + CRS + Chemotherapy | EO70: =IF(OR(EK70="",EL70=""),"",MAX(EK70,EL70)) -> 298600337.9 | EP70: =IF(OR(EK70="",EL70=""),"",IF(EN70=EJ$5,0,IF(EJ$5=Intervention,EL70-EK70,EK70-EL70))) -> 0 | ES70: =IF(Input!K79="","",Input!K79) ->  | EX70: 10003409.19 | EY70: 4999.167591 | EZ70: 9990973.129 | FA70: 4799.967725 | FC70: =20000*EY70-EX70 -> 89979942.62 | FD70: =20000*FA70-EZ70 -> 86008381.37 | FE70: =FC70-FD70 -> 3971561.256 | FF70: =IF(OR(FC70="",FD70=""),"",IF(FC70>FD70,Intervention,Control)) -> HIPEC + CRS + Chemotherapy | FG70: =IF(OR(FC70="",FD70=""),"",MAX(FC70,FD70)) -> 89979942.62 | FH70: =IF(OR(FC70="",FD70=""),"",IF(FF70=FB$5,0,IF(FB$5=Intervention,FD70-FC70,FC70-FD70))) -> 0 | FL70: =30000*EY70-EX70 -> 139971618.5 | FM70: =30000*FA70-EZ70 -> 134008058.6 | FN70: =FL70-FM70 -> 5963559.914 | FO70: =IF(OR(FL70="",FM70=""),"",IF(FL70>FM70,Intervention,Control)) -> HIPEC + CRS + Chemotherapy | FP70: =IF(OR(FL70="",FM70=""),"",MAX(FL70,FM70)) -> 139971618.5 | FQ70: =IF(OR(FL70="",FM70=""),"",IF(FO70=FK$5,0,IF(FK$5=Intervention,FM70-FL70,FL70-FM70))) -> 0
A71: 67 | B71: 0.1221190564 | C71: 0.0005203983501 | D71: -0.3863763252 | E71: 0.09571749194 | F71: 0.0004006096098 | G71: 0.5540128641 | H71: 15123.7136 | I71: 14482.03558 | J71: 10053.89574 | K71: 9311.39648 | L71: 0.8387972397 | M71: 0.7161246489 | N71: 0.261878689 | O71: 0.765658053 | P71: 0.2492053314 | Q71: 0.8925701314 | CX71: 14560396.7 | CY71: 2889.37875 | CZ71: 9382466.646 | DA71: 5737.552877 | DC71: 5177.93005 | DD71: -2.848174126 | DE71: -1817.982265 | DF71: CRS + Chemotherapy | DM71: 158802328.3 | DN71: 334870705.9 | DO71: -176068377.6 | EB71: 43227178.31 | EC71: 105368590.9 | ED71: -62141412.58 | EE71: CRS + Chemotherapy | EF71: 105368590.9 | EG71: 62141412.58 | EK71: 72120965.81 | EL71: 162744119.6 | EM71: -90623153.84 | EN71: CRS + Chemotherapy | EO71: 162744119.6 | EP71: 90623153.84 | ES71: =IF(Input!K80="","",Input!K80) ->  | EX71: 12754086.86 | EY71: 6587.047852 | EZ71: 8812576.956 | FA71: 4279.136689 | FC71: 118986870.2 | FD71: 76770156.82 | FE71: 42216713.36 | FF71: HIPEC + CRS + Chemotherapy | FG71: 118986870.2 | FH71: 0 | FL71: 184857348.7 | FM71: 119561523.7 | FN71: 65295825 | FO71: HIPEC + CRS + Chemotherapy | FP71: 184857348.7 | FQ71: 0
A72: 68 | B72: 0.1360818023 | C72: 0.0001720575792 | D72: -0.5190576282 | E72: 0.1355679051 | F72: 0.001830200936 | G72: 0.6229421342 | H72: 18961.90952 | I72: 8476.851815 | J72: 12672.7868 | K72: 7174.734305 | L72: 0.100736886 | M72: 0.2744303777 | N72: 0.6958487987 | O72: 0.8968875015 | P72: 0.3489784587 | Q72: 0.1216768733 | CX72: 9903677.364 | CY72: 4651.49988 | CZ72: 7920093.764 | DA72: 967.7442759 | DC72: 1983.5836 | DD72: 3.683755604 | DE72: 538.4677522 | DF72: HIPEC + CRS + Chemotherapy | DM72: 269186315.4 | DN72: 50144562.79 | DO72: 219041752.6 | EB72: 83126320.23 | EC72: 11434791.75 | ED72: 71691528.48 | EE72: HIPEC + CRS + Chemotherapy | EF72: 83126320.23 | EG72: 0 | EK72: 129641319 | EL72: 21112234.51 | EM72: 108529084.5 | EN72: HIPEC + CRS + Chemotherapy | EO72: 129641319 | EP72: 0 | ES72: =IF(Input!K81="","",Input!K81) ->  | EX72: 13752804.11 | EY72: 6435.144269 | EZ72: 9397327.401 | FA72: 4714.134689 | FC72: 114950081.3 | FD72: 84885366.37 | FE72: 30064714.88 | FF72: HIPEC + CRS + Chemotherapy | FG72: 114950081.3 | FH72: 0 | FL72: 179301523.9 | FM72: 132026713.3 | FN72: 47274810.68 | FO72: HIPEC + CRS + Chemotherapy | FP72: 179301523.9 | FQ72: 0
A73: 69 | B73: 0.1367539184 | C73: 0.0007781843954 | D73: -0.3265169211 | E73: 0.129342525 | F73: 0.0003095683232 | G73: 0.5794778338 | H73: 14091.92134 | I73: 9453.800505 | J73: 10457.34569 | K73: 6942.331225 | L73: 0.1262643639 | M73: 0.3595912883 | N73: 0.6928417619 | O73: 0.8725349897 | P73: 0.7767444281 | Q73: 0.3619784357 | CX73: 10088081.7 | CY73: 8528.5221 | CZ73: 7396972.071 | DA73: 2499.07342 | DC73: 2691.109632 | DD73: 6.029448681 | DE73: 446.3276452 | DF73: HIPEC + CRS + Chemotherapy | DM73: 501623244.3 | DN73: 142547433.1 | DO73: 359075811.2 | EB73: 160482360.3 | EC73: 42584496.32 | ED73: 117897864 | EE73: HIPEC + CRS + Chemotherapy | EF73: 160482360.3 | EG73: 0 | EK73: 245767581.3 | EL73: 67575230.51 | EM73: 178192350.8 | EN73: HIPEC + CRS + Chemotherapy | EO73: 245767581.3 | EP73: 0 | ES73: =IF(Input!K82="","",Input!K82) ->  | EX73: 10966863.49 | EY73: 6819.685873 | EZ73: 10277119.16 | FA73: 4235.606485 | FC73: 125426854 | FD73: 74435010.53 | FE73: 50991843.45 | FF73: HIPEC + CRS + Chemotherapy | FG73: 125426854 | FH73: 0 | FL73: 193623712.7 | FM73: 116791075.4 | FN73: 76832637.34 | FO73: HIPEC + CRS + Chemotherapy | FP73: 193623712.7 | FQ73: 0
A74: 70 | B74: 0.1469220636 | C74: 0.0001440233728 | D74: -0.4646184923 | E74: 0.1302342326 | F74: 0.0007527217274 | G74: 0.6108500826 | H74: 15679.74183 | I74: 13154.03439 | J74: 14785.8143 | K74: 8832.90426 | L74: 0.2436004648 | M74: 0.899995543 | N74: 0.1017193014 | O74: 0.8676258212 | P74: 0.10628166 | Q74: 0.398540694 | CX74: 13525116.54 | CY74: 1412.772881 | CZ74: 9608176.93 | DA74: 2922.731879 | DC74: 3916.939607 | DD74: -1.509958998 | DE74: -2594.070178 | DF74: CRS + Chemotherapy | DM74: 71241256.3 | DN74: 165755735.8 | DO74: -94514479.51 | EB74: 14730341.08 | EC74: 48846460.65 | ED74: -34116119.58 | EE74: CRS + Chemotherapy | EF74: 48846460.65 | EG74: 34116119.58 | EK74: 28858069.88 | EL74: 78073779.44 | EM74: -49215709.56 | EN74: CRS + Chemotherapy | EO74: 78073779.44 | EP74: 49215709.56 | ES74: =IF(Input!K83="","",Input!K83) ->  | EX74: 11391501.54 | EY74: 5727.00804 | EZ74: 8505356.912 | FA74: 4390.218075 | FC74: 103148659.3 | FD74: 79299004.6 | FE74: 23849654.67 | FF74: HIPEC + CRS + Chemotherapy | FG74: 103148659.3 | FH74: 0 | FL74: 160418739.7 | FM74: 123201185.4 | FN74: 37217554.32 | FO74: HIPEC + CRS + Chemotherapy | FP74: 160418739.7 | FQ74: 0
A75: 71 | B75: 0.1083330759 | C75: 0.0003776951856 | D75: -0.2630681928 | E75: 0.1313113567 | F75: 0.001460967131 | G75: 0.5349849325 | H75: 19085.6761 | I75: 8440.557395 | J75: 9084.459958 | K75: 8233.860291 | L75: 0.8212829677 | M75: 0.3048428699 | N75: 0.6990526183 | O75: 0.6157877636 | P75: 0.7546448201 | Q75: 0.7956087235 | CX75: 9593775.848 | CY75: 7408.257635 | CZ75: 8345553.688 | DA75: 4915.434508 | DC75: 1248.22216 | DD75: 2.492823127 | DE75: 500.7263239 | DF75: HIPEC + CRS + Chemotherapy | DM75: 434901682.3 | DN75: 286580516.8 | DO75: 148321165.4 | EB75: 138571376.9 | EC75: 89963136.48 | ED75: 48608240.37 | EE75: HIPEC + CRS + Chemotherapy | EF75: 138571376.9 | EG75: 0 | EK75: 212653953.2 | EL75: 139117481.6 | EM75: 73536471.64 | EN75: HIPEC + CRS + Chemotherapy | EO75: 212653953.2 | EP75: 0 | ES75: =IF(Input!K84="","",Input!K84) ->  | EX75: 13092526.66 | EY75: 7163.692342 | EZ75: 6595406.693 | FA75: 3874.203064 | FC75: 130181320.2 | FD75: 70888654.58 | FE75: 59292665.59 | FF75: HIPEC + CRS + Chemotherapy | FG75: 130181320.2 | FH75: 0 | FL75: 201818243.6 | FM75: 109630685.2 | FN75: 92187558.37 | FO75: HIPEC + CRS + Chemotherapy | FP75: 201818243.6 | FQ75: 0
A76: 72 | B76: 0.1588604906 | C76: 5.314741817e-05 | D76: -0.1792702404 | E76: 0.1509059644 | F76: 0.001891962923 | G76: 0.5939196904 | H76: 15615.71411 | I76: 8767.818698 | J76: 15705.86723 | K76: 9897.269047 | L76: 0.739821614 | M76: 0.1386807694 | N76: 0.100014165 | O76: 0.8472910032 | P76: 0.7692553664 | Q76: 0.7806288136 | CX76: 9855678.722 | CY76: 7238.758119 | CZ76: 10773821.16 | DA76: 5452.923632 | DC76: -918.1424347 | DD76: 1.785834487 | DE76: -514.1251562 | DF76: HIPEC + CRS + Chemotherapy | DM76: 424469808.4 | DN76: 316401596.7 | DO76: 108068211.7 | EB76: 134919483.7 | EC76: 98284651.48 | ED76: 36634832.18 | EE76: HIPEC + CRS + Chemotherapy | EF76: 134919483.7 | EG76: 0 | EK76: 207307064.8 | EL76: 152813887.8 | EM76: 54493177.05 | EN76: HIPEC + CRS + Chemotherapy | EO76: 207307064.8 | EP76: 0 | ES76: =IF(Input!K85="","",Input!K85) ->  | EX76: 9227929.987 | EY76: 6780.371207 | EZ76: 8533585.191 | FA76: 4150.290461 | FC76: 126379494.2 | FD76: 74472224.03 | FE76: 51907270.13 | FF76: HIPEC + CRS + Chemotherapy | FG76: 126379494.2 | FH76: 0 | FL76: 194183206.2 | FM76: 115975128.6 | FN76: 78208077.59 | FO76: HIPEC + CRS + Chemotherapy | FP76: 194183206.2 | FQ76: 0
A77: 73 | B77: 0.1452541021 | C77: 0.0006590298061 | D77: -0.3236432797 | E77: 0.1216854425 | F77: 0.001697821512 | G77: 0.5609821457 | H77: 16315.201 | I77: 11447.46132 | J77: 13634.08315 | K77: 7631.955578 | L77: 0.8787901527 | M77: 0.8538211696 | N77: 0.8742130511 | O77: 0.7222224948 | P77: 0.6469251812 | Q77: 0.8863377413 | CX77: 12154520.48 | CY77: 7013.103535 | CZ77: 8362327.127 | DA77: 5774.010285 | DC77: 3792.193349 | DD77: 1.23909325 | DE77: 3060.458402 | DF77: HIPEC + CRS + Chemotherapy | DM77: 408631691.6 | DN77: 338078289.9 | DO77: 70553401.66 | EB77: 128107550.2 | EC77: 107117878.6 | ED77: 20989671.66 | EE77: HIPEC + CRS + Chemotherapy | EF77: 128107550.2 | EG77: 0 | EK77: 198238585.6 | EL77: 164857981.4 | EM77: 33380604.16 | EN77: HIPEC + CRS + Chemotherapy | EO77: 198238585.6 | EP77: 0 | ES77: =IF(Input!K86="","",Input!K86) ->  | EX77: 9327196.622 | EY77: 7476.599101 | EZ77: 10473681.73 | FA77: 4158.280285 | FC77: 140204785.4 | FD77: 72691923.97 | FE77: 67512861.43 | FF77: HIPEC + CRS + Chemotherapy | FG77: 140204785.4 | FH77: 0 | FL77: 214970776.4 | FM77: 114274726.8 | FN77: 100696049.6 | FO77: HIPEC + CRS + Chemotherapy | FP77: 214970776.4 | FQ77: 0
A78: 74 | B78: 0.1227894679 | C78: 0.0002339880344 | D78: -0.3297549666 | E78: 0.1518619782 | F78: 0.003129808288 | G78: 0.5643379676 | H78: 13484.25912 | I78: 14451.01932 | J78: 15722.9315 | K78: 6294.40921 | L78: 0.4961614787 | M78: 0.3407691129 | N78: 0.8442634111 | O78: 0.8786969245 | P78: 0.8608062079 | Q78: 0.2810126728 | CX78: 14332311.35 | CY78: 9357.276885 | CZ78: 7726243.256 | DA78: 1893.722716 | DC78: 6606.068095 | DD78: 7.463554169 | DE78: 885.110223 | DF78: HIPEC + CRS + Chemotherapy | DM78: 547104301.7 | DN78: 105897119.7 | DO78: 441207182 | EB78: 172813226.3 | EC78: 30148211.07 | ED78: 142665015.3 | EE78: HIPEC + CRS + Chemotherapy | EF78: 172813226.3 | EG78: 0 | EK78: 266385995.2 | EL78: 49085438.23 | EM78: 217300557 | EN78: HIPEC + CRS + Chemotherapy | EO78: 266385995.2 | EP78: 0 | ES78: =IF(Input!K87="","",Input!K87) ->  | EX78: 13659496.42 | EY78: 6985.27479 | EZ78: 9303710.636 | FA78: 4154.135966 | FC78: 126045999.4 | FD78: 73779008.68 | FE78: 52266990.71 | FF78: HIPEC + CRS + Chemotherapy | FG78: 126045999.4 | FH78: 0 | FL78: 195898747.3 | FM78: 115320368.3 | FN78: 80578378.95 | FO78: HIPEC + CRS + Chemotherapy | FP78: 195898747.3 | FQ78: 0
A79: 75 | B79: 0.1126373789 | C79: 0.001261500404 | D79: -0.2995523396 | E79: 0.1174052948 | F79: 0.003015937884 | G79: 0.5649098289 | H79: 15207.42149 | I79: 10571.91841 | J79: 14238.81559 | K79: 7783.647841 | L79: 0.1389980911 | M79: 0.8928301569 | N79: 0.8134284659 | O79: 0.2454740355 | P79: 0.81694902 | Q79: 0.8117990961 | CX79: 11094049.32 | CY79: 8637.196416 | CZ79: 8541518.713 | DA79: 5293.681567 | DC79: 2552.53061 | DD79: 3.343514849 | DE79: 763.4273288 | DF79: HIPEC + CRS + Chemotherapy | DM79: 507137735.6 | DN79: 309079375.3 | DO79: 198058360.3 | EB79: 161649879 | EC79: 97332112.63 | ED79: 64317766.36 | EE79: HIPEC + CRS + Chemotherapy | EF79: 161649879 | EG79: 0 | EK79: 248021843.1 | EL79: 150268928.3 | EM79: 97752914.85 | EN79: HIPEC + CRS + Chemotherapy | EO79: 248021843.1 | EP79: 0 | ES79: =IF(Input!K88="","",Input!K88) ->  | EX79: 11788972.84 | EY79: 7101.853188 | EZ79: 9328371.585 | FA79: 4241.854973 | FC79: 130248090.9 | FD79: 75508727.87 | FE79: 54739363.05 | FF79: HIPEC + CRS + Chemotherapy | FG79: 130248090.9 | FH79: 0 | FL79: 201266622.8 | FM79: 117927277.6 | FN79: 83339345.21 | FO79: HIPEC + CRS + Chemotherapy | FP79: 201266622.8 | FQ79: 0
A80: 76 | B80: 0.1421440495 | C80: 0.0008596511475 | D80: -0.1820920873 | E80: 0.1276999834 | F80: 0.002384813904 | G80: 0.4937341476 | H80: 17869.29164 | I80: 11730.96136 | J80: 8695.444513 | K80: 8504.670692 | L80: 0.8017302767 | M80: 0.8634559457 | N80: 0.861325564 | O80: 0.8343684478 | P80: 0.7407141337 | Q80: 0.8824648013 | CX80: 12603488.48 | CY80: 6253.922644 | CZ80: 8529032.506 | DA80: 5035.420249 | DC80: 4074.455976 | DD80: 1.218502396 | DE80: 3343.822705 | DF80: HIPEC + CRS + Chemotherapy | DM80: 362631870.2 | DN80: 293596182.4 | DO80: 69035687.76 | EB80: 112474964.4 | EC80: 92179372.47 | ED80: 20295591.93 | EE80: HIPEC + CRS + Chemotherapy | EF80: 112474964.4 | EG80: 0 | EK80: 175014190.9 | EL80: 142533575 | EM80: 32480615.89 | EN80: HIPEC + CRS + Chemotherapy | EO80: 175014190.9 | EP80: 0 | ES80: =IF(Input!K89="","",Input!K89) ->  | EX80: 13840608.22 | EY80: 6920.02013 | EZ80: 9695583.572 | FA80: 3828.254892 | FC80: 124559794.4 | FD80: 66869514.27 | FE80: 57690280.12 | FF80: HIPEC + CRS + Chemotherapy | FG80: 124559794.4 | FH80: 0 | FL80: 193759995.7 | FM80: 105152063.2 | FN80: 88607932.49 | FO80: HIPEC + CRS + Chemotherapy | FP80: 193759995.7 | FQ80: 0
A81: 77 | B81: 0.1383833023 | C81: 0.0004678149862 | D81: -0.3610164669 | E81: 0.1512500285 | F81: 0.002663673627 | G81: 0.5364204301 | H81: 17719.28617 | I81: 14205.14354 | J81: 14075.15813 | K81: 8312.052867 | L81: 0.5894599038 | M81: 0.8697804234 | N81: 0.3750443142 | O81: 0.6197390249 | P81: 0.3774226885 | Q81: 0.1409627846 | CX81: 14691442.2 | CY81: 4191.67797 | CZ81: 9183722.701 | DA81: 911.5993313 | DC81: 5507.719503 | DD81: 3.280078639 | DE81: 1679.142517 | DF81: HIPEC + CRS + Chemotherapy | DM81: 236809236 | DN81: 45512237.18 | DO81: 191296998.8 | EB81: 69142117.2 | EC81: 9048263.926 | ED81: 60093853.28 | EE81: HIPEC + CRS + Chemotherapy | EF81: 69142117.2 | EG81: 0 | EK81: 111058896.9 | EL81: 18164257.24 | EM81: 92894639.67 | EN81: HIPEC + CRS + Chemotherapy | EO81: 111058896.9 | EP81: 0 | ES81: =IF(Input!K90="","",Input!K90) ->  | EX81: 12164209.03 | EY81: 7217.775346 | EZ81: 7823766.397 | FA81: 4090.019405 | FC81: 132191297.9 | FD81: 73976621.69 | FE81: 58214676.19 | FF81: HIPEC + CRS + Chemotherapy | FG81: 132191297.9 | FH81: 0 | FL81: 204369051.3 | FM81: 114876815.7 | FN81: 89492235.6 | FO81: HIPEC + CRS + Chemotherapy | FP81: 204369051.3 | FQ81: 0
A82: 78 | B82: 0.1004517727 | C82: 0.001162873838 | D82: -0.2913924054 | E82: 0.1188080699 | F82: 0.002772804209 | G82: 0.5685470679 | H82: 14423.80475 | I82: 10175.75187 | J82: 12726.29956 | K82: 6334.452878 | L82: 0.7659218072 | M82: 0.7416247452 | N82: 0.6178706134 | O82: 0.1093983032 | P82: 0.6131842761 | Q82: 0.8977892364 | CX82: 10602476.31 | CY82: 6460.202653 | CZ82: 7093855.845 | DA82: 5885.635881 | DC82: 3508.620465 | DD82: 0.574566772 | DE82: 6106.549554 | DF82: HIPEC + CRS + Chemotherapy | DM82: 377009682.9 | DN82: 346044297 | DO82: 30965385.86 | EB82: 118601576.8 | EC82: 110618861.8 | ED82: 7982714.975 | EE82: HIPEC + CRS + Chemotherapy | EF82: 118601576.8 | EG82: 0 | EK82: 183203603.3 | EL82: 169475220.6 | EM82: 13728382.7 | EN82: HIPEC + CRS + Chemotherapy | EO82: 183203603.3 | EP82: 0 | ES82: =IF(Input!K91="","",Input!K91) ->  | EX82: 13616537.73 | EY82: 5989.428017 | EZ82: 8489420.821 | FA82: 4703.902371 | FC82: 106172022.6 | FD82: 85588626.6 | FE82: 20583396.01 | FF82: HIPEC + CRS + Chemotherapy | FG82: 106172022.6 | FH82: 0 | FL82: 166066302.8 | FM82: 132627650.3 | FN82: 33438652.48 | FO82: HIPEC + CRS + Chemotherapy | FP82: 166066302.8 | FQ82: 0
A83: 79 | B83: 0.1491909133 | C83: 0.0003542143329 | D83: -0.06982713545 | E83: 0.1364633028 | F83: 0.0003727343655 | G83: 0.6185173032 | H83: 16357.02545 | I83: 12784.59119 | J83: 14826.83043 | K83: 7904.010317 | L83: 0.1241669077 | M83: 0.8369032373 | N83: 0.4612908182 | O83: 0.3735813259 | P83: 0.8885034601 | Q83: 0.6101593923 | CX83: 13317565.92 | CY83: 7421.997275 | CZ83: 8848721.214 | DA83: 4484.83839 | DC83: 4468.844707 | DD83: 2.937158885 | DE83: 1521.485518 | DF83: HIPEC + CRS + Chemotherapy | DM83: 432002270.6 | DN83: 260241582.2 | DO83: 171760688.4 | EB83: 135122379.6 | EC83: 80848046.59 | ED83: 54274332.99 | EE83: HIPEC + CRS + Chemotherapy | EF83: 135122379.6 | EG83: 0 | EK83: 209342352.3 | EL83: 125696430.5 | EM83: 83645921.85 | EN83: HIPEC + CRS + Chemotherapy | EO83: 209342352.3 | EP83: 0 | ES83: =IF(Input!K92="","",Input!K92) ->  | EX83: 12175844.67 | EY83: 7594.397898 | EZ83: 6910299.339 | FA83: 4098.548937 | FC83: 139712113.3 | FD83: 75060679.4 | FE83: 64651433.88 | FF83: HIPEC + CRS + Chemotherapy | FG83: 139712113.3 | FH83: 0 | FL83: 215656092.3 | FM83: 116046168.8 | FN83: 99609923.49 | FO83: HIPEC + CRS + Chemotherapy | FP83: 215656092.3 | FQ83: 0
A84: 80 | B84: 0.1140641557 | C84: 0.0007350613202 | D84: -0.4032166744 | E84: 0.136168418 | F84: 0.002418944774 | G84: 0.59653022 | H84: 18049.23413 | I84: 10469.48961 | J84: 13546.44039 | K84: 8617.11184 | L84: 0.4638918815 | M84: 0.846104731 | N84: 0.13549732 | O84: 0.5902894196 | P84: 0.804084308 | Q84: 0.1582945709 | CX84: 11334066.77 | CY84: 9652.850623 | CZ84: 9288330.711 | DA84: 1142.896714 | DC84: 2045.736061 | DD84: 8.509953908 | DE84: 240.3933186 | DF84: HIPEC + CRS + Chemotherapy | DM84: 567836970.6 | DN84: 59285472.15 | DO84: 508551498.4 | EB84: 181722945.7 | EC84: 13569603.58 | ED84: 168153342.1 | EE84: HIPEC + CRS + Chemotherapy | EF84: 181722945.7 | EG84: 0 | EK84: 278251451.9 | EL84: 24998570.72 | EM84: 253252881.2 | EN84: HIPEC + CRS + Chemotherapy | EO84: 278251451.9 | EP84: 0 | ES84: =IF(Input!K93="","",Input!K93) ->  | EX84: 11594047.4 | EY84: 7734.530287 | EZ84: 9334113.672 | FA84: 4381.129656 | FC84: 143096558.3 | FD84: 78288479.45 | FE84: 64808078.88 | FF84: HIPEC + CRS + Chemotherapy | FG84: 143096558.3 | FH84: 0 | FL84: 220441861.2 | FM84: 122099776 | FN84: 98342085.19 | FO84: HIPEC + CRS + Chemotherapy | FP84: 220441861.2 | FQ84: 0
A85: 81 | B85: 0.1315289319 | C85: 2.505607776e-06 | D85: -0.4197206646 | E85: 0.1317823827 | F85: 0.001719287476 | G85: 0.5807493409 | H85: 18662.89766 | I85: 12322.16592 | J85: 9815.008015 | K85: 8657.513051 | L85: 0.6673086658 | M85: 0.8943150336 | N85: 0.1480499564 | O85: 0.8999999635 | P85: 0.8865375962 | Q85: 0.2931487749 | CX85: 13156155.59 | CY85: 10659.83087 | CZ85: 8810050.495 | DA85: 2035.807486 | DC85: 4346.105094 | DD85: 8.624023384 | DE85: 503.9533058 | DF85: HIPEC + CRS + Chemotherapy | DM85: 626433696.6 | DN85: 113338398.6 | DO85: 513095297.9 | EB85: 200040461.8 | EC85: 31906099.22 | ED85: 168134362.6 | EE85: HIPEC + CRS + Chemotherapy | EF85: 200040461.8 | EG85: 0 | EK85: 306638770.5 | EL85: 52264174.08 | EM85: 254374596.4 | EN85: HIPEC + CRS + Chemotherapy | EO85: 306638770.5 | EP85: 0 | ES85: =IF(Input!K94="","",Input!K94) ->  | EX85: 13506275.66 | EY85: 6398.206783 | EZ85: 9846261.359 | FA85: 3948.582083 | FC85: 114457860 | FD85: 69125380.3 | FE85: 45332479.7 | FF85: HIPEC + CRS + Chemotherapy | FG85: 114457860 | FH85: 0 | FL85: 178439927.8 | FM85: 108611201.1 | FN85: 69828726.7 | FO85: HIPEC + CRS + Chemotherapy | FP85: 178439927.8 | FQ85: 0
A86: 82 | B86: 0.1308876073 | C86: 0.0003009112065 | D86: -0.3415882884 | E86: 0.1361274901 | F86: 0.001617790464 | G86: 0.5698397338 | H86: 12236.50907 | I86: 11177.81582 | J86: 13172.54173 | K86: 7816.357941 | L86: 0.8932347761 | M86: 0.8996650595 | N86: 0.1002090664 | O86: 0.4912088908 | P86: 0.8965108617 | Q86: 0.8677134504 | CX86: 11316385.64 | CY86: 9953.222661 | CZ86: 8545481.796 | DA86: 5733.350342 | DC86: 2770.903847 | DD86: 4.219872319 | DE86: 656.6321532 | DF86: HIPEC + CRS + Chemotherapy | DM86: 585876974 | DN86: 335455538.7 | DO86: 250421435.3 | EB86: 187748067.6 | EC86: 106121525 | ED86: 81626542.53 | EE86: HIPEC + CRS + Chemotherapy | EF86: 187748067.6 | EG86: 0 | EK86: 287280294.2 | EL86: 163455028.5 | EM86: 123825265.7 | EN86: HIPEC + CRS + Chemotherapy | EO86: 287280294.2 | EP86: 0 | ES86: =IF(Input!K95="","",Input!K95) ->  | EX86: 15443859.05 | EY86: 7479.820386 | EZ86: 10811267.91 | FA86: 3929.907454 | FC86: 134152548.7 | FD86: 67786881.17 | FE86: 66365667.5 | FF86: HIPEC + CRS + Chemotherapy | FG86: 134152548.7 | FH86: 0 | FL86: 208950752.5 | FM86: 107085955.7 | FN86: 101864796.8 | FO86: HIPEC + CRS + Chemotherapy | FP86: 208950752.5 | FQ86: 0
A87: 83 | B87: 0.1418767242 | C87: 0.001214233175 | D87: -0.1120379189 | E87: 0.1667557064 | F87: 0.0002955492608 | G87: 0.5824819933 | H87: 14723.15394 | I87: 10546.97676 | J87: 14855.44566 | K87: 6414.443468 | L87: 0.3210850806 | M87: 0.1431642822 | N87: 0.7225787266 | O87: 0.1035605169 | P87: 0.8399362867 | Q87: 0.8267518564 | CX87: 11139479.1 | CY87: 7029.886 | CZ87: 7822028.752 | DA87: 5598.876144 | DC87: 3317.450351 | DD87: 1.431009856 | DE87: 2318.258212 | DF87: HIPEC + CRS + Chemotherapy | DM87: 410653680.9 | DN87: 328110539.9 | DO87: 82543141.01 | EB87: 129458240.9 | EC87: 104155494.1 | ED87: 25302746.77 | EE87: HIPEC + CRS + Chemotherapy | EF87: 129458240.9 | EG87: 0 | EK87: 199757100.9 | EL87: 160144255.6 | EM87: 39612845.33 | EN87: HIPEC + CRS + Chemotherapy | EO87: 199757100.9 | EP87: 0 | ES87: =IF(Input!K96="","",Input!K96) ->  | EX87: 13264822 | EY87: 7413.801407 | EZ87: 7156845.275 | FA87: 4249.894084 | FC87: 135011206.1 | FD87: 77841036.41 | FE87: 57170169.73 | FF87: HIPEC + CRS + Chemotherapy | FG87: 135011206.1 | FH87: 0 | FL87: 209149220.2 | FM87: 120339977.3 | FN87: 88809242.96 | FO87: HIPEC + CRS + Chemotherapy | FP87: 209149220.2 | FQ87: 0
A88: 84 | B88: 0.1656657625 | C88: 0.0001396290288 | D88: -0.49766101 | E88: 0.1284492771 | F88: 0.001022273825 | G88: 0.5063894082 | H88: 15318.0748 | I88: 14501.72457 | J88: 10518.91667 | K88: 5712.152624 | L88: 0.8858438029 | M88: 0.7101674557 | N88: 0.2037660126 | O88: 0.7873955376 | P88: 0.2010712617 | Q88: 0.1362950638 | CX88: 14636965.85 | CY88: 2497.679967 | CZ88: 6329577.991 | DA88: 846.6400512 | DC88: 8307.387859 | DD88: 1.651039916 | DE88: 5031.609338 | DF88: HIPEC + CRS + Chemotherapy | DM88: 135223832.2 | DN88: 44468825.08 | DO88: 90755007.11 | EB88: 35316633.5 | EC88: 10603223.03 | ED88: 24713410.46 | EE88: HIPEC + CRS + Chemotherapy | EF88: 35316633.5 | EG88: 0 | EK88: 60293433.17 | EL88: 19069623.55 | EM88: 41223809.63 | EN88: HIPEC + CRS + Chemotherapy | EO88: 60293433.17 | EP88: 0 | ES88: =IF(Input!K97="","",Input!K97) ->  | EX88: 9056057.013 | EY88: 7306.701756 | EZ88: 7323487.581 | FA88: 4178.742582 | FC88: 137077978.1 | FD88: 76251364.05 | FE88: 60826614.05 | FF88: HIPEC + CRS + Chemotherapy | FG88: 137077978.1 | FH88: 0 | FL88: 210144995.7 | FM88: 118038789.9 | FN88: 92106205.79 | FO88: HIPEC + CRS + Chemotherapy | FP88: 210144995.7 | FQ88: 0
A89: 85 | B89: 0.1418461438 | C89: 0.002022584433 | D89: -0.3651232617 | E89: 0.1428081821 | F89: 0.002077195686 | G89: 0.568580418 | H89: 17596.401 | I89: 9736.936388 | J89: 15378.79894 | K89: 9361.077932 | L89: 0.8013864323 | M89: 0.7842992875 | N89: 0.6538742517 | O89: 0.6264401749 | P89: 0.8682744735 | Q89: 0.3836216159 | CX89: 10851771.14 | CY89: 9825.847143 | CZ89: 10220457.73 | DA89: 2563.263779 | DC89: 631.3134062 | DD89: 7.262583364 | DE89: 86.92683781 | DF89: HIPEC + CRS + Chemotherapy | DM89: 578699057.4 | DN89: 143575369 | DO89: 435123688.4 | EB89: 185665171.7 | EC89: 41044817.85 | ED89: 144620353.9 | EE89: HIPEC + CRS + Chemotherapy | EF89: 185665171.7 | EG89: 0 | EK89: 283923643.2 | EL89: 66677455.63 | EM89: 217246187.5 | EN89: HIPEC + CRS + Chemotherapy | EO89: 283923643.2 | EP89: 0 | ES89: =IF(Input!K98="","",Input!K98) ->  | EX89: 10032482.73 | EY89: 7401.269978 | EZ89: 8343137.988 | FA89: 4366.349924 | FC89: 137992916.8 | FD89: 78983860.49 | FE89: 59009056.35 | FF89: HIPEC + CRS + Chemotherapy | FG89: 137992916.8 | FH89: 0 | FL89: 212005616.6 | FM89: 122647359.7 | FN89: 89358256.89 | FO89: HIPEC + CRS + Chemotherapy | FP89: 212005616.6 | FQ89: 0
A90: 86 | B90: 0.1227705437 | C90: 0.0004239831747 | D90: -0.3138082504 | E90: 0.1277287198 | F90: 0.0003616577771 | G90: 0.630311245 | H90: 16989.58574 | I90: 11974.46364 | J90: 8833.578067 | K90: 10102.6742 | L90: 0.4670023467 | M90: 0.5498145111 | N90: 0.2422553498 | O90: 0.3353504259 | P90: 0.1327092552 | Q90: 0.5198020381 | CX90: 12590172.91 | CY90: 1555.244018 | CZ90: 9940574.172 | DA90: 3921.036785 | DC90: 2649.598738 | DD90: -2.365792767 | DE90: -1119.962312 | DF90: CRS + Chemotherapy | DM90: 80724468.19 | DN90: 225321632.9 | DO90: -144597164.8 | EB90: 18514707.46 | EC90: 68480161.53 | ED90: -49965454.08 | EE90: CRS + Chemotherapy | EF90: 68480161.53 | EG90: 49965454.08 | EK90: 34067147.64 | EL90: 107690529.4 | EM90: -73623381.75 | EN90: CRS + Chemotherapy | EO90: 107690529.4 | EP90: 73623381.75 | ES90: =IF(Input!K99="","",Input!K99) ->  | EX90: 9035244.474 | EY90: 5439.548645 | EZ90: 6964089.802 | FA90: 3556.507876 | FC90: 99755728.43 | FD90: 64166067.72 | FE90: 35589660.71 | FF90: HIPEC + CRS + Chemotherapy | FG90: 99755728.43 | FH90: 0 | FL90: 154151214.9 | FM90: 99731146.49 | FN90: 54420068.4 | FO90: HIPEC + CRS + Chemotherapy | FP90: 154151214.9 | FQ90: 0
A91: 87 | B91: 0.1428108911 | C91: 0.001053348717 | D91: -0.2864894389 | E91: 0.118526386 | F91: 0.001831463224 | G91: 0.5185077043 | H91: 14375.24727 | I91: 9137.505038 | J91: 10887.50838 | K91: 7186.027178 | L91: 0.8777340842 | M91: 0.3930837026 | N91: 0.6188561441 | O91: 0.8890555725 | P91: 0.7582960713 | Q91: 0.8430883057 | CX91: 9885511.674 | CY91: 7547.432877 | CZ91: 7624750.367 | DA91: 5055.524178 | DC91: 2260.761306 | DD91: 2.491908699 | DE91: 907.2408262 | DF91: HIPEC + CRS + Chemotherapy | DM91: 442960460.9 | DN91: 295706700.3 | DO91: 147253760.6 | EB91: 141063145.9 | EC91: 93485733.2 | ED91: 47577412.66 | EE91: HIPEC + CRS + Chemotherapy | EF91: 141063145.9 | EG91: 0 | EK91: 216537474.6 | EL91: 144040975 | EM91: 72496499.65 | EN91: HIPEC + CRS + Chemotherapy | EO91: 216537474.6 | EP91: 0 | ES91: =IF(Input!K100="","",Input!K100) ->  | EX91: 10299198.32 | EY91: 8248.528219 | EZ91: 7123807.392 | FA91: 4065.271706 | FC91: 154671366.1 | FD91: 74181626.72 | FE91: 80489739.35 | FF91: HIPEC + CRS + Chemotherapy | FG91: 154671366.1 | FH91: 0 | FL91: 237156648.3 | FM91: 114834343.8 | FN91: 122322304.5 | FO91: HIPEC + CRS + Chemotherapy | FP91: 237156648.3 | FQ91: 0
A92: 88 | B92: 0.1230044068 | C92: 0.0008138312612 | D92: -0.593600053 | E92: 0.1348266041 | F92: 0.0002743988089 | G92: 0.5921039176 | H92: 19219.03819 | I92: 11499.66974 | J92: 12427.21458 | K92: 6050.540438 | L92: 0.5406954317 | M92: 0.5969150592 | N92: 0.4618401094 | O92: 0.5441215056 | P92: 0.7873713346 | Q92: 0.8760336726 | CX92: 12449186.07 | CY92: 10771.83995 | CZ92: 6910285.758 | DA92: 6081.358673 | DC92: 5538.900317 | DD92: 4.690481277 | DE92: 1180.88102 | DF92: HIPEC + CRS + Chemotherapy | DM92: 633861210.9 | DN92: 357971234.6 | DO92: 275889976.3 | EB92: 202987612.9 | EC92: 114716887.7 | ED92: 88270725.22 | EE92: HIPEC + CRS + Chemotherapy | EF92: 202987612.9 | EG92: 0 | EK92: 310706012.4 | EL92: 175530474.4 | EM92: 135175538 | EN92: HIPEC + CRS + Chemotherapy | EO92: 310706012.4 | EP92: 0 | ES92: =IF(Input!K101="","",Input!K101) ->  | EX92: 14340496.98 | EY92: 6169.301517 | EZ92: 9808198.004 | FA92: 4336.744962 | FC92: 109045533.4 | FD92: 76926701.23 | FE92: 32118832.13 | FF92: HIPEC + CRS + Chemotherapy | FG92: 109045533.4 | FH92: 0 | FL92: 170738548.5 | FM92: 120294150.9 | FN92: 50444397.68 | FO92: HIPEC + CRS + Chemotherapy | FP92: 170738548.5 | FQ92: 0
A93: 89 | B93: 0.1374683181 | C93: 0.0002480236027 | D93: -0.2339305827 | E93: 0.1399250005 | F93: 0.001987556607 | G93: 0.5269151334 | H93: 16168.06084 | I93: 11113.35318 | J93: 12507.9752 | K93: 9304.049156 | L93: 0.2753892253 | M93: 0.7082261491 | N93: 0.1068515466 | O93: 0.8628920559 | P93: 0.1241295384 | Q93: 0.168932058 | CX93: 11808215.34 | CY93: 1213.533256 | CZ93: 9752358.508 | DA93: 1078.529091 | DC93: 2055.856835 | DD93: 0.1350041657 | DE93: 15228.09925 | DF93: HIPEC + CRS + Chemotherapy | DM93: 61003780.03 | DN93: 54959386.92 | DO93: 6044393.106 | EB93: 12462449.78 | EC93: 11818223.3 | ED93: 644226.4791 | EE93: HIPEC + CRS + Chemotherapy | EF93: 12462449.78 | EG93: 0 | EK93: 24597782.34 | EL93: 22603514.21 | EM93: 1994268.136 | EN93: HIPEC + CRS + Chemotherapy | EO93: 24597782.34 | EP93: 0 | ES93: =IF(Input!K102="","",Input!K102) ->  | EX93: 14234500.82 | EY93: 5319.339039 | EZ93: 8922079.586 | FA93: 3840.769175 | FC93: 92152279.97 | FD93: 67893303.91 | FE93: 24258976.05 | FF93: HIPEC + CRS + Chemotherapy | FG93: 92152279.97 | FH93: 0 | FL93: 145345670.4 | FM93: 106300995.7 | FN93: 39044674.7 | FO93: HIPEC + CRS + Chemotherapy | FP93: 145345670.4 | FQ93: 0
A94: 90 | B94: 0.1307906593 | C94: 5.110012022e-05 | D94: -0.289803225 | E94: 0.09784450706 | F94: 0.0009568332121 | G94: 0.5391299619 | H94: 12016.80071 | I94: 13573.63549 | J94: 9009.141736 | K94: 6675.867161 | L94: 0.2152096928 | M94: 0.7578144347 | N94: 0.1118719508 | O94: 0.7762668052 | P94: 0.557329031 | Q94: 0.8867183428 | CX94: 13370016.05 | CY94: 5708.350937 | CZ94: 6904165.262 | DA94: 5527.899977 | DC94: 6465.850785 | DD94: 0.1804509601 | DE94: 35831.62308 | DF94: HIPEC + CRS + Chemotherapy | DM94: 329131040.2 | DN94: 324769833.3 | DO94: 4361206.819 | EB94: 100797002.7 | EC94: 103653834.3 | ED94: -2856831.583 | EE94: CRS + Chemotherapy | EF94: 103653834.3 | EG94: 2856831.583 | EK94: 157880512.1 | EL94: 158932834 | EM94: -1052321.983 | EN94: CRS + Chemotherapy | EO94: 158932834 | EP94: 1052321.983 | ES94: =IF(Input!K103="","",Input!K103) ->  | EX94: 14899091.31 | EY94: 6432.115286 | EZ94: 6698936.169 | FA94: 3540.678627 | FC94: 113743214.4 | FD94: 64114636.38 | FE94: 49628578.03 | FF94: HIPEC + CRS + Chemotherapy | FG94: 113743214.4 | FH94: 0 | FL94: 178064367.3 | FM94: 99521422.65 | FN94: 78542944.62 | FO94: HIPEC + CRS + Chemotherapy | FP94: 178064367.3 | FQ94: 0
A95: 91 | B95: 0.1131529666 | C95: 0.001360145562 | D95: -0.3259563525 | E95: 0.1103396453 | F95: 0.001095282366 | G95: 0.5845550297 | H95: 16639.78918 | I95: 14227.6466 | J95: 10589.10337 | K95: 8029.187234 | L95: 0.3443176496 | M95: 0.5853198451 | N95: 0.4823903891 | O95: 0.1027337971 | P95: 0.1587983554 | Q95: 0.8935608072 | CX95: 14500587.69 | CY95: 1790.776858 | CZ95: 8311647.472 | DA95: 6066.453483 | DC95: 6188.940219 | DD95: -4.275676624 | DE95: -1447.476216 | DF95: CRS + Chemotherapy | DM95: 92946023.82 | DN95: 355675561.5 | DO95: -262729537.7 | EB95: 21314949.48 | EC95: 113017422.2 | ED95: -91702472.71 | EE95: CRS + Chemotherapy | EF95: 113017422.2 | EG95: 91702472.71 | EK95: 39222718.06 | EL95: 173681957 | EM95: -134459238.9 | EN95: CRS + Chemotherapy | EO95: 173681957 | EP95: 134459238.9 | ES95: =IF(Input!K104="","",Input!K104) ->  | EX95: 9088956.579 | EY95: 6553.201931 | EZ95: 7867518.96 | FA95: 3613.24711 | FC95: 121975082 | FD95: 64397423.24 | FE95: 57577658.81 | FF95: HIPEC + CRS + Chemotherapy | FG95: 121975082 | FH95: 0 | FL95: 187507101.4 | FM95: 100529894.3 | FN95: 86977207.02 | FO95: HIPEC + CRS + Chemotherapy | FP95: 187507101.4 | FQ95: 0
A96: 92 | B96: 0.1544173059 | C96: 0.0003209430235 | D96: -0.4972691144 | E96: 0.1249546455 | F96: 0.0004315102881 | G96: 0.5906929744 | H96: 11709.03416 | I96: 10442.653 | J96: 14737.43358 | K96: 9301.583573 | L96: 0.1343652834 | M96: 0.8659243531 | N96: 0.1076400766 | O96: 0.7860115492 | P96: 0.8998779664 | Q96: 0.8332695611 | CX96: 10638204.17 | CY96: 11556.20552 | CZ96: 9980818.284 | DA96: 5782.480638 | DC96: 657.385886 | DD96: 5.773724877 | DE96: 113.8581938 | DF96: HIPEC + CRS + Chemotherapy | DM96: 682734126.7 | DN96: 336968020 | DO96: 345766106.7 | EB96: 220485906.1 | EC96: 105668794.5 | ED96: 114817111.6 | EE96: HIPEC + CRS + Chemotherapy | EF96: 220485906.1 | EG96: 0 | EK96: 336047961.3 | EL96: 163493600.9 | EM96: 172554360.4 | EN96: HIPEC + CRS + Chemotherapy | EO96: 336047961.3 | EP96: 0 | ES96: =IF(Input!K105="","",Input!K105) ->  | EX96: 11350088.93 | EY96: 5867.752573 | EZ96: 7233403.888 | FA96: 4219.342753 | FC96: 106004962.5 | FD96: 77153451.18 | FE96: 28851511.37 | FF96: HIPEC + CRS + Chemotherapy | FG96: 106004962.5 | FH96: 0 | FL96: 164682488.3 | FM96: 119346878.7 | FN96: 45335609.57 | FO96: HIPEC + CRS + Chemotherapy | FP96: 164682488.3 | FQ96: 0
A97: 93 | B97: 0.1619010457 | C97: 5.511224842e-05 | D97: 0.05313706083 | E97: 0.1118295469 | F97: 0.0003415531329 | G97: 0.5918659125 | H97: 14130.0517 | I97: 8366.469756 | J97: 14489.1021 | K97: 8438.284915 | L97: 0.7659736423 | M97: 0.8861477666 | N97: 0.6709395704 | O97: 0.6126398313 | P97: 0.5401773399 | Q97: 0.8990342422 | CX97: 9299599.699 | CY97: 3444.367873 | CZ97: 9114945.059 | DA97: 6243.458432 | DC97: 184.6546403 | DD97: -2.79909056 | DE97: -65.96951271 | DF97: CRS + Chemotherapy | DM97: 197362472.7 | DN97: 365492560.9 | DO97: -168130088.2 | EB97: 59587757.76 | EC97: 115754223.6 | ED97: -56166465.83 | EE97: CRS + Chemotherapy | EF97: 115754223.6 | EG97: 56166465.83 | EK97: 94031436.48 | EL97: 178188807.9 | EM97: -84157371.43 | EN97: CRS + Chemotherapy | EO97: 178188807.9 | EP97: 84157371.43 | ES97: =IF(Input!K106="","",Input!K106) ->  | EX97: 11751709.15 | EY97: 6981.149876 | EZ97: 8384548.347 | FA97: 3520.802065 | FC97: 127871288.4 | FD97: 62031492.95 | FE97: 65839795.42 | FF97: HIPEC + CRS + Chemotherapy | FG97: 127871288.4 | FH97: 0 | FL97: 197682787.1 | FM97: 97239513.59 | FN97: 100443273.5 | FO97: HIPEC + CRS + Chemotherapy | FP97: 197682787.1 | FQ97: 0
A98: 94 | B98: 0.1363983433 | C98: 0.0007735370242 | D98: -0.3880167131 | E98: 0.1199502947 | F98: 0.001782345368 | G98: 0.6319729692 | H98: 17938.58019 | I98: 9023.836845 | J98: 15045.27441 | K98: 9696.619089 | L98: 0.3634568684 | M98: 0.504080563 | N98: 0.4755011397 | O98: 0.898446239 | P98: 0.8977067416 | Q98: 0.8845458711 | CX98: 10239793.07 | CY98: 10947.32054 | CZ98: 10338191.87 | DA98: 6712.391697 | DC98: -98.39880181 | DD98: 4.234928841 | DE98: -23.23505436 | DF98: HIPEC + CRS + Chemotherapy | DM98: 646599439.2 | DN98: 392405310 | DO98: 254194129.2 | EB98: 208706617.7 | EC98: 123909642.1 | ED98: 84796975.62 | EE98: HIPEC + CRS + Chemotherapy | EF98: 208706617.7 | EG98: 0 | EK98: 318179823.1 | EL98: 191033559.1 | EM98: 127146264 | EN98: HIPEC + CRS + Chemotherapy | EO98: 318179823.1 | EP98: 0 | ES98: =IF(Input!K107="","",Input!K107) ->  | EX98: 9313885.325 | EY98: 5727.290632 | EZ98: 8543687.45 | FA98: 4345.144368 | FC98: 105231927.3 | FD98: 78359199.9 | FE98: 26872727.42 | FF98: HIPEC + CRS + Chemotherapy | FG98: 105231927.3 | FH98: 0 | FL98: 162504833.6 | FM98: 121810643.6 | FN98: 40694190.07 | FO98: HIPEC + CRS + Chemotherapy | FP98: 162504833.6 | FQ98: 0
A99: 95 | B99: 0.1304597222 | C99: 0.0002689023973 | D99: -0.2413454321 | E99: 0.1129129576 | F99: 0.0005600625417 | G99: 0.5653500936 | H99: 15865.44634 | I99: 8993.808084 | J99: 15804.24741 | K99: 8567.474292 | L99: 0.611179614 | M99: 0.8670256775 | N99: 0.8341143461 | O99: 0.6519840679 | P99: 0.8302492456 | Q99: 0.5006691837 | CX99: 9890280.102 | CY99: 8222.42603 | CZ99: 9384599.748 | DA99: 3315.903578 | DC99: 505.6803541 | DD99: 4.906522453 | DE99: 103.0628839 | DF99: HIPEC + CRS + Chemotherapy | DM99: 483455281.7 | DN99: 189569614.9 | DO99: 293885666.8 | EB99: 154558240.5 | EC99: 56933471.81 | ED99: 97624768.7 | EE99: HIPEC + CRS + Chemotherapy | EF99: 154558240.5 | EG99: 0 | EK99: 236782500.8 | EL99: 90092507.59 | EM99: 146689993.2 | EN99: HIPEC + CRS + Chemotherapy | EO99: 236782500.8 | EP99: 0 | ES99: =IF(Input!K108="","",Input!K108) ->  | EX99: 13108774.44 | EY99: 7155.507721 | EZ99: 7911667.926 | FA99: 4712.558043 | FC99: 130001380 | FD99: 86339492.94 | FE99: 43661887.04 | FF99: HIPEC + CRS + Chemotherapy | FG99: 130001380 | FH99: 0 | FL99: 201556457.2 | FM99: 133465073.4 | FN99: 68091383.82 | FO99: HIPEC + CRS + Chemotherapy | FP99: 201556457.2 | FQ99: 0
A100: 96 | B100: 0.1287085757 | C100: 0.001247988127 | D100: -0.3922197204 | E100: 0.1328893927 | F100: 0.001188749208 | G100: 0.5462543321 | H100: 16308.43118 | I100: 10374.53828 | J100: 13397.46398 | K100: 8654.359454 | L100: 0.2422058793 | M100: 0.7864987658 | N100: 0.8950284057 | O100: 0.8999846557 | P100: 0.7761186637 | Q100: 0.6137741791 | CX100: 11138281.18 | CY100: 8857.480098 | CZ100: 9284667.734 | DA100: 3914.5497 | DC100: 1853.613451 | DD100: 4.942930399 | DE100: 375.0029439 | DF100: HIPEC + CRS + Chemotherapy | DM100: 520310524.7 | DN100: 225588314.2 | DO100: 294722210.5 | EB100: 166011320.8 | EC100: 69006326.26 | ED100: 97004994.52 | EE100: HIPEC + CRS + Chemotherapy | EF100: 166011320.8 | EG100: 0 | EK100: 254586121.8 | EL100: 108151823.3 | EM100: 146434298.5 | EN100: HIPEC + CRS + Chemotherapy | EO100: 254586121.8 | EP100: 0 | ES100: =IF(Input!K109="","",Input!K109) ->  | EX100: 12788643.86 | EY100: 7179.758625 | EZ100: 10818766.91 | FA100: 3955.687759 | FC100: 130806528.6 | FD100: 68294988.27 | FE100: 62511540.37 | FF100: HIPEC + CRS + Chemotherapy | FG100: 130806528.6 | FH100: 0 | FL100: 202604114.9 | FM100: 107851865.9 | FN100: 94752249.03 | FO100: HIPEC + CRS + Chemotherapy | FP100: 202604114.9 | FQ100: 0
A101: 97 | B101: 0.1010888619 | C101: 0.001964416783 | D101: -0.2144063787 | E101: 0.09969171148 | F101: 0.002135782704 | G101: 0.5901975694 | H101: 18348.13869 | I101: 10905.13913 | J101: 12592.51508 | K101: 8756.684963 | L101: 0.7792246531 | M101: 0.8992649208 | N101: 0.8918134901 | O101: 0.5174239878 | P101: 0.5644679856 | Q101: 0.8611495218 | CX101: 11657543.48 | CY101: 5580.293282 | CZ101: 9139085.432 | DA101: 5945.300967 | DC101: 2518.458053 | DD101: -0.365007685 | DE101: -6899.739804 | DF101: CRS + Chemotherapy | DM101: 323160053.4 | DN101: 347578972.6 | DO101: -24418919.15 | EB101: 99948322.16 | EC101: 109766933.9 | ED101: -9818611.752 | EE101: CRS + Chemotherapy | EF101: 109766933.9 | EG101: 9818611.752 | EK101: 155751255 | EL101: 169219943.6 | EM101: -13468688.6 | EN101: CRS + Chemotherapy | EO101: 169219943.6 | EP101: 13468688.6 | ES101: =IF(Input!K110="","",Input!K110) ->  | EX101: 9712812.708 | EY101: 7585.823603 | EZ101: 8277894.907 | FA101: 4450.649435 | FC101: 142003659.4 | FD101: 80735093.79 | FE101: 61268565.57 | FF101: HIPEC + CRS + Chemotherapy | FG101: 142003659.4 | FH101: 0 | FL101: 217861895.4 | FM101: 125241588.1 | FN101: 92620307.25 | FO101: HIPEC + CRS + Chemotherapy | FP101: 217861895.4 | FQ101: 0
A102: 98 | B102: 0.1394866328 | C102: 1.668267091e-05 | D102: -0.2646416844 | E102: 0.1213887042 | F102: 0.002039423695 | G102: 0.5249236294 | H102: 18655.03203 | I102: 14305.24335 | J102: 10410.8321 | K102: 5765.212227 | L102: 0.1398278095 | M102: 0.5299550106 | N102: 0.760009462 | O102: 0.1243197213 | P102: 0.7922638809 | Q102: 0.8243464534 | CX102: 14911980.73 | CY102: 7729.049733 | CZ102: 6329138.003 | DA102: 4951.841781 | DC102: 8582.842725 | DD102: 2.777207953 | DE102: 3090.457348 | DF102: HIPEC + CRS + Chemotherapy | DM102: 448831003.3 | DN102: 290781368.8 | DO102: 158049634.4 | EB102: 139669013.9 | EC102: 92707697.61 | ED102: 46961316.33 | EE102: HIPEC + CRS + Chemotherapy | EF102: 139669013.9 | EG102: 0 | EK102: 216959511.3 | EL102: 142226115.4 | EM102: 74733395.86 | EN102: HIPEC + CRS + Chemotherapy | EO102: 216959511.3 | EP102: 0 | ES102: =IF(Input!K111="","",Input!K111) ->  | EX102: 9903133.442 | EY102: 6004.270353 | EZ102: 9704385.415 | FA102: 3893.392828 | FC102: 110182273.6 | FD102: 68163471.14 | FE102: 42018802.47 | FF102: HIPEC + CRS + Chemotherapy | FG102: 110182273.6 | FH102: 0 | FL102: 170224977.1 | FM102: 107097399.4 | FN102: 63127577.72 | FO102: HIPEC + CRS + Chemotherapy | FP102: 170224977.1 | FQ102: 0
A103: 99 | B103: 0.118602944 | C103: 0.000737209873 | D103: -0.511548463 | E103: 0.1109690853 | F103: 0.0004439143413 | G103: 0.5687061346 | H103: 17798.85338 | I103: 11267.14665 | J103: 14028.7867 | K103: 7050.387673 | L103: 0.8725850861 | M103: 0.1909649989 | N103: 0.3533504429 | O103: 0.8957962116 | P103: 0.1161643349 | Q103: 0.7546517041 | CX103: 12041826.3 | CY103: 1499.034606 | CZ103: 7824774.231 | DA103: 5018.284423 | DC103: 4217.052069 | DD103: -3.519249816 | DE103: -1198.281534 | DF103: CRS + Chemotherapy | DM103: 77900250.06 | DN103: 293272291.1 | DO103: -215372041.1 | EB103: 17938865.82 | EC103: 92540914.22 | ED103: -74602048.4 | EE103: CRS + Chemotherapy | EF103: 92540914.22 | EG103: 74602048.4 | EK103: 32929211.88 | EL103: 142723758.4 | EM103: -109794546.6 | EN103: CRS + Chemotherapy | EO103: 142723758.4 | EP103: 109794546.6 | ES103: =IF(Input!K112="","",Input!K112) ->  | EX103: 12004145.09 | EY103: 5998.589199 | EZ103: 8471235.549 | FA103: 3450.462398 | FC103: 107967638.9 | FD103: 60538012.41 | FE103: 47429626.48 | FF103: HIPEC + CRS + Chemotherapy | FG103: 107967638.9 | FH103: 0 | FL103: 167953530.9 | FM103: 95042636.39 | FN103: 72910894.49 | FO103: HIPEC + CRS + Chemotherapy | FP103: 167953530.9 | FQ103: 0
